Workbook

Sheet LDC Info
AA3: Algoma Power Inc.
AA4: Atikokan Hydro Inc.
AA5: Attawapiskat Power Corporation
AA6: Bluewater Power Distribution Corp.
AA7: Brant County Power
AA8: Brantford Power Inc.
AA9: Burlington Hydro Inc.
AA10: Cambridge and North Dumfries Hydro
AA11: Canadian Niagara Power Inc. – Eastern Ontario Power/Fort Erie/Port Colborne
AA12: Centre Wellington Hydro Ltd.
N13: Version 1.1 | AA13: Chapleau Public Utilities Corporation
D14: Utility Name | E14: Greater Sudbury Hydro Inc. | AA14: COLLUS Power Corp.
AA15: Cooperative Hydro Embrun Inc.
D16: Service Territory | AA16: E.L.K. Energy Inc.
AA17: Enersource Hydro Mississauga Inc.
D18: Assigned EB Number | E18: EB-2012-0126 | AA18: Entegrus Powerlines Inc.
AA19: ENWIN Utilities Ltd.
D20: Name of Contact and Title | E20: Nancy Whissell, Vice-President, Corporate Services | AA20: Erie Thames Powerlines Corp.
AA21: Espanola Regional Hydro Distribution Corporation
D22: Phone Number | E22: 705-675-0509 | AA22: Essex Powerlines Corporation
AA23: Festival Hydro Inc.
D24: Email Address | E24: nancyw@shec.com | AA24: Fort Albany Power Corporation
AA25: Fort Frances Power Corporation
D26: Bridge Year | E26: 2012 | AA26: Greater Sudbury Hydro Inc.
AA27: Grimsby Power Inc.
D28: Test Year | E28: 2013 | AA28: Guelph Hydro Electric Systems Inc.
AA29: Haldimand County Hydro Inc.
D30: Last Rebasing Year | E30: 2009 | AA30: Guelph Hydro Electric Systems Inc.
AA31: Halton Hills Hydro Inc.
B32: Notes | AA32: Hearst Power Distribution Co. Ltd.
AA33: Horizon Utilities Corporation
C34: Pale green cells represent input cells. | AA34: Hydro 2000 Inc.
AA35: Hydro Hawkesbury Inc.
C36: Pale blue cells represent drop-down lists. The applicant should select the appropriate item from the drop-down list. | AA36: Hydro One Brampton Networks Inc.
AA37: Hydro One Networks Inc.
C38: White cells contain fixed values, automatically generated values or formulae. | AA38: Hydro One Remote Communities Inc.
AA39: Hydro Ottawa Limited
AA40: Innisfil Hydro Dist. Systems Limited
AA41: Kashechewan Power Corporation
AA42: Kenora Hydro Electric Corporation Ltd.
AA43: Kingston Hydro Corporation
AA44: Kitchener-Wilmot Hydro Inc.
AA45: Lakefront Utilities Inc.
AA46: Lakeland Power Distribution Ltd.
AA47: London Hydro Inc.
AA48: Midland Power Utility Corporation
AA49: Milton Hydro Distribution Inc.
AA50: Newmarket – Tay Power Distribution Ltd.
AA51: Niagara Peninsula Energy Inc.
AA52: Niagara-on-the-Lake Hydro Inc.
AA53: Norfolk Power Distribution Ltd.
AA54: North Bay Hydro Distribution Limited
AA55: Northern Ontario Wires Inc.
AA56: Oakville Hydro Distribution Inc.
AA57: Orangeville Hydro Limited
AA58: Orillia Power Distribution Corp.
AA59: Oshawa PUC Networks Inc.
AA60: Ottawa River Power Corporation
AA61: Parry Sound Power Corporation
AA62: Peterborough Distribution Inc.
AA63: PowerStream Inc.
AA64: PUC Distribution Inc.
AA65: Renfrew Hydro Inc.
AA66: Rideau St. Lawrence Distribution Inc.
AA67: St. Thomas Energy Inc.
AA68: Sioux Lookout Hydro Inc.
AA69: Thunder Bay Hydro Electricity Distribution
AA70: Tillsonburg Hydro Inc.
AA71: Toronto Hydro-Electric System Limited
AA72: Veridian Connections Inc.
AA73: Wasaga Distribution Inc.
AA74: Waterloo North Hydro Inc.
AA75: Welland Hydro Electric System Corp.
AA76: Wellington North Power Inc.
AA77: West Coast Huron Energy Inc.
AA78: Westario Power Inc.
AA79: Whitby Hydro Electric Corporation
AA80: Woodstock Hydro Services Inc.

Sheet Index
A15: 1 | B15: LDC Information Sheet | E15: 19 | F15: Appendix 2-H OM&A Detailed Analysis
A16: 2 | B16: Index | E16: 20 | F16: Appendix 2-I OM&A Summary Analysis
A17: 3 | B17: Appendix 2-A Capital Projects | E17: 21 | F17: Appendix 2-J OM&A Cost Drivers
A18: 4 | B18: Appendix 2-B Fixed Asset Continuity | E18: 22 | F18: Appendix 2-K Employee Costs
A19: 5 | B19: Appendix 2-CA CGAAP Depreciation Expense 2011 | E19: 23 | F19: Appendix 2-L OM&A per Cust FTEE
A20: 6 | B20: Appendix 2-CB MIFRS Depreciation Expense 2011 | E20: 24 | F20: Appendix 2-M Regulatory Costs
A21: 7 | B21: Appendix 2-CC MIFRS Depreciation Expense 2012 | E21: 25 | F21: Appendix 2-N Corp Cost Allocation
A22: 8 | B22: Appendix 2-CD MIFRS Depreciation Expense 2013 | E22: 26 | F22: Appendix 2-OA Capital Structure and Cost of Capital
A23: 9 | B23: Appendix 2-CE CGAAP Depreciation Expense 2011 | E23: 27 | F23: Appendix 2-OB Debt Instruments
A24: 10 | B24: Appendix 2-CF CGAAP Depreciation Expense 2012 | E24: 28 | F24: Appendix 2-P Cost Allocation
A25: 11 | B25: Appendix 2-CG MIFRS Depreciation Expense 2012 | E25: 29 | F25: Appendix 2-Q Cost of Service Embedded Distributor
A26: 12 | B26: Appendix 2-CH MIFRS Depreciation Expense 2013 | E26: 30 | F26: Appendix 2-R Loss Factors
A27: 13 | B27: Appendix 2-CI Alternative Accounting Standards Depreciation Expense | E27: 31 | F27: Appendix 2-S Stranded Meters
A28: 14 | B28: Appendix 2-D Overhead | E28: 32 | F28: Appendix 2-T 1592 Tax Variance
A29: 15 | B29: Appendix 2-EA PP&E Deferral Account - 2012 IFRS Adopters | E29: 33 | F29: Appendix 2-U IFRS Transition Costs
A30: 16 | B30: Appendix 2-EB PP&E Deferral Account - 2013 IFRS Adopters | E30: 34 | F30: Appendix 2-V Rev Reconciliation
A31: 17 | B31: Appendix 2-F Other Operating Revenue | E31: 35 | F31: Appendix 2-W Bill Impacts
A32: 18 | B32: Appendix 2-G Detailed OM&A Expenses | E32: 36 | F32: Appendix 2-X CoS Flowchart

Sheet App.2-A_Capital Projects
G1: File Number: | H1: ='LDC Info'!$E$18 -> EB-2012-0126
G2: Exhibit: | H2: 2
G3: Tab: | H3: 4
G4: Schedule: | H4: 2
G5: Attachment: | H5: 1
G7: Date: | H7: 9 November, 2012
A9: Appendix 2-A
A10: Capital Projects Table
A13: Projects | B13: =IF(ISBLANK('LDC Info'!E26), "Year 1", 'LDC Info'!E26-5) -> 2007 | C13: =IF(ISBLANK('LDC Info'!E26), "Year 2", 'LDC Info'!E26-4) -> 2008 | D13: =IF(ISBLANK('LDC Info'!E26), "Year 3", 'LDC Info'!E26-3) -> 2009 | E13: =IF(ISBLANK('LDC Info'!E26), "Year 4", 'LDC Info'!E26-2) -> 2010 | F13: =IF(ISBLANK('LDC Info'!E26), "Year 5", 'LDC Info'!E26-1) -> 2011 | G13: ='LDC Info'!E26 & " Bridge Year" -> 2012 Bridge Year | H13: ='LDC Info'!E28 & " Test Year" -> 2013 Test Year
A14: Reporting Basis | B14: CGAAP | C14: CGAAP | D14: CGAAP | E14: CGAAP | F14: CGAAP | G14: CGAAP | H14: CGAAP
A15: Meter Installations
A16: Distribution Station Equipment <50kV | C16: 165841
A17: Poles, Towers & Fixtures | E17: 350
A18: Meters | B18: =228114+583.51 -> 228697.51 | C18: 144873 | D18: 38348 | E18: 30167 | F18: 17453 | G18: 107254 | H18: 100000
A19: Computer Software | C19: 2025
A20: Contributions | B20: -3500 | D20: -39 | E20: -450 | F20: -4605 | G20: -1376
A21: Sub-Total | B21: =SUM(B16:B20) -> 225197.51 | C21: 312739 | D21: 38309 | E21: 30067 | F21: 12848 | G21: 105878 | H21: 100000
A22: Emergency Plant Replacement
A23: Distribution Station Equipment <50kV | E23: 51245
A24: Poles, Towers & Fixtures | B24: 19469 | D24: 58294 | E24: 30094 | F24: 44796 | G24: 49211 | H24: 16424
A25: Overhead Conductors & Devices | B25: 17529 | D25: 15787 | E25: 13442 | F25: 8378 | G25: 9204 | H25: 3072
A26: Underground Conduit, Conductors & Devices | B26: =195011-1200 -> 193811 | C26: 260479 | D26: 54671 | E26: 48522 | F26: 218855 | G26: =24827+215598 -> 240425 | H26: =8286+71954 -> 80240
A27: Line Transformers | B27: 2331 | C27: 5634 | D27: 12449 | E27: 21462 | F27: 40509 | G27: 44502 | H27: 14852
A28: Services (Overhead & Underground) | F28: 31745 | G28: 34873 | H28: 11639
A29: Sub-total | B29: =SUM(B22:B28) -> 233140 | C29: 266113 | D29: 141201 | E29: 164765 | F29: 344283 | G29: 378215 | H29: 126227
A30: Failed Transformers
A31: Line Transformers | B31: =343766+26570 -> 370336 | C31: =44512+357 -> 44869 | D31: 182213 | E31: 451953 | F31: 151333 | G31: 267362 | H31: 130737
A32: Sub-total | B32: =SUM(B30:B31) -> 370336 | C32: 44869 | D32: 182213 | E32: 451953 | F32: 151333 | G32: 267362 | H32: 130737
A33: PCB
A34: Line Transformers | B34: 137343 | C34: 25007 | D34: 37204 | E34: 74577 | F34: 14811 | G34: 155070 | H34: 47368
A35: Sub-Total | B35: =SUM(B34:B34) -> 137343 | C35: 25007 | D35: 37204 | E35: 74577 | F35: 14811 | G35: 155070 | H35: 47368
A36: Major Substation Repairs
A37: Building Improvements | D37: 31716 | E37: =3536+12253+18909+10296+16966+11060+30722 -> 103742
A38: Buildings | B38: 168464 | C38: 33960
A39: Land | E39: 32745 | G39: 5569
A40: Distribution Station Equipment <50kV | B40: 304475 | C40: 323397 | D40: 437621 | E40: =4515+8044+24962+4367+11066+46708+7663+54201+378 -> 161904 | F40: =129113+974+31404 -> 161491 | G40: 1379969 | H40: 178800
A41: Poles, Towers & Fixtures | C41: 4312 | D41: 9701 | E41: =15766 -> 15766
A42: Overhead Conductors & Devices | D42: 5945
A43: Underground Conduit, Conductors & Devices | B43: =7316+314 -> 7630 | D43: 11074 | E43: =71549+32328+73 -> 103950
A44: Contributions | C44: -296171 | F44: -23335 | G44: -17766
A45: Sub-total | B45: =SUM(B36:B44) -> 480569 | C45: 65498 | D45: 496057 | E45: 418107 | F45: 138156 | G45: 1367772 | H45: 178800
A46: System Betterment
A47: Poles, Towers & Fixtures | B47: =382351+322+29790 -> 412463 | C47: 441832 | D47: 408523 | E47: =622561+34 -> 622595 | F47: 319718 | G47: 462769 | H47: 181940
A48: Overhead Conductors & Devices | B48: =442160+60 -> 442220 | C48: =540970-1028 -> 539942 | D48: 127526 | E48: =272761-41 -> 272720 | F48: 6970 | G48: 105628 | H48: 41528
A49: Underground Conduit, Conductors & Devices | B49: 358860 | C49: 289408 | D49: 175824 | E49: 314831 | F49: 109734 | G49: =100363+95753+1 -> 196117 | H49: =39458+37646 -> 77104
A50: Line Transformers | B50: 137914 | C50: =167190-2884 -> 164306 | D50: 255545 | E50: 172557 | F50: =203881-187 -> 203694 | G50: 212363 | H50: 83492
A51: Services (Overhead & Underground) | E51: 6473 | F51: 61537 | G51: 47285 | H51: 18590
A52: Contributions | B52: =-572600-34704 -> -607304 | C52: -272754 | D52: -46389 | E52: -25054 | F52: -37791 | G52: -1857
A53: Sub-total | B53: =SUM(B46:B52) -> 744153 | C53: 1162734 | D53: 921029 | E53: 1364122 | F53: 663862 | G53: 1022305 | H53: =SUM(H46:H51) -> 402654
A54: Overhead Services
A55: Services (Overhead & Underground) | B55: =184024+13246 -> 197270 | C55: =160+207077 -> 207237 | D55: 189266 | E55: =247922+2073 -> 249995 | F55: 245842 | G55: 227842 | H55: 162401
A56: Contributions | B56: =-106436-17369 -> -123805 | C56: -112922 | D56: -97301 | E56: -98341 | F56: -91262 | G56: -61818 | H56: -100000
A57: Sub-total | B57: =SUM(B54:B56) -> 73465 | C57: 94315 | D57: 91965 | E57: 151654 | F57: 154580 | G57: 166024 | H57: 62401
A58: Underground Services
A59: Services (Overhead & Underground) | B59: =157598+5376 -> 162974 | C59: =195477+219 -> 195696 | D59: =161885+132 -> 162017 | E59: =237684+513 -> 238197 | F59: 243905 | G59: 175961 | H59: 141569
A60: Contributions | B60: =-77075-4465 -> -81540 | C60: -82085 | D60: -70368 | E60: -80081 | F60: -87352 | G60: -68794 | H60: -80000
A61: Sub-total | B61: =SUM(B58:B60) -> 81434 | C61: 113611 | D61: 91649 | E61: 158116 | F61: 156553 | G61: 107167 | H61: 61569
A62: City Roadworks
A63: Poles, Towers & Fixtures | B63: 246176 | C63: 30758 | D63: 618 | E63: 39998 | F63: 4367 | H63: 58230
A64: Overhead Conductors & Devices | B64: 438921 | C64: 19206 | D64: 206 | E64: 139688 | F64: 7583 | H64: 203359
A65: Underground Conduit, Conductors & Devices | B65: 120140 | C65: 7703 | D65: =210332+88 -> 210420 | E65: 19566 | F65: 1502 | H65: =4380+24104 -> 28484
A66: Line Transformers | B66: 88631 | E66: 14462 | H66: 21053
A67: Services (Overhead & Underground) | E67: 19150 | F67: 1644 | H67: 27878
A68: Contributions | B68: -212456 | C68: -37030 | D68: -133245 | E68: -92174 | F68: -6280
A69: Sub-total | B69: =SUM(B63:B68) -> 681412 | C69: 20637 | D69: 77999 | E69: 140690 | F69: 8816 | G69: 0 | H69: 339004
A70: Subdivisions
A71: Poles, Towers & Fixtures | B71: 13202 | C71: 19425 | D71: 1038 | F71: 106
A72: Overhead Conductors & Devices | B72: 10544 | C72: 15552 | D72: 1308
A73: Underground Conduit, Conductors & Devices | B73: =337533+24111 -> 361644 | C73: 368653 | D73: 154874 | E73: 226618 | F73: 99980 | G73: =189337+120775+1 -> 310113 | H73: =90530+57747 -> 148277
A74: Line Transformers | B74: =61893+10658 -> 72551 | C74: =58662-2164 -> 56498 | D74: =26708+2164 -> 28872 | E74: 76386 | F74: 59491 | G74: 184528 | H74: 88230
A75: Services (Overhead & Underground) | F75: 11609 | G75: 36008 | H75: 17217
A76: Contributions | B76: =-397107-20573 -> -417680 | C76: -417180 | D76: 64834 | E76: -244001 | F76: -143953 | G76: -466732 | H76: -168254
A77: Sub-total | B77: =SUM(B70:B76) -> 40261 | C77: 42948 | D77: 250926 | E77: 59003 | F77: 27233 | G77: 63917 | H77: 85470
A78: Commercial Development
A79: Poles, Towers & Fixtures | B79: =8764+10198 -> 18962 | C79: 30729 | D79: 35358 | E79: 44150 | F79: 69541 | G79: 42615 | H79: 30048
A80: Overhead Conductors & Devices | B80: =19710+29205 -> 48915 | C80: 52751 | D80: 31331 | E80: 65580 | F80: 51137 | G80: =41106+91821+1 -> 132928 | H80: 28983
A81: Underground Conduit, Conductors & Devices | B81: 153019 | C81: 328184 | D81: 370587 | E81: 223041 | F81: 314268 | G81: 107702 | H81: =64743+75940 -> 140683
A82: Line Transformers | B82: =147955+28471 -> 176426 | C82: 350050 | D82: 202172 | E82: 518012 | F82: 147539 | G82: 215594 | H82: 152014
A83: Services (Overhead & Underground) | C83: 19055 | E83: 235 | F83: 7505 | G83: 3263 | H83: 2301
A84: Meters | F84: 880
A85: Contributions | B85: =-337922+960 -> -336962 | C85: -649155 | D85: -495587 | E85: -721333 | F85: -670625 | G85: -456002 | H85: -355536
A86: Sub-Total | B86: =SUM(B79:B85) -> 60360 | C86: 131614 | D86: 143861 | E86: 129685 | F86: -79755 | G86: 46100 | H86: -1507
A87: Building
A88: Carpet/Paint/Flooring | B88: 46495 | C88: =54570 -> 54570 | F88: 8444
A89: Fencing/Exterior/Roof | B89: 20859 | D89: =18072+4856+11067+31620+5278 -> 70893 | E89: =10193+14152 -> 24345 | F89: 96434
A90: Window/Doors | B90: 23489 | C90: 8196
A91: New Walls/Offices/Construction | B91: 5000 | C91: 62099 | D91: =92798.36+36770 -> 129568.36 | E91: =6250 -> 6250 | F91: 19045
A92: Renovate washrooms | G92: 100000
A93: Modifications to server room | G93: =6699+3414+15266 -> 25379
A94: New Roof | G94: 155700
A95: Lighting Conversion | H95: =27459+65801+16804 -> 110064
A96: Geothermal Energy System | H96: 615221
A97: Fuel Conversion | H97: 208000
A98: Other Miscellaneous | B98: 467 | C98: 7178.74 | D98: 7992 | E98: =11189+2844+7060-2038 -> 19055 | F98: 35428 | G98: 29300 | H98: =966000-SUM(H95:H97) -> 32715
A99: Sub-Total | B99: =SUM(B88:B98) -> 96310 | C99: 132043.74 | D99: 208453.36 | E99: 49650 | F99: 159351 | G99: 310379 | H99: 966000
A100: Porcelain Insulator Replacement
A101: Poles, Towers & Fixtures | B101: 15557 | C101: 2932 | D101: 285808
A102: Overhead Conductors & Devices | B102: =508372+1812 -> 510184 | C102: 271881 | D102: 153513
A103: Sub-Total | B103: =SUM(B101:B102) -> 525741 | C103: 274813 | D103: 439321 | E103: 0 | F103: 0 | G103: 0 | H103: 0
A104: Pole Replacement Program
A105: Poles, Towers & Fixtures | B105: 112188 | C105: 160976 | D105: 246453 | H105: 254383
A106: Overhead Conductors & Devices | B106: =52653+76 -> 52729 | C106: =187897-1897 -> 186000 | D106: 205950
A107: Line Transformers
A108: Contributions | D108: -1805
A109: Sub-total | B109: =SUM(B104:B108) -> 164917 | C109: 346976 | D109: 450598 | E109: 0 | F109: 0 | G109: 0 | H109: 254383
A110: Tools & Equipment
A111: Tools, Shop & Garage Equipment | B111: =88204+1220 -> 89424 | C111: 180931 | D111: 114715 | E111: 74325 | F111: 77854 | G111: 152809 | H111: 160000
A112: Sub-total | B112: =SUM(B110:B111) -> 89424 | C112: 180931 | D112: 114715 | E112: 74325 | F112: 77854 | G112: 152809 | H112: 160000
A113: Vehicles
A114: Small Vehicles (Trucks/Cars/Vans) | B114: 255827 | C114: =41887+43579+26643+36466+36466+1296+127+429+373 -> 187266 | D114: =26077+40769+32623+46688+25721+29971+2763.72 -> 204612.72 | E114: =10222+43029 -> 53251 | F114: 46316 | G114: 193456 | H114: 40000
A115: Trailers | C115: =13651+13414 -> 27065 | D115: 20236.5 | E115: =34492+83948 -> 118440 | F115: 12600 | H115: 20000
A116: Large Vehicles (Step Vans/Bucket/Boom Trucks) | C116: =344780+300240 -> 645020 | D116: 270935 | E116: =100811+268482 -> 369293 | F116: =151814.18+352220 -> 504034.18 | H116: 1058450
A117: Sub-total | B117: =SUM(B113:B116) -> 255827 | C117: 859351 | D117: 495784.22 | E117: 540984 | F117: 562950.18 | G117: 193456 | H117: 1118450
A118: Sherwood Park (Phase I, II & III)
A119: Underground Conduit, Conductors & Devices | B119: 159705 | C119: 727 | D119: 8829 | E119: 89981 | F119: 249646
A120: Line Transformers | E120: 51238 | F120: =29943+257 -> 30200
A121: Services (Overhead & Underground) | F121: 11117
A122: Sub-total | B122: =SUM(B118:B121) -> 159705 | C122: 727 | D122: 8829 | E122: 141219 | F122: 290963 | G122: 0 | H122: 0
A123: Albinson - Haig to Douglas
A124: Poles, Towers & Fixtures | B124: 5840
A125: Overhead Conductors & Devices | B125: 105893
A126: Line Transformers | B126: 11737
A127: Sub-total | B127: =SUM(B123:B126) -> 123470 | C127: 0 | D127: 0 | E127: 0 | F127: 0 | G127: 0 | H127: 0
A128: Tilton Lake
A129: Poles, Towers & Fixtures | B129: 94507 | D129: 47818
A130: Overhead Conductors & Devices | B130: 169087
A131: Line Transformers | B131: 7433
A132: Sub-total | B132: =SUM(B128:B131) -> 271027 | C132: 0 | D132: 47818 | E132: 0 | F132: 0 | G132: 0 | H132: 0
A133: Falconbridge 44kV
A134: Distribution Station Equipment <50kV | C134: 45
A135: Poles, Towers & Fixtures | C135: 74930
A136: Overhead Conductors & Devices | C136: 54150
A137: Underground Conduit, Conductors & Devices | C137: 103916
A138: Sub-Total | B138: =SUM(B134:B137) -> 0 | C138: 233041 | D138: 0 | E138: 0 | F138: 0 | G138: 0 | H138: 0
A139: Gary Avenue Rebuild
A140: Poles, Towers & Fixtures | C140: 215732 | D140: 20472
A141: Overhead Conductors & Devices | C141: 395597 | D141: 136431
A142: Underground Conduit, Conductors & Devices | C142: 109329 | D142: 226595 | E142: =1716+68 -> 1784
A143: Line Transformers | C143: 3763 | D143: 62572
A144: Sub-Total | B144: =SUM(B140:B143) -> 0 | C144: 724421 | D144: 446070 | E144: 1784 | F144: 0 | G144: 0 | H144: 0
A145: Webbwood Drive Rebuild
A146: Underground Conduit, Conductors & Devices | C146: 119240
A147: Line Transformers | C147: 42499
A148: Sub-total | B148: =SUM(B145:B147) -> 0 | C148: 161739 | D148: 0 | E148: 0 | F148: 0 | G148: 0 | H148: 0
A149: Beatrice Underground Rebuild
A150: Underground Conduit, Conductors & Devices | D150: 184992
A151: Sub-total | B151: =SUM(B149:B150) -> 0 | C151: 0 | D151: 184992 | E151: 0 | F151: 0 | G151: 0 | H151: 0
A152: GIS
A153: Computer Software | D153: 302438 | E153: 45300 | F153: 52901 | G153: 91500
A154: Sub-total | B154: =SUM(B152:B153) -> 0 | C154: 0 | D154: 302438 | E154: 45300 | F154: 52901 | G154: 91500 | H154: 0
A155: Jarvi Road Rebuild
A156: Poles, Towers & Fixtures | D156: 208082
A157: Overhead Conductors & Devices | D157: 55469 | E157: 5956
A158: Line Transformers | D158: 6107
A159: Sub-total | B159: =SUM(B155:B158) -> 0 | C159: 0 | D159: 269658 | E159: 5956 | F159: 0 | G159: 0 | H159: 0
A160: Louis Street Rebuild
A161: Underground Conduit, Conductors & Devices | D161: 152478 | E161: 156882 | F161: 2206
A162: Line Transformers | D162: 41793 | E162: 22196
A163: Sub-total | B163: =SUM(B160:B162) -> 0 | C163: 0 | D163: 194271 | E163: 179078 | F163: 2206 | G163: 0 | H163: 0
A164: Montague to Whissell Rebuild
A165: Poles, Towers & Fixtures | D165: 437642 | E165: 34038
A166: Overhead Conductors & Devices | D166: 143447 | E166: 135286
A167: Underground Conduit, Conductors & Devices | D167: 5776
A168: Line Transformers | D168: 56961 | E168: 32770
A169: Sub-total | B169: =SUM(B164:B168) -> 0 | C169: 0 | D169: 643826 | E169: 202094 | F169: 0 | G169: 0 | H169: 0
A170: SCADA Software
A171: System Supervisory Equipment | C171: 10260 | D171: 297472 | E171: 15730 | F171: =1800+17265 -> 19065 | G171: 675 | H171: 346045
A172: Sub-total | B172: =SUM(B170:B171) -> 0 | C172: 10260 | D172: 297472 | E172: 15730 | F172: 19065 | G172: 675 | H172: 346045
A173: Southlane Road Rebuild
A174: Poles, Towers & Fixtures | D174: 111828 | E174: 3485
A175: Overhead Conductors & Devices | D175: 159844
A176: Line Transformers | D176: 24488
A177: Contributions | D177: -8311
A178: Sub-total | B178: =SUM(B173:B177) -> 0 | C178: 0 | D178: 287849 | E178: 3485 | F178: 0 | G178: 0 | H178: 0
A179: Sparks Street Rebuild
A180: Poles, Towers & Fixtures | D180: 74255 | E180: 1834
A181: Overhead Conductors & Devices | D181: 99634
A182: Underground Conduit, Conductors & Devices | D182: 95792 | E182: 1015
A183: Line Transformers | D183: 145344 | E183: 2456
A184: Sub-total | B184: =SUM(B179:B183) -> 0 | C184: 0 | D184: 415025 | E184: 5305 | F184: 0 | G184: 0 | H184: 0
A185: Falconbridge Voltage Conversion
A186: Poles, Towers & Fixtures | D186: 11360 | E186: 12082
A187: Overhead Conductors & Devices | D187: 36066 | E187: 99169
A188: Underground Conduit, Conductors & Devices | D188: 1497 | E188: 35108
A189: Line Transformers | E189: 60832
A190: Sub-total | B190: =SUM(B185:B189) -> 0 | C190: 0 | D190: 48923 | E190: 207191 | F190: 0 | G190: 0 | H190: 0
A191: Annie St. 4kV to 12kV Conversion
A192: Poles, Towers & Fixtures | D192: 2395 | E192: 121314 | F192: 65635
A193: Overhead Conductors & Devices | E193: 359105 | F193: 40889
A194: Underground Conduit, Conductors & Devices | E194: 208805 | F194: 21402
A195: Line Transformers | E195: 396007 | F195: 62896
A196: Services (Overhead & Underground) | E196: 7850
A197: Sub-Total | B197: =SUM(B192:B196) -> 0 | C197: 0 | D197: 2395 | E197: 1093081 | F197: 190822 | G197: 0 | H197: 0
A198: CIS - Harris Billing System
A199: Computer Software | E199: 476702 | F199: 11042
A200: Sub-Total | B200: =SUM(B199:B199) -> 0 | C200: 0 | D200: 0 | E200: 476702 | F200: 11042 | G200: 0 | H200: 0
A201: Kingsway Rebuild
A202: Poles, Towers & Fixtures | E202: 100585
A203: Overhead Conductors & Devices | E203: 44544
A204: Sub-total | B204: =SUM(B201:B203) -> 0 | C204: 0 | D204: 0 | E204: 145129 | F204: 0 | G204: 0 | H204: 0
... 208 more rows

Sheet App.2-B_Fixed Asset Con'ty 2007
M1: File Number: | N1: ='LDC Info'!$E$18 -> EB-2012-0126
M2: Exhibit: | N2: 2
M3: Tab: | N3: 3
M4: Schedule: | N4: 2
M5: Attachment: | N5: 2
M7: Date: | N7: 9 November, 2012
A9: Appendix 2-B
A10: Fixed Asset Continuity Schedule-CGAAP
F12: Year | G12: 2007
E14: Cost | K14: Accumulated Depreciation
A15: CCA Class | B15: OEB | C15: Description | D15: Depreciation Rate | E15: Opening Balance | F15: Additions | G15: Disposals | H15: Closing Balance | J15: Opening Balance | K15: Additions | L15: Disposals | M15: Closing Balance | N15: Net Book Value
A16: 12 | B16: 1611 | C16: Computer Software (Formally known as Account 1925) | E16: 1896349.54 | H16: =E16+F16+G16 -> 1896349.54 | J16: -1868085.24 | K16: -11340.17 | M16: =J16+K16+L16 -> -1879425.41 | N16: =H16+M16 -> 16924.13
A17: CEC | B17: 1612 | C17: Land Rights (Formally known as Account 1906) | H17: =E17+F17+G17 -> 0 | M17: =J17+K17+L17 -> 0 | N17: =H17+M17 -> 0
A18: N/A | B18: 1805 | C18: Land | E18: 890771.88 | H18: 890771.88 | J18: 0 | M18: =J18+K18+L18 -> 0 | N18: =H18+M18 -> 890771.88
A19: 47 | B19: 1808 | C19: Buildings | E19: 8965817.62 | F19: 264775 | H19: 9230592.62 | J19: -3394280.51 | K19: -180649.07 | M19: =J19+K19+L19 -> -3574929.58 | N19: =H19+M19 -> 5655663.04
A20: 13 | B20: 1808 | C20: Buildings Improvements | E20: 0 | H20: 0 | J20: 0 | K20: 0 | M20: 0 | N20: 0
A21: 47 | B21: 1815 | C21: Transformer Station Equipment >50 kV | E21: 0 | F21: 0 | H21: 0 | J21: 0 | M21: 0 | N21: 0
A22: 47 | B22: 1820 | C22: Distribution Station Equipment <50 kV | E22: 14800135.96 | F22: 303274.6 | H22: 15103410.56 | J22: -8659571.11 | K22: -400772.61 | M22: -9060343.72 | N22: 6043066.84
A23: 47 | B23: 1825 | C23: Storage Battery Equipment | E23: 0 | F23: 0 | H23: 0 | J23: 0 | M23: 0 | N23: 0
A24: 47 | B24: 1830 | C24: Poles, Towers & Fixtures | E24: 11362943.95 | F24: 959653.45 | H24: 12322597.4 | J24: -4619697.97 | K24: -848321.1 | M24: -5468019.07 | N24: 6854578.33
A25: 47 | B25: 1835 | C25: Overhead Conductors & Devices | E25: 34902132.81 | F25: 1805898 | H25: 36708030.81 | J25: -22291173.85 | K25: -811056.12 | M25: -23102229.97 | N25: 13605800.84
A26: 47 | B26: 1840 | C26: Underground Conduit | E26: 16439256.17 | F26: 767574.05 | H26: 17206830.22 | J26: -8196552.93 | K26: -618195.05 | M26: -8814747.98 | N26: 8392082.24
A27: 47 | B27: 1845 | C27: Underground Conductors & Devices | E27: =16258082.16 -> 16258082.16 | F27: 612581.78 | H27: 16870663.94 | J27: -7435179.56 | K27: -620520.06 | M27: -8055699.62 | N27: 8814964.32
A28: 47 | B28: 1850 | C28: Line Transformers | E28: 22229712.7 | F28: 1005091.38 | H28: 23234804.08 | J28: -13130756.77 | K28: -735564.68 | M28: -13866321.45 | N28: 9368482.63
A29: 47 | B29: 1855 | C29: Services (Overhead & Underground) | E29: =3565128.92+4743411.15 -> 8308540.07 | F29: =162974.93+197268.99 -> 360243.92 | H29: 8668783.99 | J29: =-1847175.51-3110037.5 -> -4957213.01 | K29: =-133069.2-25993.81 -> -159063.01 | M29: -5116276.02 | N29: 3552507.97
A30: 47 | B30: 1860 | C30: Meters | E30: 8424114.1 | F30: 228697.82 | H30: 8652811.92 | J30: -5309403.21 | K30: -258490.03 | M30: -5567893.24 | N30: 3084918.68
A31: 47 | B31: 1860 | C31: Meters (Smart Meters) | E31: 0 | F31: 0 | H31: 0 | J31: 0 | M31: 0 | N31: 0
A32: N/A | B32: 1905 | C32: Land | E32: 0 | F32: 0 | H32: 0 | J32: 0 | M32: 0 | N32: 0
A33: 47 | B33: 1908 | C33: Buildings & Fixtures | E33: 0 | F33: 0 | H33: 0 | M33: 0 | N33: 0
A34: 13 | B34: 1910 | C34: Leasehold Improvements | E34: 0 | F34: 0 | H34: 0 | M34: 0 | N34: 0
A35: 8 | B35: 1915 | C35: Office Furniture & Equipment (10 years) | E35: 44314.56 | F35: 0 | H35: 44314.56 | J35: -36082.46 | K35: -938.52 | M35: -37020.98 | N35: 7293.58
A36: 8 | B36: 1915 | C36: Office Furniture & Equipment (5 years) | E36: 0 | F36: 0 | H36: 0 | M36: 0 | N36: 0
A37: 10 | B37: 1920 | C37: Computer Equipment - Hardware | E37: 93648.76 | F37: 0 | H37: 93648.76 | J37: -93648.76 | M37: -93648.76 | N37: 0
A38: 45 | B38: 1920 | C38: Computer Equip.-Hardware(Post Mar. 22/04) | E38: 0 | F38: 0 | H38: 0 | M38: 0 | N38: 0
A39: 45.1 | B39: 1920 | C39: Computer Equip.-Hardware(Post Mar. 19/07) | E39: 0 | F39: 0 | H39: 0 | M39: 0 | N39: 0
A40: 10 | B40: 1930 | C40: Transportation Equipment | E40: 3745966.56 | F40: 255826.86 | G40: -291505.59 | H40: 3710287.83 | J40: -3081758.62 | K40: -219733.23 | L40: 291505.59 | M40: -3009986.26 | N40: 700301.57
A41: 8 | B41: 1935 | C41: Stores Equipment | F41: 0 | H41: 0 | J41: 0 | M41: 0 | N41: 0
A42: 8 | B42: 1940 | C42: Tools, Shop & Garage Equipment | E42: 1282361.48 | F42: 89423.7 | H42: 1371785.18 | J42: -979136.24 | K42: -71190.55 | M42: -1050326.79 | N42: 321458.39
A43: 8 | B43: 1945 | C43: Measurement & Testing Equipment | E43: 0 | F43: 0 | H43: 0 | J43: 0 | M43: 0 | N43: 0
A44: 8 | B44: 1950 | C44: Power Operated Equipment | E44: 0 | F44: 0 | H44: 0 | J44: 0 | M44: 0 | N44: 0
A45: 8 | B45: 1955 | C45: Communications Equipment | E45: 2185673.55 | H45: 2185673.55 | J45: -830932.85 | K45: -78219.36 | M45: -909152.21 | N45: 1276521.34
A46: 8 | B46: 1955 | C46: Communication Equipment (Smart Meters) | E46: 0 | F46: 0 | H46: 0 | J46: 0 | M46: 0 | N46: 0
A47: 8 | B47: 1960 | C47: Miscellaneous Equipment | E47: 0 | F47: 0 | H47: 0 | J47: 0 | M47: 0 | N47: 0
A48: 47 | B48: 1975 | C48: Load Management Controls Utility Premises | E48: 0 | F48: 0 | H48: 0 | J48: 0 | M48: 0 | N48: 0
A49: 47 | B49: 1980 | C49: System Supervisory Equipment | E49: 1245223.47 | F49: 0 | H49: 1245223.47 | J49: -939214 | K49: -59189.79 | M49: -998403.79 | N49: 246819.68
A50: 47 | B50: 1985 | C50: Miscellaneous Fixed Assets | E50: 39634.38 | F50: 2482.48 | H50: 42116.86 | J50: -38144.48 | K50: -620.72 | M50: -38765.2 | N50: 3351.66
A51: 47 | B51: 1995 | C51: Contributions & Grants | E51: -7772883.59 | F51: -1823271.54 | H51: -9596155.13 | J51: 1011853.72 | K51: 383846.2 | M51: 1395699.92 | N51: -8200455.21
B52: 2055 | C52: Work in Process | E52: 127923.12 | F52: 17498.2 | G52: -71749.06 | H52: 73672.26 | J52: 0 | M52: 0 | N52: 73672.26
C54: Total | E54: =SUM(E16:E52) -> 145469719.2 | F54: =SUM(F16:F52) -> 4849749.7 | G54: -363254.65 | H54: 149956214.3 | J54: -84848977.85 | K54: -4690017.87 | L54: 291505.59 | M54: -89247490.13 | N54: 60708724.17
J56: Less: Fully Allocated Depreciation
A57: 10 | C57: Transportation | J57: Transportation | L57: -219733.2
A58: 8 | C58: Stores Equipment | J58: Stores Equipment | L58: -67004.4
J59: Net Depreciation | L59: =K54-L57-L58 -> -4403280.27
A61: Notes:
A63: 1 | B63: Tables in the format outlined above covering all fixed asset accounts should be submitted for the Test Year, Bridge Year and all relevant historical years. At a minimum , the applicant must provide data for the earlier of: 1) all historical years back to its last rebasing; or 2) at least three years of historical actuals, in addition to Bridge Year and Test Year forecasts.
A66: 2 | B66: The "CCA Class" for fixed assets should agree with the CCA Class used for tax purposes in Tax Returns. Fixed Assets sub-components may be used where the underlying asset components are classified under multiple CCA Classes for tax purposes. If an applicant uses any different classes from those shown in the table, an explanation should be provided. (also see note 3 below).
A69: 3 | B69: The table may need to be customized for a utility's asset categories or for any new asset accounts announced or authorized by the Board.
A71: 4 | B71: The depreciation column (D) is not required as the relevant information will be provided in the following 2-C series of appendices.

Sheet App.2-B_Fixed Asset Con'ty 2008
M1: File Number: | N1: ='LDC Info'!$E$18 -> EB-2012-0126
M2: Exhibit: | N2: 2
M3: Tab: | N3: 3
M4: Schedule: | N4: 2
M5: Attachment: | N5: 2
M7: Date: | N7: 9 November, 2012
A9: Appendix 2-B
A10: Fixed Asset Continuity Schedule-CGAAP
F12: Year | G12: 2008
E14: Cost | K14: Accumulated Depreciation
A15: CCA Class | B15: OEB | C15: Description | D15: Depreciation Rate | E15: Opening Balance | F15: Additions | G15: Disposals | H15: Closing Balance | J15: Opening Balance | K15: Additions | L15: Disposals | M15: Closing Balance | N15: Net Book Value
A16: 12 | B16: 1611 | C16: Computer Software (Formally known as Account 1925) | E16: ='App.2-B_Fixed Asset Con''ty 2007'!H16 -> 1896349.54 | F16: 30075.57 | G16: -395541.18 | H16: =E16+F16+G16 -> 1530883.93 | J16: ='App.2-B_Fixed Asset Con''ty 2007'!M16 -> -1879425.41 | K16: -17355.27 | L16: 395541.18 | M16: =J16+K16+L16 -> -1501239.5 | N16: =H16+M16 -> 29644.43
A17: CEC | B17: 1612 | C17: Land Rights (Formally known as Account 1906) | E17: ='App.2-B_Fixed Asset Con''ty 2007'!H17 -> 0 | F17: 0 | H17: =E17+F17+G17 -> 0 | J17: ='App.2-B_Fixed Asset Con''ty 2007'!M17 -> 0 | K17: 0 | M17: =J17+K17+L17 -> 0 | N17: =H17+M17 -> 0
A18: N/A | B18: 1805 | C18: Land | E18: ='App.2-B_Fixed Asset Con''ty 2007'!H18 -> 890771.88 | F18: 0 | H18: 890771.88 | J18: ='App.2-B_Fixed Asset Con''ty 2007'!M18 -> 0 | K18: 0 | M18: =J18+K18+L18 -> 0 | N18: =H18+M18 -> 890771.88
A19: 47 | B19: 1808 | C19: Buildings | E19: ='App.2-B_Fixed Asset Con''ty 2007'!H19 -> 9230592.62 | F19: 0 | H19: 9230592.62 | J19: ='App.2-B_Fixed Asset Con''ty 2007'!M19 -> -3574929.58 | K19: -175968.98 | M19: =J19+K19+L19 -> -3750898.56 | N19: =H19+M19 -> 5479694.06
A20: 13 | B20: 1808 | C20: Buildings Improvements | E20: ='App.2-B_Fixed Asset Con''ty 2007'!H20 -> 0 | F20: 166005 | H20: 166005 | J20: ='App.2-B_Fixed Asset Con''ty 2007'!M20 -> 0 | K20: -11066.99 | M20: -11066.99 | N20: 154938.01
A21: 47 | B21: 1815 | C21: Transformer Station Equipment >50 kV | E21: ='App.2-B_Fixed Asset Con''ty 2007'!H21 -> 0 | F21: 0 | H21: 0 | J21: ='App.2-B_Fixed Asset Con''ty 2007'!M21 -> 0 | K21: 0 | M21: 0 | N21: 0
A22: 47 | B22: 1820 | C22: Distribution Station Equipment <50 kV | E22: ='App.2-B_Fixed Asset Con''ty 2007'!H22 -> 15103410.56 | F22: 545456.99 | H22: 15648867.55 | J22: ='App.2-B_Fixed Asset Con''ty 2007'!M22 -> -9060343.72 | K22: -418954.55 | M22: -9479298.27 | N22: 6169569.28
A23: 47 | B23: 1825 | C23: Storage Battery Equipment | E23: ='App.2-B_Fixed Asset Con''ty 2007'!H23 -> 0 | F23: 0 | H23: 0 | J23: ='App.2-B_Fixed Asset Con''ty 2007'!M23 -> 0 | K23: 0 | M23: 0 | N23: 0
A24: 47 | B24: 1830 | C24: Poles, Towers & Fixtures | E24: ='App.2-B_Fixed Asset Con''ty 2007'!H24 -> 12322597.4 | F24: 984389.01 | H24: 13306986.41 | J24: ='App.2-B_Fixed Asset Con''ty 2007'!M24 -> -5468019.07 | K24: -886086.04 | M24: -6354105.11 | N24: 6952881.3
A25: 47 | B25: 1835 | C25: Overhead Conductors & Devices | E25: ='App.2-B_Fixed Asset Con''ty 2007'!H25 -> 36708030.81 | F25: 1542681.05 | H25: 38250711.86 | J25: ='App.2-B_Fixed Asset Con''ty 2007'!M25 -> -23102229.97 | K25: -832003.73 | M25: -23934233.7 | N25: 14316478.16
A26: 47 | B26: 1840 | C26: Underground Conduit | E26: ='App.2-B_Fixed Asset Con''ty 2007'!H26 -> 17206830.22 | F26: 538884.5 | H26: 17745714.72 | J26: ='App.2-B_Fixed Asset Con''ty 2007'!M26 -> -8814747.98 | K26: -639750.43 | M26: -9454498.41 | N26: 8291216.31
A27: 47 | B27: 1845 | C27: Underground Conductors & Devices | E27: ='App.2-B_Fixed Asset Con''ty 2007'!H27 -> 16870663.94 | F27: 1130090.71 | H27: 18000754.65 | J27: ='App.2-B_Fixed Asset Con''ty 2007'!M27 -> -8055699.62 | K27: -665723.68 | M27: -8721423.3 | N27: 9279331.35
A28: 47 | B28: 1850 | C28: Line Transformers | E28: ='App.2-B_Fixed Asset Con''ty 2007'!H28 -> 23234804.08 | F28: 612938.74 | H28: 23847742.82 | J28: ='App.2-B_Fixed Asset Con''ty 2007'!M28 -> -13866321.45 | K28: -759009.95 | M28: -14625331.4 | N28: 9222411.42
A29: 47 | B29: 1855 | C29: Services (Overhead & Underground) | E29: ='App.2-B_Fixed Asset Con''ty 2007'!H29 -> 8668783.99 | F29: =212369.23+207077.15 -> 419446.38 | H29: 9088230.37 | J29: ='App.2-B_Fixed Asset Con''ty 2007'!M29 -> -5116276.02 | K29: =-30108.45-141563.97 -> -171672.42 | M29: -5287948.44 | N29: 3800281.93
A30: 47 | B30: 1860 | C30: Meters | E30: ='App.2-B_Fixed Asset Con''ty 2007'!H30 -> 8652811.92 | F30: 88699.2 | H30: 8741511.12 | J30: ='App.2-B_Fixed Asset Con''ty 2007'!M30 -> -5567893.24 | K30: -261718.17 | M30: -5829611.41 | N30: 2911899.71
A31: 47 | B31: 1860 | C31: Meters (Smart Meters) | E31: ='App.2-B_Fixed Asset Con''ty 2007'!H31 -> 0 | F31: 0 | H31: 0 | J31: ='App.2-B_Fixed Asset Con''ty 2007'!M31 -> 0 | K31: 0 | M31: 0 | N31: 0
A32: N/A | B32: 1905 | C32: Land | E32: ='App.2-B_Fixed Asset Con''ty 2007'!H32 -> 0 | F32: 0 | H32: 0 | J32: ='App.2-B_Fixed Asset Con''ty 2007'!M32 -> 0 | K32: 0 | M32: 0 | N32: 0
A33: 47 | B33: 1908 | C33: Buildings & Fixtures | E33: ='App.2-B_Fixed Asset Con''ty 2007'!H33 -> 0 | F33: 0 | H33: 0 | J33: ='App.2-B_Fixed Asset Con''ty 2007'!M33 -> 0 | K33: 0 | M33: 0 | N33: 0
A34: 13 | B34: 1910 | C34: Leasehold Improvements | E34: ='App.2-B_Fixed Asset Con''ty 2007'!H34 -> 0 | F34: 0 | H34: 0 | J34: ='App.2-B_Fixed Asset Con''ty 2007'!M34 -> 0 | K34: 0 | M34: 0 | N34: 0
A35: 8 | B35: 1915 | C35: Office Furniture & Equipment (10 years) | E35: ='App.2-B_Fixed Asset Con''ty 2007'!H35 -> 44314.56 | F35: 0 | H35: 44314.56 | J35: ='App.2-B_Fixed Asset Con''ty 2007'!M35 -> -37020.98 | K35: -938.52 | M35: -37959.5 | N35: 6355.06
A36: 8 | B36: 1915 | C36: Office Furniture & Equipment (5 years) | E36: ='App.2-B_Fixed Asset Con''ty 2007'!H36 -> 0 | F36: 0 | H36: 0 | J36: ='App.2-B_Fixed Asset Con''ty 2007'!M36 -> 0 | K36: 0 | M36: 0 | N36: 0
A37: 10 | B37: 1920 | C37: Computer Equipment - Hardware | E37: ='App.2-B_Fixed Asset Con''ty 2007'!H37 -> 93648.76 | F37: 0 | G37: -93648.76 | H37: 0 | J37: ='App.2-B_Fixed Asset Con''ty 2007'!M37 -> -93648.76 | K37: 0 | L37: 93648.76 | M37: 0 | N37: 0
A38: 45 | B38: 1920 | C38: Computer Equip.-Hardware(Post Mar. 22/04) | E38: ='App.2-B_Fixed Asset Con''ty 2007'!H38 -> 0 | F38: 0 | H38: 0 | J38: ='App.2-B_Fixed Asset Con''ty 2007'!M38 -> 0 | K38: 0 | M38: 0 | N38: 0
A39: 45.1 | B39: 1920 | C39: Computer Equip.-Hardware(Post Mar. 19/07) | E39: ='App.2-B_Fixed Asset Con''ty 2007'!H39 -> 0 | F39: 0 | H39: 0 | J39: ='App.2-B_Fixed Asset Con''ty 2007'!M39 -> 0 | K39: 0 | M39: 0 | N39: 0
A40: 10 | B40: 1930 | C40: Transportation Equipment | E40: ='App.2-B_Fixed Asset Con''ty 2007'!H40 -> 3710287.83 | F40: 859349.61 | G40: -513355.67 | H40: 4056281.77 | J40: ='App.2-B_Fixed Asset Con''ty 2007'!M40 -> -3009986.26 | K40: -333319.15 | L40: 513356 | M40: -2829949.41 | N40: 1226332.36
A41: 8 | B41: 1935 | C41: Stores Equipment | E41: ='App.2-B_Fixed Asset Con''ty 2007'!H41 -> 0 | F41: 0 | H41: 0 | J41: ='App.2-B_Fixed Asset Con''ty 2007'!M41 -> 0 | K41: 0 | M41: 0 | N41: 0
A42: 8 | B42: 1940 | C42: Tools, Shop & Garage Equipment | E42: ='App.2-B_Fixed Asset Con''ty 2007'!H42 -> 1371785.18 | F42: 180931.47 | H42: 1552716.65 | J42: ='App.2-B_Fixed Asset Con''ty 2007'!M42 -> -1050326.79 | K42: -84234.07 | M42: -1134560.86 | N42: 418155.79
A43: 8 | B43: 1945 | C43: Measurement & Testing Equipment | E43: ='App.2-B_Fixed Asset Con''ty 2007'!H43 -> 0 | F43: 0 | H43: 0 | J43: ='App.2-B_Fixed Asset Con''ty 2007'!M43 -> 0 | K43: 0 | M43: 0 | N43: 0
A44: 8 | B44: 1950 | C44: Power Operated Equipment | E44: ='App.2-B_Fixed Asset Con''ty 2007'!H44 -> 0 | F44: 0 | H44: 0 | J44: ='App.2-B_Fixed Asset Con''ty 2007'!M44 -> 0 | K44: 0 | M44: 0 | N44: 0
A45: 8 | B45: 1955 | C45: Communications Equipment | E45: ='App.2-B_Fixed Asset Con''ty 2007'!H45 -> 2185673.55 | F45: 7335.18 | H45: 2193008.73 | J45: ='App.2-B_Fixed Asset Con''ty 2007'!M45 -> -909152.21 | K45: -78952.86 | M45: -988105.07 | N45: 1204903.66
A46: 8 | B46: 1955 | C46: Communication Equipment (Smart Meters) | E46: ='App.2-B_Fixed Asset Con''ty 2007'!H46 -> 0 | F46: 0 | H46: 0 | J46: ='App.2-B_Fixed Asset Con''ty 2007'!M46 -> 0 | K46: 0 | M46: 0 | N46: 0
A47: 8 | B47: 1960 | C47: Miscellaneous Equipment | E47: ='App.2-B_Fixed Asset Con''ty 2007'!H47 -> 0 | F47: 0 | H47: 0 | J47: ='App.2-B_Fixed Asset Con''ty 2007'!M47 -> 0 | K47: 0 | M47: 0 | N47: 0
A48: 47 | B48: 1975 | C48: Load Management Controls Utility Premises | E48: ='App.2-B_Fixed Asset Con''ty 2007'!H48 -> 0 | F48: 0 | H48: 0 | J48: ='App.2-B_Fixed Asset Con''ty 2007'!M48 -> 0 | K48: 0 | M48: 0 | N48: 0
A49: 47 | B49: 1980 | C49: System Supervisory Equipment | E49: ='App.2-B_Fixed Asset Con''ty 2007'!H49 -> 1245223.47 | F49: 0 | H49: 1245223.47 | J49: ='App.2-B_Fixed Asset Con''ty 2007'!M49 -> -998403.79 | K49: -50626.04 | M49: -1049029.83 | N49: 196193.64
A50: 47 | B50: 1985 | C50: Miscellaneous Fixed Assets | E50: ='App.2-B_Fixed Asset Con''ty 2007'!H50 -> 42116.86 | F50: 0 | H50: 42116.86 | J50: ='App.2-B_Fixed Asset Con''ty 2007'!M50 -> -38765.2 | K50: -3351.66 | M50: -42116.86 | N50: 0
A51: 47 | B51: 1995 | C51: Contributions & Grants | E51: ='App.2-B_Fixed Asset Con''ty 2007'!H51 -> -9596155.13 | F51: -1867297.02 | H51: -11463452.15 | J51: ='App.2-B_Fixed Asset Con''ty 2007'!M51 -> 1395699.92 | K51: 458538.07 | M51: 1854237.99 | N51: -9609214.16
B52: 2055 | C52: Work in Process | E52: ='App.2-B_Fixed Asset Con''ty 2007'!H52 -> 73672.26 | F52: =822832.12 -> 822832.12 | G52: -56174.06 | H52: 840330.32 | J52: ='App.2-B_Fixed Asset Con''ty 2007'!M52 -> 0 | M52: 0 | N52: 840330.32
C54: Total | E54: =SUM(E16:E52) -> 149956214.3 | F54: =SUM(F16:F52) -> 6061818.51 | G54: -1058719.67 | H54: 154959313.1 | J54: -89247490.09 | K54: -4932194.44 | L54: 1002545.94 | M54: -93177138.63 | N54: 61782174.51
J56: Less: Fully Allocated Depreciation
A57: 10 | C57: Transportation | J57: Transportation | L57: -333318.82
A58: 8 | C58: Stores Equipment | J58: Stores Equipment | L58: -84234.06
J59: Net Depreciation | L59: =K54-L57-L58 -> -4514641.56
A61: Notes:
A63: 1 | B63: Tables in the format outlined above covering all fixed asset accounts should be submitted for the Test Year, Bridge Year and all relevant historical years. At a minimum , the applicant must provide data for the earlier of: 1) all historical years back to its last rebasing; or 2) at least three years of historical actuals, in addition to Bridge Year and Test Year forecasts.
A66: 2 | B66: The "CCA Class" for fixed assets should agree with the CCA Class used for tax purposes in Tax Returns. Fixed Assets sub-components may be used where the underlying asset components are classified under multiple CCA Classes for tax purposes. If an applicant uses any different classes from those shown in the table, an explanation should be provided. (also see note 3 below).
A69: 3 | B69: The table may need to be customized for a utility's asset categories or for any new asset accounts announced or authorized by the Board.
A71: 4 | B71: The depreciation column (D) is not required as the relevant information will be provided in the following 2-C series of appendices.

Sheet App.2-B_Fixed Asset Con'ty 2009
M1: File Number: | N1: ='LDC Info'!$E$18 -> EB-2012-0126
M2: Exhibit: | N2: 2
M3: Tab: | N3: 3
M4: Schedule: | N4: 2
M5: Attachment: | N5: 2
M7: Date: | N7: 9 November, 2012
A9: Appendix 2-B
A10: Fixed Asset Continuity Schedule-CGAAP
F12: Year | G12: 2009
E14: Cost | K14: Accumulated Depreciation
A15: CCA Class | B15: OEB | C15: Description | D15: Depreciation Rate | E15: Opening Balance | F15: Additions | G15: Disposals | H15: Closing Balance | J15: Opening Balance | K15: Additions | L15: Disposals | M15: Closing Balance | N15: Net Book Value
A16: 12 | B16: 1611 | C16: Computer Software (Formally known as Account 1925) | E16: ='App.2-B_Fixed Asset Con''ty 2008'!H16 -> 1530883.93 | F16: 323775.47 | G16: -1090.57 | H16: =E16+F16+G16 -> 1853568.83 | J16: ='App.2-B_Fixed Asset Con''ty 2008'!M16 -> -1501239.5 | K16: -43757.32 | L16: 109 | M16: =J16+K16+L16 -> -1544887.82 | N16: =H16+M16 -> 308681.01
A17: CEC | B17: 1612 | C17: Land Rights (Formally known as Account 1906) | E17: ='App.2-B_Fixed Asset Con''ty 2008'!H17 -> 0 | H17: =E17+F17+G17 -> 0 | J17: ='App.2-B_Fixed Asset Con''ty 2008'!M17 -> 0 | M17: =J17+K17+L17 -> 0 | N17: =H17+M17 -> 0
A18: N/A | B18: 1805 | C18: Land | E18: ='App.2-B_Fixed Asset Con''ty 2008'!H18 -> 890771.88 | F18: 186.05 | H18: =E18+F18+G18 -> 890957.93 | J18: ='App.2-B_Fixed Asset Con''ty 2008'!M18 -> 0 | M18: =J18+K18+L18 -> 0 | N18: =H18+M18 -> 890957.93
A19: 47 | B19: 1808 | C19: Buildings | E19: ='App.2-B_Fixed Asset Con''ty 2008'!H19 -> 9230592.62 | F19: 0 | H19: =E19+F19+G19 -> 9230592.62 | J19: ='App.2-B_Fixed Asset Con''ty 2008'!M19 -> -3750898.56 | K19: -175805.42 | M19: =J19+K19+L19 -> -3926703.98 | N19: =H19+M19 -> 5303888.64
A20: 13 | B20: 1808 | C20: Buildings Improvements | E20: ='App.2-B_Fixed Asset Con''ty 2008'!H20 -> 166005 | F20: 240168.52 | H20: 406173.52 | J20: ='App.2-B_Fixed Asset Con''ty 2008'!M20 -> -11066.99 | K20: -19072.61 | M20: -30139.6 | N20: 376033.92
A21: 47 | B21: 1815 | C21: Transformer Station Equipment >50 kV | E21: ='App.2-B_Fixed Asset Con''ty 2008'!H21 -> 0 | H21: 0 | J21: ='App.2-B_Fixed Asset Con''ty 2008'!M21 -> 0 | M21: 0 | N21: 0
A22: 47 | B22: 1820 | C22: Distribution Station Equipment <50 kV | E22: ='App.2-B_Fixed Asset Con''ty 2008'!H22 -> 15648867.55 | F22: 437621.15 | H22: 16086488.7 | J22: ='App.2-B_Fixed Asset Con''ty 2008'!M22 -> -9479298.27 | K22: -426248.21 | M22: -9905546.48 | N22: 6180942.22
A23: 47 | B23: 1825 | C23: Storage Battery Equipment | E23: ='App.2-B_Fixed Asset Con''ty 2008'!H23 -> 0 | H23: 0 | J23: ='App.2-B_Fixed Asset Con''ty 2008'!M23 -> 0 | M23: 0 | N23: 0
A24: 47 | B24: 1830 | C24: Poles, Towers & Fixtures | E24: ='App.2-B_Fixed Asset Con''ty 2008'!H24 -> 13306986.41 | F24: 2004152.65 | H24: 15311139.06 | J24: ='App.2-B_Fixed Asset Con''ty 2008'!M24 -> -6354105.11 | K24: -919046.33 | M24: -7273151.44 | N24: 8037987.62
A25: 47 | B25: 1835 | C25: Overhead Conductors & Devices | E25: ='App.2-B_Fixed Asset Con''ty 2008'!H25 -> 38250711.86 | F25: 1395457.51 | H25: 39646169.37 | J25: ='App.2-B_Fixed Asset Con''ty 2008'!M25 -> -23934233.7 | K25: -838387.4 | M25: -24772621.1 | N25: 14873548.27
A26: 47 | B26: 1840 | C26: Underground Conduit | E26: ='App.2-B_Fixed Asset Con''ty 2008'!H26 -> 17745714.72 | F26: 733233.62 | H26: 18478948.34 | J26: ='App.2-B_Fixed Asset Con''ty 2008'!M26 -> -9454498.41 | K26: -654415.1 | M26: -10108913.51 | N26: 8370034.83
A27: 47 | B27: 1845 | C27: Underground Conductors & Devices | E27: ='App.2-B_Fixed Asset Con''ty 2008'!H27 -> 18000754.65 | F27: 968524.56 | H27: 18969279.21 | J27: ='App.2-B_Fixed Asset Con''ty 2008'!M27 -> -8721423.3 | K27: -685094.17 | M27: -9406517.47 | N27: 9562761.74
A28: 47 | B28: 1850 | C28: Line Transformers | E28: ='App.2-B_Fixed Asset Con''ty 2008'!H28 -> 23847742.82 | F28: 1103841.63 | H28: 24951584.45 | J28: ='App.2-B_Fixed Asset Con''ty 2008'!M28 -> -14625331.4 | K28: -776793.41 | M28: -15402124.81 | N28: 9549459.64
A29: 47 | B29: 1855 | C29: Services (Overhead & Underground) | E29: ='App.2-B_Fixed Asset Con''ty 2008'!H29 -> 9088230.37 | F29: =193021.31+160293.66 -> 353314.97 | H29: 9441545.34 | J29: ='App.2-B_Fixed Asset Con''ty 2008'!M29 -> -5287948.44 | K29: =-31292.86-144769.84 -> -176062.7 | M29: -5464011.14 | N29: 3977534.2
A30: 47 | B30: 1860 | C30: Meters | E30: ='App.2-B_Fixed Asset Con''ty 2008'!H30 -> 8741511.12 | F30: 38347.51 | H30: 8779858.63 | J30: ='App.2-B_Fixed Asset Con''ty 2008'!M30 -> -5829611.41 | K30: -262260.42 | M30: -6091871.83 | N30: 2687986.8
A31: 47 | B31: 1860 | C31: Meters (Smart Meters) | E31: ='App.2-B_Fixed Asset Con''ty 2008'!H31 -> 0 | H31: 0 | J31: ='App.2-B_Fixed Asset Con''ty 2008'!M31 -> 0 | M31: 0 | N31: 0
A32: N/A | B32: 1905 | C32: Land | E32: ='App.2-B_Fixed Asset Con''ty 2008'!H32 -> 0 | H32: 0 | J32: ='App.2-B_Fixed Asset Con''ty 2008'!M32 -> 0 | M32: 0 | N32: 0
A33: 47 | B33: 1908 | C33: Buildings & Fixtures | E33: ='App.2-B_Fixed Asset Con''ty 2008'!H33 -> 0 | H33: 0 | J33: ='App.2-B_Fixed Asset Con''ty 2008'!M33 -> 0 | M33: 0 | N33: 0
A34: 13 | B34: 1910 | C34: Leasehold Improvements | E34: ='App.2-B_Fixed Asset Con''ty 2008'!H34 -> 0 | H34: 0 | J34: ='App.2-B_Fixed Asset Con''ty 2008'!M34 -> 0 | M34: 0 | N34: 0
A35: 8 | B35: 1915 | C35: Office Furniture & Equipment (10 years) | E35: ='App.2-B_Fixed Asset Con''ty 2008'!H35 -> 44314.56 | H35: 44314.56 | J35: ='App.2-B_Fixed Asset Con''ty 2008'!M35 -> -37959.5 | K35: -938.52 | M35: -38898.02 | N35: 5416.54
A36: 8 | B36: 1915 | C36: Office Furniture & Equipment (5 years) | E36: ='App.2-B_Fixed Asset Con''ty 2008'!H36 -> 0 | H36: 0 | J36: ='App.2-B_Fixed Asset Con''ty 2008'!M36 -> 0 | M36: 0 | N36: 0
A37: 10 | B37: 1920 | C37: Computer Equipment - Hardware | E37: ='App.2-B_Fixed Asset Con''ty 2008'!H37 -> 0 | H37: 0 | J37: ='App.2-B_Fixed Asset Con''ty 2008'!M37 -> 0 | M37: 0 | N37: 0
A38: 45 | B38: 1920 | C38: Computer Equip.-Hardware(Post Mar. 22/04) | E38: ='App.2-B_Fixed Asset Con''ty 2008'!H38 -> 0 | H38: 0 | J38: ='App.2-B_Fixed Asset Con''ty 2008'!M38 -> 0 | M38: 0 | N38: 0
A39: 45.1 | B39: 1920 | C39: Computer Equip.-Hardware(Post Mar. 19/07) | E39: ='App.2-B_Fixed Asset Con''ty 2008'!H39 -> 0 | H39: 0 | J39: ='App.2-B_Fixed Asset Con''ty 2008'!M39 -> 0 | M39: 0 | N39: 0
A40: 10 | B40: 1930 | C40: Transportation Equipment | E40: ='App.2-B_Fixed Asset Con''ty 2008'!H40 -> 4056281.77 | F40: 495784.05 | G40: -51563.68 | H40: 4500502.14 | J40: ='App.2-B_Fixed Asset Con''ty 2008'!M40 -> -2829949.41 | K40: -352036.49 | L40: 51563.68 | M40: -3130422.22 | N40: 1370079.92
A41: 8 | B41: 1935 | C41: Stores Equipment | E41: ='App.2-B_Fixed Asset Con''ty 2008'!H41 -> 0 | H41: 0 | J41: ='App.2-B_Fixed Asset Con''ty 2008'!M41 -> 0 | M41: 0 | N41: 0
A42: 8 | B42: 1940 | C42: Tools, Shop & Garage Equipment | E42: ='App.2-B_Fixed Asset Con''ty 2008'!H42 -> 1552716.65 | F42: 114714.62 | H42: 1667431.27 | J42: ='App.2-B_Fixed Asset Con''ty 2008'!M42 -> -1134560.86 | K42: -82322.42 | M42: -1216883.28 | N42: 450547.99
A43: 8 | B43: 1945 | C43: Measurement & Testing Equipment | E43: ='App.2-B_Fixed Asset Con''ty 2008'!H43 -> 0 | H43: 0 | J43: ='App.2-B_Fixed Asset Con''ty 2008'!M43 -> 0 | M43: 0 | N43: 0
A44: 8 | B44: 1950 | C44: Power Operated Equipment | E44: ='App.2-B_Fixed Asset Con''ty 2008'!H44 -> 0 | H44: 0 | J44: ='App.2-B_Fixed Asset Con''ty 2008'!M44 -> 0 | M44: 0 | N44: 0
A45: 8 | B45: 1955 | C45: Communications Equipment | E45: ='App.2-B_Fixed Asset Con''ty 2008'!H45 -> 2193008.73 | F45: 19821.13 | H45: 2212829.86 | J45: ='App.2-B_Fixed Asset Con''ty 2008'!M45 -> -988105.07 | K45: -79943.92 | M45: -1068048.99 | N45: 1144780.87
A46: 8 | B46: 1955 | C46: Communication Equipment (Smart Meters) | E46: ='App.2-B_Fixed Asset Con''ty 2008'!H46 -> 0 | H46: 0 | J46: ='App.2-B_Fixed Asset Con''ty 2008'!M46 -> 0 | M46: 0 | N46: 0
A47: 8 | B47: 1960 | C47: Miscellaneous Equipment | E47: ='App.2-B_Fixed Asset Con''ty 2008'!H47 -> 0 | H47: 0 | J47: ='App.2-B_Fixed Asset Con''ty 2008'!M47 -> 0 | M47: 0 | N47: 0
A48: 47 | B48: 1975 | C48: Load Management Controls Utility Premises | E48: ='App.2-B_Fixed Asset Con''ty 2008'!H48 -> 0 | H48: 0 | J48: ='App.2-B_Fixed Asset Con''ty 2008'!M48 -> 0 | M48: 0 | N48: 0
A49: 47 | B49: 1980 | C49: System Supervisory Equipment | E49: ='App.2-B_Fixed Asset Con''ty 2008'!H49 -> 1245223.47 | F49: 297471.74 | H49: 1542695.21 | J49: ='App.2-B_Fixed Asset Con''ty 2008'!M49 -> -1049029.83 | K49: -53749.6 | M49: -1102779.43 | N49: 439915.78
A50: 47 | B50: 1985 | C50: Miscellaneous Fixed Assets | E50: ='App.2-B_Fixed Asset Con''ty 2008'!H50 -> 42116.86 | H50: 42116.86 | J50: ='App.2-B_Fixed Asset Con''ty 2008'!M50 -> -42116.86 | M50: -42116.86 | N50: 0
A51: 47 | B51: 1995 | C51: Contributions & Grants | E51: ='App.2-B_Fixed Asset Con''ty 2008'!H51 -> -11463452.15 | F51: -788212.03 | H51: -12251664.18 | J51: ='App.2-B_Fixed Asset Con''ty 2008'!M51 -> 1854237.99 | K51: 474302.32 | M51: 2328540.31 | N51: -9923123.87
B52: 2055 | C52: Work in Process | E52: ='App.2-B_Fixed Asset Con''ty 2008'!H52 -> 840330.32 | F52: 8220.54 | G52: -840330 | H52: 8220.86 | J52: ='App.2-B_Fixed Asset Con''ty 2008'!M52 -> 0 | M52: 0 | N52: 8220.86
C54: Total | E54: =SUM(E16:E52) -> 154959313.1 | F54: =SUM(F16:F52) -> 7746423.69 | G54: -892984.25 | H54: 161812752.6 | J54: -93177138.63 | K54: -5071631.72 | L54: 51672.68 | M54: -98197097.67 | N54: 63615654.91
J56: Less: Fully Allocated Depreciation
A57: 10 | C57: Transportation | J57: Transportation | L57: =-358466.27+109 -> -358357.27
A58: 8 | C58: Stores Equipment | J58: Stores Equipment | L58: -78664.04
J59: Net Depreciation | L59: =K54-L57-L58 -> -4634610.41
A61: Notes:
A63: 1 | B63: Tables in the format outlined above covering all fixed asset accounts should be submitted for the Test Year, Bridge Year and all relevant historical years. At a minimum , the applicant must provide data for the earlier of: 1) all historical years back to its last rebasing; or 2) at least three years of historical actuals, in addition to Bridge Year and Test Year forecasts.
A66: 2 | B66: The "CCA Class" for fixed assets should agree with the CCA Class used for tax purposes in Tax Returns. Fixed Assets sub-components may be used where the underlying asset components are classified under multiple CCA Classes for tax purposes. If an applicant uses any different classes from those shown in the table, an explanation should be provided. (also see note 3 below).
A69: 3 | B69: The table may need to be customized for a utility's asset categories or for any new asset accounts announced or authorized by the Board.
A71: 4 | B71: The depreciation column (D) is not required as the relevant information will be provided in the following 2-C series of appendices.

Sheet App.2-B_Fixed Asset Con'ty 2010
M1: File Number: | N1: ='LDC Info'!$E$18 -> EB-2012-0126
M2: Exhibit: | N2: 2
M3: Tab: | N3: 3
M4: Schedule: | N4: 2
M5: Attachment: | N5: 2
M7: Date: | N7: 9 November, 2012
A9: Appendix 2-B
A10: Fixed Asset Continuity Schedule-CGAAP
F12: Year | G12: 2010
E14: Cost | K14: Accumulated Depreciation
A15: CCA Class | B15: OEB | C15: Description | D15: Depreciation Rate | E15: Opening Balance | F15: Additions | G15: Disposals | H15: Closing Balance | J15: Opening Balance | K15: Additions | L15: Disposals | M15: Closing Balance | N15: Net Book Value
A16: 12 | B16: 1611 | C16: Computer Software (Formally known as Account 1925) | E16: ='App.2-B_Fixed Asset Con''ty 2009'!H16 -> 1853568.83 | F16: 651780.67 | H16: =E16+F16+G16 -> 2505349.5 | J16: ='App.2-B_Fixed Asset Con''ty 2009'!M16 -> -1544887.82 | K16: -135730.16 | M16: =J16+K16+L16 -> -1680617.98 | N16: =H16+M16 -> 824731.52
A17: CEC | B17: 1612 | C17: Land Rights (Formally known as Account 1906) | E17: ='App.2-B_Fixed Asset Con''ty 2009'!H17 -> 0 | H17: =E17+F17+G17 -> 0 | J17: ='App.2-B_Fixed Asset Con''ty 2009'!M17 -> 0 | M17: =J17+K17+L17 -> 0 | N17: =H17+M17 -> 0
A18: N/A | B18: 1805 | C18: Land | E18: ='App.2-B_Fixed Asset Con''ty 2009'!H18 -> 890957.93 | F18: 32744.71 | G18: -66404.4 | H18: =E18+F18+G18 -> 857298.24 | J18: ='App.2-B_Fixed Asset Con''ty 2009'!M18 -> 0 | M18: =J18+K18+L18 -> 0 | N18: =H18+M18 -> 857298.24
A19: 47 | B19: 1808 | C19: Buildings | E19: ='App.2-B_Fixed Asset Con''ty 2009'!H19 -> 9230592.62 | H19: =E19+F19+G19 -> 9230592.62 | J19: ='App.2-B_Fixed Asset Con''ty 2009'!M19 -> -3926703.98 | K19: -170576.89 | M19: =J19+K19+L19 -> -4097280.87 | N19: =H19+M19 -> 5133311.75
A20: 13 | B20: 1808 | C20: Buildings Improvements | E20: ='App.2-B_Fixed Asset Con''ty 2009'!H20 -> 406173.52 | F20: 161354.83 | H20: 567528.35 | J20: ='App.2-B_Fixed Asset Con''ty 2009'!M20 -> -30139.6 | K20: -32456.72 | M20: -62596.32 | N20: 504932.03
A21: 47 | B21: 1815 | C21: Transformer Station Equipment >50 kV | E21: ='App.2-B_Fixed Asset Con''ty 2009'!H21 -> 0 | H21: 0 | J21: ='App.2-B_Fixed Asset Con''ty 2009'!M21 -> 0 | M21: 0 | N21: 0
A22: 47 | B22: 1820 | C22: Distribution Station Equipment <50 kV | E22: ='App.2-B_Fixed Asset Con''ty 2009'!H22 -> 16086488.7 | F22: 213181.65 | H22: 16299670.35 | J22: ='App.2-B_Fixed Asset Con''ty 2009'!M22 -> -9905546.48 | K22: -442557.14 | M22: -10348103.62 | N22: 5951566.73
A23: 47 | B23: 1825 | C23: Storage Battery Equipment | E23: ='App.2-B_Fixed Asset Con''ty 2009'!H23 -> 0 | H23: 0 | J23: ='App.2-B_Fixed Asset Con''ty 2009'!M23 -> 0 | M23: 0 | N23: 0
A24: 47 | B24: 1830 | C24: Poles, Towers & Fixtures | E24: ='App.2-B_Fixed Asset Con''ty 2009'!H24 -> 15311139.06 | F24: 1072043.62 | H24: 16383182.68 | J24: ='App.2-B_Fixed Asset Con''ty 2009'!M24 -> -7273151.44 | K24: -562387.23 | M24: -7835538.67 | N24: 8547644.01
A25: 47 | B25: 1835 | C25: Overhead Conductors & Devices | E25: ='App.2-B_Fixed Asset Con''ty 2009'!H25 -> 39646169.37 | F25: 1220522.06 | H25: 40866691.43 | J25: ='App.2-B_Fixed Asset Con''ty 2009'!M25 -> -24772621.1 | K25: -1155368.4 | M25: -25927989.5 | N25: 14938701.93
A26: 47 | B26: 1840 | C26: Underground Conduit | E26: ='App.2-B_Fixed Asset Con''ty 2009'!H26 -> 18478948.34 | F26: 616101.56 | H26: 19095049.9 | J26: ='App.2-B_Fixed Asset Con''ty 2009'!M26 -> -10108913.51 | K26: -689250.92 | M26: -10798164.43 | N26: 8296885.47
A27: 47 | B27: 1845 | C27: Underground Conductors & Devices | E27: ='App.2-B_Fixed Asset Con''ty 2009'!H27 -> 18969279.21 | F27: 1019872.03 | H27: 19989151.24 | J27: ='App.2-B_Fixed Asset Con''ty 2009'!M27 -> -9406517.47 | K27: -722401.72 | M27: -10128919.19 | N27: 9860232.05
A28: 47 | B28: 1850 | C28: Line Transformers | E28: ='App.2-B_Fixed Asset Con''ty 2009'!H28 -> 24951584.45 | F28: 1957831.08 | H28: 26909415.53 | J28: ='App.2-B_Fixed Asset Con''ty 2009'!M28 -> -15402124.81 | K28: -840186.72 | M28: -16242311.53 | N28: 10667104
A29: 47 | B29: 1855 | C29: Services (Overhead & Underground) | E29: ='App.2-B_Fixed Asset Con''ty 2009'!H29 -> 9441545.34 | F29: =262123.77+273570.59 -> 535694.36 | H29: 9977239.7 | J29: ='App.2-B_Fixed Asset Con''ty 2009'!M29 -> -5464011.14 | K29: =-164104.07-155236.53 -> -319340.6 | M29: -5783351.74 | N29: 4193887.96
A30: 47 | B30: 1860 | C30: Meters | E30: ='App.2-B_Fixed Asset Con''ty 2009'!H30 -> 8779858.63 | F30: 30166.68 | H30: 8810025.31 | J30: ='App.2-B_Fixed Asset Con''ty 2009'!M30 -> -6091871.83 | K30: -263282.8 | M30: -6355154.63 | N30: 2454870.68
A31: 47 | B31: 1860 | C31: Meters (Smart Meters) | E31: ='App.2-B_Fixed Asset Con''ty 2009'!H31 -> 0 | H31: 0 | J31: ='App.2-B_Fixed Asset Con''ty 2009'!M31 -> 0 | M31: 0 | N31: 0
A32: N/A | B32: 1905 | C32: Land | E32: ='App.2-B_Fixed Asset Con''ty 2009'!H32 -> 0 | H32: 0 | J32: ='App.2-B_Fixed Asset Con''ty 2009'!M32 -> 0 | M32: 0 | N32: 0
A33: 47 | B33: 1908 | C33: Buildings & Fixtures | E33: ='App.2-B_Fixed Asset Con''ty 2009'!H33 -> 0 | H33: 0 | J33: ='App.2-B_Fixed Asset Con''ty 2009'!M33 -> 0 | M33: 0 | N33: 0
A34: 13 | B34: 1910 | C34: Leasehold Improvements | E34: ='App.2-B_Fixed Asset Con''ty 2009'!H34 -> 0 | H34: 0 | J34: ='App.2-B_Fixed Asset Con''ty 2009'!M34 -> 0 | M34: 0 | N34: 0
A35: 8 | B35: 1915 | C35: Office Furniture & Equipment (10 years) | E35: ='App.2-B_Fixed Asset Con''ty 2009'!H35 -> 44314.56 | H35: 44314.56 | J35: ='App.2-B_Fixed Asset Con''ty 2009'!M35 -> -38898.02 | K35: -938.52 | M35: -39836.54 | N35: 4478.02
A36: 8 | B36: 1915 | C36: Office Furniture & Equipment (5 years) | E36: ='App.2-B_Fixed Asset Con''ty 2009'!H36 -> 0 | H36: 0 | J36: ='App.2-B_Fixed Asset Con''ty 2009'!M36 -> 0 | M36: 0 | N36: 0
A37: 10 | B37: 1920 | C37: Computer Equipment - Hardware | E37: ='App.2-B_Fixed Asset Con''ty 2009'!H37 -> 0 | H37: 0 | J37: ='App.2-B_Fixed Asset Con''ty 2009'!M37 -> 0 | M37: 0 | N37: 0
A38: 45 | B38: 1920 | C38: Computer Equip.-Hardware(Post Mar. 22/04) | E38: ='App.2-B_Fixed Asset Con''ty 2009'!H38 -> 0 | H38: 0 | J38: ='App.2-B_Fixed Asset Con''ty 2009'!M38 -> 0 | M38: 0 | N38: 0
A39: 45.1 | B39: 1920 | C39: Computer Equip.-Hardware(Post Mar. 19/07) | E39: ='App.2-B_Fixed Asset Con''ty 2009'!H39 -> 0 | H39: 0 | J39: ='App.2-B_Fixed Asset Con''ty 2009'!M39 -> 0 | M39: 0 | N39: 0
A40: 10 | B40: 1930 | C40: Transportation Equipment | E40: ='App.2-B_Fixed Asset Con''ty 2009'!H40 -> 4500502.14 | F40: 540987.26 | H40: 5041489.4 | J40: ='App.2-B_Fixed Asset Con''ty 2009'!M40 -> -3130422.22 | K40: -423415.19 | M40: -3553837.41 | N40: 1487651.99
A41: 8 | B41: 1935 | C41: Stores Equipment | E41: ='App.2-B_Fixed Asset Con''ty 2009'!H41 -> 0 | H41: 0 | J41: ='App.2-B_Fixed Asset Con''ty 2009'!M41 -> 0 | M41: 0 | N41: 0
A42: 8 | B42: 1940 | C42: Tools, Shop & Garage Equipment | E42: ='App.2-B_Fixed Asset Con''ty 2009'!H42 -> 1667431.27 | F42: 74324.51 | H42: 1741755.78 | J42: ='App.2-B_Fixed Asset Con''ty 2009'!M42 -> -1216883.28 | K42: -78563.84 | M42: -1295447.12 | N42: 446308.66
A43: 8 | B43: 1945 | C43: Measurement & Testing Equipment | E43: ='App.2-B_Fixed Asset Con''ty 2009'!H43 -> 0 | H43: 0 | J43: ='App.2-B_Fixed Asset Con''ty 2009'!M43 -> 0 | M43: 0 | N43: 0
A44: 8 | B44: 1950 | C44: Power Operated Equipment | E44: ='App.2-B_Fixed Asset Con''ty 2009'!H44 -> 0 | H44: 0 | J44: ='App.2-B_Fixed Asset Con''ty 2009'!M44 -> 0 | M44: 0 | N44: 0
A45: 8 | B45: 1955 | C45: Communications Equipment | E45: ='App.2-B_Fixed Asset Con''ty 2009'!H45 -> 2212829.86 | H45: 2212829.86 | J45: ='App.2-B_Fixed Asset Con''ty 2009'!M45 -> -1068048.99 | K45: -80934.98 | M45: -1148983.97 | N45: 1063845.89
A46: 8 | B46: 1955 | C46: Communication Equipment (Smart Meters) | E46: ='App.2-B_Fixed Asset Con''ty 2009'!H46 -> 0 | H46: 0 | J46: ='App.2-B_Fixed Asset Con''ty 2009'!M46 -> 0 | M46: 0 | N46: 0
A47: 8 | B47: 1960 | C47: Miscellaneous Equipment | E47: ='App.2-B_Fixed Asset Con''ty 2009'!H47 -> 0 | H47: 0 | J47: ='App.2-B_Fixed Asset Con''ty 2009'!M47 -> 0 | M47: 0 | N47: 0
A48: 47 | B48: 1975 | C48: Load Management Controls Utility Premises | E48: ='App.2-B_Fixed Asset Con''ty 2009'!H48 -> 0 | H48: 0 | J48: ='App.2-B_Fixed Asset Con''ty 2009'!M48 -> 0 | M48: 0 | N48: 0
A49: 47 | B49: 1980 | C49: System Supervisory Equipment | E49: ='App.2-B_Fixed Asset Con''ty 2009'!H49 -> 1542695.21 | F49: 12747.92 | H49: 1555443.13 | J49: ='App.2-B_Fixed Asset Con''ty 2009'!M49 -> -1102779.43 | K49: -59725.64 | M49: -1162505.07 | N49: 392938.06
A50: 47 | B50: 1985 | C50: Miscellaneous Fixed Assets | E50: ='App.2-B_Fixed Asset Con''ty 2009'!H50 -> 42116.86 | H50: 42116.86 | J50: ='App.2-B_Fixed Asset Con''ty 2009'!M50 -> -42116.86 | M50: -42116.86 | N50: 0
A51: 47 | B51: 1995 | C51: Contributions & Grants | E51: ='App.2-B_Fixed Asset Con''ty 2009'!H51 -> -12251664.18 | F51: -1261433.88 | H51: -13513098.06 | J51: ='App.2-B_Fixed Asset Con''ty 2009'!M51 -> 2328540.31 | K51: 515295.24 | M51: 2843835.55 | N51: -10669262.51
B52: 1330 | C52: WIP - Capital Inventory | E52: 0 | F52: 1022658 | H52: 1022658 | J52: ='App.2-B_Fixed Asset Con''ty 2009'!M52 -> 0 | M52: 0 | N52: 1022658
B53: 2055 | C53: Work in Process | E53: ='App.2-B_Fixed Asset Con''ty 2009'!H52 -> 8220.86 | F53: 228308 | G53: =-E53 -> -8220.86 | H53: 228308 | J53: ='App.2-B_Fixed Asset Con''ty 2009'!M52 -> 0 | M53: 0 | N53: 228308
E54: ='App.2-B_Fixed Asset Con''ty 2009'!H53 -> 0 | H54: 0 | J54: ='App.2-B_Fixed Asset Con''ty 2009'!M53 -> 0 | M54: 0 | N54: 0
A55: Total prior to Board ordered removal of CIS related to water billing | E55: =SUM(E16:E54) -> 161812752.6 | F55: =SUM(F16:F54) -> 8128885.06 | G55: =SUM(G16:G54) -> -74625.26 | H55: =SUM(H16:H54) -> 169867012.4 | J55: =SUM(J16:J54) -> -98197097.67 | K55: =SUM(K16:K54) -> -5461822.23 | L55: 0 | M55: -103658919.9 | N55: =SUM(N16:N54) -> 66208092.48
A56: 12 | B56: 1611 | C56: Computer Software | E56: ='App.2-B_Fixed Asset Con''ty 2009'!H55 -> 0 | F56: =-602644.51*0.2104 -> -126796.4049 | H56: -126796.4049 | J56: ='App.2-B_Fixed Asset Con''ty 2009'!M55 -> 0 | K56: 12679.64 | M56: 12679.64 | N56: -114116.7649
A57: Total subsequent to Board ordered removal of CIS related to water billing | E57: =SUM(E55:E56) -> 161812752.6 | F57: =SUM(F55:F56) -> 8002088.655 | G57: =SUM(G55:G56) -> -74625.26 | H57: =SUM(H55:H56) -> 169740216 | J57: =SUM(J55:J56) -> -98197097.67 | K57: =SUM(K55:K56) -> -5449142.59 | L57: 0 | M57: -103646240.3 | N57: 66093975.72
J59: Less: Fully Allocated Depreciation
A60: 10 | C60: Transportation | J60: Transportation | L60: -423415.19
A61: 8 | C61: Stores Equipment | J61: Stores Equipment | L61: -78563.84
J62: Net Depreciation | L62: =K55-L60-L61 -> -4959843.2
A64: Notes:
A66: 1 | B66: Tables in the format outlined above covering all fixed asset accounts should be submitted for the Test Year, Bridge Year and all relevant historical years. At a minimum , the applicant must provide data for the earlier of: 1) all historical years back to its last rebasing; or 2) at least three years of historical actuals, in addition to Bridge Year and Test Year forecasts.
A69: 2 | B69: The "CCA Class" for fixed assets should agree with the CCA Class used for tax purposes in Tax Returns. Fixed Assets sub-components may be used where the underlying asset components are classified under multiple CCA Classes for tax purposes. If an applicant uses any different classes from those shown in the table, an explanation should be provided. (also see note 3 below).
A72: 3 | B72: The table may need to be customized for a utility's asset categories or for any new asset accounts announced or authorized by the Board.
A74: 4 | B74: The depreciation column (D) is not required as the relevant information will be provided in the following 2-C series of appendices.

Sheet App.2-B_Fixed Asset Con'ty 2011
M1: File Number: | N1: ='LDC Info'!$E$18 -> EB-2012-0126
M2: Exhibit: | N2: 2
M3: Tab: | N3: 3
M4: Schedule: | N4: 2
M5: Attachment: | N5: 2
M7: Date: | N7: 9 November, 2012
A9: Appendix 2-B
A10: Fixed Asset Continuity Schedule-CGAAP
F12: Year | G12: 2011
E14: Cost | K14: Accumulated Depreciation
A15: CCA Class | B15: OEB | C15: Description | D15: Depreciation Rate | E15: Opening Balance | F15: Additions | G15: Disposals | H15: Closing Balance | J15: Opening Balance | K15: Additions | L15: Disposals | M15: Closing Balance | N15: Net Book Value
A16: 12 | B16: 1611 | C16: Computer Software (Formally known as Account 1925) | E16: ='App.2-B_Fixed Asset Con''ty 2010'!H16 -> 2505349.5 | F16: 138685.47 | H16: =E16+F16+G16 -> 2644034.97 | J16: ='App.2-B_Fixed Asset Con''ty 2010'!M16 -> -1680617.98 | K16: =-214776.78 -> -214776.78 | M16: =J16+K16+L16 -> -1895394.76 | N16: =H16+M16 -> 748640.21
A17: CEC | B17: 1612 | C17: Land Rights (Formally known as Account 1906) | E17: ='App.2-B_Fixed Asset Con''ty 2010'!H17 -> 0 | H17: =E17+F17+G17 -> 0 | J17: ='App.2-B_Fixed Asset Con''ty 2010'!M17 -> 0 | M17: =J17+K17+L17 -> 0 | N17: =H17+M17 -> 0
A18: N/A | B18: 1805 | C18: Land | E18: ='App.2-B_Fixed Asset Con''ty 2010'!H18 -> 857298.24 | H18: =E18+F18+G18 -> 857298.24 | J18: ='App.2-B_Fixed Asset Con''ty 2010'!M18 -> 0 | M18: =J18+K18+L18 -> 0 | N18: =H18+M18 -> 857298.24
A19: 47 | B19: 1808 | C19: Buildings | E19: ='App.2-B_Fixed Asset Con''ty 2010'!H19 -> 9230592.62 | H19: =E19+F19+G19 -> 9230592.62 | J19: ='App.2-B_Fixed Asset Con''ty 2010'!M19 -> -4097280.87 | K19: -183886.11 | M19: =J19+K19+L19 -> -4281166.98 | N19: =H19+M19 -> 4949425.64
A20: 13 | B20: 1808 | C20: Buildings Improvements | E20: ='App.2-B_Fixed Asset Con''ty 2010'!H20 -> 567528.35 | F20: 159351.34 | H20: 726879.69 | J20: ='App.2-B_Fixed Asset Con''ty 2010'!M20 -> -62596.32 | K20: -43146.92 | M20: -105743.24 | N20: 621136.45
A21: 47 | B21: 1815 | C21: Transformer Station Equipment >50 kV | E21: ='App.2-B_Fixed Asset Con''ty 2010'!H21 -> 0 | H21: 0 | J21: ='App.2-B_Fixed Asset Con''ty 2010'!M21 -> 0 | M21: 0 | N21: 0
A22: 47 | B22: 1820 | C22: Distribution Station Equipment <50 kV | E22: ='App.2-B_Fixed Asset Con''ty 2010'!H22 -> 16299670.35 | F22: 161491.05 | H22: 16461161.4 | J22: ='App.2-B_Fixed Asset Con''ty 2010'!M22 -> -10348103.62 | K22: -436762.62 | M22: -10784866.24 | N22: 5676295.16
A23: 47 | B23: 1825 | C23: Storage Battery Equipment | E23: ='App.2-B_Fixed Asset Con''ty 2010'!H23 -> 0 | H23: 0 | J23: ='App.2-B_Fixed Asset Con''ty 2010'!M23 -> 0 | M23: 0 | N23: 0
A24: 47 | B24: 1830 | C24: Poles, Towers & Fixtures | E24: ='App.2-B_Fixed Asset Con''ty 2010'!H24 -> 16383182.68 | F24: 1607668.4 | H24: 17990851.08 | J24: ='App.2-B_Fixed Asset Con''ty 2010'!M24 -> -7835538.67 | K24: -607615.34 | M24: -8443154.01 | N24: 9547697.07
A25: 47 | B25: 1835 | C25: Overhead Conductors & Devices | E25: ='App.2-B_Fixed Asset Con''ty 2010'!H25 -> 40866691.43 | F25: 836176.62 | H25: 41702868.05 | J25: ='App.2-B_Fixed Asset Con''ty 2010'!M25 -> -25927989.5 | K25: -1173922.61 | M25: -27101912.11 | N25: 14600955.94
A26: 47 | B26: 1840 | C26: Underground Conduit | E26: ='App.2-B_Fixed Asset Con''ty 2010'!H26 -> 19095049.9 | F26: 862067.59 | H26: 19957117.49 | J26: ='App.2-B_Fixed Asset Con''ty 2010'!M26 -> -10798164.43 | K26: -707708.22 | M26: -11505872.65 | N26: 8451244.84
A27: 47 | B27: 1845 | C27: Underground Conductors & Devices | E27: ='App.2-B_Fixed Asset Con''ty 2010'!H27 -> 19989151.24 | F27: 676951.37 | H27: 20666102.61 | J27: ='App.2-B_Fixed Asset Con''ty 2010'!M27 -> -10128919.19 | K27: -746852.59 | M27: -10875771.78 | N27: 9790330.83
A28: 47 | B28: 1850 | C28: Line Transformers | E28: ='App.2-B_Fixed Asset Con''ty 2010'!H28 -> 26909415.53 | F28: 1019439.58 | H28: 27928855.11 | J28: ='App.2-B_Fixed Asset Con''ty 2010'!M28 -> -16242311.53 | K28: -863400.9 | M28: -17105712.43 | N28: 10823142.68
A29: 47 | B29: 1855 | C29: Services (Overhead & Underground) | E29: ='App.2-B_Fixed Asset Con''ty 2010'!H29 -> 9977239.7 | F29: =549972.74+443838.51 -> 993811.25 | H29: 10971050.95 | J29: ='App.2-B_Fixed Asset Con''ty 2010'!M29 -> -5783351.74 | K29: =-177083.18-166874.42 -> -343957.6 | M29: -6127309.34 | N29: 4843741.61
A30: 47 | B30: 1860 | C30: Meters | E30: ='App.2-B_Fixed Asset Con''ty 2010'!H30 -> 8810025.31 | F30: 18979.8 | H30: 8829005.11 | J30: ='App.2-B_Fixed Asset Con''ty 2010'!M30 -> -6355154.63 | K30: -237974.5 | M30: -6593129.13 | N30: 2235875.98
A31: 47 | B31: 1860 | C31: Meters (Smart Meters) | E31: ='App.2-B_Fixed Asset Con''ty 2010'!H31 -> 0 | H31: 0 | J31: ='App.2-B_Fixed Asset Con''ty 2010'!M31 -> 0 | M31: 0 | N31: 0
A32: N/A | B32: 1905 | C32: Land | E32: ='App.2-B_Fixed Asset Con''ty 2010'!H32 -> 0 | H32: 0 | J32: ='App.2-B_Fixed Asset Con''ty 2010'!M32 -> 0 | M32: 0 | N32: 0
A33: 47 | B33: 1908 | C33: Buildings & Fixtures | E33: ='App.2-B_Fixed Asset Con''ty 2010'!H33 -> 0 | H33: 0 | J33: ='App.2-B_Fixed Asset Con''ty 2010'!M33 -> 0 | M33: 0 | N33: 0
A34: 13 | B34: 1910 | C34: Leasehold Improvements | E34: ='App.2-B_Fixed Asset Con''ty 2010'!H34 -> 0 | H34: 0 | J34: ='App.2-B_Fixed Asset Con''ty 2010'!M34 -> 0 | M34: 0 | N34: 0
A35: 8 | B35: 1915 | C35: Office Furniture & Equipment (10 years) | E35: ='App.2-B_Fixed Asset Con''ty 2010'!H35 -> 44314.56 | H35: 44314.56 | J35: ='App.2-B_Fixed Asset Con''ty 2010'!M35 -> -39836.54 | K35: -938.52 | M35: -40775.06 | N35: 3539.5
A36: 8 | B36: 1915 | C36: Office Furniture & Equipment (5 years) | E36: ='App.2-B_Fixed Asset Con''ty 2010'!H36 -> 0 | H36: 0 | J36: ='App.2-B_Fixed Asset Con''ty 2010'!M36 -> 0 | M36: 0 | N36: 0
A37: 10 | B37: 1920 | C37: Computer Equipment - Hardware | E37: ='App.2-B_Fixed Asset Con''ty 2010'!H37 -> 0 | F37: =153986.72 -> 153986.72 | H37: 153986.72 | J37: ='App.2-B_Fixed Asset Con''ty 2010'!M37 -> 0 | K37: =-15398.67 -> -15398.67 | M37: -15398.67 | N37: 138588.05
A38: 45 | B38: 1920 | C38: Computer Equip.-Hardware(Post Mar. 22/04) | E38: ='App.2-B_Fixed Asset Con''ty 2010'!H38 -> 0 | H38: 0 | J38: ='App.2-B_Fixed Asset Con''ty 2010'!M38 -> 0 | M38: 0 | N38: 0
A39: 45.1 | B39: 1920 | C39: Computer Equip.-Hardware(Post Mar. 19/07) | E39: ='App.2-B_Fixed Asset Con''ty 2010'!H39 -> 0 | H39: 0 | J39: ='App.2-B_Fixed Asset Con''ty 2010'!M39 -> 0 | M39: 0 | N39: 0
A40: 10 | B40: 1930 | C40: Transportation Equipment | E40: ='App.2-B_Fixed Asset Con''ty 2010'!H40 -> 5041489.4 | F40: 562950.07 | G40: -441360.72 | H40: 5163078.75 | J40: ='App.2-B_Fixed Asset Con''ty 2010'!M40 -> -3553837.41 | K40: -419479.02 | L40: 441360.72 | M40: -3531955.71 | N40: 1631123.04
A41: 8 | B41: 1935 | C41: Stores Equipment | E41: ='App.2-B_Fixed Asset Con''ty 2010'!H41 -> 0 | H41: 0 | J41: ='App.2-B_Fixed Asset Con''ty 2010'!M41 -> 0 | M41: 0 | N41: 0
A42: 8 | B42: 1940 | C42: Tools, Shop & Garage Equipment | E42: ='App.2-B_Fixed Asset Con''ty 2010'!H42 -> 1741755.78 | F42: 77853.63 | H42: 1819609.41 | J42: ='App.2-B_Fixed Asset Con''ty 2010'!M42 -> -1295447.12 | K42: -82930.46 | M42: -1378377.58 | N42: 441231.83
A43: 8 | B43: 1945 | C43: Measurement & Testing Equipment | E43: ='App.2-B_Fixed Asset Con''ty 2010'!H43 -> 0 | H43: 0 | J43: ='App.2-B_Fixed Asset Con''ty 2010'!M43 -> 0 | M43: 0 | N43: 0
A44: 8 | B44: 1950 | C44: Power Operated Equipment | E44: ='App.2-B_Fixed Asset Con''ty 2010'!H44 -> 0 | H44: 0 | J44: ='App.2-B_Fixed Asset Con''ty 2010'!M44 -> 0 | M44: 0 | N44: 0
A45: 8 | B45: 1955 | C45: Communications Equipment | E45: ='App.2-B_Fixed Asset Con''ty 2010'!H45 -> 2212829.86 | F45: 7757 | H45: 2220586.86 | J45: ='App.2-B_Fixed Asset Con''ty 2010'!M45 -> -1148983.97 | K45: -78788.24 | M45: -1227772.21 | N45: 992814.65
A46: 8 | B46: 1955 | C46: Communication Equipment (Smart Meters) | E46: ='App.2-B_Fixed Asset Con''ty 2010'!H46 -> 0 | H46: 0 | J46: ='App.2-B_Fixed Asset Con''ty 2010'!M46 -> 0 | M46: 0 | N46: 0
A47: 8 | B47: 1960 | C47: Miscellaneous Equipment | E47: ='App.2-B_Fixed Asset Con''ty 2010'!H47 -> 0 | H47: 0 | J47: ='App.2-B_Fixed Asset Con''ty 2010'!M47 -> 0 | M47: 0 | N47: 0
A48: 47 | B48: 1975 | C48: Load Management Controls Utility Premises | E48: ='App.2-B_Fixed Asset Con''ty 2010'!H48 -> 0 | H48: 0 | J48: ='App.2-B_Fixed Asset Con''ty 2010'!M48 -> 0 | M48: 0 | N48: 0
A49: 47 | B49: 1980 | C49: System Supervisory Equipment | E49: ='App.2-B_Fixed Asset Con''ty 2010'!H49 -> 1555443.13 | F49: 17265 | H49: 1572708.13 | J49: ='App.2-B_Fixed Asset Con''ty 2010'!M49 -> -1162505.07 | K49: -56753.42 | M49: -1219258.49 | N49: 353449.64
A50: 47 | B50: 1985 | C50: Miscellaneous Fixed Assets | E50: ='App.2-B_Fixed Asset Con''ty 2010'!H50 -> 42116.86 | H50: 42116.86 | J50: ='App.2-B_Fixed Asset Con''ty 2010'!M50 -> -42116.86 | M50: -42116.86 | N50: 0
A51: 47 | B51: 1995 | C51: Contributions & Grants | E51: ='App.2-B_Fixed Asset Con''ty 2010'!H51 -> -13513098.06 | F51: -1065202.67 | H51: -14578300.73 | J51: ='App.2-B_Fixed Asset Con''ty 2010'!M51 -> 2843835.55 | K51: 561827.97 | M51: 3405663.52 | N51: -11172637.21
B52: 1330 | C52: WIP - Capital Inventory | E52: ='App.2-B_Fixed Asset Con''ty 2010'!H52 -> 1022658 | F52: 105162 | H52: 1127820 | J52: ='App.2-B_Fixed Asset Con''ty 2010'!M52 -> 0 | M52: 0 | N52: 1127820
B53: 2055 | C53: Work in Process | E53: ='App.2-B_Fixed Asset Con''ty 2010'!H53 -> 228308 | F53: 430858.53 | G53: -228308.38 | H53: 430858.15 | J53: ='App.2-B_Fixed Asset Con''ty 2010'!M53 -> 0 | M53: 0 | N53: 430858.15
E54: ='App.2-B_Fixed Asset Con''ty 2010'!H54 -> 0 | J54: ='App.2-B_Fixed Asset Con''ty 2010'!M54 -> 0
A55: Total prior to Board ordered removal of CIS related to water billing | E55: =SUM(E16:E54) -> 169867012.4 | F55: =SUM(F16:F54) -> 6765252.75 | G55: =SUM(G16:G54) -> -669669.1 | H55: =SUM(H16:H54) -> 175962596 | J55: =SUM(J16:J53) -> -103658919.9 | K55: -5652464.55 | L55: 441360.72 | M55: -108870023.7 | N55: 67092572.3
A56: 12 | B56: 1611 | C56: Computer Software | E56: ='App.2-B_Fixed Asset Con''ty 2010'!H56 -> -126796.4049 | F56: =-13984.22*(1*0.2104) -> -2942.279888 | H56: =E56+F56+G56 -> -129738.6848 | J56: ='App.2-B_Fixed Asset Con''ty 2010'!M56 -> 12679.64 | K56: 25653.51 | M56: =J56+K56+L56 -> 38333.15 | N56: =H56+M56 -> -91405.53479
A57: Total subsequent to Board ordered removal of CIS related to water billing | E57: =SUM(E55:E56) -> 169740216 | F57: =SUM(F55:F56) -> 6762310.47 | G57: =SUM(G55:G56) -> -669669.1 | H57: =SUM(H55:H56) -> 175832857.3 | J57: =SUM(J55:J56) -> -103646240.3 | K57: =SUM(K55:K56) -> -5626811.04 | L57: 441360.72 | M57: -108831690.6 | N57: 67001166.77
J59: Less: Fully Allocated Depreciation
A60: 10 | C60: Transportation | J60: Transportation | L60: -419479.02
A61: 8 | C61: Stores Equipment | J61: Stores Equipment | L61: -82930.46
J62: Net Depreciation | L62: =K57-L60-L61 -> -5124401.56
A64: Notes:
A66: 1 | B66: Tables in the format outlined above covering all fixed asset accounts should be submitted for the Test Year, Bridge Year and all relevant historical years. At a minimum , the applicant must provide data for the earlier of: 1) all historical years back to its last rebasing; or 2) at least three years of historical actuals, in addition to Bridge Year and Test Year forecasts.
A69: 2 | B69: The "CCA Class" for fixed assets should agree with the CCA Class used for tax purposes in Tax Returns. Fixed Assets sub-components may be used where the underlying asset components are classified under multiple CCA Classes for tax purposes. If an applicant uses any different classes from those shown in the table, an explanation should be provided. (also see note 3 below).
A72: 3 | B72: The table may need to be customized for a utility's asset categories or for any new asset accounts announced or authorized by the Board.
A74: 4 | B74: The depreciation column (D) is not required as the relevant information will be provided in the following 2-C series of appendices.

Sheet App.2-B_FA Con'ty 2012 CGAAP
M1: File Number: | N1: ='LDC Info'!$E$18 -> EB-2012-0126
M2: Exhibit: | N2: 2
M3: Tab: | N3: 3
M4: Schedule: | N4: 2
M5: Attachment: | N5: 2
M7: Date: | N7: 9 November, 2012
A9: Appendix 2-B
A10: Fixed Asset Continuity Schedule-CGAAP
F12: Year | G12: 2012
E14: Cost | K14: Accumulated Depreciation
A15: CCA Class | B15: OEB | C15: Description | D15: Depreciation Rate | E15: Opening Balance | F15: Additions | G15: Disposals | H15: Closing Balance | J15: Opening Balance | K15: Additions | L15: Disposals | M15: Closing Balance | N15: Net Book Value
A16: 12 | B16: 1611 | C16: Computer Software (Formally known as Account 1925) | E16: ='App.2-B_Fixed Asset Con''ty 2011'!H16 -> 2644034.97 | F16: 248175.35 | H16: =E16+F16+G16 -> 2892210.32 | J16: ='App.2-B_Fixed Asset Con''ty 2011'!M16 -> -1895394.76 | K16: -253462.857 | M16: =J16+K16+L16 -> -2148857.617 | N16: =H16+M16 -> 743352.703
A17: CEC | B17: 1612 | C17: Land Rights (Formally known as Account 1906) | E17: ='App.2-B_Fixed Asset Con''ty 2011'!H17 -> 0 | H17: =E17+F17+G17 -> 0 | J17: ='App.2-B_Fixed Asset Con''ty 2011'!M17 -> 0 | M17: =J17+K17+L17 -> 0 | N17: =H17+M17 -> 0
A18: N/A | B18: 1805 | C18: Land | E18: ='App.2-B_Fixed Asset Con''ty 2011'!H18 -> 857298.24 | F18: 5569.21 | H18: =E18+F18+G18 -> 862867.45 | J18: ='App.2-B_Fixed Asset Con''ty 2011'!M18 -> 0 | M18: =J18+K18+L18 -> 0 | N18: =H18+M18 -> 862867.45
A19: 47 | B19: 1808 | C19: Buildings | E19: ='App.2-B_Fixed Asset Con''ty 2011'!H19 -> 9230592.62 | H19: =E19+F19+G19 -> 9230592.62 | J19: ='App.2-B_Fixed Asset Con''ty 2011'!M19 -> -4281166.98 | K19: -183562.1765 | M19: =J19+K19+L19 -> -4464729.156 | N19: =H19+M19 -> 4765863.464
A20: 47 | B20: 1808 | C20: Buildings Improvements | E20: ='App.2-B_Fixed Asset Con''ty 2011'!H20 -> 726879.69 | F20: 310378.69 | H20: 1037258.38 | J20: ='App.2-B_Fixed Asset Con''ty 2011'!M20 -> -105743.24 | K20: -58804.60133 | M20: -164547.8413 | N20: 872710.5387
A21: 47 | B21: 1815 | C21: Transformer Station Equipment >50 kV | E21: ='App.2-B_Fixed Asset Con''ty 2011'!H21 -> 0 | H21: 0 | J21: ='App.2-B_Fixed Asset Con''ty 2011'!M21 -> 0 | M21: 0 | N21: 0
A22: 47 | B22: 1820 | C22: Distribution Station Equipment <50 kV | E22: ='App.2-B_Fixed Asset Con''ty 2011'!H22 -> 16461161.4 | F22: 1379969.21 | H22: 17841130.61 | J22: ='App.2-B_Fixed Asset Con''ty 2011'!M22 -> -10784866.24 | K22: -446812.1025 | M22: -11231678.34 | N22: 6609452.268
A23: 47 | B23: 1825 | C23: Storage Battery Equipment | E23: ='App.2-B_Fixed Asset Con''ty 2011'!H23 -> 0 | H23: 0 | J23: ='App.2-B_Fixed Asset Con''ty 2011'!M23 -> 0 | M23: 0 | N23: 0
A24: 47 | B24: 1830 | C24: Poles, Towers & Fixtures | E24: ='App.2-B_Fixed Asset Con''ty 2011'!H24 -> 17990851.08 | F24: 1272073.073 | H24: 19262924.15 | J24: ='App.2-B_Fixed Asset Con''ty 2011'!M24 -> -8443154.01 | K24: -622917.3359 | M24: -9066071.346 | N24: 10196852.81
A25: 47 | B25: 1835 | C25: Overhead Conductors & Devices | E25: ='App.2-B_Fixed Asset Con''ty 2011'!H25 -> 41702868.05 | F25: 1001640.721 | H25: 42704508.77 | J25: ='App.2-B_Fixed Asset Con''ty 2011'!M25 -> -27101912.11 | K25: -1225299.988 | M25: -28327212.1 | N25: 14377296.67
A26: 47 | B26: 1840 | C26: Underground Conduit | E26: ='App.2-B_Fixed Asset Con''ty 2011'!H26 -> 19957117.49 | F26: 1001464.819 | H26: 20958582.31 | J26: ='App.2-B_Fixed Asset Con''ty 2011'!M26 -> -11505872.65 | K26: -672533.9148 | M26: -12178406.56 | N26: 8780175.744
A27: 47 | B27: 1845 | C27: Underground Conductors & Devices | E27: ='App.2-B_Fixed Asset Con''ty 2011'!H27 -> 20666102.61 | F27: 778816.2062 | H27: 21444918.82 | J27: ='App.2-B_Fixed Asset Con''ty 2011'!M27 -> -10875771.78 | K27: -790089.9935 | M27: -11665861.77 | N27: 9779057.043
A28: 47 | B28: 1850 | C28: Line Transformers | E28: ='App.2-B_Fixed Asset Con''ty 2011'!H28 -> 27928855.11 | F28: 1587403.036 | H28: 29516258.15 | J28: ='App.2-B_Fixed Asset Con''ty 2011'!M28 -> -17105712.43 | K28: -853584.0807 | M28: -17959296.51 | N28: 11556961.64
A29: 47 | B29: 1855 | C29: Services (Overhead & Underground) | E29: ='App.2-B_Fixed Asset Con''ty 2011'!H29 -> 10971050.95 | F29: 1040786.589 | H29: 12011837.54 | J29: ='App.2-B_Fixed Asset Con''ty 2011'!M29 -> -6127309.34 | K29: -366530.5517 | M29: -6493839.892 | N29: 5517997.648
A30: 47 | B30: 1860 | C30: Meters | E30: ='App.2-B_Fixed Asset Con''ty 2011'!H30 -> 8829005.11 | F30: 107254.1 | H30: 8936259.21 | J30: ='App.2-B_Fixed Asset Con''ty 2011'!M30 -> -6593129.13 | K30: -224692.8465 | M30: -6817821.976 | N30: 2118437.234
A31: 47 | B31: 1860 | C31: Meters (Smart Meters) | E31: ='App.2-B_Fixed Asset Con''ty 2011'!H31 -> 0 | H31: 0 | J31: ='App.2-B_Fixed Asset Con''ty 2011'!M31 -> 0 | M31: 0 | N31: 0
A32: N/A | B32: 1905 | C32: Land | E32: ='App.2-B_Fixed Asset Con''ty 2011'!H32 -> 0 | H32: 0 | J32: ='App.2-B_Fixed Asset Con''ty 2011'!M32 -> 0 | M32: 0 | N32: 0
A33: 47 | B33: 1908 | C33: Buildings & Fixtures | E33: ='App.2-B_Fixed Asset Con''ty 2011'!H33 -> 0 | H33: 0 | J33: ='App.2-B_Fixed Asset Con''ty 2011'!M33 -> 0 | M33: 0 | N33: 0
A34: 13 | B34: 1910 | C34: Leasehold Improvements | E34: ='App.2-B_Fixed Asset Con''ty 2011'!H34 -> 0 | H34: 0 | J34: ='App.2-B_Fixed Asset Con''ty 2011'!M34 -> 0 | M34: 0 | N34: 0
A35: 8 | B35: 1915 | C35: Office Furniture & Equipment (10 years) | E35: ='App.2-B_Fixed Asset Con''ty 2011'!H35 -> 44314.56 | H35: 44314.56 | J35: ='App.2-B_Fixed Asset Con''ty 2011'!M35 -> -40775.06 | K35: -938.5185 | M35: -41713.5785 | N35: 2600.9815
A36: 8 | B36: 1915 | C36: Office Furniture & Equipment (5 years) | E36: ='App.2-B_Fixed Asset Con''ty 2011'!H36 -> 0 | H36: 0 | J36: ='App.2-B_Fixed Asset Con''ty 2011'!M36 -> 0 | M36: 0 | N36: 0
A37: 10 | B37: 1920 | C37: Computer Equipment - Hardware | E37: ='App.2-B_Fixed Asset Con''ty 2011'!H37 -> 153986.72 | F37: 371510.34 | H37: 525497.06 | J37: ='App.2-B_Fixed Asset Con''ty 2011'!M37 -> -15398.67 | K37: -67948.378 | M37: -83347.048 | N37: 442150.012
A38: 45 | B38: 1920 | C38: Computer Equip.-Hardware(Post Mar. 22/04) | E38: ='App.2-B_Fixed Asset Con''ty 2011'!H38 -> 0 | H38: 0 | J38: ='App.2-B_Fixed Asset Con''ty 2011'!M38 -> 0 | M38: 0 | N38: 0
A39: 45.1 | B39: 1920 | C39: Computer Equip.-Hardware(Post Mar. 19/07) | E39: ='App.2-B_Fixed Asset Con''ty 2011'!H39 -> 0 | H39: 0 | J39: ='App.2-B_Fixed Asset Con''ty 2011'!M39 -> 0 | M39: 0 | N39: 0
A40: 10 | B40: 1930 | C40: Transportation Equipment | E40: ='App.2-B_Fixed Asset Con''ty 2011'!H40 -> 5163078.75 | F40: 193455.65 | G40: -91190.54 | H40: 5265343.86 | J40: ='App.2-B_Fixed Asset Con''ty 2011'!M40 -> -3531955.71 | K40: -430191.4206 | L40: 87823.64 | M40: -3874323.491 | N40: 1391020.369
A41: 8 | B41: 1935 | C41: Stores Equipment | E41: ='App.2-B_Fixed Asset Con''ty 2011'!H41 -> 0 | H41: 0 | J41: ='App.2-B_Fixed Asset Con''ty 2011'!M41 -> 0 | M41: 0 | N41: 0
A42: 8 | B42: 1940 | C42: Tools, Shop & Garage Equipment | E42: ='App.2-B_Fixed Asset Con''ty 2011'!H42 -> 1819609.41 | F42: 152809.49 | H42: 1972418.9 | J42: ='App.2-B_Fixed Asset Con''ty 2011'!M42 -> -1378377.58 | K42: -89459.365 | M42: -1467836.945 | N42: 504581.955
A43: 8 | B43: 1945 | C43: Measurement & Testing Equipment | E43: ='App.2-B_Fixed Asset Con''ty 2011'!H43 -> 0 | H43: 0 | J43: ='App.2-B_Fixed Asset Con''ty 2011'!M43 -> 0 | M43: 0 | N43: 0
A44: 8 | B44: 1950 | C44: Power Operated Equipment | E44: ='App.2-B_Fixed Asset Con''ty 2011'!H44 -> 0 | H44: 0 | J44: ='App.2-B_Fixed Asset Con''ty 2011'!M44 -> 0 | M44: 0 | N44: 0
A45: 8 | B45: 1955 | C45: Communications Equipment | E45: ='App.2-B_Fixed Asset Con''ty 2011'!H45 -> 2220586.86 | F45: 66925.46 | H45: 2287512.32 | J45: ='App.2-B_Fixed Asset Con''ty 2011'!M45 -> -1227772.21 | K45: -81293.5057 | M45: -1309065.716 | N45: 978446.6043
A46: 8 | B46: 1955 | C46: Communication Equipment (Smart Meters) | E46: ='App.2-B_Fixed Asset Con''ty 2011'!H46 -> 0 | H46: 0 | J46: ='App.2-B_Fixed Asset Con''ty 2011'!M46 -> 0 | M46: 0 | N46: 0
A47: 8 | B47: 1960 | C47: Miscellaneous Equipment | E47: ='App.2-B_Fixed Asset Con''ty 2011'!H47 -> 0 | H47: 0 | J47: ='App.2-B_Fixed Asset Con''ty 2011'!M47 -> 0 | M47: 0 | N47: 0
A48: 47 | B48: 1975 | C48: Load Management Controls Utility Premises | E48: ='App.2-B_Fixed Asset Con''ty 2011'!H48 -> 0 | H48: 0 | J48: ='App.2-B_Fixed Asset Con''ty 2011'!M48 -> 0 | M48: 0 | N48: 0
A49: 47 | B49: 1980 | C49: System Supervisory Equipment | E49: ='App.2-B_Fixed Asset Con''ty 2011'!H49 -> 1572708.13 | H49: 1572708.13 | J49: ='App.2-B_Fixed Asset Con''ty 2011'!M49 -> -1219258.49 | K49: -55343.85267 | M49: -1274602.343 | N49: 298105.7873
A50: 47 | B50: 1985 | C50: Miscellaneous Fixed Assets | E50: ='App.2-B_Fixed Asset Con''ty 2011'!H50 -> 42116.86 | H50: 42116.86 | J50: ='App.2-B_Fixed Asset Con''ty 2011'!M50 -> -42116.86 | M50: -42116.86 | N50: 0
A51: 47 | B51: 1995 | C51: Contributions & Grants | E51: ='App.2-B_Fixed Asset Con''ty 2011'!H51 -> -14578300.73 | F51: -1074344.302 | H51: -15652645.03 | J51: ='App.2-B_Fixed Asset Con''ty 2011'!M51 -> 3405663.52 | K51: 604618.9024 | M51: 4010282.422 | N51: -11642362.61
B52: 1330 | C52: WIP - Capital Inventory | E52: ='App.2-B_Fixed Asset Con''ty 2011'!H52 -> 1127820 | H52: 1127820 | J52: ='App.2-B_Fixed Asset Con''ty 2011'!M52 -> 0 | M52: 0 | N52: 1127820
B53: 2055 | C53: Work in Process | E53: ='App.2-B_Fixed Asset Con''ty 2011'!H53 -> 430858.15 | F53: 1669878 | H53: 2100736.15 | J53: ='App.2-B_Fixed Asset Con''ty 2011'!M53 -> 0 | M53: 0 | N53: 2100736.15
E54: ='App.2-B_Fixed Asset Con''ty 2011'!H54 -> 0 | J54: ='App.2-B_Fixed Asset Con''ty 2011'!M54 -> 0
A55: Total prior to Board ordered removal of CIS related to water billing | E55: =SUM(E16:E54) -> 175962596 | F55: =SUM(F16:F54) -> 10113765.64 | G55: =SUM(G16:G54) -> -91190.54 | H55: =SUM(H16:H54) -> 185985171.1 | J55: =SUM(J16:J53) -> -108870023.7 | K55: -5818846.586 | L55: 87823.64 | M55: -114601046.7 | N55: 71384124.46
A56: 12 | B56: 1611 | C56: Computer Software | E56: ='App.2-B_Fixed Asset Con''ty 2011'!H56 -> -129738.6848 | H56: =E56+F56+G56 -> -129738.6848 | J56: ='App.2-B_Fixed Asset Con''ty 2011'!M56 -> 38333.15 | K56: =25947.74 -> 25947.74 | M56: =J56+K56+L56 -> 64280.89 | N56: =H56+M56 -> -65457.79479
A57: Total subsequent to Board ordered removal of CIS related to water billing | E57: =SUM(E55:E56) -> 175832857.3 | F57: =SUM(F55:F56) -> 10113765.64 | G57: =SUM(G55:G56) -> -91190.54 | H57: =SUM(H55:H56) -> 185855432.4 | J57: =SUM(J55:J56) -> -108831690.6 | K57: =SUM(K55:K56) -> -5792898.846 | L57: 87823.64 | M57: -114536765.8 | N57: 71318666.66
J59: Less: Fully Allocated Depreciation
A60: 10 | C60: Transportation | J60: Transportation | L60: =K40 -> -430191.4206
A61: 8 | C61: Stores Equipment | J61: Stores Equipment | L61: =K42 -> -89459.365
J62: Net Depreciation | L62: =K57-L60-L61 -> -5273248.061
A64: Notes:
A66: 1 | B66: Tables in the format outlined above covering all fixed asset accounts should be submitted for the Test Year, Bridge Year and all relevant historical years. At a minimum , the applicant must provide data for the earlier of: 1) all historical years back to its last rebasing; or 2) at least three years of historical actuals, in addition to Bridge Year and Test Year forecasts.
A69: 2 | B69: The "CCA Class" for fixed assets should agree with the CCA Class used for tax purposes in Tax Returns. Fixed Assets sub-components may be used where the underlying asset components are classified under multiple CCA Classes for tax purposes. If an applicant uses any different classes from those shown in the table, an explanation should be provided. (also see note 3 below).
A72: 3 | B72: The table may need to be customized for a utility's asset categories or for any new asset accounts announced or authorized by the Board.
A74: 4 | B74: The depreciation column (D) is not required as the relevant information will be provided in the following 2-C series of appendices.

Sheet App.2-B_Fixed Asset Con'ty 2013
O1: File Number: | P1: ='LDC Info'!$E$18 -> EB-2012-0126
O2: Exhibit: | P2: 2
O3: Tab: | P3: 3
O4: Schedule: | P4: 2
O5: Attachment: | P5: 2
O7: Date: | P7: 9 November, 2012
A9: Appendix 2-B
A10: Fixed Asset Continuity Schedule-CGAAP
F12: Year | H12: 2013
E14: Cost | L14: Accumulated Depreciation
A15: CCA Class | B15: OEB | C15: Description | D15: Depreciation Rate | E15: Opening Balance | F15: Additions | G15: Smart Meter & Stranded Meters | H15: Disposals | I15: Closing Balance | K15: Opening Balance | L15: Additions | M15: Smart Meter & Stranded Meters | N15: Disposals | O15: Closing Balance | P15: Net Book Value
A16: 12 | B16: 1611 | C16: Computer Software (Formally known as Account 1925) | E16: ='App.2-B_FA Con''ty 2012 CGAAP'!H16 -> 2892210.32 | F16: 375000 | G16: 275347 | I16: =E16+F16+G16+H16 -> 3542557.32 | K16: ='App.2-B_FA Con''ty 2012 CGAAP'!M16 -> -2148857.617 | L16: =-'App.2-CG_EUL_DepExp_2013'!M16 -> -364834.648 | M16: -81979 | O16: =K16+L16+M16+N16 -> -2595671.265 | P16: =I16+O16 -> 946886.055
A17: CEC | B17: 1612 | C17: Land Rights (Formally known as Account 1906) | E17: ='App.2-B_FA Con''ty 2012 CGAAP'!H17 -> 0 | I17: =E17+F17+G17+H17 -> 0 | K17: ='App.2-B_FA Con''ty 2012 CGAAP'!M17 -> 0 | O17: =K17+L17+M17+N17 -> 0 | P17: =I17+O17 -> 0
A18: N/A | B18: 1805 | C18: Land | E18: ='App.2-B_FA Con''ty 2012 CGAAP'!H18 -> 862867.45 | I18: 862867.45 | K18: ='App.2-B_FA Con''ty 2012 CGAAP'!M18 -> 0 | O18: 0 | P18: =I18+O18 -> 862867.45
A19: 47 | B19: 1808 | C19: Buildings | E19: ='App.2-B_FA Con''ty 2012 CGAAP'!H19 -> 9230592.62 | I19: 9230592.62 | K19: ='App.2-B_FA Con''ty 2012 CGAAP'!M19 -> -4464729.156 | L19: =-'App.2-CG_EUL_DepExp_2013'!M19 -> -235990.1542 | O19: -4700719.311 | P19: =I19+O19 -> 4529873.309
A20: 47 | B20: 1808 | C20: Buildings Improvements | E20: ='App.2-B_FA Con''ty 2012 CGAAP'!H20 -> 1037258.38 | F20: 966000 | I20: 2003258.38 | K20: ='App.2-B_FA Con''ty 2012 CGAAP'!M20 -> -164547.8413 | L20: =-'App.2-CG_EUL_DepExp_2013'!M20 -> -94009.95434 | O20: -258557.7957 | P20: 1744700.584
A21: 47 | B21: 1815 | C21: Transformer Station Equipment >50 kV | E21: ='App.2-B_FA Con''ty 2012 CGAAP'!H21 -> 0 | I21: 0 | K21: ='App.2-B_FA Con''ty 2012 CGAAP'!M21 -> 0 | O21: 0 | P21: 0
A22: 47 | B22: 1820 | C22: Distribution Station Equipment <50 kV | E22: ='App.2-B_FA Con''ty 2012 CGAAP'!H22 -> 17841130.61 | F22: 2449100.007 | I22: 20290230.62 | K22: ='App.2-B_FA Con''ty 2012 CGAAP'!M22 -> -11231678.34 | L22: =-'App.2-CG_EUL_DepExp_2013'!M22-'App.2-CG_EUL_DepExp_2013'!M23-'App.2-CG_EUL_DepExp_2013'!M24 -> -519388.2413 | O22: -11751066.58 | P22: 8539164.033
A23: 47 | B23: 1825 | C23: Storage Battery Equipment | E23: ='App.2-B_FA Con''ty 2012 CGAAP'!H23 -> 0 | I23: 0 | K23: ='App.2-B_FA Con''ty 2012 CGAAP'!M23 -> 0 | O23: 0 | P23: 0
A24: 47 | B24: 1830 | C24: Poles, Towers & Fixtures | E24: ='App.2-B_FA Con''ty 2012 CGAAP'!H24 -> 19262924.15 | F24: 1456391.278 | I24: 20719315.43 | K24: ='App.2-B_FA Con''ty 2012 CGAAP'!M24 -> -9066071.346 | L24: =-'App.2-CG_EUL_DepExp_2013'!M26 -> -375934.6684 | O24: -9442006.014 | P24: 11277309.42
A25: 47 | B25: 1835 | C25: Overhead Conductors & Devices | E25: ='App.2-B_FA Con''ty 2012 CGAAP'!H25 -> 42704508.77 | F25: 1336039.828 | I25: 44040548.6 | K25: ='App.2-B_FA Con''ty 2012 CGAAP'!M25 -> -28327212.1 | L25: =-'App.2-CG_EUL_DepExp_2013'!M27 -> -489367.6545 | O25: -28816579.75 | P25: 15223968.85
A26: 47 | B26: 1840 | C26: Underground Conduit | E26: ='App.2-B_FA Con''ty 2012 CGAAP'!H26 -> 20958582.31 | F26: 482675.7472 | I26: 21441258.06 | K26: ='App.2-B_FA Con''ty 2012 CGAAP'!M26 -> -12178406.56 | L26: =-'App.2-CG_EUL_DepExp_2013'!M28 -> -248290.5261 | O26: -12426697.09 | P26: 9014560.965
A27: 47 | B27: 1845 | C27: Underground Conductors & Devices | E27: ='App.2-B_FA Con''ty 2012 CGAAP'!H27 -> 21444918.82 | F27: 511039.0636 | I27: 21955957.88 | K27: ='App.2-B_FA Con''ty 2012 CGAAP'!M27 -> -11665861.77 | L27: =-'App.2-CG_EUL_DepExp_2013'!M29 -> -430507.6611 | O27: -12096369.43 | P27: 9859588.445
A28: 47 | B28: 1850 | C28: Line Transformers | E28: ='App.2-B_FA Con''ty 2012 CGAAP'!H28 -> 29516258.15 | F28: 1272686.053 | I28: 30788944.2 | K28: ='App.2-B_FA Con''ty 2012 CGAAP'!M28 -> -17959296.51 | L28: =-'App.2-CG_EUL_DepExp_2013'!M30 -> -487428.6679 | O28: -18446725.18 | P28: 12342219.02
A29: 47 | B29: 1855 | C29: Services (Overhead & Underground) | E29: ='App.2-B_FA Con''ty 2012 CGAAP'!H29 -> 12011837.54 | F29: 909728.473 | I29: 12921566.01 | K29: ='App.2-B_FA Con''ty 2012 CGAAP'!M29 -> -6493839.892 | L29: =-'App.2-CG_EUL_DepExp_2013'!M31 -> -210673.1048 | O29: -6704512.996 | P29: 6217053.016
A30: 47 | B30: 1860 | C30: Meters | E30: ='App.2-B_FA Con''ty 2012 CGAAP'!H30 -> 8936259.21 | G30: -7076701.298 | I30: 1859557.912 | K30: ='App.2-B_FA Con''ty 2012 CGAAP'!M30 -> -6817821.976 | L30: =-'App.2-CG_EUL_DepExp_2013'!M32-'App.2-CG_EUL_DepExp_2013'!M35-'App.2-CG_EUL_DepExp_2013'!M36 -> -44089.96688 | M30: 5868346.953 | O30: -993564.9906 | P30: 865992.9218
A31: 47 | B31: 1860 | C31: Meters (Smart Meters) | E31: ='App.2-B_FA Con''ty 2012 CGAAP'!H31 -> 0 | F31: 100000.1241 | G31: 6523624 | I31: 6623624.124 | K31: ='App.2-B_FA Con''ty 2012 CGAAP'!M31 -> 0 | L31: =-'App.2-CG_EUL_DepExp_2013'!M34 -> -438241.6008 | M31: -1047818 | O31: -1486059.601 | P31: 5137564.523
A32: N/A | B32: 1905 | C32: Land | E32: ='App.2-B_FA Con''ty 2012 CGAAP'!H32 -> 0 | I32: 0 | K32: ='App.2-B_FA Con''ty 2012 CGAAP'!M32 -> 0 | O32: 0 | P32: 0
A33: 47 | B33: 1908 | C33: Buildings & Fixtures | E33: ='App.2-B_FA Con''ty 2012 CGAAP'!H33 -> 0 | I33: 0 | K33: ='App.2-B_FA Con''ty 2012 CGAAP'!M33 -> 0 | O33: 0 | P33: 0
A34: 13 | B34: 1910 | C34: Leasehold Improvements | E34: ='App.2-B_FA Con''ty 2012 CGAAP'!H34 -> 0 | I34: 0 | K34: ='App.2-B_FA Con''ty 2012 CGAAP'!M34 -> 0 | O34: 0 | P34: 0
A35: 8 | B35: 1915 | C35: Office Furniture & Equipment (10 years) | E35: ='App.2-B_FA Con''ty 2012 CGAAP'!H35 -> 44314.56 | I35: 44314.56 | K35: ='App.2-B_FA Con''ty 2012 CGAAP'!M35 -> -41713.5785 | L35: =-'App.2-CG_EUL_DepExp_2013'!M40 -> -938.5185 | O35: -42652.097 | P35: 1662.463
A36: 8 | B36: 1915 | C36: Office Furniture & Equipment (5 years) | E36: ='App.2-B_FA Con''ty 2012 CGAAP'!H36 -> 0 | I36: 0 | K36: ='App.2-B_FA Con''ty 2012 CGAAP'!M36 -> 0 | O36: 0 | P36: 0
A37: 10 | B37: 1920 | C37: Computer Equipment - Hardware | E37: ='App.2-B_FA Con''ty 2012 CGAAP'!H37 -> 525497.06 | F37: 0 | G37: 204815 | I37: 730312.06 | K37: ='App.2-B_FA Con''ty 2012 CGAAP'!M37 -> -83347.048 | L37: =-'App.2-CG_EUL_DepExp_2013'!M42 -> -146062.484 | M37: -101801 | O37: -331210.532 | P37: 399101.528
A38: 45 | B38: 1920 | C38: Computer Equip.-Hardware(Post Mar. 22/04) | E38: ='App.2-B_FA Con''ty 2012 CGAAP'!H38 -> 0 | I38: 0 | K38: ='App.2-B_FA Con''ty 2012 CGAAP'!M38 -> 0 | O38: 0 | P38: 0
A39: 45.1 | B39: 1920 | C39: Computer Equip.-Hardware(Post Mar. 19/07) | E39: ='App.2-B_FA Con''ty 2012 CGAAP'!H39 -> 0 | I39: 0 | K39: ='App.2-B_FA Con''ty 2012 CGAAP'!M39 -> 0 | O39: 0 | P39: 0
A40: 10 | B40: 1930 | C40: Transportation Equipment | E40: ='App.2-B_FA Con''ty 2012 CGAAP'!H40 -> 5265343.86 | F40: 1118450 | H40: =-458502.24 -> -458502.24 | I40: 5925291.62 | K40: ='App.2-B_FA Con''ty 2012 CGAAP'!M40 -> -3874323.491 | L40: =-'App.2-CG_EUL_DepExp_2013'!M45-'App.2-CG_EUL_DepExp_2013'!M46 -> -215464.9946 | N40: 458502.24 | O40: -3631286.245 | P40: 2294005.375
A41: 8 | B41: 1935 | C41: Stores Equipment | E41: ='App.2-B_FA Con''ty 2012 CGAAP'!H41 -> 0 | I41: 0 | K41: ='App.2-B_FA Con''ty 2012 CGAAP'!M41 -> 0 | O41: 0 | P41: 0
A42: 8 | B42: 1940 | C42: Tools, Shop & Garage Equipment | E42: ='App.2-B_FA Con''ty 2012 CGAAP'!H42 -> 1972418.9 | F42: 160000 | I42: 2132418.9 | K42: ='App.2-B_FA Con''ty 2012 CGAAP'!M42 -> -1467836.945 | L42: =-'App.2-CG_EUL_DepExp_2013'!M48 -> -92164.853 | O42: -1560001.798 | P42: 572417.102
A43: 8 | B43: 1945 | C43: Measurement & Testing Equipment | E43: ='App.2-B_FA Con''ty 2012 CGAAP'!H43 -> 0 | I43: 0 | K43: ='App.2-B_FA Con''ty 2012 CGAAP'!M43 -> 0 | O43: 0 | P43: 0
A44: 8 | B44: 1950 | C44: Power Operated Equipment | E44: ='App.2-B_FA Con''ty 2012 CGAAP'!H44 -> 0 | I44: 0 | K44: ='App.2-B_FA Con''ty 2012 CGAAP'!M44 -> 0 | O44: 0 | P44: 0
A45: 8 | B45: 1955 | C45: Communications Equipment | E45: ='App.2-B_FA Con''ty 2012 CGAAP'!H45 -> 2287512.32 | F45: 50000 | I45: 2337512.32 | K45: ='App.2-B_FA Con''ty 2012 CGAAP'!M45 -> -1309065.716 | L45: =-'App.2-CG_EUL_DepExp_2013'!M51 -> -87139.7557 | O45: -1396205.471 | P45: 941306.8486
A46: 8 | B46: 1955 | C46: Communication Equipment (Smart Meters) | E46: ='App.2-B_FA Con''ty 2012 CGAAP'!H46 -> 0 | I46: 0 | K46: ='App.2-B_FA Con''ty 2012 CGAAP'!M46 -> 0 | O46: 0 | P46: 0
A47: 8 | B47: 1960 | C47: Miscellaneous Equipment | E47: ='App.2-B_FA Con''ty 2012 CGAAP'!H47 -> 0 | G47: 16502 | I47: 16502 | K47: ='App.2-B_FA Con''ty 2012 CGAAP'!M47 -> 0 | L47: =-'App.2-CG_EUL_DepExp_2013'!M53 -> -1650.189 | M47: -4125 | O47: -5775.189 | P47: 10726.811
A48: 47 | B48: 1975 | C48: Load Management Controls Utility Premises | E48: ='App.2-B_FA Con''ty 2012 CGAAP'!H48 -> 0 | I48: 0 | K48: ='App.2-B_FA Con''ty 2012 CGAAP'!M48 -> 0 | O48: 0 | P48: 0
A49: 47 | B49: 1980 | C49: System Supervisory Equipment | E49: ='App.2-B_FA Con''ty 2012 CGAAP'!H49 -> 1572708.13 | F49: 379491.0337 | I49: 1952199.164 | K49: ='App.2-B_FA Con''ty 2012 CGAAP'!M49 -> -1274602.343 | L49: =-'App.2-CG_EUL_DepExp_2013'!M55 -> -30686.3045 | O49: -1305288.647 | P49: 646910.5165
A50: 47 | B50: 1985 | C50: Miscellaneous Fixed Assets | E50: ='App.2-B_FA Con''ty 2012 CGAAP'!H50 -> 42116.86 | I50: 42116.86 | K50: ='App.2-B_FA Con''ty 2012 CGAAP'!M50 -> -42116.86 | L50: =-'App.2-CG_EUL_DepExp_2013'!M56 -> 0 | O50: -42116.86 | P50: 0
A51: 47 | B51: 1995 | C51: Contributions & Grants | E51: ='App.2-B_FA Con''ty 2012 CGAAP'!H51 -> -15652645.03 | F51: -703790 | I51: -16356435.03 | K51: ='App.2-B_FA Con''ty 2012 CGAAP'!M51 -> 4010282.422 | L51: =-'App.2-CG_EUL_DepExp_2013'!M57 -> 302422.0954 | O51: 4312704.518 | P51: -12043730.51
B52: 1330 | C52: WIP - Capital Inventory | E52: ='App.2-B_FA Con''ty 2012 CGAAP'!H52 -> 1127820 | I52: 1127820 | K52: ='App.2-B_FA Con''ty 2012 CGAAP'!M52 -> 0 | O52: 0 | P52: 1127820
B53: 2055 | C53: Work in Process | E53: ='App.2-B_FA Con''ty 2012 CGAAP'!H53 -> 2100736.15 | F53: 101536 | H53: -1735494 | I53: 466778.15 | K53: ='App.2-B_FA Con''ty 2012 CGAAP'!M53 -> 0 | O53: 0 | P53: 466778.15
E54: ='App.2-B_FA Con''ty 2012 CGAAP'!H54 -> 0 | K54: ='App.2-B_FA Con''ty 2012 CGAAP'!M54 -> 0
A55: Total prior to Board ordered removal of CIS related to water billing | E55: =SUM(E16:E54) -> 185985171.1 | F55: =SUM(F16:F54) -> 10964347.61 | G55: =SUM(G16:G54) -> -56413.2976 | H55: =SUM(H16:H54) -> -2193996.24 | I55: =SUM(I16:I54) -> 194699109.2 | K55: =SUM(K16:K53) -> -114601046.7 | L55: =SUM(L16:L53) -> -4210441.852 | M55: =SUM(M16:M53) -> 4632623.953 | N55: 458502.24 | O55: -113720362.3 | P55: 80978746.87
A56: 12 | B56: 1611 | C56: Computer Software | E56: ='App.2-B_FA Con''ty 2012 CGAAP'!H56 -> -129738.6848 | I56: =E56+F56+H56 -> -129738.6848 | K56: ='App.2-B_FA Con''ty 2012 CGAAP'!M56 -> 64280.89 | L56: =25947.74 -> 25947.74 | O56: =K56+L56+N56 -> 90228.63 | P56: =I56+O56 -> -39510.05479
A57: Total subsequent to Board ordered removal of CIS related to water billing | E57: =SUM(E55:E56) -> 185855432.4 | F57: =SUM(F55:F56) -> 10964347.61 | G57: =SUM(G55:G56) -> -56413.2976 | H57: =SUM(H55:H56) -> -2193996.24 | I57: =SUM(I55:I56) -> 194569370.5 | K57: =SUM(K55:K56) -> -114536765.8 | L57: =SUM(L55:L56) -> -4184494.112 | M57: =SUM(M55:M56) -> 4632623.953 | N57: 458502.24 | O57: -113630133.7 | P57: 80939236.81
I59: Less: Fully Allocated Depreciation
A60: 10 | C60: Transportation | I60: Transportation | L60: =L40 -> -215464.9946
A61: 8 | C61: Stores Equipment | I61: Stores Equipment | L61: =L42 -> -92164.853
I62: Net Depreciation | L62: =L57-L60-L61 -> -3876864.265
A64: Notes:
A66: 1 | B66: Tables in the format outlined above covering all fixed asset accounts should be submitted for the Test Year, Bridge Year and all relevant historical years. At a minimum , the applicant must provide data for the earlier of: 1) all historical years back to its last rebasing; or 2) at least three years of historical actuals, in addition to Bridge Year and Test Year forecasts.
A69: 2 | B69: The "CCA Class" for fixed assets should agree with the CCA Class used for tax purposes in Tax Returns. Fixed Assets sub-components may be used where the underlying asset components are classified under multiple CCA Classes for tax purposes. If an applicant uses any different classes from those shown in the table, an explanation should be provided. (also see note 3 below).
A72: 3 | B72: The table may need to be customized for a utility's asset categories or for any new asset accounts announced or authorized by the Board.
A74: 4 | B74: The depreciation column (D) is not required as the relevant information will be provided in the following 2-C series of appendices.

Sheet App.2-CE_CGAAP_DepExp_2011
K1: File Number: | L1: ='LDC Info'!$E$18 -> EB-2012-0126
K2: Exhibit: | L2: 4
K3: Tab: | L3: 7
K4: Schedule: | L4: 1
K5: Attachment: | L5: 2
K7: Date: | L7: 9 November, 2012
A9: Appendix 2-CE
A10: Depreciation and Amortization Expense
A11: Assumes the applicant adopted IFRS for financial reporting purposes January 1, 2014
C12: Year | D12: 2011 | E12: CGAAP
A14: Account | B14: Description | C14: Opening Regulatory Gross PP&E as at Jan 1, 2011 | D14: Less Fully Depreciated | E14: Net for Depreciation | F14: Additions | G14: Total for Depreciation | H14: Years | I14: Depreciation Rate | J14: 2011 Depreciation Expense | K14: 2011 Depreciation Expense per Appendix 2-B Fixed Assets, Column K (l) | L14: Variance 2
C15: (a) | D15: (b) | E15: (c) | F15: (d) | G15: (e) = (c) + ½ x (d) 1 | H15: (f) | I15: (g) = 1 / (f) | J15: (h) = (e) / (f) | L15: (m) = (h) - (l)
A16: 1611 | B16: Computer Software (Formally known as Account 1925) | C16: =VLOOKUP(A16,'App.2-B_Fixed Asset Con''ty 2011'!$B$16:$E$53,4,FALSE) -> 2505349.5 | D16: -1500808.36 | E16: =C16+D16 -> 1004541.14 | F16: =VLOOKUP(A16,'App.2-B_Fixed Asset Con''ty 2011'!$B$16:$F$53,5,FALSE) -> 138685.47 | G16: =E16+0.5*F16 -> 1073883.875 | H16: 5 | I16: =IF(H16=0,"",1/H16) -> 0.2 | J16: =IF(H16=0,0,G16/H16) -> 214776.775 | K16: =-'App.2-B_Fixed Asset Con''ty 2011'!K16 -> 214776.78 | L16: =IF(ISERROR(+J16-K16), "", +J16-K16) -> -0.004999999946
A17: 1612 | B17: Land Rights (Formally known as Account 1906) | C17: =VLOOKUP(A17,'App.2-B_Fixed Asset Con''ty 2011'!$B$16:$E$53,4,FALSE) -> 0 | E17: =C17+D17 -> 0 | F17: =VLOOKUP(A17,'App.2-B_Fixed Asset Con''ty 2011'!$B$16:$F$53,5,FALSE) -> 0 | G17: =E17+0.5*F17 -> 0 | J17: 0 | K17: =-'App.2-B_Fixed Asset Con''ty 2011'!K17 -> 0 | L17: =IF(ISERROR(+J17-K17), "", +J17-K17) -> 0
A18: 1805 | B18: Land | C18: =VLOOKUP(A18,'App.2-B_Fixed Asset Con''ty 2011'!$B$16:$E$53,4,FALSE) -> 857298.24 | E18: 857298.24 | F18: =VLOOKUP(A18,'App.2-B_Fixed Asset Con''ty 2011'!$B$16:$F$53,5,FALSE) -> 0 | G18: 857298.24 | J18: 0 | K18: =-'App.2-B_Fixed Asset Con''ty 2011'!K18 -> 0 | L18: 0
A19: 1808 | B19: Buildings | C19: =VLOOKUP(A19,'App.2-B_Fixed Asset Con''ty 2011'!$B$16:$E$53,4,FALSE) -> 9230592.62 | D19: -1213773.59 | E19: 8016819.03 | F19: =VLOOKUP(A19,'App.2-B_Fixed Asset Con''ty 2011'!$B$16:$F$53,5,FALSE) -> 0 | G19: 8016819.03 | H19: 50 | I19: 0.02 | J19: 160336.3806 | K19: =-'App.2-B_Fixed Asset Con''ty 2011'!K19 -> 183886.11 | L19: -23549.7294
A20: 1808 | B20: Leaseholds Improvements | C20: ='App.2-B_Fixed Asset Con''ty 2011'!E20 -> 567528.35 | E20: 567528.35 | F20: ='App.2-B_Fixed Asset Con''ty 2011'!F20 -> 159351.34 | G20: 647204.02 | H20: 15 | I20: 0.06666666667 | J20: 43146.93467 | K20: =-'App.2-B_Fixed Asset Con''ty 2011'!K20 -> 43146.92 | L20: 0.01466666667
A21: 1815 | B21: Transformer Station Equipment >50 kV | C21: =VLOOKUP(A21,'App.2-B_Fixed Asset Con''ty 2011'!$B$16:$E$53,4,FALSE) -> 0 | E21: 0 | F21: =VLOOKUP(A21,'App.2-B_Fixed Asset Con''ty 2011'!$B$16:$F$53,5,FALSE) -> 0 | G21: 0 | J21: 0 | K21: =-'App.2-B_Fixed Asset Con''ty 2011'!K21 -> 0 | L21: 0
A22: 1820 | B22: Distribution Station Equipment <50 kV | C22: =VLOOKUP(A22,'App.2-B_Fixed Asset Con''ty 2011'!$B$16:$E$53,4,FALSE) -> 16299670.35 | D22: -3109316.746 | E22: 13190353.6 | F22: =VLOOKUP(A22,'App.2-B_Fixed Asset Con''ty 2011'!$B$16:$F$53,5,FALSE) -> 161491.05 | G22: 13271099.13 | H22: 30 | I22: 0.03333333333 | J22: 442369.971 | K22: =-'App.2-B_Fixed Asset Con''ty 2011'!K22 -> 436762.62 | L22: 5607.350958
A23: 1825 | B23: Storage Battery Equipment | C23: =VLOOKUP(A23,'App.2-B_Fixed Asset Con''ty 2011'!$B$16:$E$53,4,FALSE) -> 0 | E23: 0 | F23: =VLOOKUP(A23,'App.2-B_Fixed Asset Con''ty 2011'!$B$16:$F$53,5,FALSE) -> 0 | G23: 0 | J23: 0 | K23: =-'App.2-B_Fixed Asset Con''ty 2011'!K23 -> 0 | L23: 0
A24: 1830 | B24: Poles, Towers & Fixtures | C24: =VLOOKUP(A24,'App.2-B_Fixed Asset Con''ty 2011'!$B$16:$E$53,4,FALSE) -> 16383182.68 | D24: -2532569.985 | E24: 13850612.7 | F24: =VLOOKUP(A24,'App.2-B_Fixed Asset Con''ty 2011'!$B$16:$F$53,5,FALSE) -> 1607668.4 | G24: 14654446.9 | H24: 25 | I24: 0.04 | J24: 586177.8758 | K24: =-'App.2-B_Fixed Asset Con''ty 2011'!K24 -> 607615.34 | L24: -21437.46418
A25: 1835 | B25: Overhead Conductors & Devices | C25: =VLOOKUP(A25,'App.2-B_Fixed Asset Con''ty 2011'!$B$16:$E$53,4,FALSE) -> 40866691.43 | D25: -11468376.48 | E25: 29398314.95 | F25: =VLOOKUP(A25,'App.2-B_Fixed Asset Con''ty 2011'!$B$16:$F$53,5,FALSE) -> 836176.62 | G25: 29816403.26 | H25: 25 | I25: 0.04 | J25: 1192656.13 | K25: =-'App.2-B_Fixed Asset Con''ty 2011'!K25 -> 1173922.61 | L25: 18733.52032
A26: 1840 | B26: Underground Conduit | C26: =VLOOKUP(A26,'App.2-B_Fixed Asset Con''ty 2011'!$B$16:$E$53,4,FALSE) -> 19095049.9 | D26: -1040048.288 | E26: 18055001.61 | F26: =VLOOKUP(A26,'App.2-B_Fixed Asset Con''ty 2011'!$B$16:$F$53,5,FALSE) -> 862067.59 | G26: 18486035.41 | H26: 25 | I26: 0.04 | J26: 739441.4163 | K26: =-'App.2-B_Fixed Asset Con''ty 2011'!K26 -> 707708.22 | L26: 31733.19629
A27: 1845 | B27: Underground Conductors & Devices | C27: =VLOOKUP(A27,'App.2-B_Fixed Asset Con''ty 2011'!$B$16:$E$53,4,FALSE) -> 19989151.24 | D27: -867333.3775 | E27: 19121817.86 | F27: =VLOOKUP(A27,'App.2-B_Fixed Asset Con''ty 2011'!$B$16:$F$53,5,FALSE) -> 676951.37 | G27: 19460293.55 | H27: 25 | I27: 0.04 | J27: 778411.7419 | K27: =-'App.2-B_Fixed Asset Con''ty 2011'!K27 -> 746852.59 | L27: 31559.1519
A28: 1850 | B28: Line Transformers | C28: =VLOOKUP(A28,'App.2-B_Fixed Asset Con''ty 2011'!$B$16:$E$53,4,FALSE) -> 26909415.53 | D28: -5955530.899 | E28: 20953884.63 | F28: =VLOOKUP(A28,'App.2-B_Fixed Asset Con''ty 2011'!$B$16:$F$53,5,FALSE) -> 1019439.58 | G28: 21463604.42 | H28: 25 | I28: 0.04 | J28: 858544.1768 | K28: =-'App.2-B_Fixed Asset Con''ty 2011'!K28 -> 863400.9 | L28: -4856.723159
A29: 1855 | B29: Services (Overhead & Underground) | C29: =VLOOKUP(A29,'App.2-B_Fixed Asset Con''ty 2011'!$B$16:$E$53,4,FALSE) -> 9977239.7 | D29: -1570156.205 | E29: 8407083.495 | F29: =VLOOKUP(A29,'App.2-B_Fixed Asset Con''ty 2011'!$B$16:$F$53,5,FALSE) -> 993811.25 | G29: 8903989.12 | H29: 25 | I29: 0.04 | J29: 356159.5648 | K29: =-'App.2-B_Fixed Asset Con''ty 2011'!K29 -> 343957.6 | L29: 12201.9648
A30: 1860 | B30: Meters | C30: =VLOOKUP(A30,'App.2-B_Fixed Asset Con''ty 2011'!$B$16:$E$53,4,FALSE) -> 8810025.31 | D30: -2462814.951 | E30: 6347210.359 | F30: =VLOOKUP(A30,'App.2-B_Fixed Asset Con''ty 2011'!$B$16:$F$53,5,FALSE) -> 18979.8 | G30: 6356700.259 | H30: 25 | I30: 0.04 | J30: 254268.0104 | K30: =-'App.2-B_Fixed Asset Con''ty 2011'!K30 -> 237974.5 | L30: 16293.51037
A31: 1860 | B31: Meters (Smart Meters) | C31: 0 | E31: 0 | G31: 0 | J31: 0 | K31: =-'App.2-B_Fixed Asset Con''ty 2011'!K31 -> 0 | L31: 0
A32: 1905 | B32: Land | C32: =VLOOKUP(A32,'App.2-B_Fixed Asset Con''ty 2011'!$B$16:$E$53,4,FALSE) -> 0 | E32: 0 | F32: =VLOOKUP(A32,'App.2-B_Fixed Asset Con''ty 2011'!$B$16:$F$53,5,FALSE) -> 0 | G32: 0 | J32: 0 | K32: =-'App.2-B_Fixed Asset Con''ty 2011'!K32 -> 0 | L32: 0
A33: 1908 | B33: Buildings & Fixtures | C33: =VLOOKUP(A33,'App.2-B_Fixed Asset Con''ty 2011'!$B$16:$E$53,4,FALSE) -> 0 | E33: 0 | F33: =VLOOKUP(A33,'App.2-B_Fixed Asset Con''ty 2011'!$B$16:$F$53,5,FALSE) -> 0 | G33: 0 | J33: 0 | K33: =-'App.2-B_Fixed Asset Con''ty 2011'!K33 -> 0 | L33: 0
A34: 1910 | B34: Leasehold Improvements | C34: =VLOOKUP(A34,'App.2-B_Fixed Asset Con''ty 2011'!$B$16:$E$53,4,FALSE) -> 0 | E34: 0 | F34: =VLOOKUP(A34,'App.2-B_Fixed Asset Con''ty 2011'!$B$16:$F$53,5,FALSE) -> 0 | G34: 0 | J34: 0 | K34: =-'App.2-B_Fixed Asset Con''ty 2011'!K34 -> 0 | L34: 0
A35: 1915 | B35: Office Furniture & Equipment (10 years) | C35: =VLOOKUP(A35,'App.2-B_Fixed Asset Con''ty 2011'!$B$16:$E$53,4,FALSE) -> 44314.56 | D35: -35143.94 | E35: 9170.62 | F35: =VLOOKUP(A35,'App.2-B_Fixed Asset Con''ty 2011'!$B$16:$F$53,5,FALSE) -> 0 | G35: 9170.62 | H35: 10 | I35: 0.1 | J35: 917.062 | K35: =-'App.2-B_Fixed Asset Con''ty 2011'!K35 -> 938.52 | L35: -21.458
A36: 1915 | B36: Office Furniture & Equipment (5 years) | C36: 0 | E36: 0 | F36: =VLOOKUP(A36,'App.2-B_Fixed Asset Con''ty 2011'!$B$16:$F$53,5,FALSE) -> 0 | G36: 0 | J36: 0 | K36: =-'App.2-B_Fixed Asset Con''ty 2011'!K36 -> 0 | L36: 0
A37: 1920 | B37: Computer Equipment - Hardware | C37: =VLOOKUP(A37,'App.2-B_Fixed Asset Con''ty 2011'!$B$16:$E$53,4,FALSE) -> 0 | E37: 0 | F37: =VLOOKUP(A37,'App.2-B_Fixed Asset Con''ty 2011'!$B$16:$F$53,5,FALSE) -> 153986.72 | G37: 76993.36 | H37: 5 | I37: 0.2 | J37: 15398.672 | K37: =-'App.2-B_Fixed Asset Con''ty 2011'!K37 -> 15398.67 | L37: 0.002
A38: 1920 | B38: Computer Equip.-Hardware(Post Mar. 22/04) | C38: =VLOOKUP(A38,'App.2-B_Fixed Asset Con''ty 2011'!$B$16:$E$53,4,FALSE) -> 0 | E38: 0 | F38: 0 | G38: 0 | J38: 0 | K38: =-'App.2-B_Fixed Asset Con''ty 2011'!K38 -> 0 | L38: 0
A39: 1920 | B39: Computer Equip.-Hardware(Post Mar. 19/07) | C39: =VLOOKUP(A39,'App.2-B_Fixed Asset Con''ty 2011'!$B$16:$E$53,4,FALSE) -> 0 | E39: 0 | F39: 0 | G39: 0 | J39: 0 | K39: =-'App.2-B_Fixed Asset Con''ty 2011'!K39 -> 0 | L39: 0
A40: 1930 | B40: Transportation Equipment | C40: 1439497.06 | D40: -974132.73 | E40: 465364.33 | F40: 58915.74 | G40: 494822.2 | H40: 4 | I40: 0.25 | J40: 123705.55 | K40: 135293.02 | L40: -11587.47
A41: 1930 | B41: Transportation Equipment | C41: 3601992.51 | D41: -1616759.58 | E41: 1985232.93 | F41: 504034.33 | G41: =E41+0.5*F41 -> 2237250.095 | H41: 8 | I41: =IF(H41=0,"",1/H41) -> 0.125 | J41: =IF(H41=0,0,G41/H41) -> 279656.2619 | K41: 284186.01 | L41: =IF(ISERROR(+J41-K41), "", +J41-K41) -> -4529.748125
A42: 1935 | B42: Stores Equipment | C42: =VLOOKUP(A42,'App.2-B_Fixed Asset Con''ty 2011'!$B$16:$E$53,4,FALSE) -> 0 | E42: 0 | F42: =VLOOKUP(A42,'App.2-B_Fixed Asset Con''ty 2011'!$B$16:$F$53,5,FALSE) -> 0 | G42: 0 | J42: 0 | L42: 0
A43: 1940 | B43: Tools, Shop & Garage Equipment | C43: =VLOOKUP(A43,'App.2-B_Fixed Asset Con''ty 2011'!$B$16:$E$53,4,FALSE) -> 1741755.78 | D43: -943943.63 | E43: 797812.15 | F43: =VLOOKUP(A43,'App.2-B_Fixed Asset Con''ty 2011'!$B$16:$F$53,5,FALSE) -> 77853.63 | G43: 836738.965 | H43: 10 | I43: 0.1 | J43: 83673.8965 | K43: =-'App.2-B_Fixed Asset Con''ty 2011'!K42 -> 82930.46 | L43: 743.4365
A44: 1945 | B44: Measurement & Testing Equipment | C44: =VLOOKUP(A44,'App.2-B_Fixed Asset Con''ty 2011'!$B$16:$E$53,4,FALSE) -> 0 | E44: 0 | F44: =VLOOKUP(A44,'App.2-B_Fixed Asset Con''ty 2011'!$B$16:$F$53,5,FALSE) -> 0 | G44: 0 | J44: 0 | K44: =-'App.2-B_Fixed Asset Con''ty 2011'!K43 -> 0 | L44: 0
A45: 1950 | B45: Power Operated Equipment | C45: =VLOOKUP(A45,'App.2-B_Fixed Asset Con''ty 2011'!$B$16:$E$53,4,FALSE) -> 0 | E45: 0 | F45: =VLOOKUP(A45,'App.2-B_Fixed Asset Con''ty 2011'!$B$16:$F$53,5,FALSE) -> 0 | G45: 0 | J45: 0 | K45: =-'App.2-B_Fixed Asset Con''ty 2011'!K44 -> 0 | L45: 0
A46: 1955 | B46: Communications Equipment | C46: =VLOOKUP(A46,'App.2-B_Fixed Asset Con''ty 2011'!$B$16:$E$53,4,FALSE) -> 2212829.86 | D46: -25345.88 | E46: 2187483.98 | F46: =VLOOKUP(A46,'App.2-B_Fixed Asset Con''ty 2011'!$B$16:$F$53,5,FALSE) -> 7757 | G46: 2191362.48 | H46: 25 | I46: 0.04 | J46: 87654.4992 | K46: =-'App.2-B_Fixed Asset Con''ty 2011'!K45 -> 78788.24 | L46: 8866.2592
A47: 1955 | B47: Communication Equipment (Smart Meters) | C47: 0 | E47: 0 | G47: 0 | J47: 0 | K47: =-'App.2-B_Fixed Asset Con''ty 2011'!K46 -> 0 | L47: 0
A48: 1960 | B48: Miscellaneous Equipment | C48: =VLOOKUP(A48,'App.2-B_Fixed Asset Con''ty 2011'!$B$16:$E$53,4,FALSE) -> 0 | E48: 0 | F48: =VLOOKUP(A48,'App.2-B_Fixed Asset Con''ty 2011'!$B$16:$F$53,5,FALSE) -> 0 | G48: 0 | J48: 0 | K48: =-'App.2-B_Fixed Asset Con''ty 2011'!K47 -> 0 | L48: 0
A49: 1975 | B49: Load Management Controls Utility Premises | C49: =VLOOKUP(A49,'App.2-B_Fixed Asset Con''ty 2011'!$B$16:$E$53,4,FALSE) -> 0 | E49: 0 | F49: =VLOOKUP(A49,'App.2-B_Fixed Asset Con''ty 2011'!$B$16:$F$53,5,FALSE) -> 0 | G49: 0 | J49: 0 | K49: =-'App.2-B_Fixed Asset Con''ty 2011'!K48 -> 0 | L49: 0
A50: 1980 | B50: System Supervisor Equipment | C50: =VLOOKUP(A50,'App.2-B_Fixed Asset Con''ty 2011'!$B$16:$E$53,4,FALSE) -> 1555443.13 | D50: -712774.26 | E50: 842668.87 | F50: =VLOOKUP(A50,'App.2-B_Fixed Asset Con''ty 2011'!$B$16:$F$53,5,FALSE) -> 17265 | G50: 851301.37 | H50: 15 | I50: 0.06666666667 | J50: 56753.42467 | K50: =-'App.2-B_Fixed Asset Con''ty 2011'!K49 -> 56753.42 | L50: 0.00466666666
A51: 1985 | B51: Miscellaneous Fixed Assets | C51: =VLOOKUP(A51,'App.2-B_Fixed Asset Con''ty 2011'!$B$16:$E$53,4,FALSE) -> 42116.86 | D51: -42116.86 | E51: 0 | F51: =VLOOKUP(A51,'App.2-B_Fixed Asset Con''ty 2011'!$B$16:$F$53,5,FALSE) -> 0 | G51: 0 | J51: 0 | K51: =-'App.2-B_Fixed Asset Con''ty 2011'!K50 -> 0 | L51: 0
A52: 1995 | B52: Contributions & Grants | C52: =VLOOKUP(A52,'App.2-B_Fixed Asset Con''ty 2011'!$B$16:$E$53,4,FALSE) -> -13513098.06 | E52: -13513098.06 | F52: =VLOOKUP(A52,'App.2-B_Fixed Asset Con''ty 2011'!$B$16:$F$53,5,FALSE) -> -1065202.67 | G52: -14045699.39 | H52: 25 | I52: 0.04 | J52: -561827.9758 | K52: =-'App.2-B_Fixed Asset Con''ty 2011'!K51 -> -561827.97 | L52: -0.005800000043
A53: 1330 | B53: WIP - Capital Inventory | C53: =VLOOKUP(A53,'App.2-B_Fixed Asset Con''ty 2011'!$B$16:$E$53,4,FALSE) -> 1022658 | E53: 1022658 | F53: =VLOOKUP(A53,'App.2-B_Fixed Asset Con''ty 2011'!$B$16:$F$53,5,FALSE) -> 105162 | G53: =E53+0.5*F53 -> 1075239 | I53: =IF(H53=0,"",1/H53) ->  | J53: =IF(H53=0,0,G53/H53) -> 0 | K53: =-'App.2-B_Fixed Asset Con''ty 2011'!K52 -> 0 | L53: =IF(ISERROR(+J53-K53), "", +J53-K53) -> 0
A54: 2055 | B54: Work In Process | C54: =VLOOKUP(A54,'App.2-B_Fixed Asset Con''ty 2011'!$B$16:$E$53,4,FALSE) -> 228308 | E54: 228308 | F54: =VLOOKUP(A54,'App.2-B_Fixed Asset Con''ty 2011'!$B$16:$F$53,5,FALSE) -> 430858.53 | G54: 443737.265 | J54: 0 | K54: =-'App.2-B_Fixed Asset Con''ty 2011'!K53 -> 0 | L54: 0
A55: Total prior to Board ordered removal of CIS related to water billing | C55: =SUM(C15:C54) -> 169867012.6 | D55: =SUM(D15:D54) -> -36070945.76 | E55: =SUM(E15:E54) -> 133796066.8 | F55: =SUM(F15:F54) -> 6765252.75 | G55: =SUM(G15:G54) -> 137178693.2 | J55: =SUM(J15:J54) -> 5712220.368 | K55: 5652464.56 | L55: 59755.808
A56: 1611 | B56: Computer Software | C56: ='App.2-B_Fixed Asset Con''ty 2011'!E56 -> -126796.4049 | E56: =C56+D56 -> -126796.4049 | F56: ='App.2-B_Fixed Asset Con''ty 2011'!F56 -> -2942.279888 | G56: =E56+0.5*F56 -> -128267.5448 | H56: 5 | I56: =IF(H56=0,"",1/H56) -> 0.2 | J56: =IF(H56=0,0,G56/H56) -> -25653.50897 | K56: =-'App.2-B_Fixed Asset Con''ty 2011'!K56 -> -25653.51 | L56: =IF(ISERROR(+J56-K56), "", +J56-K56) -> 0.001030399999
A57: Total subsequent to Board ordered removal of CIS related to water billing | C57: =SUM(C55:C56) -> 169740216.1 | D57: =SUM(D55:D56) -> -36070945.76 | E57: 133669270.4 | F57: 6762310.47 | G57: 137050425.6 | J57: =SUM(J55:J56) -> 5686566.859 | K57: 5626811.05 | L57: 59755.80903
A59: Notes:
A60: 1 | B60: Board policy of the "half-year" rule - the applicant must ensure that additions in the year attract a half-year depreciation expense in the first year. Deviations from this standard practice must be supported in the application.
A61: 2 | B61: The applicant must provide an explanation of material variances in evidence
A62: General: | B62: Applicants must provide a breakdown of depreciation and amortization expense in the above format for all relevant accounts. Asset Retirement Obligations (AROs), depreciation and accretion expense should be disclosed separately consistent with the Notes of historical Audited Financial Statements.

Sheet App.2-CF_CGAAP_DepExp_2012
K1: File Number: | L1: ='LDC Info'!$E$18 -> EB-2012-0126
K2: Exhibit: | L2: 4
K3: Tab: | L3: 7
K4: Schedule: | L4: 1
K5: Attachment: | L5: 3
K7: Date: | L7: 9 November, 2012
A9: Appendix 2-CF
A10: Depreciation and Amortization Expense
A11: Assumes the applicant adopted IFRS for financial reporting purposes January 1, 2014
C12: Year | D12: 2012 | E12: CGAAP
A14: Account | B14: Description | C14: Opening Regulatory Gross PP&E as at Jan 1, 2012 | D14: Less Fully Depreciated | E14: Net for Depreciation | F14: Additions | G14: Total for Depreciation | H14: Years | I14: Depreciation Rate | J14: 2012 Depreciation Expense | K14: 2012 Depreciation Expense per Appendix 2-B Fixed Assets, Column K (l) | L14: Variance 2
C15: (a) | D15: (b) | E15: (c) | F15: (d) | G15: (e) = (c) + ½ x (d) 1 | H15: (f) | I15: (g) = 1 / (f) | J15: (h) = (e) / (f) | L15: (m) = (h) - (l)
A16: 1611 | B16: Computer Software (Formally known as Account 1925) | C16: =VLOOKUP(A16,'App.2-B_FA Con''ty 2012 CGAAP'!$B$15:$H$57,4,FALSE) -> 2644034.97 | D16: -1500807.36 | E16: =C16+D16 -> 1143227.61 | F16: =VLOOKUP(A16,'App.2-B_FA Con''ty 2012 CGAAP'!$B$15:$H$57,5,FALSE) -> 248175.35 | G16: =E16+0.5*F16 -> 1267315.285 | H16: 5 | I16: =IF(H16=0," ",1/H16) -> 0.2 | J16: =IF(H16=0,0,G16/H16) -> 253463.057 | K16: =-VLOOKUP(A16,'App.2-B_FA Con''ty 2012 CGAAP'!$B$16:$K$53,10,FALSE) -> 253462.857 | L16: =IF(ISERROR(+J16-K16), 0, +J16-K16) -> 0.2
A17: 1612 | B17: Land Rights (Formally known as Account 1906) | C17: =VLOOKUP(A17,'App.2-B_FA Con''ty 2012 CGAAP'!$B$15:$H$57,4,FALSE) -> 0 | E17: =C17+D17 -> 0 | F17: =VLOOKUP(A17,'App.2-B_FA Con''ty 2012 CGAAP'!$B$15:$H$57,5,FALSE) -> 0 | G17: =E17+0.5*F17 -> 0 | I17: =IF(H17=0," ",1/H17) ->  | J17: 0 | K17: =-VLOOKUP(A17,'App.2-B_FA Con''ty 2012 CGAAP'!$B$16:$K$53,10,FALSE) -> 0 | L17: 0
A18: 1805 | B18: Land | C18: =VLOOKUP(A18,'App.2-B_FA Con''ty 2012 CGAAP'!$B$15:$H$57,4,FALSE) -> 857298.24 | E18: 857298.24 | F18: =VLOOKUP(A18,'App.2-B_FA Con''ty 2012 CGAAP'!$B$15:$H$57,5,FALSE) -> 5569.21 | G18: 860082.845 | J18: 0 | K18: =-VLOOKUP(A18,'App.2-B_FA Con''ty 2012 CGAAP'!$B$16:$K$53,10,FALSE) -> 0 | L18: 0
A19: 1808 | B19: Buildings | C19: =VLOOKUP(A19,'App.2-B_FA Con''ty 2012 CGAAP'!$B$15:$H$57,4,FALSE) -> 9230592.62 | D19: -1225941.413 | E19: 8004651.207 | F19: =VLOOKUP(A19,'App.2-B_FA Con''ty 2012 CGAAP'!$B$15:$H$57,5,FALSE) -> 0 | G19: 8004651.207 | H19: 50 | I19: 0.02 | J19: 160093.0241 | K19: =-VLOOKUP(A19,'App.2-B_FA Con''ty 2012 CGAAP'!$B$16:$K$53,10,FALSE) -> 183562.1765 | L19: -23469.1523
A20: 1808 | B20: Buildings Improvements | C20: ='App.2-B_FA Con''ty 2012 CGAAP'!E20 -> 726879.69 | E20: 726879.69 | F20: ='App.2-B_FA Con''ty 2012 CGAAP'!F20 -> 310378.69 | G20: 882069.035 | H20: 15 | I20: 0.06666666667 | J20: 58804.60233 | K20: =-'App.2-B_FA Con''ty 2012 CGAAP'!K20 -> 58804.60133 | L20: 0.0009999999966
A21: 1815 | B21: Transformer Station Equipment >50 kV | C21: =VLOOKUP(A21,'App.2-B_FA Con''ty 2012 CGAAP'!$B$15:$H$57,4,FALSE) -> 0 | E21: 0 | F21: =VLOOKUP(A21,'App.2-B_FA Con''ty 2012 CGAAP'!$B$15:$H$57,5,FALSE) -> 0 | G21: 0 | J21: 0 | K21: =-VLOOKUP(A21,'App.2-B_FA Con''ty 2012 CGAAP'!$B$16:$K$53,10,FALSE) -> 0 | L21: 0
A22: 1820 | B22: Distribution Station Equipment <50 kV | C22: =VLOOKUP(A22,'App.2-B_FA Con''ty 2012 CGAAP'!$B$15:$H$57,4,FALSE) -> 16461161.4 | D22: -3526054.24 | E22: 12935107.16 | F22: =VLOOKUP(A22,'App.2-B_FA Con''ty 2012 CGAAP'!$B$15:$H$57,5,FALSE) -> 1379969.21 | G22: 13625091.77 | H22: 30 | I22: 0.03333333333 | J22: 454169.7255 | K22: =-VLOOKUP(A22,'App.2-B_FA Con''ty 2012 CGAAP'!$B$16:$K$53,10,FALSE) -> 446812.1025 | L22: 7357.623018
A23: 1825 | B23: Storage Battery Equipment | C23: =VLOOKUP(A23,'App.2-B_FA Con''ty 2012 CGAAP'!$B$15:$H$57,4,FALSE) -> 0 | E23: 0 | F23: =VLOOKUP(A23,'App.2-B_FA Con''ty 2012 CGAAP'!$B$15:$H$57,5,FALSE) -> 0 | G23: 0 | J23: 0 | K23: =-VLOOKUP(A23,'App.2-B_FA Con''ty 2012 CGAAP'!$B$16:$K$53,10,FALSE) -> 0 | L23: 0
A24: 1830 | B24: Poles, Towers & Fixtures | C24: =VLOOKUP(A24,'App.2-B_FA Con''ty 2012 CGAAP'!$B$15:$H$57,4,FALSE) -> 17990851.08 | D24: -2731938.345 | E24: 15258912.74 | F24: =VLOOKUP(A24,'App.2-B_FA Con''ty 2012 CGAAP'!$B$15:$H$57,5,FALSE) -> 1272073.073 | G24: 15894949.27 | H24: 25 | I24: 0.04 | J24: 635797.9709 | K24: =-VLOOKUP(A24,'App.2-B_FA Con''ty 2012 CGAAP'!$B$16:$K$53,10,FALSE) -> 622917.3359 | L24: 12880.63501
A25: 1835 | B25: Overhead Conductors & Devices | C25: =VLOOKUP(A25,'App.2-B_FA Con''ty 2012 CGAAP'!$B$15:$H$57,4,FALSE) -> 41702868.05 | D25: -11468376.48 | E25: 30234491.57 | F25: =VLOOKUP(A25,'App.2-B_FA Con''ty 2012 CGAAP'!$B$15:$H$57,5,FALSE) -> 1001640.721 | G25: 30735311.93 | H25: 25 | I25: 0.04 | J25: 1229412.477 | K25: =-VLOOKUP(A25,'App.2-B_FA Con''ty 2012 CGAAP'!$B$16:$K$53,10,FALSE) -> 1225299.988 | L25: 4112.489247
A26: 1840 | B26: Underground Conduit | C26: =VLOOKUP(A26,'App.2-B_FA Con''ty 2012 CGAAP'!$B$15:$H$57,4,FALSE) -> 19957117.49 | D26: -1410813.652 | E26: 18546303.84 | F26: =VLOOKUP(A26,'App.2-B_FA Con''ty 2012 CGAAP'!$B$15:$H$57,5,FALSE) -> 1001464.819 | G26: 19047036.25 | H26: 25 | I26: 0.04 | J26: 761881.4499 | K26: =-VLOOKUP(A26,'App.2-B_FA Con''ty 2012 CGAAP'!$B$16:$K$53,10,FALSE) -> 672533.9148 | L26: 89347.53507
A27: 1845 | B27: Underground Conductors & Devices | C27: =VLOOKUP(A27,'App.2-B_FA Con''ty 2012 CGAAP'!$B$15:$H$57,4,FALSE) -> 20666102.61 | D27: -1168562.959 | E27: 19497539.65 | F27: =VLOOKUP(A27,'App.2-B_FA Con''ty 2012 CGAAP'!$B$15:$H$57,5,FALSE) -> 778816.2062 | G27: 19886947.75 | H27: 25 | I27: 0.04 | J27: 795477.9102 | K27: =-VLOOKUP(A27,'App.2-B_FA Con''ty 2012 CGAAP'!$B$16:$K$53,10,FALSE) -> 790089.9935 | L27: 5387.916704
A28: 1850 | B28: Line Transformers | C28: =VLOOKUP(A28,'App.2-B_FA Con''ty 2012 CGAAP'!$B$15:$H$57,4,FALSE) -> 27928855.11 | D28: -6747654.709 | E28: 21181200.4 | F28: =VLOOKUP(A28,'App.2-B_FA Con''ty 2012 CGAAP'!$B$15:$H$57,5,FALSE) -> 1587403.036 | G28: 21974901.92 | H28: 25 | I28: 0.04 | J28: 878996.0768 | K28: =-VLOOKUP(A28,'App.2-B_FA Con''ty 2012 CGAAP'!$B$16:$K$53,10,FALSE) -> 853584.0807 | L28: 25411.99608
A29: 1855 | B29: Services (Overhead & Underground) | C29: =VLOOKUP(A29,'App.2-B_FA Con''ty 2012 CGAAP'!$B$15:$H$57,4,FALSE) -> 10971050.95 | D29: -1895152.264 | E29: 9075898.686 | F29: =VLOOKUP(A29,'App.2-B_FA Con''ty 2012 CGAAP'!$B$15:$H$57,5,FALSE) -> 1040786.589 | G29: 9596291.981 | H29: 25 | I29: 0.04 | J29: 383851.6792 | K29: =-VLOOKUP(A29,'App.2-B_FA Con''ty 2012 CGAAP'!$B$16:$K$53,10,FALSE) -> 366530.5517 | L29: 17321.12751
A30: 1860 | B30: Meters | C30: =VLOOKUP(A30,'App.2-B_FA Con''ty 2012 CGAAP'!$B$15:$H$57,4,FALSE) -> 8829005.11 | D30: -2837800.71 | E30: 5991204.4 | F30: =VLOOKUP(A30,'App.2-B_FA Con''ty 2012 CGAAP'!$B$15:$H$57,5,FALSE) -> 107254.1 | G30: 6044831.45 | H30: 25 | I30: 0.04 | J30: 241793.258 | K30: =-VLOOKUP(A30,'App.2-B_FA Con''ty 2012 CGAAP'!$B$16:$K$53,10,FALSE) -> 224692.8465 | L30: 17100.41151
A31: 1860 | B31: Meters (Smart Meters) | C31: 0 | E31: 0 | F31: 0 | G31: 0 | J31: 0 | L31: 0
A32: 1905 | B32: Land | C32: =VLOOKUP(A32,'App.2-B_FA Con''ty 2012 CGAAP'!$B$15:$H$57,4,FALSE) -> 0 | E32: 0 | F32: =VLOOKUP(A32,'App.2-B_FA Con''ty 2012 CGAAP'!$B$15:$H$57,5,FALSE) -> 0 | G32: 0 | J32: 0 | K32: =-VLOOKUP(A32,'App.2-B_FA Con''ty 2012 CGAAP'!$B$16:$K$53,10,FALSE) -> 0 | L32: 0
A33: 1908 | B33: Buildings & Fixtures | C33: =VLOOKUP(A33,'App.2-B_FA Con''ty 2012 CGAAP'!$B$15:$H$57,4,FALSE) -> 0 | E33: 0 | F33: =VLOOKUP(A33,'App.2-B_FA Con''ty 2012 CGAAP'!$B$15:$H$57,5,FALSE) -> 0 | G33: 0 | J33: 0 | K33: =-VLOOKUP(A33,'App.2-B_FA Con''ty 2012 CGAAP'!$B$16:$K$53,10,FALSE) -> 0 | L33: 0
A34: 1910 | B34: Leasehold Improvements | C34: =VLOOKUP(A34,'App.2-B_FA Con''ty 2012 CGAAP'!$B$15:$H$57,4,FALSE) -> 0 | E34: 0 | F34: =VLOOKUP(A34,'App.2-B_FA Con''ty 2012 CGAAP'!$B$15:$H$57,5,FALSE) -> 0 | G34: 0 | J34: 0 | K34: =-VLOOKUP(A34,'App.2-B_FA Con''ty 2012 CGAAP'!$B$16:$K$53,10,FALSE) -> 0 | L34: 0
A35: 1915 | B35: Office Furniture & Equipment (10 years) | C35: =VLOOKUP(A35,'App.2-B_FA Con''ty 2012 CGAAP'!$B$15:$H$57,4,FALSE) -> 44314.56 | D35: -35143.94 | E35: 9170.62 | F35: =VLOOKUP(A35,'App.2-B_FA Con''ty 2012 CGAAP'!$B$15:$H$57,5,FALSE) -> 0 | G35: 9170.62 | H35: 10 | I35: 0.1 | J35: 917.062 | K35: =-VLOOKUP(A35,'App.2-B_FA Con''ty 2012 CGAAP'!$B$16:$K$53,10,FALSE) -> 938.5185 | L35: -21.4565
A36: 1915 | B36: Office Furniture & Equipment (5 years) | C36: 0 | E36: 0 | F36: =VLOOKUP(A36,'App.2-B_FA Con''ty 2012 CGAAP'!$B$15:$H$57,5,FALSE) -> 0 | G36: 0 | J36: 0 | L36: 0
A37: 1920 | B37: Computer Equipment - Hardware | C37: =VLOOKUP(A37,'App.2-B_FA Con''ty 2012 CGAAP'!$B$15:$H$57,4,FALSE) -> 153986.72 | D37: 0 | E37: 153986.72 | F37: =VLOOKUP(A37,'App.2-B_FA Con''ty 2012 CGAAP'!$B$15:$H$57,5,FALSE) -> 371510.34 | G37: 339741.89 | H37: 5 | I37: 0.2 | J37: 67948.378 | K37: =-VLOOKUP(A37,'App.2-B_FA Con''ty 2012 CGAAP'!$B$16:$K$53,10,FALSE) -> 67948.378 | L37: 0
A38: 1920 | B38: Computer Equip.-Hardware(Post Mar. 22/04) | C38: 0 | E38: 0 | F38: 0 | G38: 0 | J38: 0 | L38: 0
A39: 1920 | B39: Computer Equip.-Hardware(Post Mar. 19/07) | C39: 0 | E39: 0 | F39: 0 | G39: 0 | J39: 0 | L39: 0
A40: 1930 | B40: Transportation Equipment | C40: 1422755.36 | D40: -1010999.84 | E40: 411755.52 | F40: 180000 | G40: 501755.52 | H40: 4 | I40: 0.25 | J40: 125438.88 | K40: 115191.35 | L40: 10247.53
A41: 1930 | B41: Transportation Equipment | C41: 3740323.56 | D41: -1238456.3 | E41: 2501867.26 | F41: 20000 | G41: 2511867.26 | H41: 8 | I41: 0.125 | J41: =IF(H41=0,0,G41/H41) -> 313983.4075 | K41: 319246.43 | L41: -5263.0225
A42: 1935 | B42: Stores Equipment | C42: =VLOOKUP(A42,'App.2-B_FA Con''ty 2012 CGAAP'!$B$15:$H$57,4,FALSE) -> 0 | E42: 0 | F42: =VLOOKUP(A42,'App.2-B_FA Con''ty 2012 CGAAP'!$B$15:$H$57,5,FALSE) -> 0 | G42: 0 | J42: 0 | K42: =-VLOOKUP(A42,'App.2-B_FA Con''ty 2012 CGAAP'!$B$16:$K$53,10,FALSE) -> 0 | L42: 0
A43: 1940 | B43: Tools, Shop & Garage Equipment | C43: =VLOOKUP(A43,'App.2-B_FA Con''ty 2012 CGAAP'!$B$15:$H$57,4,FALSE) -> 1819609.41 | D43: -993985.89 | E43: 825623.52 | F43: =VLOOKUP(A43,'App.2-B_FA Con''ty 2012 CGAAP'!$B$15:$H$57,5,FALSE) -> 152809.49 | G43: 902028.265 | H43: 10 | I43: 0.1 | J43: 90202.8265 | K43: =-VLOOKUP(A43,'App.2-B_FA Con''ty 2012 CGAAP'!$B$16:$K$53,10,FALSE) -> 89459.365 | L43: 743.4615
A44: 1945 | B44: Measurement & Testing Equipment | C44: =VLOOKUP(A44,'App.2-B_FA Con''ty 2012 CGAAP'!$B$15:$H$57,4,FALSE) -> 0 | E44: 0 | F44: =VLOOKUP(A44,'App.2-B_FA Con''ty 2012 CGAAP'!$B$15:$H$57,5,FALSE) -> 0 | G44: 0 | J44: 0 | K44: =-VLOOKUP(A44,'App.2-B_FA Con''ty 2012 CGAAP'!$B$16:$K$53,10,FALSE) -> 0 | L44: 0
A45: 1950 | B45: Power Operated Equipment | C45: =VLOOKUP(A45,'App.2-B_FA Con''ty 2012 CGAAP'!$B$15:$H$57,4,FALSE) -> 0 | E45: 0 | F45: =VLOOKUP(A45,'App.2-B_FA Con''ty 2012 CGAAP'!$B$15:$H$57,5,FALSE) -> 0 | G45: 0 | J45: 0 | K45: =-VLOOKUP(A45,'App.2-B_FA Con''ty 2012 CGAAP'!$B$16:$K$53,10,FALSE) -> 0 | L45: 0
A46: 1955 | B46: Communications Equipment | C46: =VLOOKUP(A46,'App.2-B_FA Con''ty 2012 CGAAP'!$B$15:$H$57,4,FALSE) -> 2220586.86 | D46: -37634.22 | E46: 2182952.64 | F46: =VLOOKUP(A46,'App.2-B_FA Con''ty 2012 CGAAP'!$B$15:$H$57,5,FALSE) -> 66925.46 | G46: 2216415.37 | H46: 25 | I46: 0.04 | J46: 88656.6148 | K46: =-VLOOKUP(A46,'App.2-B_FA Con''ty 2012 CGAAP'!$B$16:$K$53,10,FALSE) -> 81293.5057 | L46: 7363.1091
A47: 1955 | B47: Communication Equipment (Smart Meters) | C47: 0 | E47: 0 | F47: 0 | G47: 0 | J47: 0 | L47: 0
A48: 1960 | B48: Miscellaneous Equipment | C48: =VLOOKUP(A48,'App.2-B_FA Con''ty 2012 CGAAP'!$B$15:$H$57,4,FALSE) -> 0 | E48: 0 | F48: =VLOOKUP(A48,'App.2-B_FA Con''ty 2012 CGAAP'!$B$15:$H$57,5,FALSE) -> 0 | G48: 0 | J48: 0 | K48: =-VLOOKUP(A48,'App.2-B_FA Con''ty 2012 CGAAP'!$B$16:$K$53,10,FALSE) -> 0 | L48: 0
A49: 1975 | B49: Load Management Controls Utility Premises | C49: =VLOOKUP(A49,'App.2-B_FA Con''ty 2012 CGAAP'!$B$15:$H$57,4,FALSE) -> 0 | E49: 0 | F49: =VLOOKUP(A49,'App.2-B_FA Con''ty 2012 CGAAP'!$B$15:$H$57,5,FALSE) -> 0 | G49: 0 | J49: 0 | K49: =-VLOOKUP(A49,'App.2-B_FA Con''ty 2012 CGAAP'!$B$16:$K$53,10,FALSE) -> 0 | L49: 0
A50: 1980 | B50: System Supervisor Equipment | C50: =VLOOKUP(A50,'App.2-B_FA Con''ty 2012 CGAAP'!$B$15:$H$57,4,FALSE) -> 1572708.13 | D50: -742550.34 | E50: 830157.79 | F50: =VLOOKUP(A50,'App.2-B_FA Con''ty 2012 CGAAP'!$B$15:$H$57,5,FALSE) -> 0 | G50: 830157.79 | H50: 15 | I50: 0.06666666667 | J50: 55343.85267 | K50: =-VLOOKUP(A50,'App.2-B_FA Con''ty 2012 CGAAP'!$B$16:$K$53,10,FALSE) -> 55343.85267 | L50: 0
A51: 1985 | B51: Miscellaneous Fixed Assets | C51: =VLOOKUP(A51,'App.2-B_FA Con''ty 2012 CGAAP'!$B$15:$H$57,4,FALSE) -> 42116.86 | D51: ='App.2-CE_CGAAP_DepExp_2011'!D51 -> -42116.86 | E51: 0 | F51: =VLOOKUP(A51,'App.2-B_FA Con''ty 2012 CGAAP'!$B$15:$H$57,5,FALSE) -> 0 | G51: 0 | J51: 0 | K51: =-VLOOKUP(A51,'App.2-B_FA Con''ty 2012 CGAAP'!$B$16:$K$53,10,FALSE) -> 0 | L51: 0
A52: 1995 | B52: Contributions & Grants | C52: =VLOOKUP(A52,'App.2-B_FA Con''ty 2012 CGAAP'!$B$15:$H$57,4,FALSE) -> -14578300.73 | E52: -14578300.73 | F52: =VLOOKUP(A52,'App.2-B_FA Con''ty 2012 CGAAP'!$B$15:$H$57,5,FALSE) -> -1074344.302 | G52: -15115472.88 | H52: 25 | I52: 0.04 | J52: -604618.9152 | K52: =-VLOOKUP(A52,'App.2-B_FA Con''ty 2012 CGAAP'!$B$16:$K$53,10,FALSE) -> -604618.9024 | L52: -0.01284666662
A53: 1330 | B53: WIP - Capital Inventory | C53: ='App.2-B_FA Con''ty 2012 CGAAP'!E52 -> 1127820 | E53: 1127820 | F53: =VLOOKUP(A53,'App.2-B_FA Con''ty 2012 CGAAP'!$B$15:$H$57,5,FALSE) -> 0 | G53: 1127820 | J53: 0 | K53: =-VLOOKUP(A53,'App.2-B_FA Con''ty 2012 CGAAP'!$B$16:$K$53,10,FALSE) -> 0 | L53: 0
A54: 2055 | B54: Work In Process | C54: =VLOOKUP(A54,'App.2-B_FA Con''ty 2012 CGAAP'!$B$15:$H$57,4,FALSE) -> 430858.15 | E54: =C54+D54 -> 430858.15 | F54: =VLOOKUP(A54,'App.2-B_FA Con''ty 2012 CGAAP'!$B$15:$H$57,5,FALSE) -> 1669878 | G54: 1265797.15 | I54: =IF(H54=0,"",1/H54) ->  | J54: 0 | L54: 0
A55: Total prior to Board ordered removal of CIS related to water billing | C55: =SUM(C16:C54) -> 175962596.2 | D55: =SUM(D16:D54) -> -38613989.52 | E55: =SUM(E16:E54) -> 137348606.7 | F55: =SUM(F16:F54) -> 10120309.99 | G55: =SUM(G16:G54) -> 142408761.7 | J55: =SUM(J16:J54) -> 5991613.337 | K55: =SUM(K16:K54) -> 5823092.946 | L55: =SUM(L16:L54) -> 168520.3916
A56: 1611 | B56: Computer Software | C56: ='App.2-B_FA Con''ty 2012 CGAAP'!E56 -> -129738.6848 | E56: =C56+D56 -> -129738.6848 | F56: ='App.2-B_FA Con''ty 2012 CGAAP'!F56 -> 0 | G56: =E56+0.5*F56 -> -129738.6848 | H56: 5 | I56: =IF(H56=0,"",1/H56) -> 0.2 | J56: =IF(H56=0,0,G56/H56) -> -25947.73696 | K56: =-'App.2-B_FA Con''ty 2012 CGAAP'!K56 -> -25947.74 | L56: =IF(ISERROR(+J56-K56), "", +J56-K56) -> 0.003041599997
A57: Total subsequent to Board ordered removal of CIS related to water billing | C57: =SUM(C55:C56) -> 175832857.5 | D57: =SUM(D55:D56) -> -38613989.52 | E57: 137218868 | F57: 10120309.99 | G57: 142279023 | J57: =SUM(J55:J56) -> 5965665.6 | K57: 5797145.206 | L57: 168520.3947
A59: Notes:
A60: 1 | B60: Board policy of the "half-year" rule - the applicant must ensure that additions in the year attract a half-year depreciation expense in the first year. Deviations from this standard practice must be supported in the application.
A61: 2 | B61: The applicant must provide an explanation of material variances in evidence
A63: General: | B63: Applicants must provide a breakdown of depreciation and amortization expense in the above format for all relevant accounts. Asset Retirement Obligations (AROs), depreciation and accretion expense should be disclosed separately consistent with the Notes of historical Audited Financial Statements.

Sheet App.2-CG_EUL_DepExp_2013
Q1: File Number: | R1: ='LDC Info'!$E$18 -> EB-2012-0126
Q2: Exhibit: | R2: 4
Q3: Tab: | R3: 7
Q4: Schedule: | R4: 1
Q5: Attachment: | R5: 4
Q7: Date: | R7: 9 November, 2012
A9: Appendix 2-CG
A10: Depreciation and Amortization Expense
A11: Assumes the applicant adopted IFRS for financial reporting purposes January 1, 2014
C12: Year | E12: 2013 | F12: CGAAP - EUL
A14: Account | B14: Description | C14: Opening NBV as at Jan 1, 2013 5 | D14: Smart Meter & Stranded Meter NBV Adjustment | E14: Additions | F14: Average Remaining Life of Opening NBV 4 | G14: Average Remaining Life of Smart Meter Adjustment NBV 4 | H14: Years (new additions only) 3 | I14: Depreciation Rate on New Additions | J14: Depreciation Expense on Opening NBV | K14: Depreciation Expense on Opening NBV Adjustment Smart Meters | L14: Depreciation Expense on Additions 1 | M14: 2013 Depreciation Expense | N14: 2013 Depreciation Expense per Appendix 2-B Fixed Assets, Column K (l) | O14: Variance 2 | P14: Depreciation Expense on 2013 Full Year Additions | Q14: Less Depreciation Expense on Assets Fully Depreciated during the year (o) | R14: 2013 Full Year Depreciation 6
C15: (a) | E15: (d) | F15: (i) | H15: (f) | I15: (g) = 1 / (f) | J15: (j) = (a) / (i) | L15: (h)=((d)*0.5)/(f) | M15: (k) = (j) + (h) | O15: (m) = (k) - (l) | P15: (n)=((d))/(f) | R15: (p) = (j) + (n) - (o)
A16: 1611 | B16: Computer Software (Formally known as Account 1925) | C16: ='App.2-B_FA Con''ty 2012 CGAAP'!N16 -> 743352.703 | D16: ='App.2-B_Fixed Asset Con''ty 2013'!G16+'App.2-B_Fixed Asset Con''ty 2013'!M16 -> 193368 | E16: ='App.2-B_Fixed Asset Con''ty 2013'!F16 -> 375000 | F16: 2.730251571 | G16: 3.511353044 | H16: 5 | I16: =IF(H16=0,0,1/H16) -> 0.2 | J16: =IF(F16=0,0,+C16/F16) -> 272265.278 | K16: =IF(G16=0,0,+D16/G16) -> 55069.37 | L16: =IF(H16=0,0,+(E16*0.5)/H16) -> 37500 | M16: =IF(ISERROR(+J16+L16), 0, +J16+K16+L16) -> 364834.648 | N16: =-'App.2-B_Fixed Asset Con''ty 2013'!L16 -> 364834.648 | O16: =IF(ISERROR(+M16-N16), 0, +M16-N16) -> 0 | P16: =IF(H16=0,0,+(E16)/H16) -> 75000 | R16: =IF(ISERROR(+P16+J16-Q16), 0, +P16+J16-Q16) -> 347265.278
A17: 1612 | B17: Land Rights (Formally known as Account 1906) | C17: ='App.2-B_FA Con''ty 2012 CGAAP'!N17 -> 0 | E17: ='App.2-B_Fixed Asset Con''ty 2013'!F17 -> 0 | I17: 0 | J17: =IF(F17=0,0,+C17/F17) -> 0 | K17: =IF(G17=0,0,+D17/G17) -> 0 | L17: 0 | M17: =IF(ISERROR(+J17+L17), 0, +J17+K17+L17) -> 0 | O17: 0 | P17: 0 | R17: =IF(ISERROR(+P17+J17-Q17), 0, +P17+J17-Q17) -> 0
A18: 1805 | B18: Land | C18: ='App.2-B_FA Con''ty 2012 CGAAP'!N18 -> 862867.45 | E18: ='App.2-B_Fixed Asset Con''ty 2013'!F18 -> 0 | I18: 0 | J18: 0 | K18: 0 | L18: 0 | M18: 0 | O18: 0 | P18: 0 | R18: 0
A19: 1808 | B19: Buildings | C19: ='App.2-B_FA Con''ty 2012 CGAAP'!N19 -> 4765863.464 | E19: ='App.2-B_Fixed Asset Con''ty 2013'!F19 -> 0 | F19: 20.19517925 | H19: 50 | I19: 0.02 | J19: 235990.1542 | K19: 0 | L19: 0 | M19: 235990.1542 | N19: =-'App.2-B_Fixed Asset Con''ty 2013'!L19 -> 235990.1542 | O19: 0 | P19: 0 | R19: 235990.1542
A20: 1808 | B20: Buildings Improvements | C20: ='App.2-B_FA Con''ty 2012 CGAAP'!N20 -> 872710.5387 | E20: ='App.2-B_Fixed Asset Con''ty 2013'!F20 -> 966000 | F20: 11.68444333 | H20: 25 | I20: 0.04 | J20: 74689.95434 | K20: 0 | L20: 19320 | M20: 94009.95434 | N20: =-'App.2-B_Fixed Asset Con''ty 2013'!L20 -> 94009.95434 | O20: 0 | P20: 38640 | R20: 113329.9543
A21: 1815 | B21: Transformer Station Equipment >50 kV | C21: ='App.2-B_FA Con''ty 2012 CGAAP'!N21 -> 0 | E21: ='App.2-B_Fixed Asset Con''ty 2013'!F21 -> 0 | I21: 0 | J21: 0 | K21: 0 | L21: 0 | M21: 0 | O21: 0 | P21: 0 | R21: 0
A22: 1820 | B22: Distribution Station Equipment <50 kV | C22: ='App.2-B_FA Con''ty 2012 CGAAP'!N22 -> 6609452.268 | E22: ='App.2-B_Fixed Asset Con''ty 2013'!F22-E23-E24 -> 637878.0644 | F22: 13.69896922 | H22: 20 | I22: 0.05 | J22: 482478.0728 | K22: 0 | L22: 15946.95161 | M22: 498425.0244 | N22: 498425.0244 | O22: 0 | P22: 31893.90322 | R22: 514371.976
A23: 1820 | B23: Distribution Station Equipment <50 kV | C23: 0 | E23: 94334.47617 | H23: 25 | I23: 0.04 | J23: 0 | K23: 0 | L23: =IF(H23=0,0,+(E23*0.5)/H23) -> 1886.689523 | M23: 1886.689523 | N23: 1886.689523 | O23: =IF(ISERROR(+M23-N23), 0, +M23-N23) -> 0 | P23: =IF(H23=0,0,+(E23)/H23) -> 3773.379047 | R23: 3773.379047
A24: 1820 | B24: Distribution Station Equipment <50 kV | C24: 0 | E24: 1716887.466 | H24: 45 | I24: 0.02222222222 | J24: 0 | K24: 0 | L24: 19076.5274 | M24: 19076.5274 | N24: 19076.5274 | O24: 0 | P24: 38153.05481 | R24: 38153.05481
A25: 1825 | B25: Storage Battery Equipment | C25: ='App.2-B_FA Con''ty 2012 CGAAP'!N23 -> 0 | E25: ='App.2-B_Fixed Asset Con''ty 2013'!F23 -> 0 | I25: 0 | J25: 0 | K25: 0 | L25: 0 | M25: 0 | O25: 0 | P25: 0 | R25: 0
A26: 1830 | B26: Poles, Towers & Fixtures | C26: ='App.2-B_FA Con''ty 2012 CGAAP'!N24 -> 10196852.81 | E26: ='App.2-B_Fixed Asset Con''ty 2013'!F24 -> 1456391.278 | F26: 28.50434448 | H26: 40 | I26: 0.025 | J26: 357729.7774 | K26: 0 | L26: 18204.89098 | M26: 375934.6684 | N26: =-'App.2-B_Fixed Asset Con''ty 2013'!L24 -> 375934.6684 | O26: 0 | P26: 36409.78196 | R26: 394139.5594
A27: 1835 | B27: Overhead Conductors & Devices | C27: ='App.2-B_FA Con''ty 2012 CGAAP'!N25 -> 14377296.67 | E27: ='App.2-B_Fixed Asset Con''ty 2013'!F25 -> 1336039.828 | F27: 30.20394434 | H27: 50 | I27: 0.02 | J27: 476007.2562 | K27: 0 | L27: 13360.39828 | M27: 489367.6545 | N27: =-'App.2-B_Fixed Asset Con''ty 2013'!L25 -> 489367.6545 | O27: 0 | P27: 26720.79657 | R27: 502728.0528
A28: 1840 | B28: Underground Conduit | C28: ='App.2-B_FA Con''ty 2012 CGAAP'!N26 -> 8780175.744 | E28: ='App.2-B_Fixed Asset Con''ty 2013'!F26 -> 482675.7472 | F28: 36.06358265 | H28: 50 | I28: 0.02 | J28: 243463.7687 | K28: 0 | L28: 4826.757472 | M28: 248290.5261 | N28: =-'App.2-B_Fixed Asset Con''ty 2013'!L26 -> 248290.5261 | O28: 0 | P28: 9653.514944 | R28: 253117.2836
A29: 1845 | B29: Underground Conductors & Devices | C29: ='App.2-B_FA Con''ty 2012 CGAAP'!N27 -> 9779057.043 | E29: ='App.2-B_Fixed Asset Con''ty 2013'!F27 -> 511039.0636 | F29: 23.05730592 | H29: 40 | I29: 0.025 | J29: 424119.6728 | K29: 0 | L29: 6387.988295 | M29: 430507.6611 | N29: =-'App.2-B_Fixed Asset Con''ty 2013'!L27 -> 430507.6611 | O29: 0 | P29: 12775.97659 | R29: 436895.6494
A30: 1850 | B30: Line Transformers | C30: ='App.2-B_FA Con''ty 2012 CGAAP'!N28 -> 11556961.64 | E30: ='App.2-B_Fixed Asset Con''ty 2013'!F28 -> 1272686.053 | F30: 24.51000885 | H30: 40 | I30: 0.025 | J30: 471520.0923 | K30: 0 | L30: 15908.57566 | M30: 487428.6679 | N30: =-'App.2-B_Fixed Asset Con''ty 2013'!L28 -> 487428.6679 | O30: 0 | P30: 31817.15132 | R30: 503337.2436
A31: 1855 | B31: Services (Overhead & Underground) | C31: ='App.2-B_FA Con''ty 2012 CGAAP'!N29 -> 5517997.648 | E31: ='App.2-B_Fixed Asset Con''ty 2013'!F29 -> 909728.473 | F31: 27.68668414 | H31: 40 | I31: 0.025 | J31: 199301.4989 | K31: 0 | L31: 11371.60591 | M31: 210673.1048 | N31: =-'App.2-B_Fixed Asset Con''ty 2013'!L29 -> 210673.1048 | O31: 0 | P31: 22743.21182 | R31: 222044.7107
A32: 1860 | B32: Meters | C32: 256836.6416 | E32: ='App.2-B_Fixed Asset Con''ty 2013'!F30 -> 0 | F32: 14.73497713 | H32: 25 | I32: 0.04 | J32: 17430.40653 | K32: 0 | L32: 0 | M32: 17430.40653 | N32: 17430.40653 | O32: 0 | P32: 0 | R32: 17430.40653
A33: 1860 | B33: Stranded Meters Disposition | C33: 1208354.345 | D33: =-C33 -> -1208354.345 | E33: 0 | F33: 0 | I33: 0 | J33: 0 | K33: 0 | L33: =IF(H33=0,0,+(E33*0.5)/H33) -> 0 | M33: 0 | O33: =IF(ISERROR(+M33-N33), 0, +M33-N33) -> 0 | P33: =IF(H33=0,0,+(E33)/H33) -> 0 | R33: =IF(ISERROR(+P33+J33-Q33), 0, +P33+J33-Q33) -> 0
A34: 1860 | B34: Meters (Smart Meters) | C34: ='App.2-B_FA Con''ty 2012 CGAAP'!N31 -> 0 | D34: ='App.2-B_Fixed Asset Con''ty 2013'!G31+'App.2-B_Fixed Asset Con''ty 2013'!M31 -> 5475806 | E34: ='App.2-B_Fixed Asset Con''ty 2013'!F31 -> 100000.1241 | G34: 12.59071501 | H34: 15 | I34: 0.06666666667 | J34: 0 | K34: 434908.2633 | L34: 3333.33747 | M34: 438241.6008 | N34: 438241.6008 | O34: 0 | P34: 6666.674941 | R34: 6666.674941
A35: 1860 | B35: Meters (Metering Equipment) | C35: 188339.0827 | E35: 0 | F35: 35.20954894 | H35: 45 | I35: 0.02222222222 | J35: 5349.091038 | K35: 0 | L35: 0 | M35: 5349.091038 | N35: 5349.091038 | O35: 0 | P35: 0 | R35: 5349.091038
A36: 1860 | B36: Meters (Wholesale Metering) | C36: 464907.1644 | E36: 0 | F36: 21.81590455 | H36: 30 | I36: 0.03333333333 | J36: 21310.46931 | K36: 0 | L36: 0 | M36: 21310.46931 | N36: 21310.46931 | O36: 0 | P36: 0 | R36: 21310.46931
A37: 1905 | B37: Land | C37: ='App.2-B_FA Con''ty 2012 CGAAP'!N32 -> 0 | E37: ='App.2-B_Fixed Asset Con''ty 2013'!F32 -> 0 | I37: 0 | J37: 0 | K37: 0 | L37: 0 | M37: 0 | O37: 0 | P37: 0 | R37: 0
A38: 1908 | B38: Buildings & Fixtures | C38: ='App.2-B_FA Con''ty 2012 CGAAP'!N33 -> 0 | E38: ='App.2-B_Fixed Asset Con''ty 2013'!F33 -> 0 | I38: 0 | J38: 0 | K38: 0 | L38: 0 | M38: 0 | O38: 0 | P38: 0 | R38: 0
A39: 1910 | B39: Leasehold Improvements | C39: ='App.2-B_FA Con''ty 2012 CGAAP'!N34 -> 0 | E39: ='App.2-B_Fixed Asset Con''ty 2013'!F34 -> 0 | I39: 0 | J39: 0 | K39: 0 | L39: 0 | M39: 0 | O39: 0 | P39: 0 | R39: 0
A40: 1915 | B40: Office Furniture & Equipment (10 years) | C40: ='App.2-B_FA Con''ty 2012 CGAAP'!N35 -> 2600.9815 | E40: ='App.2-B_Fixed Asset Con''ty 2013'!F35 -> 0 | F40: 2.771369451 | H40: 10 | I40: 0.1 | J40: 938.5185 | K40: 0 | L40: 0 | M40: 938.5185 | N40: =-'App.2-B_Fixed Asset Con''ty 2013'!L35 -> 938.5185 | O40: 0 | P40: 0 | R40: 938.5185
A41: 1915 | B41: Office Furniture & Equipment (5 years) | C41: ='App.2-B_FA Con''ty 2012 CGAAP'!N36 -> 0 | E41: ='App.2-B_Fixed Asset Con''ty 2013'!F36 -> 0 | I41: 0 | J41: 0 | K41: 0 | L41: 0 | M41: 0 | O41: 0 | P41: 0 | R41: 0
A42: 1920 | B42: Computer Equipment - Hardware | C42: ='App.2-B_FA Con''ty 2012 CGAAP'!N37 -> 442150.012 | D42: ='App.2-B_Fixed Asset Con''ty 2013'!G37+'App.2-B_Fixed Asset Con''ty 2013'!M37 -> 103014 | E42: ='App.2-B_Fixed Asset Con''ty 2013'!F37 -> 0 | F42: 4.206969417 | G42: 2.514801624 | H42: 5 | I42: 0.2 | J42: 105099.412 | K42: 40963.072 | L42: 0 | M42: 146062.484 | N42: =-'App.2-B_Fixed Asset Con''ty 2013'!L37 -> 146062.484 | O42: 0 | P42: 0 | R42: 105099.412
A43: 1920 | B43: Computer Equip.-Hardware(Post Mar. 22/04) | C43: ='App.2-B_FA Con''ty 2012 CGAAP'!N38 -> 0 | E43: ='App.2-B_Fixed Asset Con''ty 2013'!F38 -> 0 | I43: 0 | J43: 0 | K43: 0 | L43: 0 | M43: 0 | O43: 0 | P43: 0 | R43: 0
A44: 1920 | B44: Computer Equip.-Hardware(Post Mar. 19/07) | C44: ='App.2-B_FA Con''ty 2012 CGAAP'!N39 -> 0 | E44: ='App.2-B_Fixed Asset Con''ty 2013'!F39 -> 0 | I44: 0 | J44: 0 | K44: 0 | L44: 0 | M44: 0 | O44: 0 | P44: 0 | R44: 0
A45: 1930 | B45: Transportation Equipment | C45: ='App.2-B_FA Con''ty 2012 CGAAP'!N40 -> 1391020.369 | E45: 40000 | F45: 8.278425657 | H45: 8 | I45: 0.125 | J45: 168029.578 | K45: 0 | L45: 2500 | M45: 170529.578 | N45: 170529.578 | O45: 0 | P45: 5000 | Q45: 12550.01 | R45: 160479.568
A46: 1930 | B46: Transportation Equipment | E46: 1078450 | H46: 12 | I46: =IF(H46=0,0,1/H46) -> 0.08333333333 | J46: 0 | K46: 0 | L46: =IF(H46=0,0,+(E46*0.5)/H46) -> 44935.41667 | M46: 44935.41667 | N46: 44935.41667 | O46: =IF(ISERROR(+M46-N46), 0, +M46-N46) -> 0 | P46: =IF(H46=0,0,+(E46)/H46) -> 89870.83333 | Q46: =3437.37+26445.15 -> 29882.52 | R46: =IF(ISERROR(+P46+J46-Q46), 0, +P46+J46-Q46) -> 59988.31333
A47: 1935 | B47: Stores Equipment | C47: ='App.2-B_FA Con''ty 2012 CGAAP'!N41 -> 0 | E47: ='App.2-B_Fixed Asset Con''ty 2013'!F41 -> 0 | I47: 0 | J47: 0 | K47: 0 | L47: 0 | M47: 0 | O47: 0 | P47: 0 | R47: 0
A48: 1940 | B48: Tools, Shop & Garage Equipment | C48: ='App.2-B_FA Con''ty 2012 CGAAP'!N42 -> 504581.955 | E48: ='App.2-B_Fixed Asset Con''ty 2013'!F42 -> 160000 | F48: 5.995162316 | H48: 10 | I48: 0.1 | J48: 84164.853 | K48: 0 | L48: 8000 | M48: 92164.853 | N48: =-'App.2-B_Fixed Asset Con''ty 2013'!L42 -> 92164.853 | O48: 0 | P48: 16000 | Q48: 1784.5 | R48: 98380.353
A49: 1945 | B49: Measurement & Testing Equipment | C49: ='App.2-B_FA Con''ty 2012 CGAAP'!N43 -> 0 | E49: ='App.2-B_Fixed Asset Con''ty 2013'!F43 -> 0 | I49: 0 | J49: 0 | K49: 0 | L49: 0 | M49: 0 | O49: 0 | P49: 0 | R49: 0
A50: 1950 | B50: Power Operated Equipment | C50: ='App.2-B_FA Con''ty 2012 CGAAP'!N44 -> 0 | E50: ='App.2-B_Fixed Asset Con''ty 2013'!F44 -> 0 | I50: 0 | J50: 0 | K50: 0 | L50: 0 | M50: 0 | O50: 0 | P50: 0 | R50: 0
A51: 1955 | B51: Communications Equipment | C51: ='App.2-B_FA Con''ty 2012 CGAAP'!N45 -> 978446.6043 | E51: ='App.2-B_Fixed Asset Con''ty 2013'!F45 -> 50000 | F51: 11.5601303 | H51: 10 | I51: 0.1 | J51: 84639.7557 | K51: 0 | L51: 2500 | M51: 87139.7557 | N51: =-'App.2-B_Fixed Asset Con''ty 2013'!L45 -> 87139.7557 | O51: 0 | P51: 5000 | R51: 89639.7557
A52: 1955 | B52: Communication Equipment (Smart Meters) | C52: ='App.2-B_FA Con''ty 2012 CGAAP'!N46 -> 0 | E52: ='App.2-B_Fixed Asset Con''ty 2013'!F46 -> 0 | I52: 0 | J52: 0 | K52: 0 | L52: 0 | M52: 0 | O52: 0 | P52: 0 | R52: 0
A53: 1960 | B53: Miscellaneous Equipment (Smart Meters) | C53: ='App.2-B_FA Con''ty 2012 CGAAP'!N47 -> 0 | D53: ='App.2-B_Fixed Asset Con''ty 2013'!G47+'App.2-B_Fixed Asset Con''ty 2013'!M47 -> 12377 | E53: ='App.2-B_Fixed Asset Con''ty 2013'!F47 -> 0 | G53: 7.50035299 | I53: 0 | J53: 0 | K53: 1650.189 | L53: 0 | M53: 1650.189 | N53: =-'App.2-B_Fixed Asset Con''ty 2013'!L47 -> 1650.189 | O53: 0 | P53: 0 | R53: 0
A54: 1975 | B54: Load Management Controls Utility Premises | C54: ='App.2-B_FA Con''ty 2012 CGAAP'!N48 -> 0 | E54: ='App.2-B_Fixed Asset Con''ty 2013'!F48 -> 0 | I54: 0 | J54: 0 | K54: 0 | L54: 0 | M54: 0 | O54: 0 | P54: 0 | R54: 0
A55: 1980 | B55: System Supervisor Equipment | C55: ='App.2-B_FA Con''ty 2012 CGAAP'!N49 -> 298105.7873 | E55: ='App.2-B_Fixed Asset Con''ty 2013'!F49 -> 379491.0337 | F55: 14.06223805 | H55: 20 | I55: 0.05 | J55: 21199.02865 | K55: 0 | L55: 9487.275842 | M55: 30686.3045 | N55: =-'App.2-B_Fixed Asset Con''ty 2013'!L49 -> 30686.3045 | O55: 0 | P55: 18974.55168 | R55: 40173.58034
A56: 1985 | B56: Miscellaneous Fixed Assets | C56: ='App.2-B_FA Con''ty 2012 CGAAP'!N50 -> 0 | E56: ='App.2-B_Fixed Asset Con''ty 2013'!F50 -> 0 | I56: 0 | J56: 0 | K56: 0 | L56: 0 | M56: 0 | O56: 0 | P56: 0 | R56: 0
A57: 1995 | B57: Contributions & Grants | C57: ='App.2-B_FA Con''ty 2012 CGAAP'!N51 -> -11642362.61 | E57: ='App.2-B_Fixed Asset Con''ty 2013'!F51 -> -703790 | F57: 39.51892536 | H57: 45 | I57: 0.02222222222 | J57: -294602.2065 | K57: 0 | L57: -7819.888889 | M57: -302422.0954 | N57: =-'App.2-B_Fixed Asset Con''ty 2013'!L51 -> -302422.0954 | O57: 0 | P57: -15639.77778 | R57: -310241.9843
A58: etc. | I58: 0 | J58: 0 | K58: 0 | L58: 0 | M58: 0 | O58: 0 | P58: 0 | R58: 0
I59: 0 | J59: 0 | K59: 0 | L59: 0 | M59: 0 | O59: 0 | P59: 0 | R59: 0
A60: Total prior to Board ordered removal of CIS related to water billing | C60: =SUM(C16:C59) -> 68155568.31 | E60: =SUM(E16:E59) -> 10862811.61 | J60: =SUM(J16:J59) -> 3451124.432 | K60: 532590.8943 | L60: 226726.5262 | M60: =SUM(M16:M59) -> 4210441.852 | N60: 4210441.852 | O60: 0 | P60: 453453.0525 | Q60: =SUM(Q16:Q59) -> 44217.03 | R60: 3860360.454
A61: 1611 | B61: Computer Software | C61: ='App.2-B_FA Con''ty 2012 CGAAP'!N56 -> -65457.79479 | F61: =-C61/'App.2-B_Fixed Asset Con''ty 2013'!L56 -> 2.522678075 | I61: =IF(H61=0,0,1/H61) -> 0 | J61: =IF(F61=0,0,+C61/F61) -> -25947.74 | K61: =IF(G61=0,0,+D61/G61) -> 0 | L61: =IF(H61=0,0,+(E61*0.5)/H61) -> 0 | M61: =IF(ISERROR(+J61+L61), 0, +J61+K61+L61) -> -25947.74 | N61: =-'App.2-B_Fixed Asset Con''ty 2013'!L56 -> -25947.74 | O61: =IF(ISERROR(+M61-N61), 0, +M61-N61) -> 0 | P61: =IF(H61=0,0,+(E61)/H61) -> 0 | R61: =IF(ISERROR(+P61+J61-Q61), 0, +P61+J61-Q61) -> -25947.74
A62: Total prior to Board ordered removal of CIS related to water billing | C62: =C60+C61 -> 68090110.51 | E62: =E60+E61 -> 10862811.61 | J62: 3425176.692 | K62: 532590.8943 | L62: 226726.5262 | M62: 4184494.112 | N62: 4184494.112 | O62: 0 | P62: 453453.0525 | Q62: 44217.03 | R62: 3834412.714
A64: Notes:
A66: 1 | B66: Board policy of the "half-year" rule - the applicant must ensure that additions in the year attract a half-year depreciation expense in the first year. Deviations from this standard practice must be supported in the application.
A67: 2 | B67: The applicant must provide an explanation of material variances in evidence
A68: 3 | B68: The applicant should ensure that the years for new additions of assets are the asset useful lives determined by management in accordance with IFRS.
A69: 4 | B69: A recalculation should be performed to determine the average remaining life of opening balance of assets (i.e. excluding 2012 additions) under IFRS. For example, Asset A had a useful life of 20 years under CGAAP. On January 1, 2012, the date of transition, Asset A was 3 years depreciated. As a result, Asset A would have a remaining service life of 17 years (20 years less 3 years) under CGAAP as of January 1, 2012. Due to the transition to IFRS, management re-assessed the asset useful lives under IFRS principles and concluded that the revised useful life of Asset A is now 30 years. Therefore, the average remaining useful life of opening balance of Asset A is determined to be 27 years (30 years less 3 years) under IFRS as of January 1, 2012.
A70: 5 | B70: NBV must exclude assets still on the books but which have been fully amortized or depreciated.
A71: 6 | B71: This column refers to the calculated full year depreciation but excludes the depreciation expense on assets fully depreciated during the year. This column is used for the purpose of calculating depreciation expense in the following year on the next worksheet.
A73: General: | B73: Applicants must provide a breakdown of depreciation and amortization expense in the above format for all relevant accounts. Asset Retirement Obligations (AROs), depreciation and accretion expense should be disclosed separately consistent with the Notes of historical Audited Financial Statements.

Sheet App.2-D_Overhead
L1: File Number: | M1: ='LDC Info'!$E$18 -> EB-2012-0126
L2: Exhibit: | M2: 2
L3: Tab: | M3: 2
L4: Schedule: | M4: 1
L5: Attachment: | M5: 2
L7: Date: | M7: 9 November, 2012
A9: Appendix 2-D
A10: Overhead Expense
A12: The following table should be completed based on the information requested below. An explanation should be provided for any blank entries. The entries should include overhead costs that are currently capitalized on self-constructed assets under MIFRS or an alternate accounting standard.
E13: (A) 1 | F13: (B) | G13: (C) | H13: (D) | I13: (E) 1 | J13: (F) | K13: (G)
A14: Nature of the Overhead Costs | E14: Dollar | F14: Dollar | G14: Dollar | H14: Dollar Impact - | I14: Dollar Impact - | J14: Directly | K14: Reasons why the overhead costs are allowed to be
E15: Impact on PP&E | F15: Impact on PP&E | G15: Impact on PP&E | H15: PP&E Variance | I15: PP&E Variance | J15: Attributable? | K15: capitalized under MIFRS or an alternate accounting
E16: Historic Year | F16: Bridge Year | G16: Test Year | H16: Test versus Bridge | I16: Test versus Historic | J16: (Y/N) | K16: standard given limitations on capitalized overhead
A17: employee benefits | G17: 423500.49 | H17: =+G17-F17 -> 423500.49 | I17: =+G17-E17 -> 423500.49 | J17: Y | K17: Directly attributable
A18: costs of site preparation | H18: 0 | I18: 0
A19: initial delivery and handling costs | H19: 0 | I19: 0
A20: costs of testing whether the asset is functioning properly | H20: 0 | I20: 0
A21: professional fees | H21: 0 | I21: 0
H22: 0 | I22: 0
A23: costs of opening a new facility | H23: 0 | I23: 0
A24: costs of introducing a new product or service (including costs of advertising and promotional activities) | H24: 0 | I24: 0
A25: costs of conducting business in a new location or with a new class of customer (including costs of staff training) | H25: 0 | I25: 0
A26: administration and other general overhead costs | G26: 1213924.59 | H26: 1213924.59 | I26: 1213924.59 | J26: Y | K26: Directly attributable
H27: 0 | I27: 0
H28: 0 | I28: 0
H29: 0 | I29: 0
A30: Insert description of additional item(s) and new rows if needed. | H30: 0 | I30: 0
A31: Total | E31: =SUM(E17:E30) -> 0 | F31: =SUM(F17:F30) -> 0 | G31: =SUM(G17:G30) -> 1637425.08 | H31: =SUM(H17:H30) -> 1637425.08 | I31: =SUM(I17:I30) -> 1637425.08
A34: The following table should be completed based on the information requested below. An explanation should be provided for any blank entries. The entries should include overhead costs that were capitalized on self-constructed assets under CGAAP but are no longer capitalized under MIFRS or an alternate accounting standard and are included in OM&A.
E35: (A) 1 | F35: (B) | G35: (C) | H35: (D) | I35: (E) 1 | J35: (F) | K35: (G)
A36: Nature of the Overhead Costs | E36: Dollar | F36: Dollar | G36: Dollar | H36: Dollar Impact - | I36: Dollar Impact - | J36: Directly | K36: Reasons why the overhead costs are not allowed to be
E37: Impact on OM&A | F37: Impact on OM&A | G37: Impact on OM&A | H37: OM&A Variance | I37: OM&A Variance | J37: Attributable? | K37: capitalized under MIFRS or an alternate accounting
E38: Historic Year | F38: Bridge Year | G38: Test Year | H38: Test versus Bridge | I38: Test versus Historic | J38: (Y/N) | K38: standard given limitations on capitalized overhead
A39: employee benefits | G39: 88786.22 | H39: =+G39-F39 -> 88786.22 | I39: =+G39-E39 -> 88786.22 | J39: N | K39: Not directly attributable
A40: costs of site preparation | H40: =+G40-F40 -> 0 | I40: =+G40-E40 -> 0
A41: initial delivery and handling costs | H41: =+G41-F41 -> 0 | I41: =+G41-E41 -> 0
A42: costs of testing whether the asset is functioning properly | H42: =+G42-F42 -> 0 | I42: =+G42-E42 -> 0
A43: professional fees | H43: =+G43-F43 -> 0 | I43: =+G43-E43 -> 0
A45: costs of opening a new facility | H45: =+G45-F45 -> 0 | I45: =+G45-E45 -> 0
A46: costs of introducing a new product or service (including costs of advertising and promotional activities) | H46: 0 | I46: 0
A47: costs of conducting business in a new location or with a new class of customer (including costs of staff training) | H47: 0 | I47: 0
A48: administration and other general overhead costs | G48: 895026.71 | H48: 895026.71 | I48: 895026.71 | J48: N | K48: Not directly attributable
H49: 0 | I49: 0
H50: 0 | I50: 0
H51: 0 | I51: 0
A52: Insert description of additional item(s) and new rows if needed. | H52: 0 | I52: 0
A53: Total | E53: =SUM(E39:E52) -> 0 | F53: =SUM(F39:F52) -> 0 | G53: =SUM(G39:G52) -> 983812.93 | H53: =SUM(H39:H52) -> 983812.93 | I53: =SUM(I39:I52) -> 983812.93
A55: Notes:
A56: 1 | B56: If the applicant chooses to adopt IFRS or an alternate accounting standard for financial reporting purposes in 2013, the applicant does not need to complete Columns A, E. If the applicant adopts IFRS or an alternate accounting standard for financial reporting purposes in 2012, the applicant must complete all columns.

Sheet App.2-F_Other_Oper_Rev
G1: File Number: | H1: File Number: | I1: ='LDC Info'!$E$18 -> EB-2012-0126
G2: Exhibit: | H2: Exhibit: | I2: 3
G3: Tab: | H3: Tab: | I3: 3
G4: Schedule: | H4: Schedule: | I4: 1
G5: Attachment: | H5: Page: | I5: 1
G7: Date: | H7: Date: | I7: 9 November 2012
A9: Appendix 2-F
A10: Other Operating Revenue
A12: USoA # | B12: USoA Description | C12: =G13-3 & " Actual" -> 2009 Actual | D12: =G13-2 & " Actual" -> 2010 Actual | E12: =G13-1 & " Actual"& CHAR(178) -> 2011 Actual² | F12: =G13-1 & " Actual"& CHAR(178) -> 2011 Actual² | G12: ="Bridge Year" & CHAR(179) -> Bridge Year³ | H12: ="Bridge Year" & CHAR(179) -> Bridge Year³ | I12: Test Year
G13: ='LDC Info'!E26 -> 2012 | H13: ='LDC Info'!E26 -> 2012 | I13: ='LDC Info'!E28 -> 2013
B14: Reporting Basis | C14: CGAAP | D14: CGAAP | E14: CGAAP | F14: CGAAP | G14: CGAAP | H14: MIFRS | I14: CGAAP
A15: 4235 | B15: Specific Service Charges1,2 | C15: =-1016386.23+128534.87-13311.62 -> -901162.98 | D15: -985662 | E15: -1013851.16 | G15: -731825 | I15: -843150
A16: 4225 | B16: Late Payment Charges1 | C16: -128534.87 | D16: -132947 | E16: -270016.87 | G16: -200000 | I16: -200000
A17: 4080 | B17: Standard Supply Service - Administrative Charge | C17: -120492 | D17: =-109992.96 -> -109992.96 | E17: -130703.16 | G17: -129711 | I17: -130503
A18: 4082 | B18: Retail Services Revenues | C18: -76578.1 | D18: -68194 | E18: -62657.9 | G18: -49100 | I18: -39520
A19: 4084 | B19: Service Transactions Requests | C19: -1423.75 | D19: -3073 | E19: -1757.25 | G19: -1550 | I19: -1228
A20: 4210 | B20: Rent from Electric Property | G20: -65121 | I20: -90627
A21: 4355 | B21: Gain on Disposition of Utility and Other Property4 | C21: -2370 | E21: =-29116.58-11990.65 -> -41107.23
A22: 4360 | B22: Loss on Disposition of Utility and Other Property3 | C22: 1337332.68 | D22: 230197 | E22: 232146.09
A23: 4375 | B23: Revenues from Non-Utility Operations5 | C23: -819778.93 | D23: =-1185318.06 -> -1185318.06 | E23: -470740.71
A24: 4380 | B24: Expenses of Non-Utility Operations | C24: 797370.26 | D24: 699808.06 | E24: 483425.08
A25: 4405 | B25: Interest and Dividend Income2 | C25: =-145734.16+13311.62 -> -132422.54 | D25: -125934 | E25: -447286.35 | G25: -318200 | I25: -245000
A28: Specific Service Charges | C28: =C15 -> -901162.98 | D28: =D15 -> -985662 | E28: -1013851.16 | F28: =F15 -> 0 | G28: -731825 | H28: =H15 -> 0 | I28: =I15 -> -843150
A29: Late Payment Charges | C29: =C16 -> -128534.87 | D29: -132947 | E29: -270016.87 | F29: =F16 -> 0 | G29: -200000 | H29: =H16 -> 0 | I29: =I16 -> -200000
A30: Other Operating Revenues | C30: =C17+C18+C19+C20 -> -198493.85 | D30: =D17+D18+D19+D20 -> -181259.96 | E30: -195118.31 | F30: 0 | G30: =G17+G18+G19+G20 -> -245482 | H30: =H17+H18+H19+H20 -> 0 | I30: -261878
A31: Other Income or Deductions | C31: =C21+C22+C23+C24+C25 -> 1180131.47 | D31: =D21+D22+D23+D24+D25 -> -381247 | E31: -243563.12 | F31: 0 | G31: -318200 | H31: 0 | I31: =I21+I22+I23+I24+I25 -> -245000
A32: Total | C32: =SUM(C28:C31) -> -48060.23 | D32: =SUM(D28:D31) -> -1681115.96 | E32: -1722549.46 | F32: 0 | G32: -1495507 | H32: 0 | I32: -1550028
A34: 1 In 2009 Late Payment Charges were reported under USoA account 4235, however have been shown separately here for comparison
A35: 2 In 2009, an amount was incorrectly reported under USoA account 4405, it should have been 4235, the accounts have been corrected here
A36: 3 In 2010 Loss of Disposition of Utility and Other Property were incorrectly filed under USoA account 4355, however has been corrected here to account 4360
A37: 4 In 2011, an amount was incorrectly reported under USoA account 4360, it should have been 4355, the accounts have been corrected here
A39: Description | C39: Account(s)
A40: Specific Service Charges: | C40: 4235
A41: Late Payment Charges: | C41: 4225
A42: Other Distribution Revenues: | C42: 4080, 4082, 4084, 4090, 4205, 4210, 4215, 4220, 4240, 4245
A43: Other Income and Expenses: | C43: 4305, 4310, 4315, 4320, 4325, 4330, 4335, 4340, 4345, 4350, 4355, 4360, 4365, 4370, 4375, 4380, 4385, 4390, 4395, 4398, 4405, 4415
A45: Note: Add all applicable accounts listed above to the table and include all relevant information.
A46: The above table assumes adoption of MIFRS as of January 1, 2013. If the adoption year differs, please adjust the table accordingly.
A48: Account Breakdown Details
A50: For each "Other Operating Revenue" and "Other Income or Deductions" Account, a detailed breakdown of the account components is required. See the example below for Account 4405, Interest and Dividend Income.
A53: Account 4080 - Distribution Services Revenues
C54: =$C$12 -> 2009 Actual | D54: =$D$12 -> 2010 Actual | E54: =$E$12 -> 2011 Actual² | F54: =$F$12 -> 2011 Actual² | G54: Bridge Year | H54: Bridge Year | I54: Test Year
A55: Reporting Basis | C55: =IF(ISBLANK($C$14), "", $C$14) -> CGAAP | D55: =IF(ISBLANK($D$14), "", $D$14) -> CGAAP | E55: =IF(ISBLANK($E$14), "", $E$14) -> CGAAP | G55: =IF(ISBLANK($G$14), "", $G$14) -> CGAAP | H55: =IF(ISBLANK($H$14), "", $H$14) -> MIFRS | I55: =IF(ISBLANK($I$14), "", $I$14) -> CGAAP
A56: Residential | C56: -107506.48 | D56: -98303.95 | E56: -116678.19 | G56: -116340 | I56: -115581
A57: GS<50kW | C57: -10688.09 | D57: -9597.66 | E57: -11378.32 | G57: -10911 | I57: -12183
A58: GS 50kW to 4999kW | C58: -1208.01 | D58: -1132.87 | E58: -1392.49 | G58: -1314 | I58: -1593
A59: Unmetered Scattered Load | C59: -578.67 | D59: -536.53 | E59: -599.12 | G59: -597 | I59: -597
A60: Sentinel Lighting | C60: -505.06 | D60: -416.45 | E60: -648.42 | G60: -543 | I60: -543
A61: Street Lighting | C61: -5.51 | D61: -5.5 | E61: -6.62 | G61: -6 | I61: -6
A62: Total | C62: =SUM(C56:C61) -> -120491.82 | D62: =SUM(D56:D61) -> -109992.96 | E62: -130703.16 | F62: 0 | G62: -129711 | H62: 0 | I62: -130503
A64: Account 4082 - Retail Services Revenues
C65: =$C$12 -> 2009 Actual | D65: =$D$12 -> 2010 Actual | E65: =$E$12 -> 2011 Actual² | F65: =$F$12 -> 2011 Actual² | G65: Bridge Year | H65: Bridge Year | I65: Test Year
A66: Reporting Basis | C66: =IF(ISBLANK($C$14), "", $C$14) -> CGAAP | D66: =IF(ISBLANK($D$14), "", $D$14) -> CGAAP | E66: =IF(ISBLANK($E$14), "", $E$14) -> CGAAP | G66: =IF(ISBLANK($G$14), "", $G$14) -> CGAAP | H66: =IF(ISBLANK($H$14), "", $H$14) -> MIFRS | I66: =IF(ISBLANK($I$14), "", $I$14) -> CGAAP
A67: Retailer Service Agreement -- standard charge | C67: -300 | D67: -100 | G67: -300 | I67: 0
A68: Retailer Service Agreement -- monthly fixed charge | C68: -3440 | D68: -3080 | E68: -3740 | G68: -4000 | I68: -4000
A69: Retailer Service Agreement -- monthly variable charge | C69: -45873 | D69: -41977 | E69: -36806.5 | G69: -28000 | I69: -22200
A70: Distributor-Consolidated Billing -- monthly charge | C70: -26965 | D70: -23037 | E70: -22111.4 | G70: -16800 | I70: -13320
A71: Total | C71: =SUM(C67:C70) -> -76578 | D71: -68194 | E71: -62657.9 | F71: 0 | G71: -49100 | H71: 0 | I71: -39520
A73: Account 4084 - Service Transaction Requests (STR) Revenues
C74: =$C$12 -> 2009 Actual | D74: =$D$12 -> 2010 Actual | E74: =$E$12 -> 2011 Actual² | F74: =$F$12 -> 2011 Actual² | G74: Bridge Year | H74: Bridge Year | I74: Test Year
A75: Reporting Basis | C75: =IF(ISBLANK($C$14), "", $C$14) -> CGAAP | D75: =IF(ISBLANK($D$14), "", $D$14) -> CGAAP | E75: =IF(ISBLANK($E$14), "", $E$14) -> CGAAP | G75: =IF(ISBLANK($G$14), "", $G$14) -> CGAAP | H75: =IF(ISBLANK($H$14), "", $H$14) -> MIFRS | I75: =IF(ISBLANK($I$14), "", $I$14) -> CGAAP
A76: Service Transaction Request -- request fee | C76: -513 | D76: -1132 | E76: -689.25 | G76: -635 | I76: =-503-725 -> -1228
A77: Service Transaction Request -- processing fee | C77: -911 | D77: -1941 | E77: -1068 | G77: -915
A78: Total | C78: =SUM(C76:C77) -> -1424 | D78: -3073 | E78: -1757.25 | F78: 0 | G78: -1550 | H78: 0 | I78: -1228
A80: Account 4210 - Rent from Electric Property
C81: =$C$12 -> 2009 Actual | D81: =$D$12 -> 2010 Actual | E81: =$E$12 -> 2011 Actual² | F81: =$F$12 -> 2011 Actual² | G81: Bridge Year | H81: Bridge Year | I81: Test Year
A82: Reporting Basis | C82: =IF(ISBLANK($C$14), "", $C$14) -> CGAAP | D82: =IF(ISBLANK($D$14), "", $D$14) -> CGAAP | E82: =IF(ISBLANK($E$14), "", $E$14) -> CGAAP | G82: =IF(ISBLANK($G$14), "", $G$14) -> CGAAP | H82: =IF(ISBLANK($H$14), "", $H$14) -> MIFRS | I82: =IF(ISBLANK($I$14), "", $I$14) -> CGAAP
A83: Commercial Rent charged to Affiliates | G83: =G20 -> -65121 | I83: =I20 -> -90627
A84: Total | C84: =SUM(C83:C83) -> 0 | D84: 0 | E84: 0 | F84: 0 | G84: -65121 | H84: 0 | I84: -90627
A86: Account 4355 - Gain on Disposition of Utility and Other Property
C87: =$C$12 -> 2009 Actual | D87: =$D$12 -> 2010 Actual | E87: =$E$12 -> 2011 Actual² | F87: =$F$12 -> 2011 Actual² | G87: Bridge Year | H87: Bridge Year | I87: Test Year
A88: Reporting Basis | C88: =IF(ISBLANK($C$14), "", $C$14) -> CGAAP | D88: =IF(ISBLANK($D$14), "", $D$14) -> CGAAP | E88: =IF(ISBLANK($E$14), "", $E$14) -> CGAAP | G88: =IF(ISBLANK($G$14), "", $G$14) -> CGAAP | H88: =IF(ISBLANK($H$14), "", $H$14) -> MIFRS | I88: =IF(ISBLANK($I$14), "", $I$14) -> CGAAP
A89: Gain on sale of vehicles | C89: -2370 | E89: -29116.58
A90: Sale of Scrap | C90: 0 | E90: -11990.65
A91: Total | C91: =SUM(C89:C90) -> -2370 | D91: 0 | E91: =SUM(E89:E90) -> -41107.23 | F91: =SUM(F89:F90) -> 0 | G91: 0 | H91: 0 | I91: 0
A93: Account 4360 - Loss on Disposition of Utility and Other Property
C94: =$C$12 -> 2009 Actual | D94: =$D$12 -> 2010 Actual | E94: =$E$12 -> 2011 Actual² | F94: =$F$12 -> 2011 Actual² | G94: Bridge Year | H94: Bridge Year | I94: Test Year
A95: Reporting Basis | C95: =IF(ISBLANK($C$14), "", $C$14) -> CGAAP | D95: =IF(ISBLANK($D$14), "", $D$14) -> CGAAP | E95: =IF(ISBLANK($E$14), "", $E$14) -> CGAAP | G95: =IF(ISBLANK($G$14), "", $G$14) -> CGAAP | H95: =IF(ISBLANK($H$14), "", $H$14) -> MIFRS | I95: =IF(ISBLANK($I$14), "", $I$14) -> CGAAP
A96: Write off of SAP Customer Information System | C96: 1337333
A97: Write off of meters from Smart Meter Pilot - no longer used | D97: 221986.25
A98: Loss on sale of land | D98: 8210.85
A99: Write off of reorganization costs (2000 amalgamation of 3 LDC's) | E99: 232146.09
A100: Total | C100: =SUM(C96:C99) -> 1337333 | D100: =SUM(D96:D99) -> 230197.1 | E100: 232146.09 | F100: 0 | G100: 0 | H100: 0 | I100: 0
A102: Account 4375 - Revenues from Non-Utility Operations
C103: =$C$12 -> 2009 Actual | D103: =$D$12 -> 2010 Actual | E103: =$E$12 -> 2011 Actual² | F103: =$F$12 -> 2011 Actual² | G103: Bridge Year | H103: Bridge Year | I103: Test Year
A104: Reporting Basis | C104: =IF(ISBLANK($C$14), "", $C$14) -> CGAAP | D104: =IF(ISBLANK($D$14), "", $D$14) -> CGAAP | E104: =IF(ISBLANK($E$14), "", $E$14) -> CGAAP | G104: =IF(ISBLANK($G$14), "", $G$14) -> CGAAP | H104: =IF(ISBLANK($H$14), "", $H$14) -> MIFRS | I104: =IF(ISBLANK($I$14), "", $I$14) -> CGAAP
A105: CDM Program Revenues | C105: =-22933.67+525 -> -22408.67 | E105: 297.39
A106: OPA Program Revenues | C106: -797370.26 | D106: -1185318.03 | E106: -457219.38
A107: Sentinel Rentals | E107: =-14214.51+395.79 -> -13818.72
A108: Total | C108: =SUM(C105:C107) -> -819778.93 | D108: =SUM(D105:D107) -> -1185318.03 | E108: =SUM(E105:F107) -> -470740.71 | F108: =SUM(F105:G107) -> 0 | G108: 0 | H108: 0 | I108: 0
A110: Account 4380 - Expenses of Non-Utility Operations
C111: =$C$12 -> 2009 Actual | D111: =$D$12 -> 2010 Actual | E111: =$E$12 -> 2011 Actual² | F111: =$F$12 -> 2011 Actual² | G111: Bridge Year | H111: Bridge Year | I111: Test Year
A112: Reporting Basis | C112: =IF(ISBLANK($C$14), "", $C$14) -> CGAAP | D112: =IF(ISBLANK($D$14), "", $D$14) -> CGAAP | E112: =IF(ISBLANK($E$14), "", $E$14) -> CGAAP | G112: =IF(ISBLANK($G$14), "", $G$14) -> CGAAP | H112: =IF(ISBLANK($H$14), "", $H$14) -> MIFRS | I112: =IF(ISBLANK($I$14), "", $I$14) -> CGAAP
A113: OPA Program Expenditures | C113: 797370.26 | D113: 699808.06 | E113: 483425.08
A114: Total | C114: =SUM(C113:C113) -> 797370.26 | D114: 699808.06 | E114: 483425.08 | F114: 0 | G114: 0 | H114: 0 | I114: 0
A116: Account 4405 - Interest and Dividend Income
C117: =$C$12 -> 2009 Actual | D117: =$D$12 -> 2010 Actual | E117: =$E$12 -> 2011 Actual² | F117: =$F$12 -> 2011 Actual² | G117: Bridge Year | H117: Bridge Year | I117: Test Year
A118: Reporting Basis | C118: =IF(ISBLANK($C$14), "", $C$14) -> CGAAP | D118: =IF(ISBLANK($D$14), "", $D$14) -> CGAAP | E118: =IF(ISBLANK($E$14), "", $E$14) -> CGAAP | G118: =IF(ISBLANK($G$14), "", $G$14) -> CGAAP | H118: =IF(ISBLANK($H$14), "", $H$14) -> MIFRS | I118: =IF(ISBLANK($I$14), "", $I$14) -> CGAAP
A119: Recovery of Carrying Charges - Regulatory Assets | C119: -28362.06 | D119: -54921.67 | E119: -210500.39
A120: Interest on Related Party Balances | E120: -161782.87 | G120: -233200 | I120: -160000
A121: Bank Deposit Interest | C121: -104060.48 | D121: -71012.03 | E121: -75003.09 | G121: -85000 | I121: -85000
A122: Total | C122: =SUM(C119:C121) -> -132422.54 | D122: -125933.7 | E122: -447286.35 | F122: 0 | G122: -318200 | H122: 0 | I122: -245000
A124: Notes:
A125: 1 | B125: List and specify any other interest revenue
A126: 2 | B126: If the applicant is adopting IFRS or an alternate accounting standard as of January 1, 2012 for financial reporting purposes, 2011 must be presented on both a CGAAP and MIFRS (or alternate accounting standard) basis.
A127: 3 | B127: If the applicant is adopting IFRS or an alternate accounting standard as of January 1, 2013 for financial reporting purposes, 2012 must be presented on both a CGAAP and MIFRS (or alternate accounting standard) basis.

Sheet App.2-G_Detailed_OM&A_Expenses
G1: File Number: | H1: File Number: | I1: ='LDC Info'!$E$18 -> EB-2012-0126
G2: Exhibit: | H2: Exhibit: | I2: 4
G3: Tab: | H3: Tab: | I3: 2
G4: Schedule: | H4: Schedule: | I4: 1
G5: Attachment: | H5: Page: | I5: 2
G7: Date: | H7: Date: | I7: 9 November, 2012
A9: Appendix 2-G
A10: Detailed, Account by Account, OM&A Expense Table
A11: (excluding Depreciation and Amortization)
A14: Account | B14: Description | C14: ="Last Rebasing Year (" & 'LDC Info'!E30 & " Actuals)" -> Last Rebasing Year (2009 Actuals) | D14: ='LDC Info'!E26-2 & " Actual" -> 2010 Actual | E14: ='LDC Info'!E26-1 & " Actual" & CHAR(178) -> 2011 Actual² | F14: ='LDC Info'!E26-1 & " Actual"& CHAR(178) -> 2011 Actual² | G14: ="Bridge Year " & 'LDC Info'!E26& CHAR(179) -> Bridge Year 2012³ | H14: ="Bridge Year " & 'LDC Info'!E26& CHAR(179) -> Bridge Year 2012³ | I14: ="Test Year " & 'LDC Info'!E28 -> Test Year 2013
A15: Reporting Basis | C15: CGAAP | D15: CGAAP | E15: CGAAP | G15: CGAAP | H15: MIFRS | I15: CGAAP
A16: Operations
A17: 5005 | B17: Operation Supervision and Engineering | C17: 727708.88 | D17: 772290 | E17: 903975.76 | G17: 1310072.12 | H17: 1463179.212 | I17: 1374757.625
A18: 5010 | B18: Load Dispatching | C18: 594072.09 | D18: 541203 | E18: 500314.99 | G18: 486214.7065 | H18: 486229.9218 | I18: 579568.7303
A19: 5012 | B19: Station Buildings and Fixtures Expense | C19: 219146.8 | D19: 230856 | E19: 218694.57 | G19: 234265.4595 | H19: 234059.4896 | I19: 234955.677
A20: 5014 | B20: Transformer Station Equipment - Operation Labour
A21: 5015 | B21: Transformer Station Equipment - Operation Supplies and Expenses
A22: 5016 | B22: Distribution Station Equipment - Operation Labour | C22: 349861.45 | D22: 293588 | E22: 416175.62 | G22: 217971.4272 | H22: 217080.2139 | I22: 217095.261
A23: 5017 | B23: Distribution Station Equipment - Operation Supplies and Expenses | C23: 120129.66 | D23: 101687 | E23: 173290.73 | G23: 191850.6052 | H23: 185667.2 | I23: 291850.6052
A24: 5020 | B24: Overhead Distribution Lines and Feeders - Operation Labour | C24: 138981.63 | D24: 65367 | E24: 150175.88 | G24: 128477.8333 | H24: 127623.2283 | I24: 120031.2013
A25: 5025 | B25: Overhead Distribution Lines and Feeders - Operation Supplies and Expenses | C25: 352985.82 | D25: 260312 | E25: 342585.5 | G25: 320060.675 | H25: 309345 | I25: 307302.9442
A26: 5030 | B26: Overhead Sub-transmission Feeders - Operation | C26: 23512.6 | D26: 27488 | E26: 15339.55 | G26: 18780.65952 | H26: 16525.48395 | I26: 15614.08073
A27: 5035 | B27: Overhead Distribution Transformers - Operation | C27: 113835.42 | D27: 196552 | E27: 105607.38 | G27: 181137.3241 | H27: 173791.4643 | I27: 164805.4766
A28: 5040 | B28: Underground Distribution Lines and Feeders - Operation Labour | C28: 3408.62 | D28: 14322 | E28: 13650.89 | G28: 13645.9694 | H28: 13584.01516 | I28: 12798.70248
A29: 5045 | B29: Underground Distribution Lines and Feeders - Operation Supplies and Expenses | C29: 7408.88 | D29: 9333 | E29: 4751.49 | G29: 6685.961931 | H29: 4491.2 | I29: 6685.961931
A30: 5050 | B30: Underground Sub-transmission Feeders - Operation | C30: 970.17 | D30: 366 | G30: 2125.416426 | H30: 2111.522159 | I30: 2049.412066
A31: 5055 | B31: Underground Distribution Transformers - Operation | C31: 60792.25 | D31: 68454 | E31: 106630.3 | G31: 96239.848 | H31: 92710.25489 | I31: 88655.48339
A32: 5060 | B32: Street Lighting and Signal System Expense
A33: 5065 | B33: Meter Expense | C33: 244855.78 | D33: 220947 | E33: 186074.44 | G33: 285285.4045 | H33: 276117.6184 | I33: 971683.7611
A34: 5070 | B34: Customer Premises - Operation Labour | C34: 637695.62 | D34: 562116 | E34: 549410.24 | G34: 705100.4785 | H34: 683473.8713 | I34: 631688.5209
A35: 5075 | B35: Customer Premises - Operation Materials and Expenses
A36: 5085 | B36: Miscellaneous Distribution Expenses | G36: 876705.253 | H36: 1686290.227 | I36: 1813188.621
A37: 5090 | B37: Underground Distribution Lines and Feeders - Rental Paid
A38: 5095 | B38: Overhead Distribution Lines and Feeders - Rental Paid | C38: 56688.59 | D38: 67991 | E38: 76624.94 | G38: 82000 | H38: 82000 | I38: 82000
A39: 5096 | B39: Other Rent
A40: Total - Operations | C40: =SUM(C17:C39) -> 3652054.26 | D40: =SUM(D17:D39) -> 3432872 | E40: =SUM(E17:E39) -> 3763302.28 | F40: =SUM(F17:F39) -> 0 | G40: 5156619.142 | H40: 6054279.923 | I40: =SUM(I17:I39) -> 6914732.064
A41: Account | B41: Description | C41: =C14 -> Last Rebasing Year (2009 Actuals) | D41: 2010 Actual | E41: 2011 Actual² | F41: 2011 Actual² | G41: Bridge Year 2012³ | H41: Bridge Year 2012³ | I41: Test Year 2013
A42: Maintenance
A43: 5105 | B43: Maintenance Supervision and Engineering | C43: 16.88
A44: 5110 | B44: Maintenance of Buildings and Fixtures - Distribution Stations | C44: 36772.84 | D44: 38253 | E44: 30599.53 | G44: 18088.73959 | H44: 17944.79302 | I44: 17719.80093
A45: 5112 | B45: Maintenance of Transformer Station Equipment
A46: 5114 | B46: Maintenance of Distribution Station Equipment | C46: 72347.91 | D46: 100719 | E46: 180098.05 | G46: 160822.7272 | H46: 157567.7754 | I46: 157768.1822
A47: 5120 | B47: Maintenance of Poles, Towers and Fixtures | C47: 173662.84 | D47: 129192 | E47: 194222.84 | G47: 304657.623 | H47: 294264.0808 | I47: 278676.6082
A48: 5125 | B48: Maintenance of Overhead Conductors and Devices | C48: 268802.22 | D48: 292005 | E48: 158548.46 | G48: 550406.5504 | H48: 533869.6541 | I48: 503397.9215
A49: 5130 | B49: Maintenance of Overhead Services | C49: 170764.27 | D49: 154032 | E49: 184767.65 | G49: 201106.8056 | H49: 193464.7188 | I49: 183580.1903
A50: 5135 | B50: Overhead Distribution Lines and Feeders - Right of Way | C50: 415591.2 | D50: 669674 | E50: 416624.71 | G50: 553623.2091 | H50: 550118.1092 | I50: 514475.4358
A51: 5145 | B51: Maintenance of Underground Conduit | C51: 53447.26 | D51: 58358 | E51: 102243.29 | G51: 58228.7205 | H51: 56948.27512 | I51: 56309.01848
A52: 5150 | B52: Maintenance of Underground Conductors and Devices | C52: 33764.11 | D52: 21123 | E52: 68672.06 | G52: 52952.83217 | H52: 50421.15699 | I52: 48520.49214
A53: 5155 | B53: Maintenance of Underground Services | C53: 69421.95 | D53: 42087 | E53: 70439.1 | G53: 116304.8092 | H53: 110831.8796 | I53: 106503.6116
A54: 5160 | B54: Maintenance of Line Transformers | C54: 204621.43 | D54: 174983 | E54: 88131.62 | G54: 323319.8668 | H54: 312210.1603 | I54: 296868.5679
A55: 5165 | B55: Maintenance of Street Lighting and Signal Systems
A56: 5170 | B56: Sentinel Lights - Labour
A57: 5172 | B57: Sentinel Lights - Materials and Expenses
A58: 5175 | B58: Maintenance of Meters | C58: 3118.34 | D58: 1217 | E58: 3184.13
A59: 5178 | B59: Customer Installations Expenses - Leased Property
A60: 5195 | B60: Maintenance of Other Installations on Customer Premises
A61: Total - Maintenance | C61: =SUM(C43:C60) -> 1502331.25 | D61: =SUM(D43:D60) -> 1681643 | E61: =SUM(E43:E60) -> 1497531.44 | F61: =SUM(F43:F60) -> 0 | G61: 2339511.884 | H61: 2277640.603 | I61: =SUM(I43:I60) -> 2163819.829
A62: Account | B62: Description | C62: =C41 -> Last Rebasing Year (2009 Actuals) | D62: =D41 -> 2010 Actual | E62: =E41 -> 2011 Actual² | F62: =F41 -> 2011 Actual² | G62: Bridge Year 2012³ | H62: Bridge Year 2012³ | I62: =I41 -> Test Year 2013
A63: Billing and Collecting
A64: 5305 | B64: Supervision
A65: 5310 | B65: Meter Reading Expense | C65: 224521.35 | D65: 227655 | E65: 204714.91 | G65: 204200 | H65: 204200 | I65: 29200
A66: 5315 | B66: Customer Billing | C66: 1454081.9 | D66: 1328392 | E66: 1335739.52 | G66: 1037933.476 | H66: 1037933.476 | I66: 2230628.098
A67: 5320 | B67: Collecting | C67: 193042.29 | D67: 144250 | E67: 203223.48 | G67: 251020.0302 | H67: 251020.0302 | I67: 364088.7944
A68: 5325 | B68: Collecting - Cash Over and Short
A69: 5330 | B69: Collection Charges
A70: 5335 | B70: Bad Debt Expense | C70: 148802.58 | D70: 105536 | E70: 463316.04 | G70: 165000 | H70: 165000 | I70: 400000
A71: 5340 | B71: Miscellaneous Customer Accounts Expenses | C71: 173656.1 | D71: 131443 | E71: 114714.1 | G71: 121549.9147 | H71: 125454.399 | I71: 122947.5691
A72: Total - Billing and Collecting | C72: =SUM(C64:C71) -> 2194104.22 | D72: =SUM(D64:D71) -> 1937276 | E72: =SUM(E64:E71) -> 2321708.05 | F72: =SUM(F64:F71) -> 0 | G72: 1779703.421 | H72: 1783607.905 | I72: =SUM(I64:I71) -> 3146864.461
A73: Account | B73: Description | C73: =C62 -> Last Rebasing Year (2009 Actuals) | D73: =D62 -> 2010 Actual | E73: =E62 -> 2011 Actual² | F73: =F62 -> 2011 Actual² | G73: Bridge Year 2012³ | H73: Bridge Year 2012³ | I73: =I62 -> Test Year 2013
A74: Community Relations
A75: 5405 | B75: Supervision
A76: 5410 | B76: Community Relations - Sundry | I76: 78108.16985
A77: 5415 | B77: Energy Conservation | C77: 142484.08 | D77: 343169 | E77: 439835.65
A78: 5420 | B78: Community Safety Program
A79: 5425 | B79: Miscellaneous Customer Service and Informational Expenses
A80: 5505 | B80: Supervision
A81: 5510 | B81: Demonstrating and Selling Expense
A82: 5515 | B82: Advertising Expenses
A83: 5520 | B83: Miscellaneous Sales Expense
A84: Total - Community Relations | C84: =SUM(C75:C83) -> 142484.08 | D84: =SUM(D75:D83) -> 343169 | E84: =SUM(E75:E83) -> 439835.65 | F84: =SUM(F75:F83) -> 0 | G84: 0 | H84: 0 | I84: =SUM(I75:I83) -> 78108.16985
A85: Account | B85: Description | C85: =C73 -> Last Rebasing Year (2009 Actuals) | D85: =D73 -> 2010 Actual | E85: =E73 -> 2011 Actual² | F85: =F73 -> 2011 Actual² | G85: Bridge Year 2012³ | H85: Bridge Year 2012³ | I85: =I73 -> Test Year 2013
A86: Administrative and General Expenses
A87: 5605 | B87: Executive Salaries and Expenses | C87: 426684.63 | D87: 501466 | E87: 417192.5 | G87: 452203.2414 | H87: 441967.9809 | I87: 523280.0776
A88: 5610 | B88: Management Salaries and Expenses | C88: 509971.6 | D88: 451456 | E88: 465059.62 | G88: 541149.9539 | H88: 538765.0177 | I88: 551537.1041
A89: 5615 | B89: General Administrative Salaries and Expenses | C89: 492148.42 | D89: 529316 | E89: 466709.02 | G89: 666395.5942 | H89: 663489.4042 | I89: 659248.1372
A90: 5620 | B90: Office Supplies and Expenses | C90: 65800.98 | D90: 88610 | E90: 81723.45 | G90: 249355.0603 | H90: 247526.1625 | I90: 312493.4921
A91: 5625 | B91: Administrative Expense Transferred - Credit
A92: 5630 | B92: Outside Services Employed | C92: 60163 | D92: 41900 | E92: 53650
A93: 5635 | B93: Property Insurance
A94: 5640 | B94: Injuries and Damages | C94: 314078.73 | D94: -284366 | E94: 17883.67
A95: 5645 | B95: OMERS Pensions and Benefits | D95: -2780264 | E95: 1280544
A96: 5646 | B96: Employee Pensions and OPEB
A97: 5647 | B97: Employee Sick Leave
A98: 5650 | B98: Franchise Requirements
A99: 5655 | B99: Regulatory Expenses | C99: 553280.79 | D99: 208573 | E99: 275241.37 | G99: 517527.5716 | H99: 525773 | I99: 486839.3845
A100: 5660 | B100: General Advertising Expenses | C100: 49394.94 | D100: 103092 | E100: 34408.25 | G100: 49361.2672 | H100: 53041.09958 | I100: 52869.22613
A101: 5665 | B101: Miscellaneous General Expenses | C101: 319088.66 | D101: 402942 | E101: 380098.41 | G101: 317562 | H101: 317562 | I101: 551027.944
A102: 5670 | B102: Rent | C102: 185789.6 | D102: 274536 | E102: 313629.27 | G102: 226614.2167 | H102: 226614 | I102: 62000
A103: 5672 | B103: Lease Payment Charge
A104: 5675 | B104: Maintenance of General Plant | C104: 967442.91 | D104: 974850 | E104: 1143724.06 | G104: 0 | H104: 0 | I104: 34797.57885
A105: 5680 | B105: Electrical Safety Authority Fees
A106: 5681 | B106: Special Purpose Charge Expense | D106: 232809.6 | E106: 138035.8
A107: 5685 | B107: Independent Electricity System Operator Fees and Penalties
A108: 5695 | B108: OM&A Contra Account
A109: 6205 | B109: Donations | C109: 202000
A110: 6205 | B110: Donations, Sub-account LEAP Funding | E110: 27000 | G110: 27000 | H110: 27000 | I110: 27000
A111: Total - Administrative and General Expenses | C111: =SUM(C87:C110) -> 4145844.26 | D111: =SUM(D87:D110) -> 744920.6 | E111: 5094899.42 | F111: 0 | G111: 3047168.905 | H111: 3041738.665 | I111: 3261092.944
A112: Total OM&A | C112: =C40+C61+C72+C84+C111 -> 11636818.07 | D112: =D40+D61+D72+D84+D111 -> 8139880.6 | E112: =E40+E61+E72+E84+E111 -> 13117276.84 | F112: =F40+F61+F72+F84+F111 -> 0 | G112: 12323003.35 | H112: 13157267.1 | I112: =I40+I61+I72+I84+I111 -> 15564617.47
A113: Adjustments for non-recoverable items
A114: 5681 | B114: Special Purpose Charge Expense | C114: =C106 -> 0 | D114: 232809.6 | E114: =E106 -> 138035.8 | F114: =F106 -> 0 | G114: 0 | H114: 0 | I114: 0
A115: 6205 | B115: Donations1 | C115: =C109 -> 202000 | D115: =D109 -> 0 | E115: 0 | F115: 0 | G115: 0 | H115: 0 | I115: 0
A119: Total Recoverable OM&A | C119: =C112-SUM(C114:C118) -> 11434818.07 | D119: =D112-SUM(D114:D118) -> 7907071 | E119: 12979241.04 | F119: =F112-SUM(F114:F118) -> 0 | G119: 12323003.35 | H119: 13157267.1 | I119: 15564617.47
A121: 1 Account 6205 - Donations is generally non-recoverable. However, the sub-account LEAP funding of account 6205 is generally recoverable.
A123: Note:
A124: 1 | B124: If it has been more than three years since the applicant last filed a cost of service application, additional years of historical actuals should be incorporated into the table, as necessary, to go back to the last cost of service application. If the applicant last filed a cost of service application less than three years ago, a minimum of three years of actual information is required.
A125: 2 | B125: If the applicant is adopting IFRS or an alternate accounting standard as of January 1, 2012 for financial reporting purposes, 2011 must be presented on both a CGAAP and MIFRS (or alternate accounting standard) basis.
A126: 3 | B126: If the applicant is adopting IFRS or an alternate accounting standard as of January 1, 2013 for financial reporting purposes, 2012 must be presented on both a CGAAP and MIFRS (or alternate accounting standard) basis.

Sheet App.2-H_OM&A_Detailed_Analysis
H1: File Number: | I1: ='LDC Info'!$E$18 -> EB-2012-0126
H2: Exhibit: | I2: 4
H3: Tab: | I3: 3
H4: Schedule: | I4: 1
H5: Attachment: | I5: 1
H7: Date: | I7: 9 November, 2012
A9: Appendix 2-H
A10: OM&A Detailed Variance Analysis
A11: (excluding Depreciation and Amortization)
A14: Account | B14: Description | C14: ="Last Board-approved Rebasing Year ("&'LDC Info'!E30&" Year)" -> Last Board-approved Rebasing Year (2009 Year) | D14: Most Current Actuals Year 2011 | E14: ="Test Year " & 'LDC Info'!E28 -> Test Year 2013 | F14: Test Year (2013) Versus Last Rebasing (2009) | H14: Test Year (2013) Versus Most Current Actuals (2011)
F15: Variance ($) | G15: Percentage Change (%) | H15: Variance ($) | I15: Percentage Change (%)
A16: Reporting Basis | C16: CGAAP | D16: CGAAP | E16: CGAAP
A17: Operations
A18: 5005 | B18: Operation Supervision and Engineering | C18: =VLOOKUP(A18,'App.2-G_Detailed_OM&A_Expenses'!$A$17:$I$119,3,FALSE) -> 727708.88 | D18: =VLOOKUP(A18,'App.2-G_Detailed_OM&A_Expenses'!$A$17:$I$119,5,FALSE) -> 903975.76 | E18: =VLOOKUP(A18,'App.2-G_Detailed_OM&A_Expenses'!$A$17:$I$119,9,FALSE) -> 1374757.625 | F18: =E18-C18 -> 647048.7453 | G18: =IF(C18=0,"",(E18/C18)-1) -> 0.8891587873 | H18: =E18-D18 -> 470781.8653 | I18: =IF(D18=0,"",(E18/D18)-1) -> 0.5207903642
A19: 5010 | B19: Load Dispatching | C19: =VLOOKUP(A19,'App.2-G_Detailed_OM&A_Expenses'!$A$17:$I$119,3,FALSE) -> 594072.09 | D19: =VLOOKUP(A19,'App.2-G_Detailed_OM&A_Expenses'!$A$17:$I$119,5,FALSE) -> 500314.99 | E19: =VLOOKUP(A19,'App.2-G_Detailed_OM&A_Expenses'!$A$17:$I$119,9,FALSE) -> 579568.7303 | F19: =E19-C19 -> -14503.35973 | G19: =IF(C19=0,"",(E19/C19)-1) -> -0.02441346762 | H19: =E19-D19 -> 79253.74027 | I19: =IF(D19=0,"",(E19/D19)-1) -> 0.1584076869
A20: 5012 | B20: Station Buildings and Fixtures Expense | C20: =VLOOKUP(A20,'App.2-G_Detailed_OM&A_Expenses'!$A$17:$I$119,3,FALSE) -> 219146.8 | D20: =VLOOKUP(A20,'App.2-G_Detailed_OM&A_Expenses'!$A$17:$I$119,5,FALSE) -> 218694.57 | E20: =VLOOKUP(A20,'App.2-G_Detailed_OM&A_Expenses'!$A$17:$I$119,9,FALSE) -> 234955.677 | F20: 15808.87701 | G20: 0.0721382973 | H20: 16261.10701 | I20: 0.07435533041
A21: 5014 | B21: Transformer Station Equipment - Operation Labour | C21: =VLOOKUP(A21,'App.2-G_Detailed_OM&A_Expenses'!$A$17:$I$119,3,FALSE) -> 0 | D21: =VLOOKUP(A21,'App.2-G_Detailed_OM&A_Expenses'!$A$17:$I$119,5,FALSE) -> 0 | E21: =VLOOKUP(A21,'App.2-G_Detailed_OM&A_Expenses'!$A$17:$I$119,9,FALSE) -> 0 | F21: 0 | H21: 0
A22: 5015 | B22: Transformer Station Equipment - Operation Supplies and Expenses | C22: =VLOOKUP(A22,'App.2-G_Detailed_OM&A_Expenses'!$A$17:$I$119,3,FALSE) -> 0 | D22: =VLOOKUP(A22,'App.2-G_Detailed_OM&A_Expenses'!$A$17:$I$119,5,FALSE) -> 0 | E22: =VLOOKUP(A22,'App.2-G_Detailed_OM&A_Expenses'!$A$17:$I$119,9,FALSE) -> 0 | F22: 0 | H22: 0
A23: 5016 | B23: Distribution Station Equipment - Operation Labour | C23: =VLOOKUP(A23,'App.2-G_Detailed_OM&A_Expenses'!$A$17:$I$119,3,FALSE) -> 349861.45 | D23: =VLOOKUP(A23,'App.2-G_Detailed_OM&A_Expenses'!$A$17:$I$119,5,FALSE) -> 416175.62 | E23: =VLOOKUP(A23,'App.2-G_Detailed_OM&A_Expenses'!$A$17:$I$119,9,FALSE) -> 217095.261 | F23: =E23-C23 -> -132766.189 | G23: -0.3794821892 | H23: =E23-D23 -> -199080.359 | I23: -0.4783566105
A24: 5017 | B24: Distribution Station Equipment - Operation Supplies and Expenses | C24: =VLOOKUP(A24,'App.2-G_Detailed_OM&A_Expenses'!$A$17:$I$119,3,FALSE) -> 120129.66 | D24: =VLOOKUP(A24,'App.2-G_Detailed_OM&A_Expenses'!$A$17:$I$119,5,FALSE) -> 173290.73 | E24: =VLOOKUP(A24,'App.2-G_Detailed_OM&A_Expenses'!$A$17:$I$119,9,FALSE) -> 291850.6052 | F24: 171720.9452 | G24: 1.429463342 | H24: 118559.8752 | I24: 0.6841674406
A25: 5020 | B25: Overhead Distribution Lines and Feeders - Operation Labour | C25: =VLOOKUP(A25,'App.2-G_Detailed_OM&A_Expenses'!$A$17:$I$119,3,FALSE) -> 138981.63 | D25: =VLOOKUP(A25,'App.2-G_Detailed_OM&A_Expenses'!$A$17:$I$119,5,FALSE) -> 150175.88 | E25: =VLOOKUP(A25,'App.2-G_Detailed_OM&A_Expenses'!$A$17:$I$119,9,FALSE) -> 120031.2013 | F25: -18950.4287 | G25: -0.1363520395 | H25: -30144.6787 | I25: -0.200729163
A26: 5025 | B26: Overhead Distribution Lines and Feeders - Operation Supplies and Expenses | C26: =VLOOKUP(A26,'App.2-G_Detailed_OM&A_Expenses'!$A$17:$I$119,3,FALSE) -> 352985.82 | D26: =VLOOKUP(A26,'App.2-G_Detailed_OM&A_Expenses'!$A$17:$I$119,5,FALSE) -> 342585.5 | E26: =VLOOKUP(A26,'App.2-G_Detailed_OM&A_Expenses'!$A$17:$I$119,9,FALSE) -> 307302.9442 | F26: -45682.87578 | G26: -0.1294184446 | H26: -35282.55578 | I26: -0.1029890517
A27: 5030 | B27: Overhead Sub-transmission Feeders - Operation | C27: =VLOOKUP(A27,'App.2-G_Detailed_OM&A_Expenses'!$A$17:$I$119,3,FALSE) -> 23512.6 | D27: =VLOOKUP(A27,'App.2-G_Detailed_OM&A_Expenses'!$A$17:$I$119,5,FALSE) -> 15339.55 | E27: =VLOOKUP(A27,'App.2-G_Detailed_OM&A_Expenses'!$A$17:$I$119,9,FALSE) -> 15614.08073 | F27: -7898.519271 | G27: -0.3359270889 | H27: 274.5307286 | I27: 0.01789692192
A28: 5035 | B28: Overhead Distribution Transformers - Operation | C28: =VLOOKUP(A28,'App.2-G_Detailed_OM&A_Expenses'!$A$17:$I$119,3,FALSE) -> 113835.42 | D28: =VLOOKUP(A28,'App.2-G_Detailed_OM&A_Expenses'!$A$17:$I$119,5,FALSE) -> 105607.38 | E28: =VLOOKUP(A28,'App.2-G_Detailed_OM&A_Expenses'!$A$17:$I$119,9,FALSE) -> 164805.4766 | F28: 50970.05665 | G28: 0.4477521728 | H28: 59198.09665 | I28: 0.5605488617
A29: 5040 | B29: Underground Distribution Lines and Feeders - Operation Labour | C29: =VLOOKUP(A29,'App.2-G_Detailed_OM&A_Expenses'!$A$17:$I$119,3,FALSE) -> 3408.62 | D29: =VLOOKUP(A29,'App.2-G_Detailed_OM&A_Expenses'!$A$17:$I$119,5,FALSE) -> 13650.89 | E29: =VLOOKUP(A29,'App.2-G_Detailed_OM&A_Expenses'!$A$17:$I$119,9,FALSE) -> 12798.70248 | F29: 9390.08248 | G29: 2.754804724 | H29: -852.1875202 | I29: -0.06242724982
A30: 5045 | B30: Underground Distribution Lines and Feeders - Operation Supplies and Expenses | C30: =VLOOKUP(A30,'App.2-G_Detailed_OM&A_Expenses'!$A$17:$I$119,3,FALSE) -> 7408.88 | D30: =VLOOKUP(A30,'App.2-G_Detailed_OM&A_Expenses'!$A$17:$I$119,5,FALSE) -> 4751.49 | E30: =VLOOKUP(A30,'App.2-G_Detailed_OM&A_Expenses'!$A$17:$I$119,9,FALSE) -> 6685.961931 | F30: -722.918069 | G30: -0.0975745415 | H30: 1934.471931 | I30: 0.4071295385
A31: 5050 | B31: Underground Sub-transmission Feeders - Operation | C31: =VLOOKUP(A31,'App.2-G_Detailed_OM&A_Expenses'!$A$17:$I$119,3,FALSE) -> 970.17 | D31: =VLOOKUP(A31,'App.2-G_Detailed_OM&A_Expenses'!$A$17:$I$119,5,FALSE) -> 0 | E31: =VLOOKUP(A31,'App.2-G_Detailed_OM&A_Expenses'!$A$17:$I$119,9,FALSE) -> 2049.412066 | F31: 1079.242066 | G31: 1.112425726 | H31: 2049.412066
A32: 5055 | B32: Underground Distribution Transformers - Operation | C32: =VLOOKUP(A32,'App.2-G_Detailed_OM&A_Expenses'!$A$17:$I$119,3,FALSE) -> 60792.25 | D32: =VLOOKUP(A32,'App.2-G_Detailed_OM&A_Expenses'!$A$17:$I$119,5,FALSE) -> 106630.3 | E32: =VLOOKUP(A32,'App.2-G_Detailed_OM&A_Expenses'!$A$17:$I$119,9,FALSE) -> 88655.48339 | F32: 27863.23339 | G32: 0.4583352876 | H32: -17974.81661 | I32: -0.168571378
A33: 5060 | B33: Street Lighting and Signal System Expense | C33: =VLOOKUP(A33,'App.2-G_Detailed_OM&A_Expenses'!$A$17:$I$119,3,FALSE) -> 0 | D33: =VLOOKUP(A33,'App.2-G_Detailed_OM&A_Expenses'!$A$17:$I$119,5,FALSE) -> 0 | E33: =VLOOKUP(A33,'App.2-G_Detailed_OM&A_Expenses'!$A$17:$I$119,9,FALSE) -> 0 | F33: 0 | H33: 0
A34: 5065 | B34: Meter Expense | C34: =VLOOKUP(A34,'App.2-G_Detailed_OM&A_Expenses'!$A$17:$I$119,3,FALSE) -> 244855.78 | D34: =VLOOKUP(A34,'App.2-G_Detailed_OM&A_Expenses'!$A$17:$I$119,5,FALSE) -> 186074.44 | E34: =VLOOKUP(A34,'App.2-G_Detailed_OM&A_Expenses'!$A$17:$I$119,9,FALSE) -> 971683.7611 | F34: 726827.9811 | G34: 2.968392174 | H34: 785609.3211 | I34: 4.222016313
A35: 5070 | B35: Customer Premises - Operation Labour | C35: =VLOOKUP(A35,'App.2-G_Detailed_OM&A_Expenses'!$A$17:$I$119,3,FALSE) -> 637695.62 | D35: =VLOOKUP(A35,'App.2-G_Detailed_OM&A_Expenses'!$A$17:$I$119,5,FALSE) -> 549410.24 | E35: =VLOOKUP(A35,'App.2-G_Detailed_OM&A_Expenses'!$A$17:$I$119,9,FALSE) -> 631688.5209 | F35: -6007.099137 | G35: -0.009420010032 | H35: 82278.28086 | I35: 0.1497574579
A36: 5075 | B36: Customer Premises - Operation Materials and Expenses | C36: =VLOOKUP(A36,'App.2-G_Detailed_OM&A_Expenses'!$A$17:$I$119,3,FALSE) -> 0 | D36: =VLOOKUP(A36,'App.2-G_Detailed_OM&A_Expenses'!$A$17:$I$119,5,FALSE) -> 0 | E36: =VLOOKUP(A36,'App.2-G_Detailed_OM&A_Expenses'!$A$17:$I$119,9,FALSE) -> 0 | F36: 0 | H36: 0
A37: 5085 | B37: Miscellaneous Distribution Expenses | C37: =VLOOKUP(A37,'App.2-G_Detailed_OM&A_Expenses'!$A$17:$I$119,3,FALSE) -> 0 | D37: =VLOOKUP(A37,'App.2-G_Detailed_OM&A_Expenses'!$A$17:$I$119,5,FALSE) -> 0 | E37: =VLOOKUP(A37,'App.2-G_Detailed_OM&A_Expenses'!$A$17:$I$119,9,FALSE) -> 1813188.621 | F37: 1813188.621 | H37: 1813188.621
A38: 5090 | B38: Underground Distribution Lines and Feeders - Rental Paid | C38: =VLOOKUP(A38,'App.2-G_Detailed_OM&A_Expenses'!$A$17:$I$119,3,FALSE) -> 0 | D38: =VLOOKUP(A38,'App.2-G_Detailed_OM&A_Expenses'!$A$17:$I$119,5,FALSE) -> 0 | E38: =VLOOKUP(A38,'App.2-G_Detailed_OM&A_Expenses'!$A$17:$I$119,9,FALSE) -> 0 | F38: 0 | H38: 0
A39: 5095 | B39: Overhead Distribution Lines and Feeders - Rental Paid | C39: =VLOOKUP(A39,'App.2-G_Detailed_OM&A_Expenses'!$A$17:$I$119,3,FALSE) -> 56688.59 | D39: =VLOOKUP(A39,'App.2-G_Detailed_OM&A_Expenses'!$A$17:$I$119,5,FALSE) -> 76624.94 | E39: =VLOOKUP(A39,'App.2-G_Detailed_OM&A_Expenses'!$A$17:$I$119,9,FALSE) -> 82000 | F39: 25311.41 | G39: 0.4464991985 | H39: 5375.06 | I39: 0.07014765689
A40: 5096 | B40: Other Rent | C40: =VLOOKUP(A40,'App.2-G_Detailed_OM&A_Expenses'!$A$17:$I$119,3,FALSE) -> 0 | D40: =VLOOKUP(A40,'App.2-G_Detailed_OM&A_Expenses'!$A$17:$I$119,5,FALSE) -> 0 | E40: =VLOOKUP(A40,'App.2-G_Detailed_OM&A_Expenses'!$A$17:$I$119,9,FALSE) -> 0 | F40: 0 | H40: 0
A41: Total - Operations | C41: =SUM(C18:C40) -> 3652054.26 | D41: =SUM(D18:D40) -> 3763302.28 | E41: =SUM(E18:E40) -> 6914732.064 | F41: 3262677.804 | G41: 0.893381525 | H41: 3151429.784 | I41: 0.8374107498
A42: Account | B42: Description
A43: Maintenance
A44: 5105 | B44: Maintenance Supervision and Engineering | C44: =VLOOKUP(A44,'App.2-G_Detailed_OM&A_Expenses'!$A$17:$I$119,3,FALSE) -> 16.88 | D44: =VLOOKUP(A44,'App.2-G_Detailed_OM&A_Expenses'!$A$17:$I$119,5,FALSE) -> 0 | E44: =VLOOKUP(A44,'App.2-G_Detailed_OM&A_Expenses'!$A$17:$I$119,9,FALSE) -> 0 | F44: =E44-C44 -> -16.88 | G44: =IF(C44=0,"",(E44/C44)-1) -> -1 | H44: =E44-D44 -> 0 | I44: =IF(D44=0,"",(E44/D44)-1) -> 
A45: 5110 | B45: Maintenance of Buildings and Fixtures - Distribution Stations | C45: =VLOOKUP(A45,'App.2-G_Detailed_OM&A_Expenses'!$A$17:$I$119,3,FALSE) -> 36772.84 | D45: =VLOOKUP(A45,'App.2-G_Detailed_OM&A_Expenses'!$A$17:$I$119,5,FALSE) -> 30599.53 | E45: =VLOOKUP(A45,'App.2-G_Detailed_OM&A_Expenses'!$A$17:$I$119,9,FALSE) -> 17719.80093 | F45: -19053.03907 | G45: -0.5181280278 | H45: -12879.72907 | I45: -0.4209126436
A46: 5112 | B46: Maintenance of Transformer Station Equipment | C46: =VLOOKUP(A46,'App.2-G_Detailed_OM&A_Expenses'!$A$17:$I$119,3,FALSE) -> 0 | D46: =VLOOKUP(A46,'App.2-G_Detailed_OM&A_Expenses'!$A$17:$I$119,5,FALSE) -> 0 | E46: =VLOOKUP(A46,'App.2-G_Detailed_OM&A_Expenses'!$A$17:$I$119,9,FALSE) -> 0 | F46: 0 | H46: 0
A47: 5114 | B47: Maintenance of Distribution Station Equipment | C47: =VLOOKUP(A47,'App.2-G_Detailed_OM&A_Expenses'!$A$17:$I$119,3,FALSE) -> 72347.91 | D47: =VLOOKUP(A47,'App.2-G_Detailed_OM&A_Expenses'!$A$17:$I$119,5,FALSE) -> 180098.05 | E47: =VLOOKUP(A47,'App.2-G_Detailed_OM&A_Expenses'!$A$17:$I$119,9,FALSE) -> 157768.1822 | F47: 85420.27217 | G47: 1.180687489 | H47: -22329.86783 | I47: -0.1239872827
A48: 5120 | B48: Maintenance of Poles, Towers and Fixtures | C48: =VLOOKUP(A48,'App.2-G_Detailed_OM&A_Expenses'!$A$17:$I$119,3,FALSE) -> 173662.84 | D48: =VLOOKUP(A48,'App.2-G_Detailed_OM&A_Expenses'!$A$17:$I$119,5,FALSE) -> 194222.84 | E48: =VLOOKUP(A48,'App.2-G_Detailed_OM&A_Expenses'!$A$17:$I$119,9,FALSE) -> 278676.6082 | F48: 105013.7682 | G48: 0.6046991294 | H48: 84453.76816 | I48: 0.434829231
A49: 5125 | B49: Maintenance of Overhead Conductors and Devices | C49: =VLOOKUP(A49,'App.2-G_Detailed_OM&A_Expenses'!$A$17:$I$119,3,FALSE) -> 268802.22 | D49: =VLOOKUP(A49,'App.2-G_Detailed_OM&A_Expenses'!$A$17:$I$119,5,FALSE) -> 158548.46 | E49: =VLOOKUP(A49,'App.2-G_Detailed_OM&A_Expenses'!$A$17:$I$119,9,FALSE) -> 503397.9215 | F49: 234595.7015 | G49: 0.8727446576 | H49: 344849.4615 | I49: 2.175041381
A50: 5130 | B50: Maintenance of Overhead Services | C50: =VLOOKUP(A50,'App.2-G_Detailed_OM&A_Expenses'!$A$17:$I$119,3,FALSE) -> 170764.27 | D50: =VLOOKUP(A50,'App.2-G_Detailed_OM&A_Expenses'!$A$17:$I$119,5,FALSE) -> 184767.65 | E50: =VLOOKUP(A50,'App.2-G_Detailed_OM&A_Expenses'!$A$17:$I$119,9,FALSE) -> 183580.1903 | F50: 12815.92035 | G50: 0.07505036239 | H50: -1187.459653 | I50: -0.006426772506
A51: 5135 | B51: Overhead Distribution Lines and Feeders - Right of Way | C51: =VLOOKUP(A51,'App.2-G_Detailed_OM&A_Expenses'!$A$17:$I$119,3,FALSE) -> 415591.2 | D51: =VLOOKUP(A51,'App.2-G_Detailed_OM&A_Expenses'!$A$17:$I$119,5,FALSE) -> 416624.71 | E51: =VLOOKUP(A51,'App.2-G_Detailed_OM&A_Expenses'!$A$17:$I$119,9,FALSE) -> 514475.4358 | F51: 98884.23576 | G51: 0.237936308 | H51: 97850.72576 | I51: 0.2348653918
A52: 5145 | B52: Maintenance of Underground Conduit | C52: =VLOOKUP(A52,'App.2-G_Detailed_OM&A_Expenses'!$A$17:$I$119,3,FALSE) -> 53447.26 | D52: =VLOOKUP(A52,'App.2-G_Detailed_OM&A_Expenses'!$A$17:$I$119,5,FALSE) -> 102243.29 | E52: =VLOOKUP(A52,'App.2-G_Detailed_OM&A_Expenses'!$A$17:$I$119,9,FALSE) -> 56309.01848 | F52: 2861.758484 | G52: 0.05354359575 | H52: -45934.27152 | I52: -0.4492644115
A53: 5150 | B53: Maintenance of Underground Conductors and Devices | C53: =VLOOKUP(A53,'App.2-G_Detailed_OM&A_Expenses'!$A$17:$I$119,3,FALSE) -> 33764.11 | D53: =VLOOKUP(A53,'App.2-G_Detailed_OM&A_Expenses'!$A$17:$I$119,5,FALSE) -> 68672.06 | E53: =VLOOKUP(A53,'App.2-G_Detailed_OM&A_Expenses'!$A$17:$I$119,9,FALSE) -> 48520.49214 | F53: 14756.38214 | G53: 0.4370434209 | H53: -20151.56786 | I53: -0.2934463865
A54: 5155 | B54: Maintenance of Underground Services | C54: =VLOOKUP(A54,'App.2-G_Detailed_OM&A_Expenses'!$A$17:$I$119,3,FALSE) -> 69421.95 | D54: =VLOOKUP(A54,'App.2-G_Detailed_OM&A_Expenses'!$A$17:$I$119,5,FALSE) -> 70439.1 | E54: =VLOOKUP(A54,'App.2-G_Detailed_OM&A_Expenses'!$A$17:$I$119,9,FALSE) -> 106503.6116 | F54: 37081.66161 | G54: 0.5341489487 | H54: 36064.51161 | I54: 0.5119956332
A55: 5160 | B55: Maintenance of Line Transformers | C55: =VLOOKUP(A55,'App.2-G_Detailed_OM&A_Expenses'!$A$17:$I$119,3,FALSE) -> 204621.43 | D55: =VLOOKUP(A55,'App.2-G_Detailed_OM&A_Expenses'!$A$17:$I$119,5,FALSE) -> 88131.62 | E55: =VLOOKUP(A55,'App.2-G_Detailed_OM&A_Expenses'!$A$17:$I$119,9,FALSE) -> 296868.5679 | F55: 92247.13793 | G55: 0.4508185576 | H55: 208736.9479 | I55: 2.368468297
A56: 5165 | B56: Maintenance of Street Lighting and Signal Systems | C56: =VLOOKUP(A56,'App.2-G_Detailed_OM&A_Expenses'!$A$17:$I$119,3,FALSE) -> 0 | D56: =VLOOKUP(A56,'App.2-G_Detailed_OM&A_Expenses'!$A$17:$I$119,5,FALSE) -> 0 | E56: =VLOOKUP(A56,'App.2-G_Detailed_OM&A_Expenses'!$A$17:$I$119,9,FALSE) -> 0 | F56: 0 | H56: 0
A57: 5170 | B57: Sentinel Lights - Labour | C57: =VLOOKUP(A57,'App.2-G_Detailed_OM&A_Expenses'!$A$17:$I$119,3,FALSE) -> 0 | D57: =VLOOKUP(A57,'App.2-G_Detailed_OM&A_Expenses'!$A$17:$I$119,5,FALSE) -> 0 | E57: =VLOOKUP(A57,'App.2-G_Detailed_OM&A_Expenses'!$A$17:$I$119,9,FALSE) -> 0 | F57: 0 | H57: 0
A58: 5172 | B58: Sentinel Lights - Materials and Expenses | C58: =VLOOKUP(A58,'App.2-G_Detailed_OM&A_Expenses'!$A$17:$I$119,3,FALSE) -> 0 | D58: =VLOOKUP(A58,'App.2-G_Detailed_OM&A_Expenses'!$A$17:$I$119,5,FALSE) -> 0 | E58: =VLOOKUP(A58,'App.2-G_Detailed_OM&A_Expenses'!$A$17:$I$119,9,FALSE) -> 0 | F58: 0 | H58: 0
A59: 5175 | B59: Maintenance of Meters | C59: =VLOOKUP(A59,'App.2-G_Detailed_OM&A_Expenses'!$A$17:$I$119,3,FALSE) -> 3118.34 | D59: =VLOOKUP(A59,'App.2-G_Detailed_OM&A_Expenses'!$A$17:$I$119,5,FALSE) -> 3184.13 | E59: =VLOOKUP(A59,'App.2-G_Detailed_OM&A_Expenses'!$A$17:$I$119,9,FALSE) -> 0 | F59: -3118.34 | G59: -1 | H59: -3184.13 | I59: -1
A60: 5178 | B60: Customer Installations Expenses - Leased Property | C60: =VLOOKUP(A60,'App.2-G_Detailed_OM&A_Expenses'!$A$17:$I$119,3,FALSE) -> 0 | D60: =VLOOKUP(A60,'App.2-G_Detailed_OM&A_Expenses'!$A$17:$I$119,5,FALSE) -> 0 | E60: =VLOOKUP(A60,'App.2-G_Detailed_OM&A_Expenses'!$A$17:$I$119,9,FALSE) -> 0 | F60: 0 | H60: 0
A61: 5195 | B61: Maintenance of Other Installations on Customer Premises | C61: =VLOOKUP(A61,'App.2-G_Detailed_OM&A_Expenses'!$A$17:$I$119,3,FALSE) -> 0 | D61: =VLOOKUP(A61,'App.2-G_Detailed_OM&A_Expenses'!$A$17:$I$119,5,FALSE) -> 0 | E61: =VLOOKUP(A61,'App.2-G_Detailed_OM&A_Expenses'!$A$17:$I$119,9,FALSE) -> 0 | F61: 0 | H61: 0
A62: Total - Maintenance | C62: =SUM(C44:C61) -> 1502331.25 | D62: =SUM(D44:D61) -> 1497531.44 | E62: =SUM(E44:E61) -> 2163819.829 | F62: 661488.579 | G62: 0.4403080739 | H62: 666288.389 | I62: 0.4449244745
A63: Account | B63: Description
A64: Billing and Collecting
A65: 5305 | B65: Supervision | C65: =VLOOKUP(A65,'App.2-G_Detailed_OM&A_Expenses'!$A$17:$I$119,3,FALSE) -> 0 | D65: =VLOOKUP(A65,'App.2-G_Detailed_OM&A_Expenses'!$A$17:$I$119,5,FALSE) -> 0 | E65: =VLOOKUP(A65,'App.2-G_Detailed_OM&A_Expenses'!$A$17:$I$119,9,FALSE) -> 0 | F65: =E65-C65 -> 0 | G65: =IF(C65=0,"",(E65/C65)-1) ->  | H65: =E65-D65 -> 0 | I65: =IF(D65=0,"",(E65/D65)-1) -> 
A66: 5310 | B66: Meter Reading Expense | C66: =VLOOKUP(A66,'App.2-G_Detailed_OM&A_Expenses'!$A$17:$I$119,3,FALSE) -> 224521.35 | D66: =VLOOKUP(A66,'App.2-G_Detailed_OM&A_Expenses'!$A$17:$I$119,5,FALSE) -> 204714.91 | E66: =VLOOKUP(A66,'App.2-G_Detailed_OM&A_Expenses'!$A$17:$I$119,9,FALSE) -> 29200 | F66: -195321.35 | G66: -0.8699455531 | H66: -175514.91 | I66: -0.8573626122
A67: 5315 | B67: Customer Billing | C67: =VLOOKUP(A67,'App.2-G_Detailed_OM&A_Expenses'!$A$17:$I$119,3,FALSE) -> 1454081.9 | D67: =VLOOKUP(A67,'App.2-G_Detailed_OM&A_Expenses'!$A$17:$I$119,5,FALSE) -> 1335739.52 | E67: =VLOOKUP(A67,'App.2-G_Detailed_OM&A_Expenses'!$A$17:$I$119,9,FALSE) -> 2230628.098 | F67: 776546.1977 | G67: 0.5340457079 | H67: 894888.5777 | I67: 0.6699574013
A68: 5320 | B68: Collecting | C68: =VLOOKUP(A68,'App.2-G_Detailed_OM&A_Expenses'!$A$17:$I$119,3,FALSE) -> 193042.29 | D68: =VLOOKUP(A68,'App.2-G_Detailed_OM&A_Expenses'!$A$17:$I$119,5,FALSE) -> 203223.48 | E68: =VLOOKUP(A68,'App.2-G_Detailed_OM&A_Expenses'!$A$17:$I$119,9,FALSE) -> 364088.7944 | F68: 171046.5044 | G68: 0.8860571658 | H68: 160865.3144 | I68: 0.7915685449
A69: 5325 | B69: Collecting - Cash Over and Short | C69: =VLOOKUP(A69,'App.2-G_Detailed_OM&A_Expenses'!$A$17:$I$119,3,FALSE) -> 0 | D69: =VLOOKUP(A69,'App.2-G_Detailed_OM&A_Expenses'!$A$17:$I$119,5,FALSE) -> 0 | E69: =VLOOKUP(A69,'App.2-G_Detailed_OM&A_Expenses'!$A$17:$I$119,9,FALSE) -> 0 | F69: 0 | H69: 0
A70: 5330 | B70: Collection Charges | C70: =VLOOKUP(A70,'App.2-G_Detailed_OM&A_Expenses'!$A$17:$I$119,3,FALSE) -> 0 | D70: =VLOOKUP(A70,'App.2-G_Detailed_OM&A_Expenses'!$A$17:$I$119,5,FALSE) -> 0 | E70: =VLOOKUP(A70,'App.2-G_Detailed_OM&A_Expenses'!$A$17:$I$119,9,FALSE) -> 0 | F70: 0 | H70: 0
A71: 5335 | B71: Bad Debt Expense | C71: =VLOOKUP(A71,'App.2-G_Detailed_OM&A_Expenses'!$A$17:$I$119,3,FALSE) -> 148802.58 | D71: =VLOOKUP(A71,'App.2-G_Detailed_OM&A_Expenses'!$A$17:$I$119,5,FALSE) -> 463316.04 | E71: =VLOOKUP(A71,'App.2-G_Detailed_OM&A_Expenses'!$A$17:$I$119,9,FALSE) -> 400000 | F71: 251197.42 | G71: 1.688125434 | H71: -63316.04 | I71: -0.1366584243
A72: 5340 | B72: Miscellaneous Customer Accounts Expenses | C72: =VLOOKUP(A72,'App.2-G_Detailed_OM&A_Expenses'!$A$17:$I$119,3,FALSE) -> 173656.1 | D72: =VLOOKUP(A72,'App.2-G_Detailed_OM&A_Expenses'!$A$17:$I$119,5,FALSE) -> 114714.1 | E72: =VLOOKUP(A72,'App.2-G_Detailed_OM&A_Expenses'!$A$17:$I$119,9,FALSE) -> 122947.5691 | F72: -50708.53091 | G72: -0.2920054689 | H72: 8233.46909 | I72: 0.07177381935
A73: Total - Billing and Collecting | C73: =SUM(C65:C72) -> 2194104.22 | D73: =SUM(D65:D72) -> 2321708.05 | E73: =SUM(E65:E72) -> 3146864.461 | F73: 952760.2411 | G73: 0.4342365474 | H73: 825156.4111 | I73: 0.3554092045
A74: Account | B74: Description
A75: Community Relations
A76: 5405 | B76: Supervision | C76: =VLOOKUP(A76,'App.2-G_Detailed_OM&A_Expenses'!$A$17:$I$119,3,FALSE) -> 0 | D76: =VLOOKUP(A76,'App.2-G_Detailed_OM&A_Expenses'!$A$17:$I$119,5,FALSE) -> 0 | E76: =VLOOKUP(A76,'App.2-G_Detailed_OM&A_Expenses'!$A$17:$I$119,9,FALSE) -> 0 | F76: =E76-C76 -> 0 | G76: =IF(C76=0,"",(E76/C76)-1) ->  | H76: =E76-D76 -> 0 | I76: =IF(D76=0,"",(E76/D76)-1) -> 
A77: 5410 | B77: Community Relations - Sundry | C77: =VLOOKUP(A77,'App.2-G_Detailed_OM&A_Expenses'!$A$17:$I$119,3,FALSE) -> 0 | D77: =VLOOKUP(A77,'App.2-G_Detailed_OM&A_Expenses'!$A$17:$I$119,5,FALSE) -> 0 | E77: =VLOOKUP(A77,'App.2-G_Detailed_OM&A_Expenses'!$A$17:$I$119,9,FALSE) -> 78108.16985 | F77: 78108.16985 | H77: 78108.16985
A78: 5415 | B78: Energy Conservation | C78: =VLOOKUP(A78,'App.2-G_Detailed_OM&A_Expenses'!$A$17:$I$119,3,FALSE) -> 142484.08 | D78: =VLOOKUP(A78,'App.2-G_Detailed_OM&A_Expenses'!$A$17:$I$119,5,FALSE) -> 439835.65 | E78: =VLOOKUP(A78,'App.2-G_Detailed_OM&A_Expenses'!$A$17:$I$119,9,FALSE) -> 0 | F78: -142484.08 | G78: -1 | H78: -439835.65 | I78: -1
A79: 5420 | B79: Community Safety Program | C79: =VLOOKUP(A79,'App.2-G_Detailed_OM&A_Expenses'!$A$17:$I$119,3,FALSE) -> 0 | D79: =VLOOKUP(A79,'App.2-G_Detailed_OM&A_Expenses'!$A$17:$I$119,5,FALSE) -> 0 | E79: =VLOOKUP(A79,'App.2-G_Detailed_OM&A_Expenses'!$A$17:$I$119,9,FALSE) -> 0 | F79: 0 | H79: 0
A80: 5425 | B80: Miscellaneous Customer Service and Informational Expenses | C80: =VLOOKUP(A80,'App.2-G_Detailed_OM&A_Expenses'!$A$17:$I$119,3,FALSE) -> 0 | D80: =VLOOKUP(A80,'App.2-G_Detailed_OM&A_Expenses'!$A$17:$I$119,5,FALSE) -> 0 | E80: =VLOOKUP(A80,'App.2-G_Detailed_OM&A_Expenses'!$A$17:$I$119,9,FALSE) -> 0 | F80: 0 | H80: 0
A81: 5505 | B81: Supervision | C81: =VLOOKUP(A81,'App.2-G_Detailed_OM&A_Expenses'!$A$17:$I$119,3,FALSE) -> 0 | D81: =VLOOKUP(A81,'App.2-G_Detailed_OM&A_Expenses'!$A$17:$I$119,5,FALSE) -> 0 | E81: =VLOOKUP(A81,'App.2-G_Detailed_OM&A_Expenses'!$A$17:$I$119,9,FALSE) -> 0 | F81: 0 | H81: 0
A82: 5510 | B82: Demonstrating and Selling Expense | C82: =VLOOKUP(A82,'App.2-G_Detailed_OM&A_Expenses'!$A$17:$I$119,3,FALSE) -> 0 | D82: =VLOOKUP(A82,'App.2-G_Detailed_OM&A_Expenses'!$A$17:$I$119,5,FALSE) -> 0 | E82: =VLOOKUP(A82,'App.2-G_Detailed_OM&A_Expenses'!$A$17:$I$119,9,FALSE) -> 0 | F82: 0 | H82: 0
A83: 5515 | B83: Advertising Expenses | C83: =VLOOKUP(A83,'App.2-G_Detailed_OM&A_Expenses'!$A$17:$I$119,3,FALSE) -> 0 | D83: =VLOOKUP(A83,'App.2-G_Detailed_OM&A_Expenses'!$A$17:$I$119,5,FALSE) -> 0 | E83: =VLOOKUP(A83,'App.2-G_Detailed_OM&A_Expenses'!$A$17:$I$119,9,FALSE) -> 0 | F83: 0 | H83: 0
A84: 5520 | B84: Miscellaneous Sales Expense | C84: =VLOOKUP(A84,'App.2-G_Detailed_OM&A_Expenses'!$A$17:$I$119,3,FALSE) -> 0 | D84: =VLOOKUP(A84,'App.2-G_Detailed_OM&A_Expenses'!$A$17:$I$119,5,FALSE) -> 0 | E84: =VLOOKUP(A84,'App.2-G_Detailed_OM&A_Expenses'!$A$17:$I$119,9,FALSE) -> 0 | F84: 0 | H84: 0
A85: Total - Community Relations | C85: =SUM(C76:C84) -> 142484.08 | D85: =SUM(D76:D84) -> 439835.65 | E85: =SUM(E76:E84) -> 78108.16985 | F85: -64375.91015 | G85: -0.451811249 | H85: -361727.4801 | I85: -0.8224151002
A86: Account | B86: Description
A87: Administrative and General Expenses
A88: 5605 | B88: Executive Salaries and Expenses | C88: =VLOOKUP(A88,'App.2-G_Detailed_OM&A_Expenses'!$A$17:$I$119,3,FALSE) -> 426684.63 | D88: =VLOOKUP(A88,'App.2-G_Detailed_OM&A_Expenses'!$A$17:$I$119,5,FALSE) -> 417192.5 | E88: =VLOOKUP(A88,'App.2-G_Detailed_OM&A_Expenses'!$A$17:$I$119,9,FALSE) -> 523280.0776 | F88: =E88-C88 -> 96595.44756 | G88: =IF(C88=0,"",(E88/C88)-1) -> 0.226386049 | H88: =E88-D88 -> 106087.5776 | I88: =IF(D88=0,"",(E88/D88)-1) -> 0.2542892731
A89: 5610 | B89: Management Salaries and Expenses | C89: =VLOOKUP(A89,'App.2-G_Detailed_OM&A_Expenses'!$A$17:$I$119,3,FALSE) -> 509971.6 | D89: =VLOOKUP(A89,'App.2-G_Detailed_OM&A_Expenses'!$A$17:$I$119,5,FALSE) -> 465059.62 | E89: =VLOOKUP(A89,'App.2-G_Detailed_OM&A_Expenses'!$A$17:$I$119,9,FALSE) -> 551537.1041 | F89: 41565.5041 | G89: 0.08150552717 | H89: 86477.4841 | I89: 0.1859492426
A90: 5615 | B90: General Administrative Salaries and Expenses | C90: =VLOOKUP(A90,'App.2-G_Detailed_OM&A_Expenses'!$A$17:$I$119,3,FALSE) -> 492148.42 | D90: =VLOOKUP(A90,'App.2-G_Detailed_OM&A_Expenses'!$A$17:$I$119,5,FALSE) -> 466709.02 | E90: =VLOOKUP(A90,'App.2-G_Detailed_OM&A_Expenses'!$A$17:$I$119,9,FALSE) -> 659248.1372 | F90: 167099.7172 | G90: 0.3395311463 | H90: 192539.1172 | I90: 0.412546381
A91: 5620 | B91: Office Supplies and Expenses | C91: =VLOOKUP(A91,'App.2-G_Detailed_OM&A_Expenses'!$A$17:$I$119,3,FALSE) -> 65800.98 | D91: =VLOOKUP(A91,'App.2-G_Detailed_OM&A_Expenses'!$A$17:$I$119,5,FALSE) -> 81723.45 | E91: =VLOOKUP(A91,'App.2-G_Detailed_OM&A_Expenses'!$A$17:$I$119,9,FALSE) -> 312493.4921 | F91: 246692.5121 | G91: 3.749070487 | H91: 230770.0421 | I91: 2.823792218
A92: 5625 | B92: Administrative Expense Transferred - Credit | C92: =VLOOKUP(A92,'App.2-G_Detailed_OM&A_Expenses'!$A$17:$I$119,3,FALSE) -> 0 | D92: =VLOOKUP(A92,'App.2-G_Detailed_OM&A_Expenses'!$A$17:$I$119,5,FALSE) -> 0 | E92: =VLOOKUP(A92,'App.2-G_Detailed_OM&A_Expenses'!$A$17:$I$119,9,FALSE) -> 0 | F92: 0 | H92: 0
A93: 5630 | B93: Outside Services Employed | C93: =VLOOKUP(A93,'App.2-G_Detailed_OM&A_Expenses'!$A$17:$I$119,3,FALSE) -> 60163 | D93: =VLOOKUP(A93,'App.2-G_Detailed_OM&A_Expenses'!$A$17:$I$119,5,FALSE) -> 53650 | E93: =VLOOKUP(A93,'App.2-G_Detailed_OM&A_Expenses'!$A$17:$I$119,9,FALSE) -> 0 | F93: -60163 | G93: -1 | H93: -53650 | I93: -1
A94: 5635 | B94: Property Insurance | C94: =VLOOKUP(A94,'App.2-G_Detailed_OM&A_Expenses'!$A$17:$I$119,3,FALSE) -> 0 | D94: =VLOOKUP(A94,'App.2-G_Detailed_OM&A_Expenses'!$A$17:$I$119,5,FALSE) -> 0 | E94: =VLOOKUP(A94,'App.2-G_Detailed_OM&A_Expenses'!$A$17:$I$119,9,FALSE) -> 0 | F94: 0 | H94: 0
A95: 5640 | B95: Injuries and Damages | C95: =VLOOKUP(A95,'App.2-G_Detailed_OM&A_Expenses'!$A$17:$I$119,3,FALSE) -> 314078.73 | D95: =VLOOKUP(A95,'App.2-G_Detailed_OM&A_Expenses'!$A$17:$I$119,5,FALSE) -> 17883.67 | E95: =VLOOKUP(A95,'App.2-G_Detailed_OM&A_Expenses'!$A$17:$I$119,9,FALSE) -> 0 | F95: -314078.73 | G95: -1 | H95: -17883.67 | I95: -1
A96: 5645 | B96: OMERS Pensions and Benefits | C96: =VLOOKUP(A96,'App.2-G_Detailed_OM&A_Expenses'!$A$17:$I$119,3,FALSE) -> 0 | D96: =VLOOKUP(A96,'App.2-G_Detailed_OM&A_Expenses'!$A$17:$I$119,5,FALSE) -> 1280544 | E96: =VLOOKUP(A96,'App.2-G_Detailed_OM&A_Expenses'!$A$17:$I$119,9,FALSE) -> 0 | F96: 0 | H96: -1280544 | I96: -1
A97: 5646 | B97: Employee Pensions and OPEB | C97: =VLOOKUP(A97,'App.2-G_Detailed_OM&A_Expenses'!$A$17:$I$119,3,FALSE) -> 0 | D97: =VLOOKUP(A97,'App.2-G_Detailed_OM&A_Expenses'!$A$17:$I$119,5,FALSE) -> 0 | E97: =VLOOKUP(A97,'App.2-G_Detailed_OM&A_Expenses'!$A$17:$I$119,9,FALSE) -> 0 | F97: =E97-C97 -> 0 | G97: =IF(C97=0,"",(E97/C97)-1) ->  | H97: =E97-D97 -> 0 | I97: =IF(D97=0,"",(E97/D97)-1) -> 
A98: 5647 | B98: Employee Sick Leave | C98: =VLOOKUP(A98,'App.2-G_Detailed_OM&A_Expenses'!$A$17:$I$119,3,FALSE) -> 0 | D98: =VLOOKUP(A98,'App.2-G_Detailed_OM&A_Expenses'!$A$17:$I$119,5,FALSE) -> 0 | E98: =VLOOKUP(A98,'App.2-G_Detailed_OM&A_Expenses'!$A$17:$I$119,9,FALSE) -> 0 | F98: 0 | H98: 0
A99: 5650 | B99: Franchise Requirements | C99: =VLOOKUP(A99,'App.2-G_Detailed_OM&A_Expenses'!$A$17:$I$119,3,FALSE) -> 0 | D99: =VLOOKUP(A99,'App.2-G_Detailed_OM&A_Expenses'!$A$17:$I$119,5,FALSE) -> 0 | E99: =VLOOKUP(A99,'App.2-G_Detailed_OM&A_Expenses'!$A$17:$I$119,9,FALSE) -> 0 | F99: 0 | H99: 0
A100: 5655 | B100: Regulatory Expenses | C100: =VLOOKUP(A100,'App.2-G_Detailed_OM&A_Expenses'!$A$17:$I$119,3,FALSE) -> 553280.79 | D100: =VLOOKUP(A100,'App.2-G_Detailed_OM&A_Expenses'!$A$17:$I$119,5,FALSE) -> 275241.37 | E100: =VLOOKUP(A100,'App.2-G_Detailed_OM&A_Expenses'!$A$17:$I$119,9,FALSE) -> 486839.3845 | F100: -66441.40546 | G100: -0.1200862323 | H100: 211598.0145 | I100: 0.7687725669
A101: 5660 | B101: General Advertising Expenses | C101: =VLOOKUP(A101,'App.2-G_Detailed_OM&A_Expenses'!$A$17:$I$119,3,FALSE) -> 49394.94 | D101: =VLOOKUP(A101,'App.2-G_Detailed_OM&A_Expenses'!$A$17:$I$119,5,FALSE) -> 34408.25 | E101: =VLOOKUP(A101,'App.2-G_Detailed_OM&A_Expenses'!$A$17:$I$119,9,FALSE) -> 52869.22613 | F101: 3474.286127 | G101: 0.07033688324 | H101: 18460.97613 | I101: 0.5365276097
A102: 5665 | B102: Miscellaneous General Expenses | C102: =VLOOKUP(A102,'App.2-G_Detailed_OM&A_Expenses'!$A$17:$I$119,3,FALSE) -> 319088.66 | D102: =VLOOKUP(A102,'App.2-G_Detailed_OM&A_Expenses'!$A$17:$I$119,5,FALSE) -> 380098.41 | E102: =VLOOKUP(A102,'App.2-G_Detailed_OM&A_Expenses'!$A$17:$I$119,9,FALSE) -> 551027.944 | F102: 231939.284 | G102: 0.7268803724 | H102: 170929.534 | I102: 0.4496981032
A103: 5670 | B103: Rent | C103: =VLOOKUP(A103,'App.2-G_Detailed_OM&A_Expenses'!$A$17:$I$119,3,FALSE) -> 185789.6 | D103: =VLOOKUP(A103,'App.2-G_Detailed_OM&A_Expenses'!$A$17:$I$119,5,FALSE) -> 313629.27 | E103: =VLOOKUP(A103,'App.2-G_Detailed_OM&A_Expenses'!$A$17:$I$119,9,FALSE) -> 62000 | F103: =E103-C103 -> -123789.6 | G103: =IF(C103=0,"",(E103/C103)-1) -> -0.6662891787 | H103: =E103-D103 -> -251629.27 | I103: -0.8023143694
A104: 5672 | B104: Lease Payment Charge | C104: =VLOOKUP(A104,'App.2-G_Detailed_OM&A_Expenses'!$A$17:$I$119,3,FALSE) -> 0 | D104: =VLOOKUP(A104,'App.2-G_Detailed_OM&A_Expenses'!$A$17:$I$119,5,FALSE) -> 0 | E104: =VLOOKUP(A104,'App.2-G_Detailed_OM&A_Expenses'!$A$17:$I$119,9,FALSE) -> 0 | F104: 0 | H104: 0
A105: 5675 | B105: Maintenance of General Plant | C105: =VLOOKUP(A105,'App.2-G_Detailed_OM&A_Expenses'!$A$17:$I$119,3,FALSE) -> 967442.91 | D105: =VLOOKUP(A105,'App.2-G_Detailed_OM&A_Expenses'!$A$17:$I$119,5,FALSE) -> 1143724.06 | E105: =VLOOKUP(A105,'App.2-G_Detailed_OM&A_Expenses'!$A$17:$I$119,9,FALSE) -> 34797.57885 | F105: -932645.3312 | G105: -0.9640313878 | H105: -1108926.481 | I105: -0.9695751973
A106: 5680 | B106: Electrical Safety Authority Fees | C106: =VLOOKUP(A106,'App.2-G_Detailed_OM&A_Expenses'!$A$17:$I$119,3,FALSE) -> 0 | D106: =VLOOKUP(A106,'App.2-G_Detailed_OM&A_Expenses'!$A$17:$I$119,5,FALSE) -> 0 | E106: =VLOOKUP(A106,'App.2-G_Detailed_OM&A_Expenses'!$A$17:$I$119,9,FALSE) -> 0 | F106: 0 | H106: 0
A107: 5681 | B107: Special Purpose Charge Expense | C107: =VLOOKUP(A107,'App.2-G_Detailed_OM&A_Expenses'!$A$17:$I$119,3,FALSE) -> 0 | D107: =VLOOKUP(A107,'App.2-G_Detailed_OM&A_Expenses'!$A$17:$I$119,5,FALSE) -> 138035.8 | E107: =VLOOKUP(A107,'App.2-G_Detailed_OM&A_Expenses'!$A$17:$I$119,9,FALSE) -> 0 | F107: 0 | H107: -138035.8 | I107: -1
A108: 5685 | B108: Independent Electricity System Operator Fees and Penalties | C108: =VLOOKUP(A108,'App.2-G_Detailed_OM&A_Expenses'!$A$17:$I$119,3,FALSE) -> 0 | D108: =VLOOKUP(A108,'App.2-G_Detailed_OM&A_Expenses'!$A$17:$I$119,5,FALSE) -> 0 | E108: =VLOOKUP(A108,'App.2-G_Detailed_OM&A_Expenses'!$A$17:$I$119,9,FALSE) -> 0 | F108: 0 | H108: 0
A109: 5695 | B109: OM&A Contra Account | C109: =VLOOKUP(A109,'App.2-G_Detailed_OM&A_Expenses'!$A$17:$I$119,3,FALSE) -> 0 | D109: =VLOOKUP(A109,'App.2-G_Detailed_OM&A_Expenses'!$A$17:$I$119,5,FALSE) -> 0 | E109: =VLOOKUP(A109,'App.2-G_Detailed_OM&A_Expenses'!$A$17:$I$119,9,FALSE) -> 0 | F109: 0 | H109: 0
A110: 6205 | B110: Donations | C110: =VLOOKUP(A110,'App.2-G_Detailed_OM&A_Expenses'!$A$17:$I$119,3,FALSE) -> 202000 | D110: =VLOOKUP(A110,'App.2-G_Detailed_OM&A_Expenses'!$A$17:$I$119,5,FALSE) -> 0 | E110: =VLOOKUP(A110,'App.2-G_Detailed_OM&A_Expenses'!$A$17:$I$119,9,FALSE) -> 0 | F110: =E110-C110 -> -202000 | G110: =IF(C110=0,"",(E110/C110)-1) -> -1 | H110: =E110-D110 -> 0 | I110: =IF(D110=0,"",(E110/D110)-1) -> 
A111: 6205 | B111: Donations, Sub-account LEAP Funding | C111: ='App.2-G_Detailed_OM&A_Expenses'!C110 -> 0 | D111: ='App.2-G_Detailed_OM&A_Expenses'!E110 -> 27000 | E111: ='App.2-G_Detailed_OM&A_Expenses'!I110 -> 27000 | F111: 27000 | H111: 0 | I111: 0
A112: Total - Administrative and General Expenses | C112: =SUM(C88:C111) -> 4145844.26 | D112: =SUM(D88:D111) -> 5094899.42 | E112: =SUM(E88:E111) -> 3261092.944 | F112: -884751.3155 | G112: -0.21340679 | H112: -1833806.476 | I112: -0.359929868
A113: Total OM&A | C113: =C112+C85+C73+C62+C41 -> 11636818.07 | D113: =D112+D85+D73+D62+D41 -> 13117276.84 | E113: =E112+E85+E73+E62+E41 -> 15564617.47 | F113: 3927799.399 | G113: 0.3375320792 | H113: 2447340.629 | I113: 0.1865738338
A114: Adjustments for non-recoverable items
A115: 5681 | B115: Special Purpose Charge Expense | C115: ='App.2-G_Detailed_OM&A_Expenses'!C114 -> 0 | D115: ='App.2-G_Detailed_OM&A_Expenses'!E114 -> 138035.8 | E115: ='App.2-G_Detailed_OM&A_Expenses'!G114 -> 0 | F115: =E115-C115 -> 0 | G115: =IF(C115=0,"",(E115/C115)-1) ->  | H115: =E115-D115 -> -138035.8 | I115: =IF(D115=0,"",(E115/D115)-1) -> -1
A116: 6205 | B116: Donations1 | C116: ='App.2-G_Detailed_OM&A_Expenses'!C115 -> 202000 | F116: =E116-C116 -> -202000 | G116: =IF(C116=0,"",(E116/C116)-1) -> -1 | H116: =E116-D116 -> 0 | I116: =IF(D116=0,"",(E116/D116)-1) -> 
F117: =E117-C117 -> 0 | G117: =IF(C117=0,"",(E117/C117)-1) ->  | H117: =E117-D117 -> 0 | I117: =IF(D117=0,"",(E117/D117)-1) -> 
F118: =E118-C118 -> 0 | G118: =IF(C118=0,"",(E118/C118)-1) ->  | H118: =E118-D118 -> 0 | I118: =IF(D118=0,"",(E118/D118)-1) -> 
F119: =E119-C119 -> 0 | G119: =IF(C119=0,"",(E119/C119)-1) ->  | H119: =E119-D119 -> 0 | I119: =IF(D119=0,"",(E119/D119)-1) -> 
A120: Total Recoverable OM&A | C120: =C113-SUM(C115:C119) -> 11434818.07 | D120: =D113-SUM(D115:D119) -> 12979241.04 | E120: 15564617.47 | F120: 4129799.399 | G120: =IF(C120=0,"",(E120/C120)-1) -> 0.3611600441 | H120: 2585376.429 | I120: =IF(D120=0,"",(E120/D120)-1) -> 0.1991931902
A122: 1 Account 6205 - Donations is generally non-recoverable. However, the sub-account LEAP funding of account 6205 is generally recoverable.
A125: Note:
A127: 1 | B127: If the applicant is adopting IFRS or an alternate accounting standard as of January 1, 2013 for financial reporting purposes, Column D "Most Current Actual Year" must be provided on CGAAP.
A128: 2 | B128: If the applicant is adopting IFRS or an alternate accounting standard as of January 1, 2012 for financial reporting purposes, Column D "Most Current Actual Year" must be provided on that standard.

Sheet App.2-I_OM&A_Summary_Analys
K1: File Number: | L1: ='LDC Info'!$E$18 -> EB-2012-0126
K2: Exhibit: | L2: 4
K3: Tab: | L3: 2
K4: Schedule: | L4: 1
K5: Attachment: | L5: 1
K7: Date: | L7: 9 November, 2012
A9: Appendix 2-I
A10: Summary of Recoverable OM&A Expenses
B13: ="Last Rebasing Year (" & 'LDC Info'!E30 & " BA)" -> Last Rebasing Year (2009 BA) | C13: ="Last Rebasing Year (" & 'LDC Info'!E30 & " Actuals)" -> Last Rebasing Year (2009 Actuals) | D13: ='LDC Info'!E26 -2 & " Actuals" -> 2010 Actuals | E13: ='LDC Info'!E26 -1 & " Actuals" -> 2011 Actuals | F13: ='LDC Info'!E26 & " Bridge Year" -> 2012 Bridge Year | G13: ='LDC Info'!E28 & " Test Year" -> 2013 Test Year
A14: Reporting Basis | B14: CGAAP | C14: CGAAP | D14: CGAAP | E14: CGAAP | F14: CGAAP | G14: CGAAP
A15: Operations | B15: 3571216 | C15: ='App.2-G_Detailed_OM&A_Expenses'!C40 -> 3652054.26 | D15: ='App.2-G_Detailed_OM&A_Expenses'!D40 -> 3432872 | E15: ='App.2-G_Detailed_OM&A_Expenses'!E40 -> 3763302.28 | F15: ='App.2-G_Detailed_OM&A_Expenses'!G40 -> 5156619.142 | G15: ='App.2-G_Detailed_OM&A_Expenses'!I40 -> 6914732.064
A16: Maintenance | B16: 1745098 | C16: ='App.2-G_Detailed_OM&A_Expenses'!C61 -> 1502331.25 | D16: ='App.2-G_Detailed_OM&A_Expenses'!D61 -> 1681643 | E16: ='App.2-G_Detailed_OM&A_Expenses'!E61 -> 1497531.44 | F16: ='App.2-G_Detailed_OM&A_Expenses'!G61 -> 2339511.884 | G16: ='App.2-G_Detailed_OM&A_Expenses'!I61 -> 2163819.829
A17: SubTotal | B17: =SUM(B15:B16) -> 5316314 | C17: =SUM(C15:C16) -> 5154385.51 | D17: 5114515 | E17: 5260833.72 | F17: 7496131.026 | G17: 9078551.893
A18: %Change (year over year) | D18: =IF(ISERROR((D17-C17)/C17), "", (D17-C17)/C17) -> -0.0077352596 | E18: =IF(ISERROR((E17-D17)/D17), "", (E17-D17)/D17) -> 0.028608523 | F18: 0.4248941185 | G18: 0.2110983468
A19: %Change (Test Year vs Last Rebasing Year - Actual) | G19: =IF(ISERROR((G17-C17)/C17), "", (G17-C17)/C17) -> 0.761325744
A20: Billing and Collecting | B20: 2515358 | C20: ='App.2-G_Detailed_OM&A_Expenses'!C72 -> 2194104.22 | D20: ='App.2-G_Detailed_OM&A_Expenses'!D72 -> 1937276 | E20: ='App.2-G_Detailed_OM&A_Expenses'!E72 -> 2321708.05 | F20: ='App.2-G_Detailed_OM&A_Expenses'!G72 -> 1779703.421 | G20: ='App.2-G_Detailed_OM&A_Expenses'!I72 -> 3146864.461
A21: Community Relations | B21: 206736 | C21: ='App.2-G_Detailed_OM&A_Expenses'!C84 -> 142484.08 | D21: ='App.2-G_Detailed_OM&A_Expenses'!D84 -> 343169 | E21: ='App.2-G_Detailed_OM&A_Expenses'!E84 -> 439835.65 | F21: ='App.2-G_Detailed_OM&A_Expenses'!G84 -> 0 | G21: ='App.2-G_Detailed_OM&A_Expenses'!I84 -> 78108.16985
A22: Administrative and General | B22: 3631137 | C22: ='App.2-G_Detailed_OM&A_Expenses'!C111 -> 4145844.26 | D22: ='App.2-G_Detailed_OM&A_Expenses'!D111 -> 744920.6 | E22: ='App.2-G_Detailed_OM&A_Expenses'!E111 -> 5094899.42 | F22: ='App.2-G_Detailed_OM&A_Expenses'!G111 -> 3047168.905 | G22: ='App.2-G_Detailed_OM&A_Expenses'!I111 -> 3261092.944
A23: SubTotal | B23: =SUM(B20:B22) -> 6353231 | C23: =SUM(C20:C22) -> 6482432.56 | D23: 3025365.6 | E23: 7856443.12 | F23: 4826872.326 | G23: 6486065.575
A24: %Change (year over year) | D24: =IF(ISERROR((D23-C23)/C23), "", (D23-C23)/C23) -> -0.5332977903 | E24: =IF(ISERROR((E23-D23)/D23), "", (E23-D23)/D23) -> 1.596857424 | F24: =IF(ISERROR((F23-E23)/E23), "", (F23-E23)/E23) -> -0.3856160794 | G24: =IF(ISERROR((G23-F23)/F23), "", (G23-F23)/F23) -> 0.3437408609
A25: %Change (Test Year vs Last Rebasing Year - Actual) | G25: =IF(ISERROR((G23-C23)/C23), "", (G23-C23)/C23) -> 0.0005604401467
A26: Total | B26: =SUM(B23,B17) -> 11669545 | C26: =SUM(C23,C17) -> 11636818.07 | D26: 8139880.6 | E26: 13117276.84 | F26: 12323003.35 | G26: 15564617.47
A27: %Change (year over year) | D27: =IF(ISERROR((D26-C26)/C26), "", (D26-C26)/C26) -> -0.3005063282 | E27: =IF(ISERROR((E26-D26)/D26), "", (E26-D26)/D26) -> 0.611482709 | F27: =IF(ISERROR((F26-E26)/E26), "", (F26-E26)/E26) -> -0.06055170577 | G27: =IF(ISERROR((G26-F26)/F26), "", (G26-F26)/F26) -> 0.263053902
B30: =B13 -> Last Rebasing Year (2009 BA) | C30: =C13 -> Last Rebasing Year (2009 Actuals) | D30: 2010 Actuals | E30: 2011 Actuals | F30: 2012 Bridge Year | G30: 2013 Test Year
A31: Operations | B31: =B15 -> 3571216 | C31: =C15 -> 3652054.26 | D31: 3432872 | E31: 3763302.28 | F31: 5156619.142 | G31: 6914732.064
A32: Maintenance | B32: =B16 -> 1745098 | C32: =C16 -> 1502331.25 | D32: 1681643 | E32: 1497531.44 | F32: 2339511.884 | G32: 2163819.829
A33: Billing and Collecting | B33: =B20 -> 2515358 | C33: =C20 -> 2194104.22 | D33: 1937276 | E33: 2321708.05 | F33: 1779703.421 | G33: 3146864.461
A34: Community Relations | B34: =B21 -> 206736 | C34: =C21 -> 142484.08 | D34: 343169 | E34: 439835.65 | F34: 0 | G34: 78108.16985
A35: Administrative and General | B35: =B22 -> 3631137 | C35: =C22 -> 4145844.26 | D35: 744920.6 | E35: 5094899.42 | F35: 3047168.905 | G35: 3261092.944
A36: Total | B36: =SUM(B31:B35) -> 11669545 | C36: =SUM(C31:C35) -> 11636818.07 | D36: 8139880.6 | E36: 13117276.84 | F36: 12323003.35 | G36: 15564617.47
A37: %Change (year over year) | D37: =IF(ISERROR((D36-C36)/C36), "", (D36-C36)/C36) -> -0.3005063282 | E37: =IF(ISERROR((E36-D36)/D36), "", (E36-D36)/D36) -> 0.611482709 | F37: =IF(ISERROR((F36-E36)/E36), "", (F36-E36)/E36) -> -0.06055170577 | G37: =IF(ISERROR((G36-F36)/F36), "", (G36-F36)/F36) -> 0.263053902
B40: =B13 -> Last Rebasing Year (2009 BA) | C40: =C13 -> Last Rebasing Year (2009 Actuals) | D40: ="Variance " & 'LDC Info'!E30 & " BA – " & 'LDC Info'!E30 & " Actuals" -> Variance 2009 BA – 2009 Actuals | E40: =D13 -> 2010 Actuals | F40: ="Variance " & 'LDC Info'!E26 -2 & " Actuals vs. " & 'LDC Info'!E30 & " Actuals" -> Variance 2010 Actuals vs. 2009 Actuals | G40: =E13 -> 2011 Actuals | H40: ="Variance " & 'LDC Info'!E26 -1 & " Actuals vs. " & 'LDC Info'!E26-2 & " Actuals" -> Variance 2011 Actuals vs. 2010 Actuals | I40: =F13 -> 2012 Bridge Year | J40: ="Variance " & 'LDC Info'!E26 & " Bridge vs. " & 'LDC Info'!E26 -1 & " Actuals" -> Variance 2012 Bridge vs. 2011 Actuals | K40: =G13 -> 2013 Test Year | L40: ="Variance " & 'LDC Info'!E28 & " Test vs. " & 'LDC Info'!E26 & " Bridge" -> Variance 2013 Test vs. 2012 Bridge
A41: Operations | B41: =B15 -> 3571216 | C41: 3652054.26 | D41: =B41-C41 -> -80838.26 | E41: =D15 -> 3432872 | F41: =E41-C41 -> -219182.26 | G41: =E15 -> 3763302.28 | H41: =G41-E41 -> 330430.28 | I41: =F15 -> 5156619.142 | J41: =I41-G41 -> 1393316.862 | K41: =G15 -> 6914732.064 | L41: =K41-I41 -> 1758112.922
A42: Maintenance | B42: 1745098 | C42: 1502331.25 | D42: =B42-C42 -> 242766.75 | E42: =D16 -> 1681643 | F42: =E42-C42 -> 179311.75 | G42: =E16 -> 1497531.44 | H42: =G42-E42 -> -184111.56 | I42: =F16 -> 2339511.884 | J42: 841980.4436 | K42: =G16 -> 2163819.829 | L42: -175692.0546
A43: Billing and Collecting | B43: =B20 -> 2515358 | C43: 2194104.22 | D43: 321253.78 | E43: =D20 -> 1937276 | F43: -256828.22 | G43: =E20 -> 2321708.05 | H43: 384432.05 | I43: =F20 -> 1779703.421 | J43: -542004.6289 | K43: =G20 -> 3146864.461 | L43: 1367161.04
A44: Community Relations | B44: 206736 | C44: 142484.08 | D44: 64251.92 | E44: =D21 -> 343169 | F44: 200684.92 | G44: =E21 -> 439835.65 | H44: 96666.65 | I44: =F21 -> 0 | J44: -439835.65 | K44: =G21 -> 78108.16985 | L44: 78108.16985
A45: Administrative and General | B45: 3631137 | C45: 4145844.26 | D45: -514707.26 | E45: 744920.6 | F45: -3400923.66 | G45: 5094899.42 | H45: 4349978.82 | I45: 3047168.905 | J45: -2047730.515 | K45: 3261092.944 | L45: 213924.0391
A46: Total OM&A Expenses | B46: =SUM(B41:B45) -> 11669545 | C46: =SUM(C41:C45) -> 11636818.07 | D46: 32726.93 | E46: 8139880.6 | F46: -3496937.47 | G46: 13117276.84 | H46: 4977396.24 | I46: 12323003.35 | J46: -794273.4877 | K46: 15564617.47 | L46: 3241614.116
A47: Variance from previous year | E47: =E46-C46 -> -3496937.47 | G47: =G46-E46 -> 4977396.24 | I47: =I46-G46 -> -794273.4877 | K47: =K46-I46 -> 3241614.116
A48: Percent change (year over year) | E48: =IF(ISERROR(E47/C46), "", E47/C46) -> -0.3005063282 | G48: =IF(ISERROR(G47/E46), "", G47/E46) -> 0.611482709 | I48: =IF(ISERROR(I47/G46), "", I47/G46) -> -0.06055170577 | K48: =IF(ISERROR(K47/I46), "", K47/I46) -> 0.263053902
A49: Percent Change: Test year vs. Most Current Actual | G49: =IF(ISERROR((K46-G46)/G46), "", (K46-G46)/G46) -> 0.1865738338
A50: Simple average of % variance for all years | G50: =IF(ISERROR((K46-C46)/C46), "", (K46-C46)/C46) -> 0.3375320792 | L50: =IF(ISERROR(AVERAGE(E48,G48,I48,K48)), "", AVERAGE(E48,G48,I48,K48)) -> 0.1283696443
A51: Compound Annual Growth Rate for all years | G51: =IF(ISERROR((K47-C47)/C47), "", (K47-C47)/C47) ->  | L51: =IF((K46-C46)=0, "", (K46-C46)^(1/5)-1) -> 19.83674418
A52: ="Compound Growth Rate (" & E13 & " vs. " & 'LDC Info'!E30 & " Actuals)" -> Compound Growth Rate (2011 Actuals vs. 2009 Actuals) | G52: =IF(ISERROR((G46/C46)^(1/(2010-2008)) - 1), "", (G46-C46)/C46) -> 0.1272219572
A54: Note:
A56: 1 "BA" = Board-Approved
A57: 2 If it has been more than three years since the applicant last filed a cost of service application, additional years of historical actuals should be incorporated into the table, as necessary, to go back to the last cost of service application. If the applicant last filed a cost of service application less than three years ago, a minimum of three years of actual information is required.
A59: 3 Recoverable OM&A that is included on these tables should be identical to the recoverable OM&A that is shown for the corresponding periods on Appendix 2-H.

Sheet App.2-J_OM&A_Cost _Drivers
F1: File Number: | G1: ='LDC Info'!$E$18 -> EB-2012-0126
F2: Exhibit: | G2: 4
F3: Tab: | G3: 2
F4: Schedule: | G4: 2
F5: Attachment: | G5: 1
F7: Date: | G7: 9 November, 2012
B10: Appendix 2-J
B11: OM&A Cost Driver Table
A13: OM&A | C13: ="Last Rebasing Year (" & 'LDC Info'!E30 & " Actuals)" -> Last Rebasing Year (2009 Actuals) | D13: ='LDC Info'!E26 -2 & " Actuals" -> 2010 Actuals | E13: ='LDC Info'!E26 -1 & " Actuals" -> 2011 Actuals | F13: ='LDC Info'!E26 & " Bridge Year" -> 2012 Bridge Year | G13: ='LDC Info'!E28 & " Test Year" -> 2013 Test Year
A14: Reporting Basis | C14: CGAAP | D14: CGAAP | E14: CGAAP | F14: CGAAP | G14: CGAAP
A15: Opening Balance | C15: 11669544.74 | D15: =C34 -> 11434818.07 | E15: =D34 -> 7907071 | F15: =E34 -> 12979241.04 | G15: =F34 -> 12323003.35
A16: A | B16: Employee Future Benefit Obligation (gain)/loss | D16: -2780264 | E16: 4060808 | F16: -1280554
A17: B | B17: Accident Accrual | C17: 300000 | D17: -600000 | E17: 300000
A18: C | B18: Bad Debt | E18: 360000 | F18: -300000 | G18: 235000
A19: D | B19: General Wage Increase | D19: 228000 | E19: 230000 | F19: 240000 | G19: 150000
A20: E | B20: OMERS Costs | E20: 123000 | F20: 178000 | G20: 121000
A21: F | B21: Differences in FTE complement | C21: -100000 | D21: -110000 | E21: 80000 | G21: 147000
A22: G | B22: OM&A impact - burden change | G22: 984000
A23: H | B23: Smart Meter Costs | G23: 451326
A24: I | B24: Monthly Electric Billing - No Water | F24: -245000 | G24: 1228661
A25: J | B25: Increase in allocation to affiliates | G25: -436588
A26: K | B26: Increase in Operations Maintenance | F26: =1000000 -> 1000000 | G26: 125000
A27: L | B27: BPISI Project | G27: 225000
A28: M | B28: Billing System Implementation Costs | C28: -311250 | D28: -217000
A29: N | B29: Regulatory Compliance | C29: 230181 | D29: -345000
A30: O | B30: Right of Way | C30: -130000 | D30: 250000 | E30: -250000 | F30: 136000
A31: P | B31: Workforce shift - Maintenance to Capital | C31: -150000 | E31: 113000
A32: Q | B32: CDM - Revenue/Expense Recognition | C32: -150000 | D32: 200000 | F32: -440000
B33: Miscellaneous | C33: =C34-C15-SUM(C16:C32) -> 76342.33 | D33: =D34-D15-SUM(D16:D32) -> -153483.07 | E33: 55362.04 | F33: 55316.31233 | G33: 11215.11618
A34: Closing Balance | C34: 11434818.07 | D34: 7907071 | E34: 12979241.04 | F34: 12323003.35 | G34: 15564617.47
B36: Notes:
B38: 1 | C38: For each year, a detailed explanation for each cost driver and associated amount is
C39: required.
B40: 2 | C40: The closing balance for each year becomes the opening balance for the next year.
B41: 3 | C41: If it has been more than three years since the applicant last filed a cost of service application, additional years of historical actuals should be incorporated into the table, as necessary, to go back to the last cost of service application. If the applicant last filed a cost of service application less than three years ago, a minimum of three years of actual information is required.
B45: 4 | C45: Opening Balance for "Last Rebasing Year" (cell B15) should be equal to the Board-Approved amount.

Sheet App.2-K_Employee Costs
G1: File Number: | H1: ='LDC Info'!$E$18 -> EB-2012-0126
G2: Exhibit: | H2: 4
G3: Tab: | H3: 4
G4: Schedule: | H4: 1
G5: Page: | H5: 1
G7: Date: | H7: November 9, 2012
A9: Appendix 2-K
A10: Employee Costs
B12: ="Last Rebasing Year (" & 'LDC Info'!E30 & " Board-Approved)" -> Last Rebasing Year (2009 Board-Approved) | C12: LRY Board Approved Adjusted2 | D12: ="Last Rebasing Year (" & 'LDC Info'!E30 & " Actuals)" -> Last Rebasing Year (2009 Actuals) | E12: ='LDC Info'!E26 -2 & " Actuals" -> 2010 Actuals | F12: ='LDC Info'!E26 -1 & " Actuals" -> 2011 Actuals | G12: ='LDC Info'!E26 & " Bridge Year" -> 2012 Bridge Year | H12: ='LDC Info'!E28 & " Test Year" -> 2013 Test Year
A13: Reporting Basis | B13: CGAAP | C13: CGAAP | D13: CGAAP | E13: CGAAP | F13: CGAAP | G13: CGAAP | H13: CGAAP
A14: Number of Employees (FTEs including Part-Time)1
A15: Executive | B15: 3 | C15: 0 | D15: 0 | E15: 0 | F15: 0 | G15: 0 | H15: 0
A16: Management | B16: 12 | C16: 15 | D16: 13.96293333 | E16: 13.7596 | F16: 15.0596 | G16: 15.41573132 | H16: 17.55585192
A17: Non-Union | B17: 3 | C17: 3 | D17: 2.82 | E17: 3.436666667 | F17: 3.886666667 | G17: 4.078984352 | H17: 4.571192686
A18: Union | B18: 85 | C18: 85 | D18: 83.51894682 | E18: 80.85168337 | F18: 81.20663082 | G18: 80.32081962 | H18: 87.80912866
A19: Total | B19: =SUM(B15:B18) -> 103 | C19: 103 | D19: 100.3018802 | E19: 98.04795004 | F19: 100.1528975 | G19: 99.8155353 | H19: 109.9361733
A20: Number of Part-Time Employees - N/A GSHi does not employ part time employees, casual employees have been included above on an FTE basis
A21: Executive
A22: Management
A23: Non-Union
A24: Union
A25: Total | B25: =SUM(B21:B24) -> 0 | C25: 0 | D25: 0 | E25: 0 | F25: 0 | G25: 0 | H25: 0
A26: Total Salary and Wages
A27: Executive | B27: 553837 | C27: 0 | D27: 0 | E27: 0 | F27: 0 | G27: 0 | H27: 0
A28: Management | B28: 1491257 | C28: 1612506 | D28: 1703551.027 | E28: 1671424.99 | F28: 1842145.553 | G28: 1709940.211 | H28: 1947674.381
A29: Non-Union | B29: 236908 | C29: 186859 | D29: 177601.6122 | E29: 226773.065 | F29: 255719.2868 | G29: 271335.9279 | H29: 288716.1364
A30: Union | B30: 6995159 | C30: 5501964 | D30: 5687267.032 | E30: 5748758.389 | F30: 5902674.403 | G30: 5529514.679 | H30: 6186363.096
A31: Total | B31: =SUM(B27:B30) -> 9277161 | C31: 7301329 | D31: 7568419.671 | E31: 7646956.444 | F31: 8000539.242 | G31: 7510790.818 | H31: 8422753.613 | J31: =D31*0.03 -> 227052.5901 | K31: =E31*0.03 -> 229408.6933 | L31: =F31*0.03 -> 240016.1773 | M31: =G31*0.02 -> 150215.8164
A32: Current Benefits | J32: =C31-D31 -> -267090.6708
A33: Executive | B33: 117000 | C33: 0 | D33: 0 | E33: 0 | F33: 0 | G33: 0 | H33: 0
A34: Management | B34: 315588 | C34: 432588 | D34: 413276.4597 | E34: 382505.7891 | F34: 447950.8806 | G34: 429779.4607 | H34: 494708.2911
A35: Non-Union | B35: 50049 | C35: 50049 | D35: 37805.2578 | E35: 47040.7827 | F35: 55934.65126 | G35: 79927.41375 | H35: 86651.23414
A36: Union | B36: 1493195 | C36: 1493195 | D36: 1142069.769 | E36: 1134199.702 | F36: 1270873.817 | G36: 1510101.402 | H36: 1708899.126
A37: Total | B37: =SUM(B33:B36) -> 1975832 | C37: 1975832 | D37: 1593151.487 | E37: 1563746.273 | F37: 1774759.349 | G37: 2019808.276 | H37: 2290258.652
A38: Accrued Pension and Post-Retirement Benefits
A39: Executive | B39: 0 | C39: 0 | D39: 0 | E39: 0 | F39: 0 | G39: 0 | H39: 0
A40: Management | B40: 0 | C40: 0 | D40: 54041.507 | E40: 42565.69602 | F40: 52386.34304 | G40: 49776.72848 | H40: 66555.97693
A41: Non-Union | B41: 0 | C41: 0 | D41: 10914.40073 | E41: 10631.4216 | F41: 13520.16344 | G41: 13170.86373 | H41: 17329.84513
A42: Union | B42: 0 | C42: 0 | D42: 257727.7047 | E42: 208025.4699 | F42: 242524.6569 | G42: 227939.6024 | H42: 227939.6024
A43: Total | B43: =SUM(B39:B42) -> 0 | C43: 0 | D43: 322683.6125 | E43: 261222.5875 | F43: 308431.1634 | G43: 290887.1946 | H43: 311825.4245
A44: Total Benefits (Current + Accrued)
A45: Executive | B45: =B33+B39 -> 117000 | C45: =C33+C39 -> 0 | D45: 0 | E45: 0 | F45: 0 | G45: =G33+G39 -> 0 | H45: 0
A46: Management | B46: 315588 | C46: =C34+C40 -> 432588 | D46: 467317.9667 | E46: 425071.4851 | F46: 500337.2237 | G46: =G34+G40 -> 479556.1892 | H46: 561264.268
A47: Non-Union | B47: 50049 | C47: =C35+C41 -> 50049 | D47: 48719.65852 | E47: 57672.2043 | F47: 69454.81469 | G47: =G35+G41 -> 93098.27748 | H47: 103981.0793
A48: Union | B48: 1493195 | C48: =C36+C42 -> 1493195 | D48: 1399797.474 | E48: 1342225.171 | F48: 1513398.474 | G48: =G36+G42 -> 1738041.004 | H48: 1936838.729
A49: Total | B49: 1975832 | C49: =C37+C43 -> 1975832 | D49: 1915835.099 | E49: 1824968.861 | F49: 2083190.512 | G49: =G37+G43 -> 2310695.471 | H49: 2602084.076
A50: Total Compensation (Salary, Wages, & Benefits)
A51: Executive | B51: =B27+B45 -> 670837 | C51: =C27+C45 -> 0 | D51: 0 | E51: 0 | F51: 0 | G51: =G27+G45 -> 0 | H51: 0
A52: Management | B52: 1806845 | C52: =C28+C46 -> 2045094 | D52: 2170868.994 | E52: 2096496.476 | F52: 2342482.776 | G52: =G28+G46 -> 2189496.4 | H52: 2508938.649
A53: Non-Union | B53: 286957 | C53: =C29+C47 -> 236908 | D53: 226321.2707 | E53: 284445.2693 | F53: 325174.1015 | G53: =G29+G47 -> 364434.2054 | H53: 392697.2157
A54: Union | B54: 8488354 | C54: =C30+C48 -> 6995159 | D54: 7087064.506 | E54: 7090983.56 | F54: 7416072.876 | G54: =G30+G48 -> 7267555.683 | H54: 8123201.825
A55: Total | B55: 11252993 | C55: =C31+C49 -> 9277161 | D55: 9484254.77 | E55: 9471925.305 | F55: 10083729.75 | G55: =G31+G49 -> 9821486.289 | H55: 11024837.69
A56: Compensation - Average Yearly Base Wages
A57: Executive | B57: 145612 | C57: 0 | D57: 0 | E57: 0 | F57: 0 | G57: 0 | H57: 0
A58: Management | B58: 91603 | C58: 102404.8 | D58: 115347.8669 | E58: 112763.71 | F58: 114300.1739 | G58: 110921.7704 | H58: 110941.6045
A59: Non-Union | B59: 62287 | C59: 62287 | D59: 62513.25645 | E59: 64190.34646 | F59: 64786.13588 | G59: 66520.46306 | H59: 63159.9139
A60: Union | B60: 61356 | C60: 61356 | D60: 61543.83197 | E60: 64332.93636 | F60: 63724.17761 | G60: 68842.85675 | H60: 70452.39134
A61: Total
A62: Compensation - Average Yearly Overtime
A63: Executive | B63: 0 | C63: 0 | D63: 0 | E63: 0 | F63: 0 | G63: 0 | H63: 0
A64: Management | B64: 6369 | C64: 6369 | D64: 6657.372715 | E64: 8709.660642 | F64: 8023.496878 | G64: 8849.047055 | H64: 6972.418608
A65: Non-Union | B65: 0 | C65: 0 | D65: 466.0386525 | E65: 1795.996411 | F65: 1007.848714 | G65: 0 | H65: 0
A66: Union | B66: 3131 | C66: 3131 | D66: 6551.699028 | E66: 6769.58308 | F66: 8962.921251 | G66: 5685.805849 | H66: 5041.920685
A67: Total
A68: Compensation - Average Yearly Incentive Pay N/A GSHi does not have incentive pay as part of its compensation
A69: Executive
A70: Management
A71: Non-Union
A72: Union
A73: Total
A74: Compensation - Average Yearly Benefits
A75: Executive | B75: 39000 | C75: 0 | D75: 0 | E75: 0 | F75: 0 | G75: 0 | H75: 0
A76: Management | B76: 26299 | C76: 28839.2 | D76: 33468.46652 | E76: 30892.72109 | F76: 33223.80566 | G76: 27879.2781 | H76: 28179.1105
A77: Non-Union | B77: 16683 | C77: 16683 | D77: 17276.47465 | E77: 16781.43675 | F77: 17870.02093 | G77: 19594.93022 | H77: 18955.9356
A78: Union | B78: 17567 | C78: 17567 | D78: 16760.23857 | E78: 16601.07886 | F78: 18636.39038 | G78: 18800.87142 | H78: 19461.52015
A79: Total
A81: Total Compensation | B81: =SUM(B51:B54) -> 11252993 | C81: 9277161 | D81: 9484254.77 | E81: 9471925.305 | F81: 10083729.75 | G81: 9821486.289 | H81: 11024837.69
A82: Total Compensation Capitalized (CGAAP) | B82: 3291810 | C82: 1922860 | D82: 1773437.234 | E82: 2061400.958 | F82: 2212461.653 | G82: 2933495.585 | H82: 2373540.126
A83: Total Compensation Charged to OM&A (CGAAP) | B83: =B81-B82 -> 7961183 | C83: 7354301 | D83: 7710817.536 | E83: 7410524.347 | F83: 7871268.101 | G83: 6887990.703 | H83: =H81-H82 -> 8651297.563
A85: Total Compensation Capitalized (MIFRS)
A86: Total Compensation Charged to OM&A (MIFRS) | F86: =F81-F85 -> 10083729.75 | G86: =G81-G85 -> 9821486.289 | H86: =H81-H85 -> 11024837.69
A89: 1 If an applicant wishes to use headcount, it must also file the same schedule on an FTE basis.
A90: 2 2009 Board approved figures have been adjusted to include executive figures with management figures for comparative purposes
A91: In addition, a calculation error from 2009 was noted, where the benefits were counted in Salary & Wages as well as recorded in Benefits, resulting in double counting in total compensation
A92: The total compensation capitalized was also calculated incorrectly in 2009 and has been corrected here.
A93: Note:
A94: 1 Please report compensation on a CGAAP and MIFRS basis for your transition year - GSHi has delayed transition to MIFRS to January 1, 2014. The comparison has not been provided.

Sheet App.2-L_OM&A_per_Cust_FTEE
G1: File Number: | H1: ='LDC Info'!$E$18 -> EB-2012-0126
G2: Exhibit: | H2: 4
G3: Tab: | H3: 2
G4: Schedule: | H4: 1
G5: Attachment: | H5: 3
G7: Date: | H7: 9 November, 2012
A9: Appendix 2-L
A10: Recoverable OM&A Cost per Customer and per FTEE
C12: ="Last Rebasing Year (" & 'LDC Info'!E30 & " Board-Approved)" -> Last Rebasing Year (2009 Board-Approved) | D12: ="Last Rebasing Year (" & 'LDC Info'!E30 & " Actuals)" -> Last Rebasing Year (2009 Actuals) | E12: ='LDC Info'!E26 -2 & " Actuals" -> 2010 Actuals | F12: ='LDC Info'!E26 -1 & " Actuals" -> 2011 Actuals | G12: ='LDC Info'!E26 & " Bridge Year" -> 2012 Bridge Year | H12: ='LDC Info'!E28 & " Test Year" -> 2013 Test Year
A13: Reporting Basis | C13: CGAAP | D13: CGAAP | E13: CGAAP | F13: CGAAP | G13: CGAAP | H13: CGAAP
A14: Number of Customers | C14: 56751 | D14: 56650 | E14: 57011 | F14: 57102 | G14: 57256 | H14: 57463
A15: Total Recoverable OM&A from Appendix 2-I | C15: ='App.2-I_OM&A_Summary_Analys'!B26 -> 11669545 | D15: ='App.2-I_OM&A_Summary_Analys'!C26 -> 11636818.07 | E15: ='App.2-I_OM&A_Summary_Analys'!D26 -> 8139880.6 | F15: ='App.2-I_OM&A_Summary_Analys'!E26 -> 13117276.84 | G15: ='App.2-I_OM&A_Summary_Analys'!F26 -> 12323003.35 | H15: ='App.2-I_OM&A_Summary_Analys'!G26 -> 15564617.47
A16: OM&A cost per customer | C16: =IF(C14=0,"",C15/C14) -> 205.6271255 | D16: 205.4160295 | E16: 142.7773693 | F16: 229.7165921 | G16: 215.2264104 | H16: 270.8632941
A17: Number of FTEEs | C17: ='App.2-K_Employee Costs'!B19 -> 103 | D17: ='App.2-K_Employee Costs'!D19 -> 100.3018802 | E17: ='App.2-K_Employee Costs'!E19 -> 98.04795004 | F17: ='App.2-K_Employee Costs'!F19 -> 100.1528975 | G17: ='App.2-K_Employee Costs'!G19 -> 99.8155353 | H17: ='App.2-K_Employee Costs'!H19 -> 109.9361733
A18: Customers/FTEEs | C18: =IF(C17=0,"",C14/C17) -> 550.9805825 | D18: 564.794996 | E18: 581.4603975 | F18: 570.1482576 | G18: 573.618123 | H18: 522.6941988
A19: OM&A Cost per FTEE | C19: =IF(C17=0,"",C15/C17) -> 113296.5534 | D19: 116017.9455 | E19: 83019.38589 | F19: 130972.5147 | G19: 123457.7695 | H19: 141578.6725
A21: Notes:
A23: 1 | B23: If it has been more than three years since the applicant last filed a cost of service application, additional years of historical actuals should be incorporated into the table, as necessary, to go back to the last cost of service application. If the applicant last filed a cost of service application less than three years ago, a minimum of three years of actual information is required.
A27: 2 | B27: The method of calculating the number of customers must be identified.
A28: 3 | B28: The method of calculating the number of FTEEs must be identified. See also Appendix 2-K
A29: 4 | B29: The number of customers and the number of FTEEs should correspond to mid-year or average of January 1 and December 31 figures.

Sheet App.2-M_Regulatory_Costs
J1: File Number: | K1: ='LDC Info'!$E$18 -> EB-2012-0126
J2: Exhibit: | K2: 4
J3: Tab: | K3: 2
J4: Schedule: | K4: 3
J5: Attachment: | K5: 1
J7: Date: | K7: 9 November, 2012
A9: Appendix 2-M
A10: Regulatory Cost Schedule
E11: On-Going
E12: One-Time
A13: Regulatory Cost Category | C13: USoA Account | D13: USoA Account Balance | E13: Ongoing or One-time Cost? 2 | F13: ="Last Rebasing Year (" & 'LDC Info'!E30 & " Board Approved)" -> Last Rebasing Year (2009 Board Approved) | G13: Most Current Actuals Year 2011 | H13: ='LDC Info'!E26 & " Bridge Year" -> 2012 Bridge Year | I13: Annual % Change | J13: ='LDC Info'!E28 & " Test Year" -> 2013 Test Year | K13: Annual % Change
A14: (A) | C14: (B) | D14: (C ) | E14: (D) | F14: (E) | G14: (F) | H14: (G) | I14: (H) = [(G)-(F)]/(F) | J14: (I) | K14: (J) = [(I)-(G)]/(G)
A15: 1 | B15: OEB Annual Assessment | C15: 5655 | E15: On-Going | F15: 158100 | G15: 150202 | H15: 152000 | I15: =IF(G15=0,"",(H15-G15)/G15) -> 0.01197054633 | J15: 160000 | K15: =IF(H15=0,"",(J15-H15)/H15) -> 0.05263157895
A16: 2 | B16: OEB Section 30 Costs (Applicant-originated) | C16: 5655 | E16: On-Going | I16: =IF(G16=0,"",(H16-G16)/G16) ->  | K16: =IF(H16=0,"",(J16-H16)/H16) -> 
A17: 3 | B17: OEB Section 30 Costs (OEB-initiated) | C17: 5655 | E17: On-Going | F17: 60000 | G17: 6486 | H17: 8000 | I17: 0.2334258403 | J17: 15000 | K17: 0.875
A18: 4 | B18: Expert Witness costs for regulatory matters | E18: One-Time | J18: 20000
A19: 5 | B19: Legal costs for regulatory matters | C19: 5655 | E19: One-Time | F19: 65000 | H19: 40000 | J19: 175000 | K19: 3.375
A20: 6 | B20: Consultants' costs for regulatory matters | C20: 5655 | E20: One-Time | G20: 14500 | H20: 22000 | I20: 0.5172413793 | J20: 8000 | K20: -0.6363636364
A21: 7 | B21: Operating expenses associated with staff resources allocated to regulatory matters | C21: 5655 | E21: On-Going | F21: 40000 | G21: 54973 | H21: 146927 | I21: 1.672712059 | J21: 144339 | K21: -0.01761418936
A22: 8 | B22: Operating expenses associated with other resources allocated to regulatory matters 1
A23: 9 | B23: Travel costs associated with cost of service related hearings/conferences | C23: 5655 | E23: One-Time | J23: 40000
A24: 10 | B24: Other regulatory agency fees or assessments
A25: 11 | B25: Any other costs for regulatory matters (please define) - IESO Prudential Costs, Advertisements | C25: 5655 | E25: On-Going | G25: 49080 | H25: 52000 | I25: 0.05949470253 | J25: 55000 | K25: 0.05769230769
A26: 12 | B26: Intervenor costs | C26: 5655 | E26: One-Time | J26: 145000
A27: 13 | B27: Sub-total - Ongoing Costs 3 | D27: =SUMIF($E15:$E26,$E11,D15:D26) -> 0 | F27: =SUMIF($E15:$E26,$E11,F15:F26) -> 258100 | G27: =SUMIF($E15:$E26,$E11,G15:G26) -> 260741 | H27: =SUMIF($E15:$E26,$E11,H15:H26) -> 358927 | I27: 0.3765652506 | J27: =SUMIF($E15:$E26,$E11,J15:J26) -> 374339 | K27: 0.04293909346
A28: 14 | B28: Sub-total - One-time Costs 4 | D28: =SUMIF($E15:$E26,$E12,D15:D26) -> 0 | F28: =SUMIF($E15:$E26,$E12,F15:F26) -> 65000 | G28: =SUMIF($E15:$E26,$E12,G15:G26) -> 14500 | H28: =SUMIF($E15:$E26,$E12,H15:H26) -> 62000 | I28: =IF(G28=0,"",(H28-G28)/G28) -> 3.275862069 | J28: =SUMIF($E15:$E26,$E12,J15:J26) -> 388000 | K28: 5.258064516
A29: 15 | B29: Total | D29: =D27+D28 -> 0 | F29: =F27+F28 -> 323100 | G29: =G27+G28 -> 275241 | H29: =H27+H28 -> 420927 | I29: 0.5293034105 | J29: =J27+J28 -> 762339 | K29: 0.8110955106
A31: 1 | B31: Please identify the resources involved.
A32: 2 | B32: Where a category's costs include both one-time and ongoing costs, the applicant should prove a separate breakdown between one-time and ongoing costs.
A33: 3 | B33: Sum of all ongoing costs identified in rows 1 to 11 inclusive.
A34: 4 | B34: Sum of all one-time costs identified in rows 1 to 11 inclusive.
A36: Please fill out the following table for all one-time costs related to this cost of service application
C38: =H13 -> 2012 Bridge Year | D38: =J13 -> 2013 Test Year | E38: Total | F38: 2009 COS Actual
A39: 4 | B39: Expert Witness costs for regulatory matters | C39: =H18 -> 0 | D39: =J18 -> 20000 | E39: =C39+D39 -> 20000
A40: 5 | B40: =B19 -> Legal costs for regulatory matters | C40: =H19 -> 40000 | D40: =J19 -> 175000 | E40: =C40+D40 -> 215000 | F40: 223719.44
A41: 6 | B41: Consultants' costs for regulatory matters | C41: =H20 -> 22000 | D41: =J20 -> 8000 | E41: =C41+D41 -> 30000 | F41: 14293.95
A42: 7 | B42: Operating expenses associated with staff resources allocated to regulatory matters | C42: 0 | D42: 0 | E42: 0
A43: 8 | B43: Operating expenses associated with other resources allocated to regulatory matters 1 | C43: =H22 -> 0 | D43: =J22 -> 0 | E43: 0
A44: 9 | B44: =B23 -> Travel costs associated with cost of service related hearings/conferences | C44: =H23 -> 0 | D44: =J23 -> 40000 | E44: 40000 | F44: 26971.23
A45: 12 | B45: Intervenor costs | D45: =J26 -> 145000 | E45: =C45+D45 -> 145000 | F45: 140576.95
B46: Total | C46: =SUM(C39:C45) -> 62000 | D46: =SUM(D39:D45) -> 388000 | E46: =C46+D46 -> 450000 | F46: =SUM(F39:F45) -> 405561.57
A47: Recovery of costs over 4 years, included in 2013 budget @ 25% | E47: =E46*0.25 -> 112500 | F47: =F46*0.25 -> 101390.3925

Sheet App.2-N_Corp_Cost_Allocation
F1: File Number: | G1: ='LDC Info'!$E$18 -> EB-2012-0126
F2: Exhibit: | G2: 4
F3: Tab: | G3: 5
F4: Schedule: | G4: 1
F5: Attachment: | G5: 1
F7: Date: | G7: 9 November, 2012
A9: Appendix 2-N
A10: Shared Services and Corporate Cost Allocation
B12: Year: | C12: 2013
A14: Shared Services
A16: Name of Company | C16: Service Offered | D16: Pricing Methdology | F16: Price for the Service | G16: Cost for the Service
A17: From | B17: To | E17: Percentage (%)
F18: $ | G18: $
A19: Affiliate | B19: Greater Sudbury | C19: Corporate/Regulatory | D19: Fully allocated (time tracking) | E19: =+F19/G19 -> 0.8795123227 | F19: =452133+388285 -> 840418 | G19: =524216+431334 -> 955550
A20: Affiliate | B20: Greater Sudbury | C20: Accounting & Admin | D20: Fully allocated (time tracking) | E20: =+F20/G20 -> 0.7660111378 | F20: =627980+145476 -> 773456 | G20: =833569+176150 -> 1009719
A21: Affiliate | B21: Greater Sudbury | C21: Human Resources | D21: number of employees | E21: 0.8586938053 | F21: 288060 | G21: 335463
A22: Affiliate | B22: Greater Sudbury | C22: Quality Management | D22: Full allocation as other affiliates have own programs | E22: 1 | F22: 155842 | G22: 155842
A23: Affiliate | B23: Greater Sudbury | C23: Risk Management | D23: 50% to Greater Sudbury and number of employees | E23: 0.8652019633 | F23: 244314 | G23: 282378
A24: Affiliate | B24: Greater Sudbury | C24: Billing & Customer Service | D24: Fully allocated (time tracking) | E24: 0.9888366919 | F24: =2928635+218229 -> 3146864 | G24: =2928635+253755 -> 3182390
A25: Affiliate | B25: Greater Sudbury | C25: Stores/Procurement | D25: Materials issues | E25: 0.8982762519 | F25: 568175 | G25: 632517
A26: Affiliate | B26: Greater Sudbury | C26: IT Services & amortization | D26: Fully allocated cost (including allocations to corporate services) | F26: $379,759 plus allocations from corp services | G26: 906585.92
A27: Affiliate | B27: Greater Sudbury | C27: Telecommunication services | D27: Preferred pricing | E27: 0 | F27: 0 | G27: 74544
A28: Greater Sudbury | B28: Affiliates | C28: Garage/fleet services | D28: Hourly chargeout rate based on full cost recovery | E28: 0.134329273 | F28: =1191103-1031103 -> 160000 | G28: 1191103
A29: Greater Sudbury | B29: Affiliates | C29: Streetlight mtce services | D29: Fully allocated cost (work order tracking) | E29: =+F29/G29 -> 1 | F29: 680000 | G29: 680000
A30: Greater Sudbury | B30: Affiliates | C30: Building Services/occupancy costs | D30: Market rate applied to square footage | E30: 2.604373815 | F30: 90627 | G30: 34798
A31: Greater Sudbury | B31: Affiliates | C31: Building Services/occupancy costs | D31: cost recovery based on square footage - LDC and affiliate providing corp services | F31: $307,503 allocated to corp services - partial rediistribution to LDC and other affiliates | G31: =713018-34798 -> 678220
A33: Corporate Cost Allocation
A35: Name of Company | C35: Service Offered | D35: Pricing Methdology | E35: % of Corporate Costs Allocated | F35: Amount Allocated
A36: From | B36: To
E37: % | F37: $
A38: Parent Company (GSU) | B38: Greater Sudbury | C38: Board of Directors | D38: Number of Board members - weighted costing | E38: 0.5 | F38: 44200
B50: Year: | C50: 2012
A52: Shared Services
A54: Name of Company | C54: Service Offered | D54: Pricing Methdology | F54: Price for the Service | G54: Cost for the Service
A55: From | B55: To | E55: Percentage (%)
F56: $ | G56: $
A57: Affiliate | B57: Greater Sudbury | C57: Corporate/Regulatory | D57: Fully allocated (time tracking) | E57: =+F57/G57 -> 0.805156695 | F57: 446961 | G57: 555123
A58: Affiliate | B58: Greater Sudbury | C58: Accounting & Admin | D58: Fully allocated (time tracking) | E58: =+F58/G58 -> 0.7669867295 | F58: 748464 | G58: 975850
A59: Affiliate | B59: Greater Sudbury | C59: Human Resources | D59: number of employees | E59: 0.909684123 | F59: 306418 | G59: 336840
A60: Affiliate | B60: Greater Sudbury | C60: Quality Management | D60: Full allocation as other affiliates have own programs | E60: 1 | F60: 153391 | G60: 153391
A61: Affiliate | B61: Greater Sudbury | C61: Risk Management | D61: 50% to Greater Sudbury and number of employees | E61: 0.865722787 | F61: 226364 | G61: 261474
A62: Affiliate | B62: Greater Sudbury | C62: Billing & Customer Service | D62: Fully allocated (time tracking) | E62: 0.6194516615 | F62: 1864481.527 | G62: 3009890.268
A63: Affiliate | B63: Greater Sudbury | C63: Stores/Procurement | D63: Materials issues | E63: 0.803376676 | F63: 531845 | G63: 662012
A64: Affiliate | B64: Greater Sudbury | C64: IT Services & amortization | D64: Fully allocated cost (including allocations to corporate services) | E64: 0.4057683241 | F64: 438948 | G64: 1081770
A65: Affiliate | B65: Greater Sudbury | C65: Telecommunication services | D65: Preferred pricing | E65: 0 | G65: 37923
A66: Greater Sudbury | B66: Affiliates | C66: Garage/fleet services | D66: Hourly chargeout rate based on full cost recovery | E66: 0.8960475037 | F66: =+G66-161724.2 -> 1394026.8 | G66: 1555751
A67: Greater Sudbury | B67: Affiliates | C67: Streetlight mtce services | D67: Fully allocated cost (work order tracking) | E67: 1 | F67: 575212 | G67: 575212
A68: Greater Sudbury | B68: Affiliates | C68: Building Services/occupancy costs | D68: Market rate applied to square footage | E68: =+F68/G68 -> 0.6659715096 | F68: 60355 | G68: 90627
A69: Greater Sudbury | B69: Affiliates | C69: Building Services/occupancy costs | D69: cost recovery based on square footage - LCD and affiliate providing corp services | F69: $337,682 plus allocations to corp services | G69: 648289
A71: Corporate Cost Allocation
A73: Name of Company | C73: Service Offered | D73: Pricing Methdology | E73: % of Corporate Costs Allocated | F73: Amount Allocated
A74: From | B74: To
E75: % | F75: $
A76: Parent Company (GSU) | B76: Greater Sudbury | C76: Board of Directors | D76: Number of Board members - weighted costing | E76: 0.5 | F76: 44200
B86: Year: | C86: 2011
A88: Shared Services
A90: Name of Company | C90: Service Offered | D90: Pricing Methdology | F90: Price for the Service | G90: Cost for the Service
A91: From | B91: To | E91: Percentage (%)
F92: $ | G92: $
A93: Affiliate | B93: Greater Sudbury | C93: Corporate/Regulatory | D93: % allocation | E93: =+F93/G93 -> 0.9660390464 | F93: 602422.442 | G93: 623600.51
A94: Affiliate | B94: Greater Sudbury | C94: Accounting & Admin | D94: % allocation | E94: =+F94/G94 -> 0.9103691939 | F94: 566725.261 | G94: 622522.45
A95: Affiliate | B95: Greater Sudbury | C95: Human Resources | D95: % allocation | E95: 0.8979554832 | F95: 228275.145 | G95: 254216.55
A96: Affiliate | B96: Greater Sudbury | C96: Quality Management | D96: n/a | F96: 0 | G96: 0
A97: Affiliate | B97: Greater Sudbury | C97: Risk Management | D97: % allocation | E97: 0.92 | F97: 234617.848 | G97: 255019.4
A98: Affiliate | B98: Greater Sudbury | C98: Billing & Customer Service | D98: % allocation | E98: 0.7070548245 | F98: 2141578.744 | G98: 3028872.26
A99: Affiliate | B99: Greater Sudbury | C99: Stores/Procurement | D99: Materials issues | E99: 0.9724113198 | F99: 345989.15 | G99: 355805.35
A100: Affiliate | B100: Greater Sudbury | C100: IT Services & amortization | D100: % allocation | E100: 0.9441209995 | F100: 507583.43 | G100: 537625.4
A101: Affiliate | B101: Greater Sudbury | C101: Telecommunication services | D101: Preferred pricing | F101: 0 | G101: 26513.97
A102: Greater Sudbury | B102: Affiliates | C102: Garage/fleet services | D102: Hourly chargeout rate based on full cost recovery | E102: 0.908518467 | F102: =1052584.47+118308.02-107115.04 -> 1063777.45 | G102: 1170892.49
A103: Greater Sudbury | B103: Affiliates | C103: Building Services/occupancy costs | E103: 0.07999999017 | F103: 55316.57 | G103: 691457.21
A105: Corporate Cost Allocation
A107: Name of Company | C107: Service Offered | D107: Pricing Methdology | E107: % of Corporate Costs Allocated | F107: Amount Allocated
A108: From | B108: To
E109: % | F109: $
A110: Parent Company (GSU) | B110: Greater Sudbury | C110: Board of Directors | D110: % allocation | E110: 0.8636896058 | F110: 56343.8365
B122: Year: | C122: 2010
A124: Shared Services
A126: Name of Company | C126: Service Offered | D126: Pricing Methdology | F126: Price for the Service | G126: Cost for the Service
A127: From | B127: To | E127: Percentage (%)
F128: $ | G128: $
A129: Affiliate | B129: Greater Sudbury | C129: Corporate/Regulatory | D129: % allocation | E129: =+F129/G129 -> 0.9074236819 | F129: 415062.18 | G129: 457407.26
A130: Affiliate | B130: Greater Sudbury | C130: Accounting & Admin | D130: % allocation | E130: =+F130/G130 -> 0.9162010356 | F130: 521530.5906 | G130: 569231.61
A131: Affiliate | B131: Greater Sudbury | C131: Human Resources | D131: % allocation | E131: 0.8985414099 | F131: 201812.814 | G131: 224600.46
A132: Affiliate | B132: Greater Sudbury | C132: Quality Management | D132: n/a | F132: 0 | G132: 0
A133: Affiliate | B133: Greater Sudbury | C133: Risk Management | D133: % allocation | E133: 0.92 | F133: 230929.1632 | G133: 251009.96
A134: Affiliate | B134: Greater Sudbury | C134: Billing & Customer Service | D134: % allocation | E134: 0.7136203984 | F134: 2050662.103 | G134: 2873603.54
A135: Affiliate | B135: Greater Sudbury | C135: Stores/Procurement | D135: Materials issues | E135: 0.9590341633 | F135: 328693.73 | G135: 342734.12
A136: Affiliate | B136: Greater Sudbury | C136: IT Services & amortization | D136: % allocation | E136: 0.9427787327 | F136: 434742.19 | G136: 461128.55
A137: Affiliate | B137: Greater Sudbury | C137: Telecommunication services | D137: Preferred pricing | F137: 0 | G137: 30437.31
A138: Greater Sudbury | B138: Affiliates | C138: Garage/fleet services | D138: Hourly chargeout rate based on full cost recovery | E138: 0.9040425765 | F138: =974867.08 -> 974867.08 | G138: 1078342
A139: Greater Sudbury | B139: Affiliates | C139: Building Services/occupancy costs | D139: % allocation | E139: 0.07999998371 | F139: 47154.36 | G139: 589429.62
A141: Corporate Cost Allocation
A143: Name of Company | C143: Service Offered | D143: Pricing Methdology | E143: % of Corporate Costs Allocated | F143: Amount Allocated
A144: From | B144: To
E145: % | F145: $
A146: Parent Company (GSU) | B146: Greater Sudbury | C146: Board of Directors | D146: % allocation | E146: 0.8585335335 | F146: 63635.2095
B158: Year: | C158: 2009
A160: Shared Services
A162: Name of Company | C162: Service Offered | D162: Pricing Methdology | E162: Percentage (%) | F162: Price for the Service | G162: Cost for the Service
A163: From | B163: To | E163: Percentage
E164: (%) | F164: $ | G164: $
A165: Affiliate | B165: Greater Sudbury | C165: Corporate/Regulatory | D165: % allocation | E165: =+F165/G165 -> 0.9910049153 | F165: 844510.684 | G165: 852176.08
A166: Affiliate | B166: Greater Sudbury | C166: Accounting & Admin | D166: % allocation | E166: =+F166/G166 -> 0.9184839803 | F166: 514634.7395 | G166: 560308.89
A167: Affiliate | B167: Greater Sudbury | C167: Human Resources | D167: % allocation | E167: =+F167/G167 -> 0.9 | F167: 167563.782 | G167: 186181.98
A168: Affiliate | B168: Greater Sudbury | C168: Quality Management | D168: n/a
A169: Affiliate | B169: Greater Sudbury | C169: Risk Management | D169: % allocation | E169: 0.92 | F169: 185789.4828 | G169: 201945.09
A170: Affiliate | B170: Greater Sudbury | C170: Billing & Customer Service | D170: % allocation | E170: 0.7396030817 | F170: 2137255.913 | G170: 2889733.65
A171: Affiliate | B171: Greater Sudbury | C171: Stores/Procurement | D171: Materials issues | E171: 0.9341698904 | F171: 360010 | G171: 385379.58
A172: Affiliate | B172: Greater Sudbury | C172: IT Services & amortization | D172: % allocation | E172: 0.9458223582 | F172: 453312.4535 | G172: 479278.64
A173: Affiliate | B173: Greater Sudbury | C173: Telecommunication services | D173: Preferred pricing | E173: 0 | G173: 25699.68
A174: Greater Sudbury | B174: Affiliates | C174: Garage/fleet services | D174: Hourly chargeout rate based on full cost recovery | E174: 0.9374665412 | F174: =+G174-66573.93 -> 998039.02 | G174: 1064612.95
A175: Greater Sudbury | B175: Affiliates | C175: Building Services/occupancy costs | D175: % allocation | E175: 0.08000000286 | F175: 44707 | G175: 558837.48
A177: Corporate Cost Allocation
A179: Name of Company | C179: Service Offered | D179: Pricing Methdology | E179: % of Corporate Costs Allocated | F179: Amount Allocated
A180: From | B180: To
E181: % | F181: $
A182: Parent Company (GSU) | B182: Greater Sudbury | C182: Board of Directors | D182: % allocation | E182: 0.8564349342 | F182: 81530.045

Sheet App.2-OA Capital Structure
K1: File Number: | O1: ='LDC Info'!$E$18 -> EB-2012-0126
K2: Exhibit: | O2: 5
K3: Tab: | O3: 1
K4: Schedule: | O4: 1
K5: Page: | O5: 1
K7: Date: | O7: 9 November, 2012
C10: Appendix 2-OA
C11: Capital Structure and Cost of Capital
A13: This table must be completed for the required years of all historical years, the bridge year and the test year.
A15: Line No.
C16: Particulars | E16: Capitalization Ratio | K16: Cost Rate | O16: Return
C19: 2009 Board Approved
E20: (%) | I20: ($) | K20: (%) | O20: ($)
C21: Debt
A22: 1 | C22: Long-term Debt | E22: 0.527 | I22: =$I31*E22 -> 40378747.38 | K22: 0.07013411027 | O22: =K22*I22 -> 2831927.521
A23: 2 | C23: Short-term Debt | E23: 0.04 | G23: (1) | I23: =$I31*E23 -> 3064800.56 | K23: 0.0133 | O23: =K23*I23 -> 40761.84745
A24: 3 | C24: Total Debt | E24: =SUM(E22:E23) -> 0.567 | I24: =SUM(I22:I23) -> 43443547.94 | K24: =IF(E24=0,0,SUMPRODUCT(E22:E23,K22:K23)/E24) -> 0.06612464923 | O24: =SUM(O22:O23) -> 2872689.369
C26: Equity
A27: 4 | C27: Common Equity | E27: 0.43 | I27: =$I31*E27 -> 32946606.02 | K27: 0.0801 | O27: =K27*I27 -> 2639023.142
A28: 5 | C28: Preferred Shares | E28: 0 | I28: =$I$31*E28 -> 0 | O28: =K28*I28 -> 0
A29: 6 | C29: Total Equity | E29: =SUM(E27:E28) -> 0.43 | I29: =SUM(I27:I28) -> 32946606.02 | K29: =IF(E29=0,0,SUMPRODUCT(E27:E28,K27:K28)/E29) -> 0.0801 | O29: =SUM(O27:O28) -> 2639023.142
A31: 7 | C31: Total | E31: 1 | I31: 76620014 | K31: =(K24*E24)+(K29*E29) -> 0.07193567611 | O31: =O24+O29 -> 5511712.511
A34: Notes
A35: (1) | C35: 4.0% unless an applicant has proposed or been approved for a different amount.
C40: 2010
E41: (%) | I41: ($) | K41: (%) | O41: ($)
C42: Debt
A43: 1 | C43: Long-term Debt | E43: 0.56 | I43: =$I52*E43 -> 43284419.92 | K43: 0.0725 | O43: =K43*I43 -> 3138120.444
A44: 2 | C44: Short-term Debt | E44: 0.04 | G44: (1) | I44: =$I52*E44 -> 3091744.28 | K44: 0.0133 | O44: =K44*I44 -> 41120.19892
A45: 3 | C45: Total Debt | E45: =SUM(E43:E44) -> 0.6 | I45: =SUM(I43:I44) -> 46376164.2 | K45: =IF(E45=0,0,SUMPRODUCT(E43:E44,K43:K44)/E45) -> 0.06855333333 | O45: =SUM(O43:O44) -> 3179240.643
C47: Equity
A48: 4 | C48: Common Equity | E48: 0.4 | I48: =$I52*E48 -> 30917442.8 | K48: 0.0801 | O48: =K48*I48 -> 2476487.168
A49: 5 | C49: Preferred Shares | E49: 0 | I49: =$I$31*E49 -> 0 | O49: =K49*I49 -> 0
A50: 6 | C50: Total Equity | E50: =SUM(E48:E49) -> 0.4 | I50: =SUM(I48:I49) -> 30917442.8 | K50: =IF(E50=0,0,SUMPRODUCT(E48:E49,K48:K49)/E50) -> 0.0801 | O50: =SUM(O48:O49) -> 2476487.168
A52: 7 | C52: Total | E52: 1 | I52: 77293607 | K52: =(K45*E45)+(K50*E50) -> 0.073172 | O52: =O45+O50 -> 5655727.811
A55: Notes
A56: (1) | C56: 4.0% unless an applicant has proposed or been approved for a different amount.
C61: 2011
E62: (%) | I62: ($) | K62: (%) | O62: ($)
C63: Debt
A64: 1 | C64: Long-term Debt | E64: 0.56 | I64: =$I73*E64 -> 44708624.24 | K64: 0.0725 | O64: =K64*I64 -> 3241375.257
A65: 2 | C65: Short-term Debt | E65: 0.04 | G65: (1) | I65: =$I73*E65 -> 3193473.16 | K65: 0.0133 | O65: =K65*I65 -> 42473.19303
A66: 3 | C66: Total Debt | E66: =SUM(E64:E65) -> 0.6 | I66: =SUM(I64:I65) -> 47902097.4 | K66: =IF(E66=0,0,SUMPRODUCT(E64:E65,K64:K65)/E66) -> 0.06855333333 | O66: =SUM(O64:O65) -> 3283848.45
C68: Equity
A69: 4 | C69: Common Equity | E69: 0.4 | I69: =$I73*E69 -> 31934731.6 | K69: 0.0801 | O69: =K69*I69 -> 2557972.001
A70: 5 | C70: Preferred Shares | E70: 0 | I70: =$I$31*E70 -> 0 | O70: =K70*I70 -> 0
A71: 6 | C71: Total Equity | E71: =SUM(E69:E70) -> 0.4 | I71: =SUM(I69:I70) -> 31934731.6 | K71: =IF(E71=0,0,SUMPRODUCT(E69:E70,K69:K70)/E71) -> 0.0801 | O71: =SUM(O69:O70) -> 2557972.001
A73: 7 | C73: Total | E73: 1 | I73: 79836829 | K73: =(K66*E66)+(K71*E71) -> 0.073172 | O73: =O66+O71 -> 5841820.452
A76: Notes
A77: (1) | C77: 4.0% unless an applicant has proposed or been approved for a different amount.
C82: 2012
E83: (%) | I83: ($) | K83: (%) | O83: ($)
C84: Debt
A85: 1 | C85: Long-term Debt | E85: 0.56 | I85: =$I94*E85 -> 46041977.52 | K85: 0.0501 | O85: =K85*I85 -> 2306703.074
A86: 2 | C86: Short-term Debt | E86: 0.04 | G86: (1) | I86: =$I94*E86 -> 3288712.68 | K86: 0.0208 | O86: =K86*I86 -> 68405.22374
A87: 3 | C87: Total Debt | E87: =SUM(E85:E86) -> 0.6 | I87: =SUM(I85:I86) -> 49330690.2 | K87: =IF(E87=0,0,SUMPRODUCT(E85:E86,K85:K86)/E87) -> 0.04814666667 | O87: =SUM(O85:O86) -> 2375108.297
C89: Equity
A90: 4 | C90: Common Equity | E90: 0.4 | I90: =$I94*E90 -> 32887126.8 | K90: 0.0942 | O90: =K90*I90 -> 3097967.345
A91: 5 | C91: Preferred Shares | E91: 0 | I91: =$I$31*E91 -> 0 | O91: =K91*I91 -> 0
A92: 6 | C92: Total Equity | E92: =SUM(E90:E91) -> 0.4 | I92: =SUM(I90:I91) -> 32887126.8 | K92: =IF(E92=0,0,SUMPRODUCT(E90:E91,K90:K91)/E92) -> 0.0942 | O92: =SUM(O90:O91) -> 3097967.345
A94: 7 | C94: Total | E94: 1 | I94: 82217817 | K94: =(K87*E87)+(K92*E92) -> 0.066568 | O94: =O87+O92 -> 5473075.642
A97: Notes
A98: (1) | C98: 4.0% unless an applicant has proposed or been approved for a different amount.
C103: 2013
E104: (%) | I104: ($) | K104: (%) | O104: ($)
C105: Debt
A106: 1 | C106: Long-term Debt | E106: 0.56 | I106: =$I115*E106 -> 49324637.6 | K106: 0.0441 | O106: =K106*I106 -> 2175216.518
A107: 2 | C107: Short-term Debt | E107: 0.04 | G107: (1) | I107: =$I115*E107 -> 3523188.4 | K107: 0.0208 | O107: =K107*I107 -> 73282.31872
A108: 3 | C108: Total Debt | E108: =SUM(E106:E107) -> 0.6 | I108: =SUM(I106:I107) -> 52847826 | K108: =IF(E108=0,0,SUMPRODUCT(E106:E107,K106:K107)/E108) -> 0.04254666667 | O108: =SUM(O106:O107) -> 2248498.837
C110: Equity
A111: 4 | C111: Common Equity | E111: 0.4 | I111: =$I115*E111 -> 35231884 | K111: 0.0912 | O111: =K111*I111 -> 3213147.821
A112: 5 | C112: Preferred Shares | E112: 0 | I112: =$I$31*E112 -> 0 | O112: =K112*I112 -> 0
A113: 6 | C113: Total Equity | E113: =SUM(E111:E112) -> 0.4 | I113: =SUM(I111:I112) -> 35231884 | K113: =IF(E113=0,0,SUMPRODUCT(E111:E112,K111:K112)/E113) -> 0.0912 | O113: =SUM(O111:O112) -> 3213147.821
A115: 7 | C115: Total | E115: 1 | I115: 88079710 | K115: =(K108*E108)+(K113*E113) -> 0.062008 | O115: =O108+O113 -> 5461646.658
A118: Notes
A119: (1) | C119: 4.0% unless an applicant has proposed or been approved for a different amount.

Sheet App.2-OB_Debt Instruments
J1: File Number: | K1: ='LDC Info'!$E$18 -> EB-2012-0126
J2: Exhibit: | K2: 5
J3: Tab: | K3: 1
J4: Schedule: | K4: 1
J5: Page: | K5: 2
J7: Date: | K7: 9 November, 2012
A10: Appendix 2-OB
A13: Debt Instruments
A15: This table must be completed for the required years of all historical years, the bridge year and the test year.
D16: Year | E16: 2013
A18: Row | B18: Description | C18: Lender | D18: Affiliated or Third-Party Debt? | E18: Fixed or Variable-Rate? | F18: Start Date | G18: Term (years) | H18: Principal ($) | I18: Rate (%) (Note 2) | J18: Interest ($) (Note 1)
B19: Multiple draw term loan (SWAP) | C19: Toronto-Dominion Bank | D19: Third-Party | E19: Variable Rate | F19: 2011-01-18 | G19: 15 | H19: 2000000 | I19: 0.047 | J19: =H19*I19 -> 94000
A20: 2 | B20: Promissory Note | C20: Greater Sudbury Utilities | D20: Affiliated | E20: Fixed Rate | F20: 2000-11-01 | G20: demand | H20: 48645458 | I20: 0.0441 | J20: =H20*I20 -> 2145264.698
A21: 3 | B21: Term Loan | C21: TD bank | D21: Third-Party | E21: Fixed Rate | F21: 2013-01-01 | G21: 15 | H21: 4000000 | I21: 0.0441 | J21: 176400
A22: 4 | J22: 0
A23: 5 | J23: 0
A24: 6 | J24: 0
A25: 7 | J25: 0
A26: 8 | J26: 0
A27: 9 | J27: 0
A28: 10 | J28: 0
A29: 11 | J29: 0
A30: 12 | J30: 0
A32: Total | H32: =SUM(H19:H30) -> 54645458 | I32: =IF(H32=0,"",J32/H32) -> 0.04420613874 | J32: =SUM(J19:J30) -> 2415664.698
A34: Notes
A36: 1 | B36: If financing is in place only part of the year, calculate the pro-rated interest and input in the cell.
A37: 2 | B37: Input actual or deemed long-term debt rate in accordance with the guidelines in The Report of the Board on the Cost of Capital for Ontario's Regulated Utilities, issued December 11, 2009
A38: 3 | B38: Add more lines above row 12 if necessary.
A43: Debt Instruments
A45: This table must be completed for the required years of all historical years, the bridge year and the test year.
D46: Year | E46: 2012
A48: Row | B48: Description | C48: Lender | D48: Affiliated or Third-Party Debt? | E48: Fixed or Variable-Rate? | F48: Start Date | G48: Term (years) | H48: Principal ($) | I48: Rate (%) (Note 2) | J48: Interest ($) (Note 1)
A49: 1 | B49: Multiple draw term loan (SWAP) | C49: Toronto-Dominion Bank | D49: Third-Party | E49: Variable Rate | F49: 2011-01-18 | G49: 15 | H49: 2000000 | I49: 0.0347 | J49: =H49*I49 -> 69400
A50: 2 | B50: Promissory Note | C50: Greater Sudbury Utilities | D50: Affiliated | E50: Fixed Rate | H50: 48645458 | I50: 0.0441 | J50: =H50*I50 -> 2145264.698
A51: 3 | J51: 0
A52: 4 | J52: 0
A53: 5 | J53: 0
A54: 6 | J54: 0
A55: 7 | J55: 0
A56: 8 | J56: 0
A57: 9 | J57: 0
A58: 10 | J58: 0
A59: 11 | J59: 0
A60: 12 | J60: 0
A62: Total | H62: =SUM(H49:H60) -> 50645458 | I62: =IF(H62=0,"",J62/H62) -> 0.04372879198 | J62: =SUM(J49:J60) -> 2214664.698
A64: Notes
A66: 1 | B66: If financing is in place only part of the year, calculate the pro-rated interest and input in the cell.
A67: 2 | B67: Input actual or deemed long-term debt rate in accordance with the guidelines in The Report of the Board on the Cost of Capital for Ontario's Regulated Utilities, issued December 11, 2009
A68: 3 | B68: Add more lines above row 12 if necessary.
A72: Debt Instruments
A74: This table must be completed for the required years of all historical years, the bridge year and the test year.
D75: Year | E75: 2011
A77: Row | B77: Description | C77: Lender | D77: Affiliated or Third-Party Debt? | E77: Fixed or Variable-Rate? | F77: Start Date | G77: Term (years) | H77: Principal ($) | I77: Rate (%) (Note 2) | J77: Interest ($) (Note 1)
A78: 1 | B78: Multiple draw term loan (SWAP) | C78: Toronto-Dominion Bank | D78: Third-Party | E78: Variable Rate | F78: 2011-01-18 | G78: 15 | H78: 2000000 | I78: 0.0347 | J78: =H78*I78 -> 69400
A79: 2 | B79: Promissory Note | C79: Greater Sudbury Utilities | D79: Affiliated | E79: Fixed Rate | H79: 48645458 | I79: 0.0441 | J79: =H79*I79 -> 2145264.698
A80: 3 | J80: 0
A81: 4 | J81: 0
A82: 5 | J82: 0
A83: 6 | J83: 0
A84: 7 | J84: 0
A85: 8 | J85: 0
A86: 9 | J86: 0
A87: 10 | J87: 0
A88: 11 | J88: 0
A89: 12 | J89: 0
A91: Total | H91: =SUM(H78:H89) -> 50645458 | I91: =IF(H91=0,"",J91/H91) -> 0.04372879198 | J91: =SUM(J78:J89) -> 2214664.698
A93: Notes
A95: 1 | B95: If financing is in place only part of the year, calculate the pro-rated interest and input in the cell.
A96: 2 | B96: Input actual or deemed long-term debt rate in accordance with the guidelines in The Report of the Board on the Cost of Capital for Ontario's Regulated Utilities, issued December 11, 2009
A97: 3 | B97: Add more lines above row 12 if necessary.
A101: Debt Instruments
A103: This table must be completed for the required years of all historical years, the bridge year and the test year.
D104: Year | E104: 2010
A106: Row | B106: Description | C106: Lender | D106: Affiliated or Third-Party Debt? | E106: Fixed or Variable-Rate? | F106: Start Date | G106: Term (years) | H106: Principal ($) | I106: Rate (%) (Note 2) | J106: Interest ($) (Note 1)
A107: 1 | J107: =H107*I107 -> 0
A108: 2 | B108: Promissory Note | C108: Greater Sudbury Utilities | D108: Affiliated | E108: Fixed Rate | H108: 48645458 | I108: 0.0441 | J108: =H108*I108 -> 2145264.698
A109: 3 | J109: 0
A110: 4 | J110: 0
A111: 5 | J111: 0
A112: 6 | J112: 0
A113: 7 | J113: 0
A114: 8 | J114: 0
A115: 9 | J115: 0
A116: 10 | J116: 0
A117: 11 | J117: 0
A118: 12 | J118: 0
A120: Total | H120: =SUM(H107:H118) -> 48645458 | I120: =IF(H120=0,"",J120/H120) -> 0.0441 | J120: =SUM(J107:J118) -> 2145264.698
A122: Notes
A124: 1 | B124: If financing is in place only part of the year, calculate the pro-rated interest and input in the cell.
A125: 2 | B125: Input actual or deemed long-term debt rate in accordance with the guidelines in The Report of the Board on the Cost of Capital for Ontario's Regulated Utilities, issued December 11, 2009
A126: 3 | B126: Add more lines above row 12 if necessary.
A131: This table must be completed for the required years of all historical years, the bridge year and the test year.
D132: Year | E132: 2009
A134: Row | B134: Description | C134: Lender | D134: Affiliated or Third-Party Debt? | E134: Fixed or Variable-Rate? | F134: Start Date | G134: Term (years) | H134: Principal ($) | I134: Rate (%) (Note 2) | J134: Interest ($) (Note 1)
A135: 1 | J135: =H135*I135 -> 0
A136: 2 | B136: Promissory Note | C136: Greater Sudbury Utilities | D136: Affiliated | E136: Fixed Rate | F136: 2000-11-01 | G136: demand | H136: 48645458 | I136: 0.0441 | J136: =H136*I136 -> 2145264.698
A137: 3 | J137: =H137*I137 -> 0
A138: 4 | J138: 0
A139: 5 | J139: 0
A140: 6 | J140: 0
A141: 7 | J141: 0
A142: 8 | J142: 0
A143: 9 | J143: 0
A144: 10 | J144: 0
A145: 11 | J145: 0
A146: 12 | J146: 0
A148: Total | H148: =SUM(H135:H146) -> 48645458 | I148: =IF(H148=0,"",J148/H148) -> 0.0441 | J148: =SUM(J135:J146) -> 2145264.698
A150: Notes
A152: 1 | B152: If financing is in place only part of the year, calculate the pro-rated interest and input in the cell.
A153: 2 | B153: Input actual or deemed long-term debt rate in accordance with the guidelines in The Report of the Board on the Cost of Capital for Ontario's Regulated Utilities, issued December 11, 2009
A154: 3 | B154: Add more lines above row 12 if necessary.

Sheet App.2-P_Cost_Allocation
E1: File Number: | F1: ='LDC Info'!$E$18 -> EB-2012-0126
E2: Exhibit: | F2: 7
E3: Tab: | F3: 1
E4: Schedule: | F4: 1
E5: Attachment: | F5: 3
E7: Date: | F7: 9 November 2012
A9: Appendix 2-P
A10: Cost Allocation
A12: Please complete the following four tables.
A14: A) Allocated Costs
A16: Classes | B16: Costs Allocated from Previous Study | C16: % | D16: Costs Allocated in Test Year Study (Column 7A) | E16: %
A17: Residential | B17: 12265368 | C17: =IF(B$28=0,"",B17/B$28) -> 0.5965142533 | D17: 16056242 | E17: =IF(D$28=0,"",D17/D$28) -> 0.6395688632
A18: GS < 50 kW | B18: 3045667 | C18: =IF(B$28=0,"",B18/B$28) -> 0.1481230548 | D18: 3309627 | E18: 0.1318324909
A19: GS > 50 kW (or 50 kW < GS < xxx kW, if applicable) | B19: 4312464 | C19: 0.2097324958 | D19: 4862853 | E19: 0.1937021979
A20: GS > xxx kW, if applicable | C20: 0 | E20: 0
A21: Large User, if applicable | C21: 0 | E21: 0
A22: Street Lighting | B22: 844907 | C22: 0.04109123087 | D22: 785187 | E22: 0.03127638192
A23: Sentinel Lighting | B23: 46633 | C23: 0.002267950637 | D23: 47618 | E23: 0.001896769501
A24: Unmetered Scattered Load (USL) | B24: 46696 | C24: 0.002271014581 | D24: 43263 | E24: 0.00172329663
A25: Other class, if applicable | C25: 0 | E25: 0
C26: 0 | E26: 0
A27: Embedded distributor class | C27: 0 | E27: 0
A28: Total | B28: =SUM(B17:B27) -> 20561735 | C28: =SUM(C17:C27) -> 1 | D28: =SUM(D17:D27) -> 25104790 | E28: =SUM(E17:E27) -> 1
A30: Notes
A32: 1 Customer Classification - If proposed rate classes differ from those in place in the previous Cost Allocation study, modify the rate classes to match the current application as closely as possible.
A35: 2 Host Distributors - Provide information on embedded distributor(s) as a separate class, if applicable. If embedded distributor(s) are billed as customers in a General Service class, include the allocated cost and revenue of the embedded distributor(s) in the applicable class. Also complete Appendix 2-Q.
A39: 3 Class Revenue Requirements - If using the Board-issued model, in column 7A enter the results from Worksheet O-1, Revenue Requirement (row 40 in the 2013 model). This excludes costs in deferral and variance accounts. Note to Embedded Distributor(s), it also does not include Account 4750 - Low Voltage (LV) Costs.
A43: B) Calculated Class Revenues
C45: Column 7B | D45: Column 7C | E45: Column 7D | F45: Column 7E
A46: Classes (same as previous table) | C46: Load Forecast (LF) X current approved rates | D46: L.F. X current approved rates X (1 + d) | E46: LF X proposed rates | F46: Miscellaneous Revenue
A48: =A17 -> Residential | C48: 13210751 | D48: =13701877-1 -> 13701876 | E48: 13747467 | F48: 1075603
A49: GS < 50 kW | C49: 3688713 | D49: 3825845 | E49: 3780417 | F49: 191135
A50: GS > 50 kW (or 50 kW < GS < xxx kW, if applicable) | C50: 5056676 | D50: 5244664 | E50: 5244664 | F50: 220805
A51: GS > xxx kW, if applicable
A52: Large User, if applicable
A53: Street Lighting | C53: 668848 | D53: 693713 | E53: 693713 | F53: 55108
A54: Sentinel Lighting | C54: 34475 | D54: 35756 | E54: 40080 | F54: 3880
A55: Unmetered Scattered Load (USL) | C55: 51010 | D55: 52906 | E55: 48419 | F55: 3497
A56: Other class, if applicable
A58: =A27 -> Embedded distributor class
A59: =A28 -> Total | C59: =SUM(C48:C58) -> 22710473 | D59: =SUM(D48:D58) -> 23554760 | E59: =SUM(E48:E58) -> 23554760 | F59: =SUM(F48:F58) -> 1550028
A61: Notes:
A63: 1 Columns 7B to 7D - LF means Load Forecast of Annual Billing Quantities (i.e. customers or connections X 12, (kWh or kW, as applicable). Revenue Quantities should be net of Transfomrer Ownership Allowance. Exclude revenue from rate adders and rate riders.
A66: 2 Columns 7C and 7D - Column total in each column should equal the Base Revenue Requirement
A68: 3 Columns 7C - The Board cost allocation model calculates "1+d" in worksheet O-1, cell C21. "d" is defined as Revenue Deficiency/ Revenue at Current Rates.
A71: 4 Columns 7E - If using the Board-issued Cost Allocation model, enter Miscellaneous Revenue as it appears in Worksheet O-1, row 19.
A74: C) Rebalancing Revenue-to-Cost (R/C) Ratios
A76: Class | C76: Previously Approved Ratios | D76: Status Quo Ratios | E76: Proposed Ratios | F76: Policy Range
C77: Most Recent Year: | D77: (7C + 7E) / (7A) | E77: (7D + 7E) / (7A)
C78: 2011
C79: % | D79: % | E79: % | F79: %
A80: =A48 -> Residential | C80: 96.87 | D80: =IF(D17=0,"",(D48+F48)/D17*100) -> 92.03572667 | E80: =IF(D17=0,"",(E48+F48)/D17*100) -> 92.31967231 | F80: 85 - 115
A81: GS < 50 kW | C81: 106.33 | D81: =IF(D18=0,"",(D49+F49)/D18*100) -> 121.3725897 | E81: 102.48 | F81: 80 - 120
A82: GS > 50 kW (or 50 kW < GS < xxx kW, if applicable) | C82: 110.26 | D82: 112.3922315 | E82: 112.3922315 | F82: 80 - 120
A83: GS > xxx kW, if applicable | F83: 80 - 120
A84: Large User, if applicable | F84: 85 - 115
A85: Street Lighting | C85: 70 | D85: 95.36849184 | E85: 95.36849184 | F85: 70 - 120
A86: Sentinel Lighting | C86: 70 | D86: 83.23743122 | E86: 92.318031 | F86: 80 - 120
A87: Unmetered Scattered Load (USL) | C87: 115.19 | D87: 130.3723736 | E87: 120.0009246 | F87: 80 - 120
A88: Other class, if applicable
A90: =A58 -> Embedded distributor class
A92: Notes
A94: 1 Previously Approved Revenue-to-Cost Ratios - For most applicants, Most Recent Year would be the third year of the IRM 3 period, e.g. if the applicant rebased in 2009 with further adjustments over 2 years, the Most recent year is 2011. For applicants that have had rates adjusted only under IRM 2, the Most Recent Year is 2006, and the applicant should enter the ratios from their Informational Filing.
A97: 2 Status Quo Ratios - The Board's updated Cost Allocation Model yields the Status Quo Ratios in Worksheet O-1. Status Quo means "Before Rebalancing".
A99: D) Proposed Revenue-to-Cost Ratios
A101: Class | C101: Proposed Revenue-to-Cost Ratios | F101: Policy Range
C102: 2013 | D102: 2014 | E102: 2015
C103: % | D103: % | E103: % | F103: %
A104: =A80 -> Residential | C104: =E80 -> 92.31967231 | F104: =F80 -> 85 - 115
A105: =A81 -> GS < 50 kW | C105: =E81 -> 102.48 | F105: =F81 -> 80 - 120
A106: GS > 50 kW (or 50 kW < GS < xxx kW, if applicable) | C106: 112.3922315 | F106: 80 - 120
A107: GS > xxx kW, if applicable | F107: 80 - 120
A108: Large User, if applicable | F108: 85 - 115
A109: Street Lighting | C109: 95.36849184 | F109: 70 - 120
A110: Sentinel Lighting | C110: 92.318031 | F110: 80 - 120
A111: Unmetered Scattered Load (USL) | C111: 120.0009246 | F111: 80 - 120
A112: Other class, if applicable | F112: =F88 -> 0
F113: =F89 -> 0
A114: Embedded distributor class
A116: Note
A117: 1 The applicant should complete Table D if it is applying for approval of a revenue to cost ratio in 2012 that is outside the Board’s policy range for any customer class. Table (d) will show the information that the distributor would likely enter in the IRM model) in 2013. In 2013 Table (d), enter the planned ratios for the classes that will be ‘Change’ and ‘No Change’ in 2013 (in the current Revenue Cost Ratio Adjustment Workform, Worksheet C1.1 ‘Decision – Cost Revenue Adjustment’, column d), and enter TBD for class(es) that will be entered as ‘Rebalance’.

Sheet App.2-R_Loss Factors
G1: File Number: | H1: ='LDC Info'!$E$18 -> EB-2012-0126
G2: Exhibit: | H2: 8
G3: Tab: | H3: 3
G4: Schedule: | H4: 6
G5: Attachment: | H5: 1
G7: Date: | H7: 9 November, 2012
A9: Appendix 2-R
A10: Loss Factors
C14: Historical Years | H14: 5-Year Average
C15: =IF(ISBLANK('LDC Info'!E26-5), "Year 5", 'LDC Info'!E26-5) -> 2007 | D15: =IF(ISBLANK('LDC Info'!E26-4), "Year 5", 'LDC Info'!E26-4) -> 2008 | E15: =IF(ISBLANK('LDC Info'!E26-3), "Year 5", 'LDC Info'!E26-3) -> 2009 | F15: =IF(ISBLANK('LDC Info'!E26-2), "Year 5", 'LDC Info'!E26-2) -> 2010 | G15: =IF(ISBLANK('LDC Info'!E26-1), "Year 5", 'LDC Info'!E26-1) -> 2011
B16: Losses Within Distributor's System
A17: A(1) | B17: "Wholesale" kWh delivered to distributor (higher value) | C17: 1001862965 | D17: 1006112851 | E17: 1004442976 | F17: 966894707.2 | G17: 967341538.3 | H17: =IF(SUM(C17:G17)=0,0,AVERAGE(C17:G17)) -> 989331007.5
A18: A(2) | B18: "Wholesale" kWh delivered to distributor (lower value) | C18: 1006978301 | D18: 1012883013 | E18: 1008534281 | F18: 975012466 | G18: 979395602.2 | H18: =IF(SUM(C18:G18)=0,0,AVERAGE(C18:G18)) -> 996560732.6
A19: B | B19: Portion of "Wholesale" kWh delivered to distributor for its Large Use Customer(s) | C19: 0 | D19: 0 | E19: 0 | F19: 0 | G19: 0 | H19: =IF(SUM(C19:G19)=0,0,AVERAGE(C19:G19)) -> 0
A20: C | B20: Net "Wholesale" kWh delivered to distributor = A(2) - B | C20: =C18-C19 -> 1006978301 | D20: 1012883013 | E20: 1008534281 | F20: 975012466 | G20: 979395602.2 | H20: 996560732.6
A21: D | B21: "Retail" kWh delivered by distributor | C21: 958611633 | D21: 966826979 | E21: 957200159.2 | F21: 930392978.7 | G21: 935254771.7 | H21: =IF(SUM(C21:G21)=0,0,AVERAGE(C21:G21)) -> 949657304.3
A22: E | B22: Portion of "Retail" kWh delivered by distributor to its Large Use Customer(s) | C22: 0 | D22: 0 | E22: 0 | F22: 0 | G22: 0 | H22: =IF(SUM(C22:G22)=0,0,AVERAGE(C22:G22)) -> 0
A23: F | B23: Net "Retail" kWh delivered by distributor = D - E | C23: =C21-C22 -> 958611633 | D23: 966826979 | E23: 957200159.2 | F23: 930392978.7 | G23: 935254771.7 | H23: 949657304.3
A24: G | B24: Loss Factor in Distributor's system = C / F | C24: =IF(C23=0,"",C20/C23) -> 1.050454914 | D24: 1.047636274 | E24: 1.053629454 | F24: 1.047957678 | G24: 1.047196584 | H24: 1.049389846
B25: Losses Upstream of Distributor's System
A26: H | B26: Supply Facilities Loss Factor | C26: 1.004383989 | D26: 1.004379217 | E26: 1.004381124 | F26: 1.00437749 | G26: 1.004380166 | H26: =IF(SUM(C26:G26)=0,0,AVERAGE(C26:G26)) -> 1.004380397
B27: Total Losses
A28: I | B28: Total Loss Factor = G x H | C28: =IF(C24="","",C24*C26) -> 1.055060097 | D28: 1.0522241 | E28: 1.058245535 | F28: 1.052545103 | G28: 1.051783479 | H28: 1.053986591
A30: Notes
A33: A(1) | B33: If directly connected to the IESO-controlled grid, kWh pertains to the virtual meter on the primary or high voltage side of the transformer at the interface with the transmission grid. This corresponds to the "With Losses" kWh value provided by the IESO's MV-WEB. It is the higher of the two values provided by MV-WEB.
B37: If fully embedded within a host distributor, kWh pertains to the virtual meter on the primary or high voltage side of the transformer, at the interface between the host distributor and the transmission grid. For example, if the host distributor is Hydro One Networks Inc., kWh from the Hydro One Networks' invoice corresponding to "Total kWh w Losses" should be reported. This corresponds to the higher of the two kWh values provided in Hydro One Networks' invoice.
B42: If partially embedded, kWh pertains to the sum of the above.
A44: A(2) | B44: If directly connected to the IESO-controlled grid, kWh pertains to a metering installation on the secondary or low voltage side of the transformer at the interface with the transmission grid. This corresponds to the "Without Losses" kWh value provided by the IESO's MV-WEB. It is the lower of the two kWh values provided by MV-WEB.
B48: If fully embedded with the host distributor, kWh pertains to an actual or virtual meter at the interface between the embedded distributor and the host distributor. For example, if the host distributor is Hydro One Networks Inc., kWh from the Hydro One Networks' invoice corresponding to "Total kWh" should be reported. This corresponds to the lower of the two kWh values provided in Hydro One Networks' invoice.
B53: If partially embedded, kWh pertains to the sum of the above.
B55: Additionally, kWh pertaining to distributed generation directly connected to the distributor's own distribution network should be included in A(2).
A58: B | B58: If a Large Use Customer is metered on the secondary or low voltage side of the transformer, the default loss is 1% (i.e., B = 1.01 X E).
A61: D | B61: kWh corresponding to D should equal metered or estimated kWh at the customer’s delivery point.
A64: G and I | B64: These loss factors pertain to secondary-metered customers with demand less than 5,000 kW.
A66: H | B66: If directly connected to the IESO-controlled grid, SFLF = 1.0045.
B68: If fully embedded within a host distributor, SFLF = loss factor re losses in transformer at grid interface X loss factor re losses in host distributor's system. If the host distributor is Hydro One Networks Inc., SFLF = 1.0060 X 1.0278 = 1.0340. If partially embedded, SFLF should be calculated as the weighted average of above.
B72: Distributors that wish to propose a different SFLF should provide appropriate justification for any such proposal including supporting
B73: calculations and any other relevant material.

Sheet App.2-S_Stranded Meters
G1: File Number: | H1: ='LDC Info'!$E$18 -> EB-2012-0126
G2: Exhibit: | H2: 9
G3: Tab: | H3: 1
G4: Schedule: | H4: 3
G5: Attachment: | H5: 1
G7: Date: | H7: 9 November, 2012
A9: Appendix 2-S
A10: Stranded Meter Treatment
A12: Year | B12: Notes | C12: Gross Asset Value | D12: Accumulated Amortization | E12: Contributed Capital (Net of Amortization) | F12: Net Asset | G12: Proceeds on Disposition | H12: Residual Net Book Value
C13: (A) | D13: (B) | E13: (C) | F13: (D ) = (A) - (B) - (C) | G13: (E) | H13: (F) = (D) - (E)
A14: 2006 | F14: =C14-D14-E14 -> 0 | H14: =F14-G14 -> 0
A15: 2007 | F15: 0 | H15: 0
A16: 2008 | F16: 0 | H16: 0
A17: 2009 | F17: 0 | H17: 0
A18: 2010 | F18: 0 | H18: 0
A19: 2011 | F19: 0 | H19: 0
A20: 2012 | B20: (1) | C20: 7076701.3 | D20: 5868346.95 | E20: 0 | F20: 1208354.35 | G20: 14493 | H20: 1193861.35
A22: Notes:
A24: (1) | B24: For 2012, please indicate whether the amounts provided are on a forecast or actual basis.
C25: GSHi : Scenerio B applies and all amounts are on an actual basis
A27: Some distributors have transferred the cost of stranded meters from Account 1860 - Meters to "Sub-account Stranded Meter Costs of Account 1555", while in some cases distributors have left these costs in Account 1860. Depending on which treatment the applicant has chosen. please provide the information under either of the two scenarios (A and B below), as applicable.
A32: Scenario A: If the stranded meter costs were transferred to "Sub-account Stranded Meter Costs" of Account 1555, the above table should be completed and the following information should be provided.
A35: 1 | B35: A description of the accounting treatment followed by the applicant on stranded meter costs for financial accounting and reporting purposes.
A38: 2 | B38: The amount of the pooled residual net book value of the removed from service stranded meters, less any contributed capital (net of accumulated amortization), and less any net proceeds from sales, which were transferred to this sub-account as of December 31, 2010.
A43: 3 | B43: A statement as to whether or not, since transferring the removed stranded meter costs to the sub-account, the recording of depreciation expenses was continued in order to reduce the net book value through accumulated depreciation. If so, the total depreciation expense amount for the period from the time the costs for the stranded meters were transferred to the sub-account to December 31, 2010 should be provided.
B49: If no depreciation expenses were recorded to reduce the net book value of stranded meter costs through accumulated depreciation, the total depreciation expense amount that would have been applicable from the time that the stranded meter costs were transferred to the sub-account of Account 1555 to December 31, 2010 should be provided. In addition, the following information should be provided:
B54: a) | C54: Whether or not carrying charges were recorded for the stranded meter cost balances in the sub-account, and if so, the total carrying charges recorded to December 31, 2010.
B57: b) | C57: The estimated amount of the pooled residual net book value of the removed from service meters, less any net proceeds from sales and contributed capital, at the time when the smart meters will have been fully deployed (e.g., as of December 31, 2010). If the smart meters have been fully deployed, the actual amount should be provided.
B62: c) | C62: A description as to how the applicant intends to recover in rates the remaining costs for stranded meters, including the proposed accounting treatment, the proposed disposition period, and the associated bill impacts.
A66: Scenario B: If the stranded meter costs remained recorded in Account 1860, the above table should be completed and the following information should be provided:
A69: 1 | B69: A description of the accounting treatment followed by the applicant on stranded meter costs for financial accounting and reporting purposes.
B71: GSHI: Refer to Exhibit 9, Tab 1, Schedule 3
A73: 2 | B73: The amount of the pooled residual net book value of the removed from service stranded meters, less any contributed capital (net of accumulated amortization), and less any net proceeds from sales, as of December 31, 2010.
B76: GSHI: Refer to chart above
A78: 3 | B78: A statement as to whether or not the recording of depreciation expenses continued in order to reduce the net book value through accumulated depreciation. If so, provision of the total (cumulative) depreciation expense for the period from the time that the meters became stranded to December 31, 2010.
B81: GSHI: Refer to Exhibit 9, Tab 1, Schedule 3
A83: 4 | B83: If no depreciation expenses were recorded to reduce the net book value of stranded meters through accumulated depreciation, the total (cumulative) depreciation expense amount that would have been applicable for the period from the time that the meters became stranded to December 31, 2010.
B86: GSHI: not applicable
A88: 5 | B88: The estimated amount of the pooled residual net book value of the removed from service meters, less any net proceeds from sales and contributed capital, at the time when smart meters will have been fully deployed. If the smart meters have been fully deployed, please provide the actual amount.
B91: GSHI: Refer to Exhibit 9, Tab 1, Schedule 3
A93: 6 | B93: A description as to how the applicant intends to recover in rates the costs for stranded meters, including the proposed accounting treatment, the proposed disposition period and the associated bill impacts.
B95: GSHI: Refer to Exhibit 9, Tab 1, Schedule 3
A96: Distributors should also provide the Net Book Value per class of meter as of December 31, 2010 as well as the number of meters that were removed / stranded. In preparing this information, distributors should review the Board's letter of January 16, 2007 Stranded Meter Costs Related to the Installation of Smart Meters which stated that records were to be kept of the type and number of each meter to support the stranded meter costs.

Sheet App.2-T_1592_Tax_Variance
C1: File Number: | E1: ='LDC Info'!$E$18 -> EB-2012-0126
C2: Exhibit: | E2: 9
C3: Tab: | E3: 1
C4: Schedule: | E4: 5
C5: Attachment: | E5: 1
C7: Date: | E7: 9 November, 2012
A9: Appendix 2-T
A10: Deferred PILs Account 1592 Balances
A12: The following table should be completed based on the information requested below, in accordance with the notes following the table. An explanation should be provided for any blank entries.
A14: Tax Item | E14: Principal as of
E15: December 31,
E16: 2011
A17: Large Corporation Tax grossed-up proxy from 2006 EDR application PILs model for the period from May 1, 2006 to April 30, 2007 Response: GSHi was not subject to LCT and therefore no proxy was included in the 2006 EDR rate apllication | E17: n/a
A18: Large Corporation Tax grossed-up proxy from 2006 EDR application PILs model for the period from January 1, 2006 to April 30, 2006 (4/12ths of the approved grossed-up proxy), if not recorded in PILs account 1562 Response: GSHi was not subject to LCT and therefore no proxy was included in the 2006 EDR rate application. | E18: n/a
A19: Ontario Capital Tax rate decrease and increase in capital deduction for 2007 Response: Refer to Note 7. | E19: -16421.68
A20: Ontario Capital Tax rate decrease and increase in capital deduction for 2008 Response: Refer to note 8. | E20: -57733.4
A21: Ontario Capital Tax rate decrease and increase in capital deduction for 2009 Response: Refer to Note 9 (GSHi rebased May 1, 2009) | E21: -7994.47
A22: Ontario Capital Tax rate decrease and increase in capital deduction for 2010 | E22: n/a
A23: Capital Cost Allowance class changes from 2006 EDR application for 2006 | E23: n/a
A24: Capital Cost Allowance class changes from 2006 EDR application for 2007 | E24: n/a
A25: Capital Cost Allowance class changes from 2006 EDR application for 2008 | E25: n/a
A26: Capital Cost Allowance class changes from 2006 EDR application for 2009 | E26: n/a
A27: Capital Cost Allowance class changes from 2006 EDR application for 2010 | E27: n/a
A28: Capital Cost Allowance class changes from 2006 EDR application for 2011 | E28: n/a
A29: Capital Cost Allowance class changes from any prior application not recorded above. Please provide details and explanation separately. | E29: n/a
A30: Corporate tax rate decrease from 36.12% to 33.50% for 2008 (Jan to April) | E30: -31400
A31: Corporate tax rate decrease from 33.5% to 33.00% for 2009 (Jan to April) | E31: -5991
A32: Total | E32: =SUM(E17:E31) -> -119540.55
A34: Notes:
A36: 1 | B36: Revise the deferral and variance account continuity schedule to include account 1592 as a group 2 account and enter all relevant information for transactions, adjustments, etc., for all relevant years.
B38: Response: Account 1592 has been included as a Group 2 Account in the continuity schedule
A40: 2 | B40: Describe each type of tax item that has been recorded in account 1592.
B41: Response: Refer to notes (7) to (11)
A43: 3 | B43: Provide the calculations that show how each item was determined and provide any pertinent supporting evidence and documentation.
B45: Response: Refer to notes (7) to (11)
A47: 4 | B47: Please state whether or not the applicant followed the guidance provided in the FAQ of July 2007. If not, please provide an explanation.
B49: Response: GSHi has followed the guidance provided in the FAQ of July 2007.
A51: 5 | B51: Identify the account balance as of December 31, 2011 as per the 2011 Audited Financial Statements. Identify the account balance as of December 31, 2011 as per the April 2012 2.1.7 RRR filing to the Board. Provide a reconciliation if the balances provided are not identical to each other and to the total shown on the continuity schedule.
B55: Response: The balance in the 2011 audited financial statements and the 2.1.7 RRR filing were both NIL.
A57: 6 | B57: Complete the above table based on the answers to the previous. Add rows as required to complete the analysis in an informative manner. Please provide the completed table as a working Excel spreadsheet.
B60: Response: Completed.
A63: 7
B64: Ontario Capital Tax rate decrease and increase in capital deduction for calendar 2007:
E66: 2006EDR | F66: 2007
B67: Taxable capital per 2006 EDR | E67: 71977864 | F67: 71977864
B68: Deduction | E68: -10000000 | F68: -12500000
B69: Net taxable capital | E69: =SUM(E67:E68) -> 61977864 | F69: =SUM(F67:F68) -> 59477864
B70: Ontario Capital tax rate | E70: 0.003 | F70: 0.00285
B71: Capital tax | E71: =+E69*E70 -> 185933.592 | F71: =+F69*F70 -> 169511.9124
B72: Difference = credit entry to Account 1592 for the year. | F72: =+F71-E71 -> -16421.6796
A74: 8
B75: Ontario Capital Tax rate decrease and increase in capital deduction for calendar 2008:
E76: 2006EDR | F76: 2008
B77: Taxable capital per 2006 EDR | E77: 71977864 | F77: 71977864
B78: Deduction | E78: -10000000 | F78: -15000000
B79: Net taxable capital | E79: =SUM(E77:E78) -> 61977864 | F79: =SUM(F77:F78) -> 56977864
B80: Ontario Capital tax rate | E80: 0.003 | F80: 0.00225
B81: Capital tax | E81: =+E79*E80 -> 185933.592 | F81: =+F79*F80 -> 128200.194
B82: Difference = credit entry to Account 1592 for the year. | F82: =+F81-E81 -> -57733.398
A84: 9
B85: Ontario Capital Tax rate decrease and increase in capital deduction for January to April 2009:
E86: 2006EDR | F86: 2009
B87: Taxable capital per 2009 EDR | E87: 71977864 | F87: 71977864
B88: Deduction | E88: -10000000 | F88: 0
B89: Net taxable capital | E89: =SUM(E87:E88) -> 61977864 | F89: =SUM(F87:F88) -> 71977864
B90: Ontario Capital tax rate | E90: 0.003 | F90: 0.00225
B91: Capital tax | E91: =+E89*E90 -> 185933.592 | F91: =+F89*F90 -> 161950.194
B92: Difference = credit entry to Account 1592 for the 1st quarter | F92: =+(F91-E91)/12*4 -> -7994.466
A94: 10
B95: Income tax decrease from 36.12 o 33.50% from January to April 2008
E96: 2006EDR | F96: 2008IRM
B97: Regulatory taxable income - per 2006 EDR | E97: 3595405 | F97: 3595405
B98: Corporate income tax rate | E98: 0.3612 | F98: 0.335
B99: Income tax | E99: =+E97*E98 -> 1298660.286 | F99: =+F97*F98 -> 1204460.675
B100: Difference | F100: =+F99-E99 -> -94199.611
F101: /12 x 4
B102: Credit entry to Account 1592 for January to April 2008 | F102: =+F100/12*4 -> -31399.87033
A105: 11
B106: Income tax decrease from 36.12 o 33.50% from January to April 2009
E107: 2008IRM | F107: 2009
B108: Regulatory taxable income - per 2008 IRM | E108: 3595405 | F108: 3595405
B109: Corporate income tax rate | E109: 0.335 | F109: =(829119-178813)/1970623 -> 0.3300002081
B110: Income tax | E110: =+E108*E109 -> 1204460.675 | F110: =+F108*F109 -> 1186484.398
B111: Difference | F111: =+F110-E110 -> -17976.27695
F112: /12 x 4
B113: Credit entry to Account 1592 for January to April 2009 | F113: =+F111/12*4 -> -5992.092318

Sheet App.2-U_IFRS Transition Costs
N1: File Number: | O1: ='LDC Info'!$E$18 -> EB-2012-0126
N2: Exhibit: | O2: 9
N3: Tab: | O3: 2
N4: Schedule: | O4: 1
N5: Attachment: | O5: 1
N7: Date: | O7: 9 November 2012
A9: Appendix 2-U
A10: One-Time Incremental IFRS Transition Costs
A12: The following table should be completed based on the information requested below. An explanation should be provided for any blank entries. The entries should include one-time incremental IFRS transition costs that are currently included in Account 1508, Other Regulatory Assets, sub-account Deferred IFRS Transition Costs Account, or Account 1508, Other Regulatory Assets, sub-account IFRS Transition Costs Variance Account.
A14: Nature of One-Time Incremental IFRS Transition Costs 1 | E14: Audited Actual | F14: Audited Actual | G14: Audited Actual | H14: Audited Carrying | I14: Total Audited | J14: RRR 2.1.7 | K14: Variance 2 | L14: Actual | M14: Carrying Charges | N14: Total | O14: Reasons why the costs recorded meet the criteria of one-time IFRS administrative incremental costs
E15: Costs Incurred | F15: Costs Incurred | G15: Costs Incurred | H15: Charges | I15: Actual Costs | J15: Balance | L15: Costs Incurred | M15: Jan 1 2012 | N15: Costs to
E16: 2009 | F16: 2010 | G16: 2011 | H16: to Dec 31, 2011 | I16: to Dec 31, 2011 | J16: 2011-12-313 | L16: Jan -Sept 30, 2012 | M16: to April 30 2012 | N16: April 30 2012
A17: professional accounting fees | F17: =25000+13717 -> 38717 | G17: =12241+15000+10000 -> 37241 | H17: 819.6 | I17: =SUM(E17:H17) -> 76777.6 | L17: 27000 | M17: 1287 | N17: =I17+L17+M17 -> 105064.6 | O17: Incremental IFRS professional accounting fees
A18: professional legal fees | I18: 0
A19: salaries, wages and benefits of staff added to support the transition to IFRS | I19: 0 | L19: =13750+2664.22 -> 16414.22 | M19: 781 | N19: =I19+L19+M19 -> 17195.22 | O19: Incremental staff to support transition to IFRS
A20: associated staff training and development costs | E20: 474.9 | F20: =117.74+223.03+4139 -> 4479.77 | G20: 1072.45 | H20: =4+57 -> 61 | I20: 6088.12 | L20: =520 -> 520 | M20: 42 | N20: =I20+L20+M20 -> 6650.12 | O20: Incremental IFRS training costs
A21: costs related to system upgrades, or replacements or changes where IFRS was the major reason for conversion | I21: 0
I22: 0
I23: 0
I24: 0
I25: 0
I26: 0
I27: 0
I28: 0
A29: Insert description of additional item(s) and new rows if needed. | I29: 0
A30: Total | E30: =SUM(E17:E29) -> 474.9 | F30: =SUM(F17:F29) -> 43196.77 | G30: =SUM(G17:G29) -> 38313.45 | H30: =SUM(H17:H29) -> 880.6 | I30: =SUM(I17:I29) -> 82865.72 | J30: 82866 | K30: =+I30-J30 -> -0.28 | L30: =SUM(L17:L29) -> 43934.22 | M30: =SUM(M17:M29) -> 2110 | N30: =SUM(N17:N29) -> 128909.94
A33: Note:
